Workbook

Sheet Cover

Sheet Input - General
B2: Cell colour legend
B4: Inputs - hardcoded value
B5: Derived Inputs - Calculated or referenced to another cell
B7: General assumptions | D7: Driver | F7: Inputs | H7: FY18 | I7: FY19 | J7: FY20 | K7: FY21 | L7: FY22 | M7: FY23 | N7: FY24
B9: CPI (%) | D9: % p.a. | H9: 0.01951870655 | I9: 0.02241968375 | J9: 0.025 | K9: 0.025 | L9: 0.025 | M9: 0.025 | N9: 0.025
B10: Labour real price escalation (%) | D10: % p.a. | H10: 0.005228652534 | I10: 0.009463713656 | J10: 0.008790770725 | K10: 0.01368154247 | L10: 0.0173726537 | M10: 0.0172875434 | N10: 0.01333326255
B11: Labour rate ($/hour) | D11: $/hour | H11: 52.91 | I11: =INDIRECT("PriceLabour"&H$7)*(1+INDIRECT("EscLabour"&I$7))*(1+INDIRECT("CPI"&I$7)) -> 54.60817665 | J11: 56.46543023 | K11: 58.66891352 | L11: 61.18035195 | M11: 63.79396018 | N11: 66.26065535
B12: Labour rate - overtime (1.89 times) ($/hour) | D12: $/hour | F12: 1.89 | H12: =PriceLabourFY18*F12 -> 99.9999 | I12: =PriceLabourFY19*F12 -> 103.2094539 | J12: =PriceLabourFY20*F12 -> 106.7196631 | K12: =PriceLabourFY21*F12 -> 110.8842466 | L12: =PriceLabourFY22*F12 -> 115.6308652 | M12: =PriceLabourFY23*F12 -> 120.5705847 | N12: =PriceLabourFY24*F12 -> 125.2326386
B13: EWP ($/hour) | D13: $/hour | H13: 32.09162584 | I13: =INDIRECT("priceewp"&H7)*(1+INDIRECT("CPI"&I7)) -> 32.81110994 | J13: =INDIRECT("priceewp"&I7)*(1+INDIRECT("CPI"&J7)) -> 33.63138769 | K13: 34.47217238 | L13: 35.33397669 | M13: 36.2173261 | N13: 37.12275926
B14: Average Visor cost | D14: $/unit | H14: 49.71973843 | I14: =INDIRECT("PriceVisor"&H7)*(1+INDIRECT("CPI"&I7)) -> 50.83443924 | J14: =INDIRECT("PriceVisor"&I7)*(1+INDIRECT("CPI"&J7)) -> 52.10530022 | K14: 53.40793273 | L14: 54.74313105 | M14: 56.11170932 | N14: 57.51450206
B15: Average PE cell cost | D15: $/unit | H15: 11.04255977 | I15: =INDIRECT("PricePECell"&H7)*((1+INDIRECT("CPI"&I7))) -> 11.29013046 | J15: =INDIRECT("PricePECell"&I7)*((1+INDIRECT("CPI"&J7))) -> 11.57238373 | K15: 11.86169332 | L15: 12.15823565 | M15: 12.46219154 | N15: 12.77374633
B16: Average miscellaneous materials cost | D16: $/unit | H16: 15 | I16: =INDIRECT("PriceMisc"&H7)*(1+INDIRECT("CPI"&I7)) -> 15.33629526 | J16: =INDIRECT("PriceMisc"&I7)*(1+INDIRECT("CPI"&J7)) -> 15.71970264 | K16: 16.1126952 | L16: 16.51551258 | M16: 16.9284004 | N16: 17.35161041
B17: Proportion of work in overtime hours (%) | D17: % p.a. | F17: 0.07
B18: Proportion of work in standard hours (%) | D18: % p.a. | F18: 0.93
B19: Labour oncosts (%) | D19: % p.a. | F19: 0.5223
B20: Corporate Overheads (CAM) | D20: % p.a. | F20: 0.109307573
B21: Overhead cost allocation (Direct + Indirect) (%) | D21: % p.a. | F21: 0.2227618911
B23: Bulk maintenance assumptions | D23: Driver | F23: Inputs | H23: FY18 | I23: FY19 | J23: FY20 | K23: FY21 | L23: FY22 | M23: FY23 | N23: FY24
B26: Servicing of Minor Luminaire - Scheduled | D26: Cycle time (Yrs) | F26: 4 | H26: 24.6719008 | I26: =INDIRECT("PriceBulkTask1"&H$23)*(1+ INDIRECT("CPI"&I$23)) -> 25.22503701 | J26: =INDIRECT("PriceBulkTask1"&I$23)*(1+ INDIRECT("CPI"&J$23)) -> 25.85566294 | K26: 26.50205451 | L26: 27.16460588 | M26: 27.84372102 | N26: 28.53981405
B27: Servicing of Major Luminaire - Scheduled | D27: Cycle time (Yrs) | F27: 4 | H27: 28.738834 | I27: =INDIRECT("PriceBulkTask2"&H$23)*(1+ INDIRECT("CPI"&I$23)) -> 29.38314957 | J27: =INDIRECT("PriceBulkTask2"&I$23)*(1+ INDIRECT("CPI"&J$23)) -> 30.11772831 | K27: 30.87067152 | L27: 31.64243831 | M27: 32.43349926 | N27: 33.24433674
B28: Servicing of Minor LED Luminaire - Scheduled | D28: Cycle time (Yrs) | F28: 6 | H28: 24.6719008 | I28: =INDIRECT("PriceBulkTask1LED"&H$23)*(1+ INDIRECT("CPI"&I$23)) -> 25.22503701 | J28: =INDIRECT("PriceBulkTask1LED"&I$23)*(1+ INDIRECT("CPI"&J$23)) -> 25.85566294 | K28: 26.50205451 | L28: 27.16460588 | M28: 27.84372102 | N28: 28.53981405
B29: Servicing of Major LED Luminaire - Scheduled | D29: Cycle time (Yrs) | F29: 6 | H29: 28.738834 | I29: =INDIRECT("PriceBulkTask2LED"&H$23)*(1+ INDIRECT("CPI"&I$23)) -> 29.38314957 | J29: =INDIRECT("PriceBulkTask2LED"&I$23)*(1+ INDIRECT("CPI"&J$23)) -> 30.11772831 | K29: 30.87067152 | L29: 31.64243831 | M29: 32.43349926 | N29: 33.24433674
B30: Replacement of Luminaire Visor | D30: Cycle time (Yrs) | F30: 140.3875791 | H30: 11.48500442 | I30: =INDIRECT("PriceBulkTask3"&H$23)*(1+ INDIRECT("CPI"&I$23)) -> 11.74249459 | J30: =INDIRECT("PriceBulkTask3"&I$23)*(1+ INDIRECT("CPI"&J$23)) -> 12.03605696 | K30: 12.33695838 | L30: 12.64538234 | M30: 12.9615169 | N30: 13.28555482
B31: Replacement of Photo-electric Cell | D31: Cycle time (Yrs) | F31: 0 | H31: 5.574180491 | I31: =INDIRECT("PriceBulkTask4"&H$23)*(1+ INDIRECT("CPI"&I$23)) -> 5.699151855 | J31: =INDIRECT("PriceBulkTask4"&I$23)*(1+ INDIRECT("CPI"&J$23)) -> 5.841630651 | K31: 5.987671417 | L31: 6.137363203 | M31: 6.290797283 | N31: 6.448067215
B32: Minor Non-Electrical Repair | D32: Cycle time (Yrs) | F32: 168.6008287 | H32: 24.13954103 | I32: =INDIRECT("PriceBulkTask5"&H$23)*(1+ INDIRECT("CPI"&I$23)) -> 24.68074191 | J32: =INDIRECT("PriceBulkTask5"&I$23)*(1+ INDIRECT("CPI"&J$23)) -> 25.29776045 | K32: 25.93020447 | L32: 26.57845958 | M32: 27.24292107 | N32: 27.92399409
B33: Apply Temporary Insulation | D33: Cycle time (Yrs) | F33: 49.92515337 | H33: 14.46149856 | I33: =INDIRECT("PriceBulkTask6"&H$23)*(1+ INDIRECT("CPI"&I$23)) -> 14.78572079 | J33: =INDIRECT("PriceBulkTask6"&I$23)*(1+ INDIRECT("CPI"&J$23)) -> 15.15536381 | K33: 15.5342479 | L33: 15.9226041 | M33: 16.3206692 | N33: 16.72868593
B34: Minor Electrical Work | D34: Cycle time (Yrs) | F34: 66.50340507 | H34: 40.19950453 | I34: =INDIRECT("PriceBulkTask7"&H$23)*(1+ INDIRECT("CPI"&I$23)) -> 41.10076471 | J34: =INDIRECT("PriceBulkTask7"&I$23)*(1+ INDIRECT("CPI"&J$23)) -> 42.12828383 | K34: 43.18149093 | L34: 44.2610282 | M34: 45.3675539 | N34: 46.50174275
B35: Night Time Traffic Route Luminaire (TRL) Patrol | D35: Cycle time (Yrs) | F35: 16275.6 | H35: 8290.488177 | I35: =INDIRECT("PriceBulkTask8"&H$23)*(1+ INDIRECT("CPI"&I$23)) -> 8476.3583 | J35: =INDIRECT("PriceBulkTask8"&I$23)*(1+ INDIRECT("CPI"&J$23)) -> 8688.267258 | K35: 8905.473939 | L35: 9128.110788 | M35: 9356.313557 | N35: 9590.221396
B37: Spot maintenance assumptions | D37: Driver | F37: Inputs
B40: Number of workers in standard crew | D40: no. of ppl | F40: 2
B41: Additional workers on traffic route | D41: no. of ppl | F41: 1
B42: Time required for average spot lamp replacement (hours) | D42: no. of hrs | F42: =45.4/60 -> 0.7566666667
B43: Time for PE Cell replacement (hours) | D43: no. of hrs | F43: =45.4/60 -> 0.7566666667
B44: Time for other spot maintenance task (hours) | D44: no. of hrs | F44: =45.4/60 -> 0.7566666667
B45: Annual average failure rate for PE cells | D45: % p.a. | F45: 0.0198285774
B46: Annual average failure rates for other components | D46: % p.a. | F46: 0.03256191236
B48: Connection maintenance assumptions | D48: Driver | F48: Type
B51: Connection type - "O/U" | D51: $/unit | F51: O/U | H51: 74.36233111 | I51: =H51*(1+INDIRECT("CPI"&I$77)) -> 76.02951105 | J51: 77.93024883 | K51: 79.87850505 | L51: 81.87546768 | M51: 83.92235437 | N51: 86.02041323
B52: Connection type - "OH" | D52: $/unit | F52: OH | H52: 0 | I52: 0 | J52: 0 | K52: 0 | L52: 0 | M52: 0 | N52: 0
B53: Connection type - "OH2" | D53: $/unit | F53: OH2 | H53: 0 | I53: 0 | J53: 0 | K53: 0 | L53: 0 | M53: 0 | N53: 0
B54: Connection type - "OHS" | D54: $/unit | F54: OHS | H54: 0 | I54: 0 | J54: 0 | K54: 0 | L54: 0 | M54: 0 | N54: 0
B55: Connection type - "UG2" | D55: $/unit | F55: UG2 | H55: 0 | I55: 0 | J55: 0 | K55: 0 | L55: 0 | M55: 0 | N55: 0
B56: Connection type - "UGR1" | D56: $/unit | F56: UGR1 | H56: 68.16374696 | I56: 69.69195661 | J56: 71.43425553 | K56: 73.22011192 | L56: 75.05061472 | M56: 76.92688008 | N56: 78.85005209
B57: Connection type - "UGR2" | D57: $/unit | F57: UGR2 | H57: 24.78375584 | I57: 25.33939981 | J57: 25.97288481 | K57: 26.62220693 | L57: 27.2877621 | M57: 27.96995615 | N57: 28.66920506
B58: Connection type - "UGS" | D58: $/unit | F58: UGS | H58: 0 | I58: 0 | J58: 0 | K58: 0 | L58: 0 | M58: 0 | N58: 0
B59: Connection type - "UG-SP" | D59: $/unit | F59: UG-SP | H59: 0 | I59: 0 | J59: 0 | K59: 0 | L59: 0 | M59: 0 | N59: 0
B60: Options
B62: Bulk cycle/ spot failure rate assumption:
B65: Traffic | F65: 1
B66: Non-Traffic | F66: 0
B68: Bulk cycle options: | C68: Option Number
B69: AER 2014 determination | C69: 1 | H69: Theoretical Lamp Failure Rates @ 4 Year BLR
B70: Average Call Out Rate | C70: 2 | H70: =VLOOKUP(BulkCycleOptionLinkedCell,$B$69:$C$74,2,FALSE) -> 3
B71: Theoretical Lamp Failure Rates @ 4 Year BLR | C71: 3
B72: Weibull Results @ 4 year BLR | C72: 4
C73: 5
C74: 6
H76: Summary Expenditure
H77: FY18 | I77: FY19 | J77: FY20 | K77: FY21 | L77: FY22 | M77: FY23 | N77: FY24
H79: ='Calc - Opex FY18'!M4 -> 17317021.16 | I79: ='Calc - Opex FY19'!M4 -> 17775197.13 | J79: ='Calc - Opex FY20'!M4 -> 16542000.7 | K79: ='Calc - Opex FY21'!M4 -> 15310985.44 | L79: ='Calc - Opex FY22'!M4 -> 14349522.29 | M79: ='Calc - Opex FY23'!M4 -> 14635516.26 | N79: ='Calc - Opex FY24'!M4 -> 15042065.49 | O79: =NPV(#REF!,J79:N79) -> 
H80: Required OH | J80: 2500000 | K80: 2500000 | L80: 2500000 | M80: 2500000 | N80: 2500000 | O80: =NPV(#REF!,J80:N80) -> 
H81: Required OH | J81: 1500000 | K81: 1500000 | L81: 1500000 | M81: 1500000 | N81: 1500000 | O81: =NPV(#REF!,J81:N81) -> 
H83: Recovered OH | J83: ='Calc - Opex FY20'!$BR4 -> 2716658.561 | K83: ='Calc - Opex FY21'!$BR4 -> 2514491.471 | L83: ='Calc - Opex FY22'!$BR4 -> 2356592.367 | M83: ='Calc - Opex FY23'!$BR4 -> 2403560.565 | N83: ='Calc - Opex FY24'!$BR4 -> 2470327.304 | O83: =NPV(#REF!,J83:N83) -> 
H84: Recovered OH | J84: ='Calc - Opex FY20'!$BV4 -> 1629995.137 | K84: ='Calc - Opex FY21'!$BV4 -> 1508694.883 | L84: ='Calc - Opex FY22'!$BV4 -> 1413955.42 | M84: ='Calc - Opex FY23'!$BV4 -> 1442136.339 | N84: ='Calc - Opex FY24'!$BV4 -> 1482196.382 | O84: =NPV(#REF!,J84:N84) -> 
P86: Overhead Calc - Goal Seek
P87: CAM Calc - Goal Seek

Sheet Input - Inventory
C2: Cell colour legend
C3: Inputs - hardcoded value
C4: Derived Inputs - Calculated or referenced to another cell | X4: CONFIDENTIAL
P6: Qty of assets being maintained | X6: Price | AF6: Average annual failure under selected bulk cycle | AH6: Spot rates for different bulk cycles
B7: # | C7: Description | D7: Type | E7: Route | F7: Category | G7: Is LED | H7: Lamps (#) | I7: Rate 1 | J7: Rate 2 | K7: Rate 3 | L7: Rate 4 | M7: Rate 5 | N7: Total | P7: FY18 | Q7: FY19 | R7: FY20 | S7: FY21 | T7: FY22 | U7: FY23 | V7: FY24 | X7: FY18 | Y7: FY19 | Z7: FY20 | AA7: FY21 | AB7: FY22 | AC7: FY23 | AD7: FY24 | AH7: AER 2014 determination | AI7: Average Call Out Rate | AJ7: Theoretical Lamp Failure Rates @ 4 Year BLR | AK7: Weibull Results @ 4 year BLR
B9: 1 | C9: O/U | D9: Connection | E9: NonTraffic | F9: n/a | G9: N | H9: 0 | I9: 560 | J9: 16 | K9: 19 | L9: 0 | M9: 0 | N9: =SUM(I9:M9) -> 595 | P9: =I9+J9+L9+M9 -> 576 | Q9: =Count1FY18 -> 576 | R9: 576 | S9: 576 | T9: 576 | U9: 576 | V9: 576 | AF9: =OFFSET(AH9,0,BulkOptionNumber-1) -> 0
B10: 2 | C10: OH | D10: Connection | E10: NonTraffic | F10: n/a | G10: N | H10: 0 | I10: 193907 | J10: 2255 | K10: 1582 | L10: 1 | M10: 460 | N10: =SUM(I10:M10) -> 198205 | P10: =I10+J10+L10+M10 -> 196623 | Q10: =Count2FY18 -> 196623 | R10: 196623 | S10: 196623 | T10: 196623 | U10: 196623 | V10: 196623 | AF10: 0
B11: 3 | C11: OH2 | D11: Connection | E11: NonTraffic | F11: n/a | G11: N | H11: 0 | I11: 521 | J11: 197 | K11: 10 | L11: 0 | M11: 0 | N11: 728 | P11: 718 | Q11: =Count3FY18 -> 718 | R11: 718 | S11: 718 | T11: 718 | U11: 718 | V11: 718 | AF11: 0
B12: 4 | C12: OHS | D12: Connection | E12: NonTraffic | F12: n/a | G12: N | H12: 0 | I12: 8 | J12: 1 | K12: 0 | L12: 0 | M12: 0 | N12: 9 | P12: 9 | Q12: =Count4FY18 -> 9 | R12: 9 | S12: 9 | T12: 9 | U12: 9 | V12: 9 | AF12: 0
B13: 5 | C13: UG2 | D13: Connection | E13: NonTraffic | F13: n/a | G13: N | H13: 0 | I13: 649 | J13: 485 | K13: 161 | L13: 0 | M13: 0 | N13: 1295 | P13: 1134 | Q13: =Count5FY18 -> 1134 | R13: 1134 | S13: 1134 | T13: 1134 | U13: 1134 | V13: 1134 | AF13: 0
B14: 6 | C14: UGR1 | D14: Connection | E14: NonTraffic | F14: n/a | G14: N | H14: 0 | I14: 31681 | J14: 0 | K14: 1741 | L14: 0 | M14: 111 | N14: 33533 | P14: 31792 | Q14: =Count6FY18 -> 31792 | R14: 31792 | S14: 31792 | T14: 31792 | U14: 31792 | V14: 31792 | AF14: 0 | AO14: Number of Spot Tasks
B15: 7 | C15: UGR2 | D15: Connection | E15: NonTraffic | F15: n/a | G15: N | H15: 0 | I15: 0 | J15: 20883 | K15: 785 | L15: 54 | M15: 0 | N15: 21722 | P15: 20937 | Q15: =Count7FY18 -> 20937 | R15: 20937 | S15: 20937 | T15: 20937 | U15: 20937 | V15: 20937 | AF15: 0 | AO15: FY18 | AP15: FY19 | AQ15: FY20 | AR15: FY21 | AS15: FY22 | AT15: FY23 | AU15: FY24
B16: 8 | C16: UGS | D16: Connection | E16: NonTraffic | F16: n/a | G16: N | H16: 0 | I16: 30 | J16: 78 | K16: 1 | L16: 0 | M16: 0 | N16: 109 | P16: 108 | Q16: =Count8FY18 -> 108 | R16: 108 | S16: 108 | T16: 108 | U16: 108 | V16: 108 | AF16: 0
B17: 9 | C17: UG-SP | D17: Connection | E17: NonTraffic | F17: n/a | G17: N | H17: 0 | I17: 6 | J17: 7 | K17: 1185 | L17: 0 | M17: 0 | N17: 1198 | P17: 13 | Q17: =Count9FY18 -> 13 | R17: 13 | S17: 13 | T17: 13 | U17: 13 | V17: 13 | AF17: 0
B18: 10 | C18: LED TRIAL | D18: Lamp | E18: NonTraffic | F18: Minor | G18: Y | H18: 1 | I18: 67 | J18: 0 | K18: 0 | L18: 0 | M18: 0 | N18: 67 | P18: 67 | Q18: 67 | R18: 67 | S18: 67 | T18: 67 | U18: 67 | V18: 67 | Y18: =X18*(1+INDIRECT("CPI"&Y$7)) -> 0 | Z18: =Y18*(1+INDIRECT("CPI"&Z$7)) -> 0 | AA18: 0 | AB18: 0 | AC18: 0 | AD18: 0 | AF18: 0 | AH18: 0 | AI18: 0.1205027699 | AJ18: 0 | AO18: =P18*FailurePECellAnnual+P18*FailureMiscAnnual+P18*$AF18 -> 3.510162814 | AP18: =Q18*FailurePECellAnnual+Q18*FailureMiscAnnual+Q18*$AF18 -> 3.510162814 | AQ18: =R18*FailurePECellAnnual+R18*FailureMiscAnnual+R18*$AF18 -> 3.510162814 | AR18: =S18*FailurePECellAnnual+S18*FailureMiscAnnual+S18*$AF18 -> 3.510162814 | AS18: =T18*FailurePECellAnnual+T18*FailureMiscAnnual+T18*$AF18 -> 3.510162814 | AT18: =U18*FailurePECellAnnual+U18*FailureMiscAnnual+U18*$AF18 -> 3.510162814 | AU18: =V18*FailurePECellAnnual+V18*FailureMiscAnnual+V18*$AF18 -> 3.510162814
B19: 11 | C19: LED1x100 | D19: Lamp | E19: Traffic | F19: Major | G19: Y | H19: 1 | I19: 6 | J19: 0 | K19: 0 | L19: 0 | M19: 0 | N19: 6 | P19: 6 | Q19: 6 | R19: 4982.666667 | S19: 10159 | T19: 15343 | U19: 15554 | V19: 15761 | Y19: =X19*(1+INDIRECT("CPI"&Y$7)) -> 0 | Z19: 0 | AA19: 0 | AB19: 0 | AC19: 0 | AD19: 0 | AF19: 0 | AH19: 0 | AI19: 0.1205027699 | AJ19: 0 | AO19: 0.3143429385 | AP19: 0.3143429385 | AQ19: 261.044347 | AR19: 532.2349854 | AS19: 803.8272843 | AT19: 814.8816777 | AU19: 825.7265091
B20: 12 | C20: LED1x17 | D20: Lamp | E20: NonTraffic | F20: Minor | G20: Y | H20: 1 | I20: 2106 | J20: 88 | K20: 0 | L20: 28 | M20: 571 | N20: 2793 | P20: 2793 | Q20: 2793 | R20: 34068 | S20: 64297 | T20: 89881 | U20: 93783 | V20: 94011 | Y20: =X20*(1+INDIRECT("CPI"&Y$7)) -> 0 | Z20: 0 | AA20: 0 | AB20: 0 | AC20: 0 | AD20: 0 | AF20: 0 | AH20: 0 | AI20: 0.1205027699 | AJ20: 0 | AK20: 0.06781921194 | AO20: 146.3266379 | AP20: 146.3266379 | AQ20: 1784.839205 | AR20: 3368.55132 | AS20: 4708.90961 | AT20: 4913.337301 | AU20: 4925.282333
B21: 13 | C21: LED1x18 | D21: Lamp | E21: NonTraffic | F21: Minor | G21: Y | H21: 1 | I21: 0 | J21: 0 | K21: 0 | L21: 0 | M21: 0 | N21: 0 | P21: 0 | Q21: 0 | R21: 0 | S21: 0 | T21: 0 | U21: 0 | V21: 0 | Y21: =X21*(1+INDIRECT("CPI"&Y$7)) -> 0 | Z21: 0 | AA21: 0 | AB21: 0 | AC21: 0 | AD21: 0 | AF21: 0 | AH21: 0 | AI21: 0.1205027699 | AJ21: 0 | AO21: 0 | AP21: 0 | AQ21: 0 | AR21: 0 | AS21: 0 | AT21: 0 | AU21: 0
B22: 14 | C22: LED1x20 | D22: Lamp | E22: NonTraffic | F22: Minor | G22: Y | H22: 1 | I22: 0 | J22: 0 | K22: 0 | L22: 0 | M22: 0 | N22: 0 | P22: 0 | Q22: 0 | R22: 0 | S22: 0 | T22: 0 | U22: 0 | V22: 0 | Y22: =X22*(1+INDIRECT("CPI"&Y$7)) -> 0 | Z22: 0 | AA22: 0 | AB22: 0 | AC22: 0 | AD22: 0 | AF22: 0 | AH22: 0 | AI22: 0.1205027699 | AJ22: 0 | AO22: 0 | AP22: 0 | AQ22: 0 | AR22: 0 | AS22: 0 | AT22: 0 | AU22: 0
B23: 15 | C23: LED1x200 | D23: Lamp | E23: Traffic | F23: Major | G23: Y | H23: 1 | I23: 14 | J23: 0 | K23: 0 | L23: 0 | M23: 0 | N23: 14 | P23: 14 | Q23: 14 | R23: 1795 | S23: 3776 | T23: 5756 | U23: 6164 | V23: 6378 | Y23: =X23*(1+INDIRECT("CPI"&Y$7)) -> 0 | Z23: 0 | AA23: 0 | AB23: 0 | AC23: 0 | AD23: 0 | AF23: 0 | AH23: 0 | AI23: 0.1205027699 | AJ23: 0 | AO23: 0.7334668566 | AP23: 0.7334668566 | AQ23: 94.04092911 | AR23: 197.8264893 | AS23: 301.559659 | AT23: 322.9349789 | AU23: 334.1465437
B24: 16 | C24: LED1x22 | D24: Lamp | E24: NonTraffic | F24: Minor | G24: Y | H24: 1 | I24: 12528 | J24: 1858 | K24: 0 | L24: 8 | M24: 0 | N24: 14394 | P24: 14394 | Q24: 14394 | R24: 14394 | S24: 14394 | T24: 14394 | U24: 14394 | V24: 14394 | Y24: =X24*(1+INDIRECT("CPI"&Y$7)) -> 0 | Z24: 0 | AA24: 0 | AB24: 0 | AC24: 0 | AD24: 0 | AF24: 0 | AH24: 0 | AI24: 0.1205027699 | AJ24: 0 | AK24: 0.212034189 | AO24: 754.1087096 | AP24: 754.1087096 | AQ24: 754.1087096 | AR24: 754.1087096 | AS24: 754.1087096 | AT24: 754.1087096 | AU24: 754.1087096
B25: 17 | C25: LED1x25 GE | D25: Lamp | E25: NonTraffic | F25: Minor | G25: Y | H25: 1 | I25: 3340 | J25: 320 | K25: 1 | L25: 5 | M25: 0 | N25: 3666 | P25: 3665 | Q25: 3665 | R25: 3665 | S25: 3665 | T25: 3665 | U25: 3665 | V25: 3665 | Y25: =X25*(1+INDIRECT("CPI"&Y$7)) -> 0 | Z25: 0 | AA25: 0 | AB25: 0 | AC25: 0 | AD25: 0 | AF25: 0 | AH25: 0 | AI25: 0.1205027699 | AJ25: 0 | AK25: 0.1780476132 | AO25: 192.011145 | AP25: 192.011145 | AQ25: 192.011145 | AR25: 192.011145 | AS25: 192.011145 | AT25: 192.011145 | AU25: 192.011145
B26: 18 | C26: LED1x28 | D26: Lamp | E26: NonTraffic | F26: Minor | G26: Y | H26: 1 | I26: 0 | J26: 0 | K26: 0 | L26: 0 | M26: 0 | N26: 0 | P26: 0 | Q26: 0 | R26: 1395 | S26: 2791 | T26: 4186 | U26: 4440 | V26: 4464 | Y26: =X26*(1+INDIRECT("CPI"&Y$7)) -> 0 | Z26: 0 | AA26: 0 | AB26: 0 | AC26: 0 | AD26: 0 | AF26: 0 | AH26: 0 | AI26: 0.1205027699 | AJ26: 0 | AO26: 0 | AP26: 0 | AQ26: 73.08473321 | AR26: 146.2218569 | AS26: 219.3065901 | AT26: 232.6137745 | AU26: 233.8711463
B27: 19 | C27: LED1x29 | D27: Lamp | E27: NonTraffic | F27: Minor | G27: Y | H27: 1 | I27: 14188 | J27: 1356 | K27: 3 | L27: 1 | M27: 0 | N27: 15548 | P27: 15545 | Q27: 15545 | R27: 15545 | S27: 15545 | T27: 15545 | U27: 15545 | V27: 15545 | Y27: =X27*(1+INDIRECT("CPI"&Y$7)) -> 0 | Z27: 0 | AA27: 0 | AB27: 0 | AC27: 0 | AD27: 0 | AF27: 0 | AH27: 0 | AI27: 0.1205027699 | AJ27: 0 | AK27: 0.1311798131 | AO27: 814.4101633 | AP27: 814.4101633 | AQ27: 814.4101633 | AR27: 814.4101633 | AS27: 814.4101633 | AT27: 814.4101633 | AU27: 814.4101633
B28: 20 | C28: LED1x298 | D28: Lamp | E28: Traffic | F28: Major | G28: Y | H28: 1 | I28: 0 | J28: 0 | K28: 0 | L28: 0 | M28: 0 | N28: 0 | P28: 0 | Q28: 0 | R28: 52 | S28: 75 | T28: 102 | U28: 152 | V28: 178 | Y28: =X28*(1+INDIRECT("CPI"&Y$7)) -> 0 | Z28: 0 | AA28: 0 | AB28: 0 | AC28: 0 | AD28: 0 | AF28: 0 | AH28: 0 | AI28: 0.1205027699 | AJ28: 0 | AO28: 0 | AP28: 0 | AQ28: 2.724305467 | AR28: 3.929286732 | AS28: 5.343829955 | AT28: 7.963354443 | AU28: 9.325507177
B29: 21 | C29: LED1x33 | D29: Lamp | E29: NonTraffic | F29: Minor | G29: Y | H29: 1 | I29: 0 | J29: 0 | K29: 0 | L29: 0 | M29: 0 | N29: 0 | P29: 0 | Q29: 0 | R29: 5 | S29: 10 | T29: 15 | U29: 25 | V29: 30 | Y29: =X29*(1+INDIRECT("CPI"&Y$7)) -> 0 | Z29: 0 | AA29: 0 | AB29: 0 | AC29: 0 | AD29: 0 | AF29: 0 | AH29: 0 | AI29: 0.1205027699 | AJ29: 0 | AO29: 0 | AP29: 0 | AQ29: 0.2619524488 | AR29: 0.5239048976 | AS29: 0.7858573464 | AT29: 1.309762244 | AU29: 1.571714693
B30: 22 | C30: LED1x42 | D30: Lamp | E30: NonTraffic | F30: Minor | G30: Y | H30: 1 | I30: 4 | J30: 13 | K30: 0 | L30: 0 | M30: 0 | N30: 17 | P30: 17 | Q30: 17 | R30: 17 | S30: 17 | T30: 112 | U30: 207 | V30: 303 | Y30: =X30*(1+INDIRECT("CPI"&Y$7)) -> 0 | Z30: 0 | AA30: 0 | AB30: 0 | AC30: 0 | AD30: 0 | AF30: 0 | AH30: 0 | AI30: 0.1205027699 | AJ30: 0 | AO30: 0.8906383259 | AP30: 0.8906383259 | AQ30: 0.8906383259 | AR30: 0.8906383259 | AS30: 5.867734853 | AT30: 10.84483138 | AU30: 15.8743184
B31: 23 | C31: MBF1x1000 | D31: Lamp | E31: Traffic | F31: Major | G31: N | H31: 1 | I31: 6 | J31: 0 | K31: 1 | L31: 0 | M31: 0 | N31: 7 | P31: 6 | Q31: 6 | R31: 6 | S31: 6 | T31: 6 | U31: 0 | V31: 0 | X31: 27.8 | Y31: =X31*(1+INDIRECT("CPI"&Y$7)) -> 28.42326721 | Z31: 29.13384889 | AA31: 29.86219511 | AB31: 30.60874999 | AC31: 31.37396874 | AD31: 32.15831796 | AF31: 0.2318765897 | AH31: 0.08 | AI31: 0.1205027699 | AJ31: 0.2318765897 | AK31: 0.1600183591 | AO31: 1.705602476 | AP31: 1.705602476 | AQ31: 1.705602476 | AR31: 1.705602476 | AS31: 1.705602476 | AT31: 0 | AU31: 0
B32: 24 | C32: MBF1x125 | D32: Lamp | E32: NonTraffic | F32: Minor | G32: N | H32: 1 | I32: 4123 | J32: 339 | K32: 706 | L32: 0 | M32: 0 | N32: 5168 | P32: 4462 | Q32: 4462 | R32: 3091 | S32: 1719 | T32: 348 | U32: 143 | V32: 143 | X32: 5.1 | Y32: =X32*(1+INDIRECT("CPI"&Y$7)) -> 5.214340387 | Z32: 5.344698897 | AA32: 5.478316369 | AB32: 5.615274278 | AC32: 5.755656135 | AD32: 5.899547539 | AF32: 0.07974539338 | AH32: 0.0501 | AI32: 0.1205027699 | AJ32: 0.07974539338 | AK32: 0.1307574619 | AO32: 589.5903106 | AP32: 589.5903106 | AQ32: 408.4320148 | AR32: 227.1415831 | AS32: 45.98328733 | AT32: 18.89543129 | AU32: 18.89543129
B33: 25 | C33: MBF1x250 | D33: Lamp | E33: Traffic | F33: Major | G33: N | H33: 1 | I33: 14865 | J33: 166 | K33: 186 | L33: 0 | M33: 0 | N33: 15217 | P33: 15031 | Q33: 15031 | R33: 10054 | S33: 5078 | T33: 101 | U33: 101 | V33: 101 | X33: 5.5 | Y33: =X33*(1+INDIRECT("CPI"&Y$7)) -> 5.623308261 | Z33: 5.763890967 | AA33: 5.907988241 | AB33: 6.055687947 | AC33: 6.207080146 | AD33: 6.36225715 | AF33: 0.2318765897 | AH33: 0.0501 | AI33: 0.1205027699 | AJ33: 0.2318765897 | AK33: 0.1410059698 | AO33: 4272.818471 | AP33: 4272.818471 | AQ33: 2858.021216 | AR33: 1443.508229 | AS33: 28.71097502 | AT33: 28.71097502 | AU33: 28.71097502
B34: 26 | C34: MBF1x400 | D34: Lamp | E34: Traffic | F34: Major | G34: N | H34: 1 | I34: 5393 | J34: 98 | K34: 111 | L34: 0 | M34: 0 | N34: 5602 | P34: 5491 | Q34: 5491 | R34: 3724 | S34: 1957 | T34: 190 | U34: 0 | V34: 0 | X34: 5.5 | Y34: =X34*(1+INDIRECT("CPI"&Y$7)) -> 5.623308261 | Z34: 5.763890967 | AA34: 5.907988241 | AB34: 6.055687947 | AC34: 6.207080146 | AD34: 6.36225715 | AF34: 0.2318765897 | AH34: 0.0501 | AI34: 0.1205027699 | AJ34: 0.2318765897 | AK34: 0.1600183591 | AO34: 1560.910533 | AP34: 1560.910533 | AQ34: 1058.610604 | AR34: 556.3106744 | AS34: 54.01074509 | AT34: 0 | AU34: 0
B35: 27 | C35: MBF1x42 | D35: Lamp | E35: NonTraffic | F35: Minor | G35: N | H35: 1 | I35: 37582 | J35: 4557 | K35: 10 | L35: 13 | M35: 0 | N35: 42162 | P35: 42152 | Q35: 42152 | R35: 41952 | S35: 41752 | T35: 41552 | U35: 41152 | V35: 40952 | X35: 3.1 | Y35: =X35*(1+INDIRECT("CPI"&Y$7)) -> 3.16950102 | Z35: 3.248738545 | AA35: 3.329957009 | AB35: 3.413205934 | AC35: 3.498536082 | AD35: 3.585999484 | AF35: 0.0901 | AH35: 0.0353 | AI35: 0.1205027699 | AJ35: 0.0901 | AK35: 0.1009785899 | AO35: 6006.259124 | AP35: 6006.259124 | AQ35: 5977.761026 | AR35: 5949.262928 | AS35: 5920.76483 | AT35: 5863.768634 | AU35: 5835.270537
B36: 28 | C36: MBF1x50 | D36: Lamp | E36: NonTraffic | F36: Minor | G36: N | H36: 1 | I36: 7080 | J36: 2387 | K36: 51 | L36: 0 | M36: 0 | N36: 9518 | P36: 9467 | Q36: 9467 | R36: 6357 | S36: 3248 | T36: 138 | U36: 0 | V36: 0 | X36: 5.45 | Y36: =X36*(1+INDIRECT("CPI"&Y$7)) -> 5.572187276 | Z36: 5.711491958 | AA36: 5.854279257 | AB36: 6.000636239 | AC36: 6.150652145 | AD36: 6.304418448 | AF36: 0.07974539338 | AH36: 0.0501 | AI36: 0.1205027699 | AJ36: 0.07974539338 | AK36: 0.09175017232 | AO36: 1250.930406 | AP36: 1250.930406 | AQ36: 839.9878091 | AR36: 429.1773484 | AS36: 18.23475187 | AT36: 0 | AU36: 0
B37: 29 | C37: MBF1x80 | D37: Lamp | E37: NonTraffic | F37: Minor | G37: N | H37: 1 | I37: 62761 | J37: 7467 | K37: 155 | L37: 0 | M37: 0 | N37: 70383 | P37: 70228 | Q37: 70228 | R37: 47982 | S37: 25736 | T37: 3490 | U37: 162 | V37: 162 | X37: 3.6 | Y37: =X37*(1+INDIRECT("CPI"&Y$7)) -> 3.680710862 | Z37: 3.772728633 | AA37: 3.867046849 | AB37: 3.96372302 | AC37: 4.062816096 | AD37: 4.164386498 | AF37: 0.07974539338 | AH37: 0.0447 | AI37: 0.1205027699 | AJ37: 0.07974539338 | AK37: 0.07868681674 | AO37: 9279.638801 | AP37: 9279.638801 | AQ37: 6340.143945 | AR37: 3400.649088 | AS37: 461.1542321 | AT37: 21.40601307 | AU37: 21.40601307
B38: 30 | C38: MBF2x80 | D38: Lamp | E38: NonTraffic | F38: Minor | G38: N | H38: 2 | I38: 16 | J38: 0 | K38: 0 | L38: 0 | M38: 0 | N38: 16 | P38: 16 | Q38: 16 | R38: 16 | S38: 16 | T38: 13 | U38: 10 | V38: 8 | X38: 3.6 | Y38: =X38*(1+INDIRECT("CPI"&Y$7)) -> 3.680710862 | Z38: 3.772728633 | AA38: 3.867046849 | AB38: 3.96372302 | AC38: 4.062816096 | AD38: 4.164386498 | AF38: 0.153131459 | AH38: 0.08 | AI38: 0.1205027699 | AJ38: 0.153131459 | AK38: 0.07868681674 | AO38: 3.28835118 | AP38: 3.28835118 | AQ38: 3.28835118 | AR38: 3.28835118 | AS38: 2.671785334 | AT38: 2.055219487 | AU38: 1.64417559
B39: 31 | C39: MBI1x100 | D39: Lamp | E39: Traffic | F39: Major | G39: N | H39: 1 | I39: 30 | J39: 0 | K39: 15 | L39: 0 | M39: 0 | N39: 45 | P39: 30 | Q39: 30 | R39: 26 | S39: 22 | T39: 18 | U39: 9 | V39: 5 | X39: 14.38 | Y39: =X39*(1+INDIRECT("CPI"&Y$7)) -> 14.70239505 | Z39: 15.06995493 | AA39: 15.4467038 | AB39: 15.8328714 | AC39: 16.22869318 | AD39: 16.63441051 | AF39: 0.2318765897 | AH39: 0.04 | AI39: 0.1205027699 | AJ39: 0.2318765897 | AK39: 0.1600183591 | AO39: 8.528012382 | AP39: 8.528012382 | AQ39: 7.390944065 | AR39: 6.253875747 | AS39: 5.116807429 | AT39: 2.558403715 | AU39: 1.421335397
B40: 32 | C40: MBI1x1000 | D40: Lamp | E40: Traffic | F40: Major | G40: N | H40: 1 | I40: 13 | J40: 0 | K40: 0 | L40: 0 | M40: 0 | N40: 13 | P40: 13 | Q40: 13 | R40: 6 | S40: 0 | T40: 0 | U40: 0 | V40: 0 | X40: 48.5 | Y40: =X40*(1+INDIRECT("CPI"&Y$7)) -> 49.58735466 | Z40: 50.82703853 | AA40: 52.09771449 | AB40: 53.40015735 | AC40: 54.73516129 | AD40: 56.10354032 | AF40: 0.2318765897 | AH40: 0.04 | AI40: 0.1205027699 | AJ40: 0.2318765897 | AK40: 0.1600183591 | AO40: 3.695472032 | AP40: 3.695472032 | AQ40: 1.705602476 | AR40: 0 | AS40: 0 | AT40: 0 | AU40: 0
B41: 33 | C41: MBI1x150 | D41: Lamp | E41: Traffic | F41: Major | G41: N | H41: 1 | I41: 4 | J41: 0 | K41: 0 | L41: 0 | M41: 0 | N41: 4 | P41: 4 | Q41: 4 | R41: 4 | S41: 4 | T41: 4 | U41: 0 | V41: 0 | X41: 14.38 | Y41: =X41*(1+INDIRECT("CPI"&Y$7)) -> 14.70239505 | Z41: 15.06995493 | AA41: 15.4467038 | AB41: 15.8328714 | AC41: 16.22869318 | AD41: 16.63441051 | AF41: =OFFSET(AH41,0,BulkOptionNumber-1) -> 0.2318765897 | AH41: 0.04 | AI41: 0.1205027699 | AJ41: 0.2318765897 | AK41: 0.1600183591 | AO41: 1.137068318 | AP41: 1.137068318 | AQ41: 1.137068318 | AR41: 1.137068318 | AS41: 1.137068318 | AT41: 0 | AU41: 0
B42: 34 | C42: MBI1x250 | D42: Lamp | E42: Traffic | F42: Major | G42: N | H42: 1 | I42: 54 | J42: 3 | K42: 50 | L42: 0 | M42: 0 | N42: 107 | P42: 57 | Q42: 57 | R42: 53 | S42: 50 | T42: 46 | U42: 38 | V42: 35 | X42: 8.2 | Y42: =X42*(1+INDIRECT("CPI"&Y$7)) -> 8.383841407 | Z42: 8.593437442 | AA42: 8.808273378 | AB42: 9.028480212 | AC42: 9.254192218 | AD42: 9.485547023 | AF42: 0.2318765897 | AH42: 0.04 | AI42: 0.1205027699 | AJ42: 0.2318765897 | AK42: 0.1600183591 | AO42: 16.20322353 | AP42: 16.20322353 | AQ42: 15.06615521 | AR42: 14.21335397 | AS42: 13.07628565 | AT42: 10.80214902 | AU42: 9.94934778
B43: 35 | C43: MBI1x400 | D43: Lamp | E43: Traffic | F43: Major | G43: N | H43: 1 | I43: 91 | J43: 37 | K43: 63 | L43: 0 | M43: 0 | N43: 191 | P43: 128 | Q43: 128 | R43: 120 | S43: 113 | T43: 105 | U43: 90 | V43: 82 | X43: 8 | Y43: =X43*(1+INDIRECT("CPI"&Y$7)) -> 8.17935747 | Z43: 8.383841407 | AA43: 8.593437442 | AB43: 8.808273378 | AC43: 9.028480212 | AD43: 9.254192218 | AF43: 0.2318765897 | AH43: 0.04 | AI43: 0.1205027699 | AJ43: 0.2318765897 | AK43: 0.1600183591 | AO43: 36.38618617 | AP43: 36.38618617 | AQ43: 34.11204953 | AR43: 32.12217997 | AS43: 29.84804334 | AT43: 25.58403715 | AU43: 23.30990051
B44: 36 | C44: MBI1x70 | D44: Lamp | E44: NonTraffic | F44: Minor | G44: N | H44: 1 | I44: 272 | J44: 19 | K44: 35 | L44: 0 | M44: 0 | N44: 326 | P44: 291 | Q44: 291 | R44: 289 | S44: 287 | T44: 285 | U44: 281 | V44: 279 | X44: 14.5 | Y44: =X44*(1+INDIRECT("CPI"&Y$7)) -> 14.82508541 | Z44: 15.19571255 | AA44: 15.57560536 | AB44: 15.9649955 | AC44: 16.36412039 | AD44: 16.77322339 | AF44: 0.2318765897 | AH44: 0.04 | AI44: 0.1205027699 | AJ44: 0.2318765897 | AK44: 0.1600183591 | AO44: 82.72172011 | AP44: 82.72172011 | AQ44: 82.15318595 | AR44: 81.58465179 | AS44: 81.01611763 | AT44: 79.87904932 | AU44: 79.31051516
B45: 37 | C45: MBI1x70 II | D45: Lamp | E45: NonTraffic | F45: Minor | G45: N | H45: 1 | I45: 366 | J45: 30 | K45: 0 | L45: 0 | M45: 0 | N45: 396 | P45: 396 | Q45: 396 | R45: 393 | S45: 390 | T45: 387 | U45: 381 | V45: 378 | X45: 58 | Y45: =X45*(1+INDIRECT("CPI"&Y$7)) -> 59.30034166 | Z45: 60.7828502 | AA45: 62.30242145 | AB45: 63.85998199 | AC45: 65.45648154 | AD45: 67.09289358 | AF45: 0.07974539338 | AH45: 0.04 | AI45: 0.1205027699 | AJ45: 0.07974539338 | AK45: 0.07868681674 | AO45: 52.32580972 | AP45: 52.32580972 | AQ45: 51.92940207 | AR45: 51.53299442 | AS45: 51.13658677 | AT45: 50.34377147 | AU45: 49.94736383
B46: 38 | C46: SON1x100 | D46: Lamp | E46: Traffic | F46: Major | G46: N | H46: 1 | I46: 1344 | J46: 80 | K46: 71 | L46: 0 | M46: 0 | N46: 1495 | P46: 1424 | Q46: 1424 | R46: 1424 | S46: 1424 | T46: 1329 | U46: 1234 | V46: 1138 | X46: 13.23 | Y46: =X46*(1+INDIRECT("CPI"&Y$7)) -> 13.52661242 | Z46: 13.86477773 | AA46: 14.21139717 | AB46: 14.5666821 | AC46: 14.93084915 | AD46: 15.30412038 | AF46: 0.06518620254 | AH46: 0.1344 | AI46: 0.1205027699 | AJ46: 0.06518620254 | AK46: 0.114404201 | AO46: 167.4292098 | AP46: 167.4292098 | AQ46: 167.4292098 | AR46: 167.4292098 | AS46: 156.2594241 | AT46: 145.0896383 | AU46: 133.8022758
B47: 39 | C47: SON1x1000 | D47: Lamp | E47: Traffic | F47: Major | G47: N | H47: 1 | I47: 45 | J47: 4 | K47: 3 | L47: 0 | M47: 0 | N47: 52 | P47: 49 | Q47: 49 | R47: 49 | S47: 49 | T47: 40 | U47: 31 | V47: 23 | X47: 27.8 | Y47: =X47*(1+INDIRECT("CPI"&Y$7)) -> 28.42326721 | Z47: 29.13384889 | AA47: 29.86219511 | AB47: 30.60874999 | AC47: 31.37396874 | AD47: 32.15831796 | AF47: 0.06518620254 | AH47: 0.05 | AI47: 0.1205027699 | AJ47: 0.06518620254 | AK47: 0.1543702539 | AO47: 5.761257922 | AP47: 5.761257922 | AQ47: 5.761257922 | AR47: 5.761257922 | AS47: 4.703067692 | AT47: 3.644877461 | AU47: 2.704263923
B48: 40 | C48: SON1x150 | D48: Lamp | E48: Traffic | F48: Major | G48: N | H48: 1 | I48: 18788 | J48: 1090 | K48: 150 | L48: 0 | M48: 0 | N48: 20028 | P48: 19878 | Q48: 19878 | R48: 19878 | S48: 19678 | T48: 19478 | U48: 19278 | V48: 19078 | X48: 6 | Y48: =X48*(1+INDIRECT("CPI"&Y$7)) -> 6.134518103 | Z48: 6.287881055 | AA48: 6.445078081 | AB48: 6.606205033 | AC48: 6.771360159 | AD48: 6.940644163 | AF48: 0.06518620254 | AH48: 0.0972 | AI48: 0.1205027699 | AJ48: 0.06518620254 | AK48: 0.1052708992 | AO48: 2337.189489 | AP48: 2337.189489 | AQ48: 2337.189489 | AR48: 2313.674151 | AS48: 2290.158813 | AT48: 2266.643474 | AU48: 2243.128136
B49: 41 | C49: SON1x150 AR | D49: Lamp | E49: Traffic | F49: Major | G49: N | H49: 1 | I49: 2384 | J49: 231 | K49: 5 | L49: 0 | M49: 0 | N49: 2620 | P49: 2615 | Q49: 2615 | R49: 2615 | S49: 2615 | T49: 2615 | U49: 2615 | V49: 2615 | X49: 6 | Y49: =X49*(1+INDIRECT("CPI"&Y$7)) -> 6.134518103 | Z49: 6.287881055 | AA49: 6.445078081 | AB49: 6.606205033 | AC49: 6.771360159 | AD49: 6.940644163 | AF49: 0.06518620254 | AH49: 0.07033333333 | AI49: 0.1205027699 | AJ49: 0.06518620254 | AK49: 0.2029767594 | AO49: 307.4630503 | AP49: 307.4630503 | AQ49: 307.4630503 | AR49: 307.4630503 | AS49: 307.4630503 | AT49: 307.4630503 | AU49: 307.4630503
B50: 42 | C50: SON1x250 | D50: Lamp | E50: Traffic | F50: Major | G50: N | H50: 1 | I50: 22184 | J50: 2576 | K50: 580 | L50: 0 | M50: 0 | N50: 25340 | P50: 24760 | Q50: 24760 | R50: 24760 | S50: 24560 | T50: 24360 | U50: 24160 | V50: 23960 | X50: 9.4 | Y50: =X50*(1+INDIRECT("CPI"&Y$7)) -> 9.610745027 | Z50: 9.851013653 | AA50: 10.09728899 | AB50: 10.34972122 | AC50: 10.60846425 | AD50: 10.87367586 | AF50: 0.06518620254 | AH50: 0.1072 | AI50: 0.1205027699 | AJ50: 0.06518620254 | AK50: 0.1274549712 | AO50: =P50*FailurePECellAnnual+P50*FailureMiscAnnual+P50*$AF50 -> 2911.198901 | AP50: =Q50*FailurePECellAnnual+Q50*FailureMiscAnnual+Q50*$AF50 -> 2911.198901 | AQ50: =R50*FailurePECellAnnual+R50*FailureMiscAnnual+R50*$AF50 -> 2911.198901 | AR50: =S50*FailurePECellAnnual+S50*FailureMiscAnnual+S50*$AF50 -> 2887.683563 | AS50: =T50*FailurePECellAnnual+T50*FailureMiscAnnual+T50*$AF50 -> 2864.168224 | AT50: =U50*FailurePECellAnnual+U50*FailureMiscAnnual+U50*$AF50 -> 2840.652886 | AU50: =V50*FailurePECellAnnual+V50*FailureMiscAnnual+V50*$AF50 -> 2817.137547
B51: 43 | C51: SON1x250 AR | D51: Lamp | E51: Traffic | F51: Major | G51: N | H51: 1 | I51: 2953 | J51: 353 | K51: 3 | L51: 0 | M51: 0 | N51: 3309 | P51: 3306 | Q51: 3306 | R51: 3296 | S51: 3286 | T51: 3276 | U51: 3266 | V51: 3256 | X51: 9.4 | Y51: =X51*(1+INDIRECT("CPI"&Y$7)) -> 9.610745027 | Z51: 9.851013653 | AA51: 10.09728899 | AB51: 10.34972122 | AC51: 10.60846425 | AD51: 10.87367586 | AF51: 0.06518620254 | AH51: 0.0734 | AI51: 0.1205027699 | AJ51: 0.06518620254 | AK51: 0.2166712643 | AO51: 388.7085447 | AP51: 388.7085447 | AQ51: 387.5327778 | AR51: 386.3570109 | AS51: 385.181244 | AT51: 384.005477 | AU51: 382.8297101
B52: 44 | C52: SON1x400 | D52: Lamp | E52: Traffic | F52: Major | G52: N | H52: 1 | I52: 1772 | J52: 350 | K52: 267 | L52: 0 | M52: 0 | N52: 2389 | P52: 2122 | Q52: 2122 | R52: 2112 | S52: 2102 | T52: 2092 | U52: 2072 | V52: 2062 | X52: 10.9 | Y52: =X52*(1+INDIRECT("CPI"&Y$7)) -> 11.14437455 | Z52: 11.42298392 | AA52: 11.70855851 | AB52: 12.00127248 | AC52: 12.30130429 | AD52: 12.6088369 | AF52: 0.06518620254 | AH52: 0.0972 | AI52: 0.1205027699 | AJ52: 0.06518620254 | AK52: 0.1543702539 | AO52: 249.497741 | AP52: 249.497741 | AQ52: 248.3219741 | AR52: 247.1462072 | AS52: 245.9704403 | AT52: 243.6189064 | AU52: 242.4431395
B53: 45 | C53: SON1x400 AR | D53: Lamp | E53: Traffic | F53: Major | G53: N | H53: 1 | I53: 224 | J53: 108 | K53: 0 | L53: 0 | M53: 0 | N53: 332 | P53: 332 | Q53: 332 | R53: 332 | S53: 332 | T53: 332 | U53: 332 | V53: 332 | X53: 10.9 | Y53: =X53*(1+INDIRECT("CPI"&Y$7)) -> 11.14437455 | Z53: 11.42298392 | AA53: 11.70855851 | AB53: 12.00127248 | AC53: 12.30130429 | AD53: 12.6088369 | AF53: 0.06518620254 | AH53: 0.08171666667 | AI53: 0.1205027699 | AJ53: 0.06518620254 | AK53: 0.1649253223 | AO53: 39.03546184 | AP53: 39.03546184 | AQ53: 39.03546184 | AR53: 39.03546184 | AS53: 39.03546184 | AT53: 39.03546184 | AU53: 39.03546184
B54: 46 | C54: SON1x50 | D54: Lamp | E54: NonTraffic | F54: Minor | G54: N | H54: 1 | I54: 460 | J54: 5 | K54: 0 | L54: 0 | M54: 0 | N54: 465 | P54: 465 | Q54: 465 | R54: 459 | S54: 453 | T54: 447 | U54: 435 | V54: 429 | X54: 10.06 | Y54: =X54*(1+INDIRECT("CPI"&Y$7)) -> 10.28554202 | Z54: 10.54268057 | AA54: 10.80624758 | AB54: 11.07640377 | AC54: 11.35331387 | AD54: 11.63714671 | AF54: 0.06518620254 | AH54: 0.05 | AI54: 0.1205027699 | AJ54: 0.06518620254 | AK54: 0.1052708992 | AO54: 54.67316192 | AP54: 54.67316192 | AQ54: 53.96770176 | AR54: 53.26224161 | AS54: 52.55678146 | AT54: 51.14586115 | AU54: 50.44040099
B55: 47 | C55: SON1x600 | D55: Lamp | E55: Traffic | F55: Major | G55: N | H55: 1 | I55: 1 | J55: 0 | K55: 0 | L55: 0 | M55: 0 | N55: 1 | P55: 1 | Q55: 1 | R55: 1 | S55: 1 | T55: 1 | U55: 1 | V55: 1 | X55: 27.8 | Y55: =X55*(1+INDIRECT("CPI"&Y$7)) -> 28.42326721 | Z55: 29.13384889 | AA55: 29.86219511 | AB55: 30.60874999 | AC55: 31.37396874 | AD55: 32.15831796 | AF55: 0.06518620254 | AH55: 0.0972 | AI55: 0.1205027699 | AJ55: 0.06518620254 | AK55: 0.1543702539 | AO55: 0.1175766923 | AP55: 0.1175766923 | AQ55: 0.1175766923 | AR55: 0.1175766923 | AS55: 0.1175766923 | AT55: 0.1175766923 | AU55: 0.1175766923
B56: 48 | C56: SON1x70 | D56: Lamp | E56: NonTraffic | F56: Minor | G56: N | H56: 1 | I56: 1695 | J56: 310 | K56: 99 | L56: 0 | M56: 0 | N56: 2104 | P56: 2005 | Q56: 2005 | R56: 1985 | S56: 1965 | T56: 1945 | U56: 1905 | V56: 1885 | X56: 6.3 | Y56: =X56*(1+INDIRECT("CPI"&Y$7)) -> 6.441244008 | Z56: 6.602275108 | AA56: 6.767331986 | AB56: 6.936515285 | AC56: 7.109928167 | AD56: 7.287676371 | AF56: 0.06518620254 | AH56: 0.1125333333 | AI56: 0.1205027699 | AJ56: 0.06518620254 | AK56: 0.133808285 | AO56: 235.7412681 | AP56: 235.7412681 | AQ56: 233.3897342 | AR56: 231.0382004 | AS56: 228.6866665 | AT56: 223.9835988 | AU56: 221.632065
B57: 49 | C57: SON2x250 | D57: Lamp | E57: Traffic | F57: Major | G57: N | H57: 2 | I57: 28 | J57: 2 | K57: 1 | L57: 0 | M57: 0 | N57: 31 | P57: 30 | Q57: 30 | R57: 30 | S57: 30 | T57: 30 | U57: 30 | V57: 30 | X57: 9.4 | Y57: =X57*(1+INDIRECT("CPI"&Y$7)) -> 9.610745027 | Z57: 9.851013653 | AA57: 10.09728899 | AB57: 10.34972122 | AC57: 10.60846425 | AD57: 10.87367586 | AF57: 0.1261231641 | AH57: 0.2250666667 | AI57: 0.1205027699 | AJ57: 0.1261231641 | AK57: 0.1274549712 | AO57: 5.355409615 | AP57: 5.355409615 | AQ57: 5.355409615 | AR57: 5.355409615 | AS57: 5.355409615 | AT57: 5.355409615 | AU57: 5.355409615
B58: 50 | C58: SON2x400 | D58: Lamp | E58: Traffic | F58: Major | G58: N | H58: 2 | I58: 4 | J58: 0 | K58: 0 | L58: 0 | M58: 0 | N58: 4 | P58: 4 | Q58: 4 | R58: 4 | S58: 4 | T58: 4 | U58: 4 | V58: 4 | X58: 10.9 | Y58: =X58*(1+INDIRECT("CPI"&Y$7)) -> 11.14437455 | Z58: 11.42298392 | AA58: 11.70855851 | AB58: 12.00127248 | AC58: 12.30130429 | AD58: 12.6088369 | AF58: 0.1261231641 | AH58: 0.1944 | AI58: 0.1205027699 | AJ58: 0.1261231641 | AK58: 0.1543702539 | AO58: 0.7140546153 | AP58: 0.7140546153 | AQ58: 0.7140546153 | AR58: 0.7140546153 | AS58: 0.7140546153 | AT58: 0.7140546153 | AU58: 0.7140546153
B59: 51 | C59: SON4x250 | D59: Lamp | E59: Traffic | F59: Major | G59: N | H59: 4 | I59: 6 | J59: 0 | K59: 0 | L59: 0 | M59: 0 | N59: 6 | P59: 6 | Q59: 6 | R59: 6 | S59: 6 | T59: 6 | U59: 6 | V59: 6 | X59: 9.4 | Y59: =X59*(1+INDIRECT("CPI"&Y$7)) -> 9.610745027 | Z59: 9.851013653 | AA59: 10.09728899 | AB59: 10.34972122 | AC59: 10.60846425 | AD59: 10.87367586 | AF59: 0.2363392756 | AH59: 0.4700884481 | AI59: 0.1205027699 | AJ59: 0.2363392756 | AK59: 0.2166712643 | AO59: 1.732378592 | AP59: 1.732378592 | AQ59: 1.732378592 | AR59: 1.732378592 | AS59: 1.732378592 | AT59: 1.732378592 | AU59: 1.732378592
B60: 52 | C60: SON4x600 | D60: Lamp | E60: Traffic | F60: Major | G60: N | H60: 4 | I60: 2 | J60: 0 | K60: 0 | L60: 0 | M60: 0 | N60: 2 | P60: 2 | Q60: 2 | R60: 2 | S60: 2 | T60: 2 | U60: 2 | V60: 2 | X60: 27.8 | Y60: =X60*(1+INDIRECT("CPI"&Y$7)) -> 28.42326721 | Z60: 29.13384889 | AA60: 29.86219511 | AB60: 30.60874999 | AC60: 31.37396874 | AD60: 32.15831796 | AF60: 0.2363392756 | AH60: 0.5102186727 | AI60: 0.1205027699 | AJ60: 0.2363392756 | AK60: 0.1543702539 | AO60: 0.5774595308 | AP60: 0.5774595308 | AQ60: 0.5774595308 | AR60: 0.5774595308 | AS60: 0.5774595308 | AT60: 0.5774595308 | AU60: 0.5774595308
B61: 53 | C61: TF1x20 | D61: Lamp | E61: NonTraffic | F61: Minor | G61: N | H61: 1 | I61: 4 | J61: 0 | K61: 231 | L61: 0 | M61: 0 | N61: 235 | P61: 4 | Q61: 4 | R61: 4 | S61: 4 | T61: 4 | U61: 4 | V61: 4 | X61: 1.3 | Y61: =X61*(1+INDIRECT("CPI"&Y$7)) -> 1.329145589 | Z61: 1.362374229 | AA61: 1.396433584 | AB61: 1.431344424 | AC61: 1.467128035 | AD61: 1.503806235 | AF61: 0.1437293284 | AH61: 0.06 | AI61: 0.1205027699 | AJ61: 0.1437293284 | AK61: 0.1532291407 | AO61: 0.7844792725 | AP61: 0.7844792725 | AQ61: 0.7844792725 | AR61: 0.7844792725 | AS61: 0.7844792725 | AT61: 0.7844792725 | AU61: 0.7844792725
B62: 54 | C62: TF1x40 | D62: Lamp | E62: NonTraffic | F62: Minor | G62: N | H62: 1 | I62: 268 | J62: 24 | K62: 40 | L62: 0 | M62: 0 | N62: 332 | P62: 292 | Q62: 292 | R62: 123 | S62: 0 | T62: 0 | U62: 0 | V62: 0 | X62: 1.5 | Y62: =X62*(1+INDIRECT("CPI"&Y$7)) -> 1.533629526 | Z62: 1.571970264 | AA62: 1.61126952 | AB62: 1.651551258 | AC62: 1.69284004 | AD62: 1.735161041 | AF62: 0.1437293284 | AH62: 0.158 | AI62: 0.1205027699 | AJ62: 0.1437293284 | AK62: 0.1532291407 | AO62: 57.26698689 | AP62: 57.26698689 | AQ62: 24.12273763 | AR62: 0 | AS62: 0 | AT62: 0 | AU62: 0
B63: 55 | C63: TF1x80 | D63: Lamp | E63: NonTraffic | F63: Minor | G63: N | H63: 1 | I63: 88 | J63: 9 | K63: 9 | L63: 0 | M63: 0 | N63: 106 | P63: 97 | Q63: 97 | R63: 48 | S63: 0 | T63: 0 | U63: 0 | V63: 0 | X63: 1.5 | Y63: =X63*(1+INDIRECT("CPI"&Y$7)) -> 1.533629526 | Z63: 1.571970264 | AA63: 1.61126952 | AB63: 1.651551258 | AC63: 1.69284004 | AD63: 1.735161041 | AF63: 0.1437293284 | AH63: 0.06 | AI63: 0.1205027699 | AJ63: 0.1437293284 | AK63: 0.1532291407 | AO63: 19.02362236 | AP63: 19.02362236 | AQ63: 9.41375127 | AR63: 0 | AS63: 0 | AT63: 0 | AU63: 0
B64: 56 | C64: TF2x14 T5 | D64: Lamp | E64: NonTraffic | F64: Minor | G64: N | H64: 2 | I64: 222 | J64: 0 | K64: 0 | L64: 0 | M64: 0 | N64: 222 | P64: 222 | Q64: 222 | R64: 222 | S64: 222 | T64: 202 | U64: 182 | V64: 162 | X64: 1.5 | Y64: =X64*(1+INDIRECT("CPI"&Y$7)) -> 1.533629526 | Z64: 1.571970264 | AA64: 1.61126952 | AB64: 1.651551258 | AC64: 1.69284004 | AD64: 1.735161041 | AF64: 0.0901 | AH64: 0.06 | AI64: 0.1205027699 | AJ64: 0.0901 | AK64: 0.1532291407 | AO64: 31.63288873 | AP64: 31.63288873 | AQ64: 31.63288873 | AR64: 31.63288873 | AS64: 28.78307893 | AT64: 25.93326914 | AU64: 23.08345934
B65: 57 | C65: TF2x20 | D65: Lamp | E65: NonTraffic | F65: Minor | G65: N | H65: 2 | I65: 9917 | J65: 35 | K65: 110 | L65: 0 | M65: 0 | N65: 10062 | P65: 9952 | Q65: 9952 | R65: 4477 | S65: 0 | T65: 0 | U65: 0 | V65: 0 | X65: 1.3 | Y65: =X65*(1+INDIRECT("CPI"&Y$7)) -> 1.329145589 | Z65: 1.362374229 | AA65: 1.396433584 | AB65: 1.431344424 | AC65: 1.467128035 | AD65: 1.503806235 | AF65: 0.2668005369 | AH65: 0.1029 | AI65: 0.1205027699 | AJ65: 0.2668005369 | AK65: 0.1532291407 | AO65: 3176.589097 | AP65: 3176.589097 | AQ65: 1429.018226 | AR65: 0 | AS65: 0 | AT65: 0 | AU65: 0
B66: 58 | C66: TF2x26 | D66: Lamp | E66: NonTraffic | F66: Minor | G66: N | H66: 2 | I66: 14 | J66: 0 | K66: 23 | L66: 0 | M66: 0 | N66: 37 | P66: 14 | Q66: 14 | R66: 7 | S66: 0 | T66: 0 | U66: 0 | V66: 0 | X66: 1.5 | Y66: =X66*(1+INDIRECT("CPI"&Y$7)) -> 1.533629526 | Z66: 1.571970264 | AA66: 1.61126952 | AB66: 1.651551258 | AC66: 1.69284004 | AD66: 1.735161041 | AF66: 0.2668005369 | AH66: 0.06 | AI66: 0.1205027699 | AJ66: 0.2668005369 | AK66: 0.1532291407 | AO66: 4.468674373 | AP66: 4.468674373 | AQ66: 2.234337187 | AR66: 0 | AS66: 0 | AT66: 0 | AU66: 0
B67: 59 | C67: TF2x40 | D67: Lamp | E67: NonTraffic | F67: Minor | G67: N | H67: 2 | I67: 8 | J67: 6 | K67: 134 | L67: 0 | M67: 0 | N67: 148 | P67: 14 | Q67: 14 | R67: 7 | S67: 0 | T67: 0 | U67: 0 | V67: 0 | X67: 1.5 | Y67: =X67*(1+INDIRECT("CPI"&Y$7)) -> 1.533629526 | Z67: 1.571970264 | AA67: 1.61126952 | AB67: 1.651551258 | AC67: 1.69284004 | AD67: 1.735161041 | AF67: 0.2668005369 | AH67: 0.06 | AI67: 0.1205027699 | AJ67: 0.2668005369 | AK67: 0.1532291407 | AO67: 4.468674373 | AP67: 4.468674373 | AQ67: 2.234337187 | AR67: 0 | AS67: 0 | AT67: 0 | AU67: 0
B68: 60 | C68: TF4x20 | D68: Lamp | E68: NonTraffic | F68: Minor | G68: N | H68: 2 | I68: 12 | J68: 0 | K68: 38 | L68: 0 | M68: 0 | N68: 50 | P68: 12 | Q68: 12 | R68: 6 | S68: 0 | T68: 0 | U68: 0 | V68: 0 | X68: 1.3 | Y68: =X68*(1+INDIRECT("CPI"&Y$7)) -> 1.329145589 | Z68: 1.362374229 | AA68: 1.396433584 | AB68: 1.431344424 | AC68: 1.467128035 | AD68: 1.503806235 | AF68: 0.4624185473 | AH68: 0.06 | AI68: 0.1205027699 | AJ68: 0.4624185473 | AK68: 0.1532291407 | AO68: 6.177708445 | AP68: 6.177708445 | AQ68: 3.088854222 | AR68: 0 | AS68: 0 | AT68: 0 | AU68: 0
B69: 61 | C69: TF4x40 | D69: Lamp | E69: NonTraffic | F69: Minor | G69: N | H69: 4 | I69: 2 | J69: 0 | K69: 42 | L69: 0 | M69: 0 | N69: 44 | P69: 2 | Q69: 2 | R69: 2 | S69: 2 | T69: 2 | U69: 2 | V69: 2 | X69: 1.5 | Y69: =X69*(1+INDIRECT("CPI"&Y$7)) -> 1.533629526 | Z69: 1.571970264 | AA69: 1.61126952 | AB69: 1.651551258 | AC69: 1.69284004 | AD69: 1.735161041 | AF69: 0.4624185473 | AH69: 0.06 | AI69: 0.1205027699 | AJ69: 0.4624185473 | AK69: 0.1532291407 | AO69: 1.029618074 | AP69: 1.029618074 | AQ69: 1.029618074 | AR69: 1.029618074 | AS69: 1.029618074 | AT69: 1.029618074 | AU69: 1.029618074
B70: 62 | C70: TH1x1500 | D70: Lamp | E70: Traffic | F70: Major | G70: N | H70: 1 | I70: 10 | J70: 0 | K70: 12 | L70: 0 | M70: 0 | N70: 22 | P70: 10 | Q70: 10 | R70: 0 | S70: 0 | T70: 0 | U70: 0 | V70: 0 | X70: 10.9 | Y70: =X70*(1+INDIRECT("CPI"&Y$7)) -> 11.14437455 | Z70: 11.42298392 | AA70: 11.70855851 | AB70: 12.00127248 | AC70: 12.30130429 | AD70: 12.6088369 | AF70: 0.2318765897 | AH70: 0.06 | AI70: 0.1205027699 | AJ70: 0.2318765897 | AK70: 0.1532291407 | AO70: 2.842670794 | AP70: 2.842670794 | AQ70: 0 | AR70: 0 | AS70: 0 | AT70: 0 | AU70: 0
B71: 63 | C71: TH1x500 | D71: Lamp | E71: Traffic | F71: Major | G71: N | H71: 1 | I71: 9 | J71: 0 | K71: 4 | L71: 0 | M71: 0 | N71: 13 | P71: 9 | Q71: 9 | R71: 0 | S71: 0 | T71: 0 | U71: 0 | V71: 0 | X71: 10.9 | Y71: =X71*(1+INDIRECT("CPI"&Y$7)) -> 11.14437455 | Z71: 11.42298392 | AA71: 11.70855851 | AB71: 12.00127248 | AC71: 12.30130429 | AD71: 12.6088369 | AF71: 0.2318765897 | AH71: 0.06 | AI71: 0.1205027699 | AJ71: 0.2318765897 | AK71: 0.1532291407 | AO71: 2.558403715 | AP71: 2.558403715 | AQ71: 0 | AR71: 0 | AS71: 0 | AT71: 0 | AU71: 0
B72: 64 | C72: TH1x750 | D72: Lamp | E72: Traffic | F72: Major | G72: N | H72: 1 | I72: 8 | J72: 0 | K72: 3 | L72: 0 | M72: 0 | N72: 11 | P72: 8 | Q72: 8 | R72: 0 | S72: 0 | T72: 0 | U72: 0 | V72: 0 | X72: 10.9 | Y72: =X72*(1+INDIRECT("CPI"&Y$7)) -> 11.14437455 | Z72: 11.42298392 | AA72: 11.70855851 | AB72: 12.00127248 | AC72: 12.30130429 | AD72: 12.6088369 | AF72: 0.2318765897 | AH72: 0.06 | AI72: 0.1205027699 | AJ72: 0.2318765897 | AK72: 0.1532291407 | AO72: 2.274136635 | AP72: 2.274136635 | AQ72: 0 | AR72: 0 | AS72: 0 | AT72: 0 | AU72: 0
M73: Total | P73: =SUM(P18:P72) -> 251908 | Q73: =SUM(Q18:Q72) -> 251908 | R73: 251907.6667 | S73: 251909 | T73: 251914 | U73: 251922 | V73: 251930 | AM73: Total Spot | AO73: =SUM(AO18:AO72) -> 35092.75628 | AP73: =SUM(AP18:AP72) -> 35092.75628 | AQ73: 29865.71693 | AR73: 24892.90081 | AS73: 21137.48509 | AT73: =SUM(AT18:AT72) -> 20713.45702 | AU73: =SUM(AU18:AU72) -> 20653.71433
M74: Non LED | P74: =SUM(P31:P72) -> 215407 | Q74: =SUM(Q31:Q72) -> 215407 | R74: 175922 | S74: 137113 | T74: 102848 | U74: 97926 | V74: 97134 | AM74: % of population | AO74: =AO73/P73 -> 0.1393078278 | AP74: =AP73/Q73 -> 0.1393078278 | AQ74: =AQ73/R73 -> 0.1185581897 | AR74: =AR73/S73 -> 0.09881703635 | AS74: =AS73/T73 -> 0.08390754421 | AT74: =AT73/U73 -> 0.0822217076 | AU74: 0.08198195663
AM75: Total for RIN | AO75: =P73/4+AO73 -> 98069.75628 | AP75: =Q73/4+AP73 -> 98069.75628 | AQ75: 92842.6336 | AR75: 87870.15081 | AS75: 84115.98509 | AT75: 83693.95702 | AU75: 83636.21433
AL78: Repex RIN | AM78: Lamp failure | AO78: =SUMPRODUCT($AF18:$AF72,P18:P72) -> 21895.17279 | AP78: =SUMPRODUCT($AF18:$AF72,Q18:Q72) -> 21895.17279 | AQ78: 16668.1509 | AR78: 11695.26493 | AS78: 7939.587257 | AT78: 7515.140061 | AU78: 7454.978248
AM79: Other failure | AO79: =AO73-AO78 -> 13197.58349 | AP79: =AP73-AP78 -> 13197.58349 | AQ79: 13197.56603 | AR79: 13197.63588 | AS79: 13197.89784 | AT79: 13198.31696 | AU79: 13198.73608

Sheet Calc - Opex FY18
B2: =CONCATENATE("This sheet contains no inputs and all values are calculated for " & "FY18" ) -> This sheet contains no inputs and all values are calculated for FY18 | AE2: Bulk contract | AO2: Bulk materials | AZ2: Spot labour | BH2: Spot materials | BL2: EWP costs | BN2: Connections | BR2: Overheads | BV2: CAM | BY2: RIN DATA - Other failure expense
L4: Totals ---> | M4: =SUM(M12:M75) -> 17317021.16 | O4: =SUMPRODUCT(O12:O75,P12:P75,$L$12:$L$75) -> 1014087.083 | Q4: =SUMPRODUCT(Q12:Q75,R12:R75,$L$12:$L$75) -> 541219.3015 | S4: =SUMPRODUCT(S12:S75,T12:T75,$L$12:$L$75) -> 20608.40791 | U4: =SUMPRODUCT(U12:U75,V12:V75,$L$12:$L$75) -> 0 | W4: =SUMPRODUCT(W12:W75,X12:X75,$L$12:$L$75) -> 36067.10327 | Y4: =SUMPRODUCT(Y12:Y75,Z12:Z75,$L$12:$L$75) -> 72968.57263 | AA4: =SUMPRODUCT(AA12:AA75,AB12:AB75,$L$12:$L$75) -> 152271.5533 | AC4: =SUMPRODUCT(AC12:AC75,AD12:AD75,$L$12:$L$75) -> 128317.2538 | AE4: =SUMPRODUCT(AE12:AE75,$L$12:$L$75) -> 1965539.275 | AG4: =SUMPRODUCT(AG12:AG75,AH12:AH75,$L$12:$L$75) -> 273127.7975 | AI4: =SUMPRODUCT(AI12:AI75,AJ12:AJ75,$L$12:$L$75) -> 89215.86904 | AK4: =SUMPRODUCT(AK12:AK75,AL12:AL75,$L$12:$L$75) -> 0 | AM4: =SUMPRODUCT(AM12:AM75,AN12:AN75,$L$12:$L$75) -> 84935.65706 | AO4: =SUMPRODUCT(AO12:AO75,$L$12:$L$75) -> 447279.3236 | AQ4: =SUMPRODUCT(AQ12:AQ75,AR12:AR75,AS12:AS75,$L$12:$L$75) -> 3377511.543 | AT4: =SUMPRODUCT(AT12:AT75,AU12:AU75,AV12:AV75,$L$12:$L$75) -> 743487.9091 | AW4: =SUMPRODUCT(AW12:AW75,AX12:AX75,AY12:AY75,$L$12:$L$75) -> 1220934.192 | AZ4: =SUMPRODUCT(AZ12:AZ75,$L$12:$L$75) -> 5341933.644 | BB4: =SUMPRODUCT(BB12:BB75,BC12:BC75,$L$12:$L$75) -> 101406.4382 | BD4: =SUMPRODUCT(BD12:BD75,BE12:BE75,$L$12:$L$75) -> 55157.3351 | BF4: =SUMPRODUCT(BF12:BF75,BG12:BG75,$L$12:$L$75) -> 123039.0933 | BH4: =SUMPRODUCT(BH12:BH75,$L$12:$L$75) -> 279602.8666 | BL4: =SUMPRODUCT(BL12:BL75,$L$12:$L$75) -> 2003572.299 | BN4: =SUMPRODUCT(BN12:BN75,$L$12:$L$75) -> 2728792.042 | BR4: =SUMPRODUCT(BR12:BR75,$L$12:$L$75) -> 2843938.568 | BV4: =SUMPRODUCT(BV12:BV75,$L$12:$L$75) -> 1706363.141 | BY4: =(AT4+AW4+BD4+BF4)+((AT4+AW4+BD4+BF4)/AZ4)*BL4*(1+RateOverhead)*(1+CorporateOverheads) -> 3232665.617
L6: Percent ---> | AE6: =AE4/$M4 -> 0.1135033131 | AO6: =AO4/$M4 -> 0.02582888359 | AZ6: =AZ4/$M4 -> 0.3084787848 | BH6: =BH4/$M4 -> 0.01614612952 | BL6: =BL4/$M4 -> 0.1156995929 | BN6: =BN4/$M4 -> 0.1575786053 | BR6: =BR4/$M4 -> 0.1642279317 | BV6: =BV4/$M4 -> 0.09853675902
M8: Sub-total annual cost | O8: Task 1 | Q8: Task 2 | S8: Task 3 | U8: Task 4 | W8: Task 5 | Y8: Task 6 | AA8: Task 7 | AC8: Task 8 | AE8: Sub-total annual cost per asset | AO8: Sub-total annual cost per asset | AZ8: Sub-total annual cost per asset | BH8: Sub-total annual cost per asset | BL8: Sub-total annual cost per asset | BN8: Sub-total annual cost per asset | BR8: Sub-total annual cost per asset | BV8: Sub-total annual cost per asset
O9: Minor | Q9: Major | S9: All | U9: All | W9: All | Y9: All | AA9: All | AC9: All | AG9: Lamp | AI9: Visors | AK9: PE Cell | AM9: Misc | AQ9: Lamp change | AT9: PE Cell change | AW9: Misc | BB9: Lamp | BD9: PE Cell | BF9: Misc | BJ9: Price | BK9: Hours (weighted by failure)
B10: # | C10: Description | D10: Type | E10: Route | F10: Category | G10: Lamps (#) | K10: Price | L10: Count | O10: Price | P10: Cycle | Q10: Price | R10: Cycle | S10: Price | T10: Cycle | U10: Price | V10: Cycle | W10: Price | X10: Cycle | Y10: Price | Z10: Cycle | AA10: Price | AB10: Cycle | AC10: Price | AD10: Cycle | AG10: Price | AH10: Cycle | AI10: Price | AJ10: Cycle | AK10: Price | AL10: Cycle | AM10: Price | AN10: Cycle | AQ10: Price | AR10: Failure | AS10: Hours | AT10: Price | AU10: Failure | AV10: Hours | AW10: Price | AX10: Failure | AY10: Hours | BB10: Price | BC10: Failure | BD10: Price | BE10: Failure | BF10: Price | BG10: Failure | BP10: Rate | BQ10: Cost | BT10: Rate | BU10: Cost
B12: ='Input - Inventory'!B9 -> 1 | C12: ='Input - Inventory'!C9 -> O/U | D12: ='Input - Inventory'!D9 -> Connection | E12: ='Input - Inventory'!E9 -> NonTraffic | F12: ='Input - Inventory'!F9 -> n/a | G12: ='Input - Inventory'!H9 -> 0 | I12: =CONCATENATE(D12," - ",C12) -> Connection - O/U | K12: =AE12+AO12+AZ12+BH12+BL12+BN12+BR12+BV12 -> 100.8664807 | L12: =INDIRECT(L$10&$B12&"FY18") -> 576 | M12: =L12*K12 -> 58099.09289 | O12: =IF(AND($D12="Lamp", OR($F12=O$9, O$9="All")),IF('Input - Inventory'!G9="N",INDIRECT("PriceBulkTask1" & "FY18"),INDIRECT("PriceBulkTask1LED" & "FY18")),0) -> 0 | P12: =IF(AND($D12="Lamp",CycleBulkTask1<>0, OR($F12=O$9,O$9="All")),IF('Input - Inventory'!G9="N",1/CycleBulkTask1,1/CycleBulkTask1LED),0) -> 0 | Q12: =IF(AND($D12="Lamp", OR($F12=Q$9, Q$9="All")),IF('Input - Inventory'!G9="N",INDIRECT("PriceBulkTask2" & "FY18"),INDIRECT("PriceBulkTask2LED" & "FY18")),0) -> 0 | R12: =IF(AND($D12="Lamp",CycleBulkTask2<>0, OR($F12=Q$9,Q$9="All")),IF('Input - Inventory'!G9="N",1/CycleBulkTask2,1/CycleBulkTask2LED),0) -> 0 | S12: =IF(AND($D12="Lamp", OR($F12=S$9, S$9="All")),INDIRECT("PriceBulkTask3" & "FY18"),0) -> 0 | T12: =IF(AND($D12="Lamp",CycleBulkTask3<>0, OR($F12=S$9,S$9="All")),1/CycleBulkTask3,0) -> 0 | U12: =IF(AND($D12="Lamp", OR($F12=U$9, U$9="All")),INDIRECT("PriceBulkTask4" & "FY18"),0) -> 0 | V12: =IF(AND($D12="Lamp",CycleBulkTask4<>0, OR($F12=U$9,U$9="All")),1/CycleBulkTask4,0) -> 0 | W12: =IF(AND($D12="Lamp", OR($F12=W$9, W$9="All")),INDIRECT("PriceBulkTask5" & "FY18"),0) -> 0 | X12: =IF(AND($D12="Lamp",CycleBulkTask5<>0, OR($F12=W$9,W$9="All")),1/CycleBulkTask5,0) -> 0 | Y12: =IF(AND($D12="Lamp", OR($F12=Y$9, Y$9="All")),INDIRECT("PriceBulkTask6" & "FY18"),0) -> 0 | Z12: =IF(AND($D12="Lamp",CycleBulkTask6<>0, OR($F12=Y$9,Y$9="All")),1/CycleBulkTask6,0) -> 0 | AA12: =IF(AND($D12="Lamp", OR($F12=AA$9, AA$9="All")),INDIRECT("PriceBulkTask7" & "FY18"),0) -> 0 | AB12: =IF(AND($D12="Lamp",CycleBulkTask7<>0, OR($F12=AA$9,AA$9="All")),1/CycleBulkTask7,0) -> 0 | AC12: =IF(AND($D12="Lamp", OR($F12=AC$9, AC$9="All")),INDIRECT("PriceBulkTask8" & "FY18"),0) -> 0 | AD12: =IF(AND($D12="Lamp",CycleBulkTask8<>0, OR($F12=AC$9,AC$9="All")),1/CycleBulkTask8,0) -> 0 | AE12: =O12*P12+Q12*R12+S12*T12+U12*V12+W12*X12+Y12*Z12+AA12*AB12+AC12*AD12 -> 0 | AG12: =IF($D12="Lamp",$G12*INDIRECT("Price" & $B12 & "FY18"),0) -> 0 | AH12: =MAX(P12,R12) -> 0 | AI12: =IF($D12="Lamp",INDIRECT("PriceVisor" & "FY18"),0) -> 0 | AJ12: =T12 -> 0 | AK12: =IF($D12="Lamp",INDIRECT("PricePECell" & "FY18"),0) -> 0 | AL12: =V12 -> 0 | AM12: =IF($D12="Lamp",INDIRECT("PriceMisc" & "FY18"),0) -> 0 | AN12: =X12+AB12 -> 0 | AO12: =AG12*AH12+AI12*AJ12+AK12*AL12+AM12*AN12 -> 0 | AQ12: =IF($D12=$AG$9,(INDIRECT("PriceLabour" & "FY18")*ProportionStandardHours + INDIRECT("PriceLabourOvertime" & "FY18")*ProportionOvertimeHours)*(1+RateOnCostAnnual),0) -> 0 | AR12: =BC12 -> 0 | AS12: =IF($D12="Lamp",(NumberOfCrew+INDIRECT($E12)*TrafficController)*(TimeToReplaceLamp),0) -> 0 | AT12: =IF($D12=$AG$9,(INDIRECT("PriceLabour" & "FY18")*ProportionStandardHours + INDIRECT("PriceLabourOvertime" & "FY18")*ProportionOvertimeHours)*(1+RateOnCostAnnual),0) -> 0 | AU12: =BE12 -> 0 | AV12: =IF($D12="Lamp",(NumberOfCrew+INDIRECT($E12)*TrafficController)*(TimeForPECellReplace),0) -> 0 | AW12: =IF($D12=$AG$9,(INDIRECT("PriceLabour" & "FY18")*ProportionStandardHours + INDIRECT("PriceLabourOvertime" & "FY18")*ProportionOvertimeHours)*(1+RateOnCostAnnual),0) -> 0 | AX12: =BG12 -> 0 | AY12: =IF($D12="Lamp",(NumberOfCrew+INDIRECT($E12)*TrafficController)*(TimeForOtherSpot),0) -> 0 | AZ12: =AQ12*AR12*AS12+AT12*AU12*AV12+AW12*AX12*AY12 -> 0 | BB12: =IF($D12="Lamp",INDIRECT("Price" & $B12 & "FY18"),0) -> 0 | BC12: =IF($D12="Lamp",INDIRECT(BC$10 & $B12),0) -> 0 | BD12: =IF($D12="Lamp",INDIRECT("pRICEpecELL" & "FY18"),0) -> 0 | BE12: =IF($D12="Lamp",INDIRECT("FailurePECell" & "Annual"),0) -> 0 | BF12: =IF($D12="Lamp",INDIRECT("PriceMisc" & "FY18"),0) -> 0 | BG12: =IF($D12="Lamp",INDIRECT("FailureMisc" & "Annual"),0) -> 0 | BH12: =BB12*BC12+BD12*BE12+BF12*BG12 -> 0 | BJ12: =IF(AND($D12="Lamp"),INDIRECT("PriceEWP"&"FY18"),0) -> 0 | BK12: =AR12*AS12+AU12*AV12+AX12*AY12 -> 0 | BL12: =BJ12*BK12 -> 0 | BN12: =IF($D12="Connection",VLOOKUP(C12,'Input - General'!$F$51:$N$59,3,FALSE),0) -> 74.36233111 | BP12: =RateOverhead -> 0.2227618911 | BQ12: =BL12+AZ12+BH12+AO12+AE12+BN12 -> 74.36233111 | BR12: =BQ12*BP12 -> 16.5650935 | BT12: =CorporateOverheads -> 0.109307573 | BU12: =AE12+AO12+AZ12+BH12+BL12+BN12+BR12 -> 90.92742461 | BV12: =BU12*BT12 -> 9.939056103
B13: ='Input - Inventory'!B10 -> 2 | C13: ='Input - Inventory'!C10 -> OH | D13: ='Input - Inventory'!D10 -> Connection | E13: ='Input - Inventory'!E10 -> NonTraffic | F13: ='Input - Inventory'!F10 -> n/a | G13: ='Input - Inventory'!H10 -> 0 | I13: Connection - OH | K13: 0 | L13: =INDIRECT(L$10&$B13&"FY18") -> 196623 | M13: 0 | O13: =IF(AND($D13="Lamp", OR($F13=O$9, O$9="All")),IF('Input - Inventory'!G10="N",INDIRECT("PriceBulkTask1" & "FY18"),INDIRECT("PriceBulkTask1LED" & "FY18")),0) -> 0 | P13: =IF(AND($D13="Lamp",CycleBulkTask1<>0, OR($F13=O$9,O$9="All")),IF('Input - Inventory'!G10="N",1/CycleBulkTask1,1/CycleBulkTask1LED),0) -> 0 | Q13: =IF(AND($D13="Lamp", OR($F13=Q$9, Q$9="All")),IF('Input - Inventory'!G10="N",INDIRECT("PriceBulkTask2" & "FY18"),INDIRECT("PriceBulkTask2LED" & "FY18")),0) -> 0 | R13: =IF(AND($D13="Lamp",CycleBulkTask2<>0, OR($F13=Q$9,Q$9="All")),IF('Input - Inventory'!G10="N",1/CycleBulkTask2,1/CycleBulkTask2LED),0) -> 0 | S13: 0 | T13: 0 | U13: 0 | V13: 0 | W13: 0 | X13: 0 | Y13: 0 | Z13: 0 | AA13: 0 | AB13: 0 | AC13: 0 | AD13: 0 | AE13: =O13*P13+Q13*R13+S13*T13+U13*V13+W13*X13+Y13*Z13+AA13*AB13+AC13*AD13 -> 0 | AG13: 0 | AH13: 0 | AI13: 0 | AJ13: =T13 -> 0 | AK13: 0 | AL13: =V13 -> 0 | AM13: 0 | AN13: =X13+AB13 -> 0 | AO13: 0 | AQ13: 0 | AR13: 0 | AS13: 0 | AT13: 0 | AU13: 0 | AV13: 0 | AW13: 0 | AX13: 0 | AY13: 0 | AZ13: 0 | BB13: 0 | BC13: 0 | BD13: 0 | BE13: 0 | BF13: 0 | BG13: 0 | BH13: 0 | BJ13: 0 | BK13: 0 | BL13: 0 | BN13: =IF($D13="Connection",VLOOKUP(C13,'Input - General'!$F$51:$N$59,3,FALSE),0) -> 0 | BP13: 0.2227618911 | BQ13: 0 | BR13: 0 | BT13: 0.109307573 | BU13: 0 | BV13: 0
B14: ='Input - Inventory'!B11 -> 3 | C14: ='Input - Inventory'!C11 -> OH2 | D14: ='Input - Inventory'!D11 -> Connection | E14: ='Input - Inventory'!E11 -> NonTraffic | F14: ='Input - Inventory'!F11 -> n/a | G14: ='Input - Inventory'!H11 -> 0 | I14: Connection - OH2 | K14: 0 | L14: 718 | M14: 0 | O14: =IF(AND($D14="Lamp", OR($F14=O$9, O$9="All")),IF('Input - Inventory'!G11="N",INDIRECT("PriceBulkTask1" & "FY18"),INDIRECT("PriceBulkTask1LED" & "FY18")),0) -> 0 | P14: =IF(AND($D14="Lamp",CycleBulkTask1<>0, OR($F14=O$9,O$9="All")),IF('Input - Inventory'!G11="N",1/CycleBulkTask1,1/CycleBulkTask1LED),0) -> 0 | Q14: =IF(AND($D14="Lamp", OR($F14=Q$9, Q$9="All")),IF('Input - Inventory'!G11="N",INDIRECT("PriceBulkTask2" & "FY18"),INDIRECT("PriceBulkTask2LED" & "FY18")),0) -> 0 | R14: =IF(AND($D14="Lamp",CycleBulkTask2<>0, OR($F14=Q$9,Q$9="All")),IF('Input - Inventory'!G11="N",1/CycleBulkTask2,1/CycleBulkTask2LED),0) -> 0 | S14: 0 | T14: 0 | U14: 0 | V14: 0 | W14: 0 | X14: 0 | Y14: 0 | Z14: 0 | AA14: 0 | AB14: 0 | AC14: 0 | AD14: 0 | AE14: 0 | AG14: 0 | AH14: 0 | AI14: 0 | AJ14: 0 | AK14: 0 | AL14: 0 | AM14: 0 | AN14: 0 | AO14: 0 | AQ14: 0 | AR14: 0 | AS14: 0 | AT14: 0 | AU14: 0 | AV14: 0 | AW14: 0 | AX14: 0 | AY14: 0 | AZ14: 0 | BB14: 0 | BC14: 0 | BD14: 0 | BE14: 0 | BF14: 0 | BG14: 0 | BH14: 0 | BJ14: 0 | BK14: 0 | BL14: 0 | BN14: =IF($D14="Connection",VLOOKUP(C14,'Input - General'!$F$51:$N$59,3,FALSE),0) -> 0 | BP14: 0.2227618911 | BQ14: 0 | BR14: 0 | BT14: 0.109307573 | BU14: 0 | BV14: 0
B15: ='Input - Inventory'!B12 -> 4 | C15: ='Input - Inventory'!C12 -> OHS | D15: ='Input - Inventory'!D12 -> Connection | E15: ='Input - Inventory'!E12 -> NonTraffic | F15: ='Input - Inventory'!F12 -> n/a | G15: ='Input - Inventory'!H12 -> 0 | I15: Connection - OHS | K15: 0 | L15: 9 | M15: 0 | O15: =IF(AND($D15="Lamp", OR($F15=O$9, O$9="All")),IF('Input - Inventory'!G12="N",INDIRECT("PriceBulkTask1" & "FY18"),INDIRECT("PriceBulkTask1LED" & "FY18")),0) -> 0 | P15: =IF(AND($D15="Lamp",CycleBulkTask1<>0, OR($F15=O$9,O$9="All")),IF('Input - Inventory'!G12="N",1/CycleBulkTask1,1/CycleBulkTask1LED),0) -> 0 | Q15: =IF(AND($D15="Lamp", OR($F15=Q$9, Q$9="All")),IF('Input - Inventory'!G12="N",INDIRECT("PriceBulkTask2" & "FY18"),INDIRECT("PriceBulkTask2LED" & "FY18")),0) -> 0 | R15: =IF(AND($D15="Lamp",CycleBulkTask2<>0, OR($F15=Q$9,Q$9="All")),IF('Input - Inventory'!G12="N",1/CycleBulkTask2,1/CycleBulkTask2LED),0) -> 0 | S15: 0 | T15: 0 | U15: 0 | V15: 0 | W15: 0 | X15: 0 | Y15: 0 | Z15: 0 | AA15: 0 | AB15: 0 | AC15: 0 | AD15: 0 | AE15: 0 | AG15: 0 | AH15: 0 | AI15: 0 | AJ15: 0 | AK15: 0 | AL15: 0 | AM15: 0 | AN15: 0 | AO15: 0 | AQ15: 0 | AR15: 0 | AS15: 0 | AT15: 0 | AU15: 0 | AV15: 0 | AW15: 0 | AX15: 0 | AY15: 0 | AZ15: 0 | BB15: 0 | BC15: 0 | BD15: 0 | BE15: 0 | BF15: 0 | BG15: 0 | BH15: 0 | BJ15: 0 | BK15: 0 | BL15: 0 | BN15: =IF($D15="Connection",VLOOKUP(C15,'Input - General'!$F$51:$N$59,3,FALSE),0) -> 0 | BP15: 0.2227618911 | BQ15: 0 | BR15: 0 | BT15: 0.109307573 | BU15: 0 | BV15: 0
B16: ='Input - Inventory'!B13 -> 5 | C16: ='Input - Inventory'!C13 -> UG2 | D16: ='Input - Inventory'!D13 -> Connection | E16: ='Input - Inventory'!E13 -> NonTraffic | F16: ='Input - Inventory'!F13 -> n/a | G16: ='Input - Inventory'!H13 -> 0 | I16: Connection - UG2 | K16: 0 | L16: 1134 | M16: 0 | O16: =IF(AND($D16="Lamp", OR($F16=O$9, O$9="All")),IF('Input - Inventory'!G13="N",INDIRECT("PriceBulkTask1" & "FY18"),INDIRECT("PriceBulkTask1LED" & "FY18")),0) -> 0 | P16: =IF(AND($D16="Lamp",CycleBulkTask1<>0, OR($F16=O$9,O$9="All")),IF('Input - Inventory'!G13="N",1/CycleBulkTask1,1/CycleBulkTask1LED),0) -> 0 | Q16: =IF(AND($D16="Lamp", OR($F16=Q$9, Q$9="All")),IF('Input - Inventory'!G13="N",INDIRECT("PriceBulkTask2" & "FY18"),INDIRECT("PriceBulkTask2LED" & "FY18")),0) -> 0 | R16: =IF(AND($D16="Lamp",CycleBulkTask2<>0, OR($F16=Q$9,Q$9="All")),IF('Input - Inventory'!G13="N",1/CycleBulkTask2,1/CycleBulkTask2LED),0) -> 0 | S16: 0 | T16: 0 | U16: 0 | V16: 0 | W16: 0 | X16: 0 | Y16: 0 | Z16: 0 | AA16: 0 | AB16: 0 | AC16: 0 | AD16: 0 | AE16: 0 | AG16: 0 | AH16: 0 | AI16: 0 | AJ16: 0 | AK16: 0 | AL16: 0 | AM16: 0 | AN16: 0 | AO16: 0 | AQ16: 0 | AR16: 0 | AS16: 0 | AT16: 0 | AU16: 0 | AV16: 0 | AW16: 0 | AX16: 0 | AY16: 0 | AZ16: 0 | BB16: 0 | BC16: 0 | BD16: 0 | BE16: 0 | BF16: 0 | BG16: 0 | BH16: 0 | BJ16: 0 | BK16: 0 | BL16: 0 | BN16: =IF($D16="Connection",VLOOKUP(C16,'Input - General'!$F$51:$N$59,3,FALSE),0) -> 0 | BP16: 0.2227618911 | BQ16: 0 | BR16: 0 | BT16: 0.109307573 | BU16: 0 | BV16: 0
B17: ='Input - Inventory'!B14 -> 6 | C17: ='Input - Inventory'!C14 -> UGR1 | D17: ='Input - Inventory'!D14 -> Connection | E17: ='Input - Inventory'!E14 -> NonTraffic | F17: ='Input - Inventory'!F14 -> n/a | G17: ='Input - Inventory'!H14 -> 0 | I17: Connection - UGR1 | K17: 92.45860325 | L17: 31792 | M17: 2939443.915 | O17: =IF(AND($D17="Lamp", OR($F17=O$9, O$9="All")),IF('Input - Inventory'!G14="N",INDIRECT("PriceBulkTask1" & "FY18"),INDIRECT("PriceBulkTask1LED" & "FY18")),0) -> 0 | P17: =IF(AND($D17="Lamp",CycleBulkTask1<>0, OR($F17=O$9,O$9="All")),IF('Input - Inventory'!G14="N",1/CycleBulkTask1,1/CycleBulkTask1LED),0) -> 0 | Q17: =IF(AND($D17="Lamp", OR($F17=Q$9, Q$9="All")),IF('Input - Inventory'!G14="N",INDIRECT("PriceBulkTask2" & "FY18"),INDIRECT("PriceBulkTask2LED" & "FY18")),0) -> 0 | R17: =IF(AND($D17="Lamp",CycleBulkTask2<>0, OR($F17=Q$9,Q$9="All")),IF('Input - Inventory'!G14="N",1/CycleBulkTask2,1/CycleBulkTask2LED),0) -> 0 | S17: 0 | T17: 0 | U17: 0 | V17: 0 | W17: 0 | X17: 0 | Y17: 0 | Z17: 0 | AA17: 0 | AB17: 0 | AC17: 0 | AD17: 0 | AE17: 0 | AG17: 0 | AH17: 0 | AI17: 0 | AJ17: 0 | AK17: 0 | AL17: 0 | AM17: 0 | AN17: 0 | AO17: 0 | AQ17: 0 | AR17: 0 | AS17: 0 | AT17: 0 | AU17: 0 | AV17: 0 | AW17: 0 | AX17: 0 | AY17: 0 | AZ17: 0 | BB17: 0 | BC17: 0 | BD17: 0 | BE17: 0 | BF17: 0 | BG17: 0 | BH17: 0 | BJ17: 0 | BK17: 0 | BL17: 0 | BN17: =IF($D17="Connection",VLOOKUP(C17,'Input - General'!$F$51:$N$59,3,FALSE),0) -> 68.16374696 | BP17: 0.2227618911 | BQ17: 68.16374696 | BR17: 15.18428518 | BT17: 0.109307573 | BU17: 83.34803214 | BV17: 9.110571107
B18: ='Input - Inventory'!B15 -> 7 | C18: ='Input - Inventory'!C15 -> UGR2 | D18: ='Input - Inventory'!D15 -> Connection | E18: ='Input - Inventory'!E15 -> NonTraffic | F18: ='Input - Inventory'!F15 -> n/a | G18: ='Input - Inventory'!H15 -> 0 | I18: Connection - UGR2 | K18: 33.61715796 | L18: 20937 | M18: 703842.4361 | O18: =IF(AND($D18="Lamp", OR($F18=O$9, O$9="All")),IF('Input - Inventory'!G15="N",INDIRECT("PriceBulkTask1" & "FY18"),INDIRECT("PriceBulkTask1LED" & "FY18")),0) -> 0 | P18: =IF(AND($D18="Lamp",CycleBulkTask1<>0, OR($F18=O$9,O$9="All")),IF('Input - Inventory'!G15="N",1/CycleBulkTask1,1/CycleBulkTask1LED),0) -> 0 | Q18: =IF(AND($D18="Lamp", OR($F18=Q$9, Q$9="All")),IF('Input - Inventory'!G15="N",INDIRECT("PriceBulkTask2" & "FY18"),INDIRECT("PriceBulkTask2LED" & "FY18")),0) -> 0 | R18: =IF(AND($D18="Lamp",CycleBulkTask2<>0, OR($F18=Q$9,Q$9="All")),IF('Input - Inventory'!G15="N",1/CycleBulkTask2,1/CycleBulkTask2LED),0) -> 0 | S18: 0 | T18: 0 | U18: 0 | V18: 0 | W18: 0 | X18: 0 | Y18: 0 | Z18: 0 | AA18: 0 | AB18: 0 | AC18: 0 | AD18: 0 | AE18: 0 | AG18: 0 | AH18: 0 | AI18: 0 | AJ18: 0 | AK18: 0 | AL18: 0 | AM18: 0 | AN18: 0 | AO18: 0 | AQ18: 0 | AR18: 0 | AS18: 0 | AT18: 0 | AU18: 0 | AV18: 0 | AW18: 0 | AX18: 0 | AY18: 0 | AZ18: 0 | BB18: 0 | BC18: 0 | BD18: 0 | BE18: 0 | BF18: 0 | BG18: 0 | BH18: 0 | BJ18: 0 | BK18: 0 | BL18: 0 | BN18: =IF($D18="Connection",VLOOKUP(C18,'Input - General'!$F$51:$N$59,3,FALSE),0) -> 24.78375584 | BP18: 0.2227618911 | BQ18: 24.78375584 | BR18: 5.520876321 | BT18: 0.109307573 | BU18: 30.30463216 | BV18: 3.312525792
B19: ='Input - Inventory'!B16 -> 8 | C19: ='Input - Inventory'!C16 -> UGS | D19: ='Input - Inventory'!D16 -> Connection | E19: ='Input - Inventory'!E16 -> NonTraffic | F19: ='Input - Inventory'!F16 -> n/a | G19: ='Input - Inventory'!H16 -> 0 | I19: Connection - UGS | K19: 0 | L19: 108 | M19: 0 | O19: =IF(AND($D19="Lamp", OR($F19=O$9, O$9="All")),IF('Input - Inventory'!G16="N",INDIRECT("PriceBulkTask1" & "FY18"),INDIRECT("PriceBulkTask1LED" & "FY18")),0) -> 0 | P19: =IF(AND($D19="Lamp",CycleBulkTask1<>0, OR($F19=O$9,O$9="All")),IF('Input - Inventory'!G16="N",1/CycleBulkTask1,1/CycleBulkTask1LED),0) -> 0 | Q19: =IF(AND($D19="Lamp", OR($F19=Q$9, Q$9="All")),IF('Input - Inventory'!G16="N",INDIRECT("PriceBulkTask2" & "FY18"),INDIRECT("PriceBulkTask2LED" & "FY18")),0) -> 0 | R19: =IF(AND($D19="Lamp",CycleBulkTask2<>0, OR($F19=Q$9,Q$9="All")),IF('Input - Inventory'!G16="N",1/CycleBulkTask2,1/CycleBulkTask2LED),0) -> 0 | S19: 0 | T19: 0 | U19: 0 | V19: 0 | W19: 0 | X19: 0 | Y19: 0 | Z19: 0 | AA19: 0 | AB19: 0 | AC19: 0 | AD19: 0 | AE19: 0 | AG19: 0 | AH19: 0 | AI19: 0 | AJ19: 0 | AK19: 0 | AL19: 0 | AM19: 0 | AN19: 0 | AO19: 0 | AQ19: 0 | AR19: 0 | AS19: 0 | AT19: 0 | AU19: 0 | AV19: 0 | AW19: 0 | AX19: 0 | AY19: 0 | AZ19: 0 | BB19: 0 | BC19: 0 | BD19: 0 | BE19: 0 | BF19: 0 | BG19: 0 | BH19: 0 | BJ19: 0 | BK19: 0 | BL19: 0 | BN19: =IF($D19="Connection",VLOOKUP(C19,'Input - General'!$F$51:$N$59,3,FALSE),0) -> 0 | BP19: 0.2227618911 | BQ19: 0 | BR19: 0 | BT19: 0.109307573 | BU19: 0 | BV19: 0
B20: ='Input - Inventory'!B17 -> 9 | C20: ='Input - Inventory'!C17 -> UG-SP | D20: ='Input - Inventory'!D17 -> Connection | E20: ='Input - Inventory'!E17 -> NonTraffic | F20: ='Input - Inventory'!F17 -> n/a | G20: ='Input - Inventory'!H17 -> 0 | I20: Connection - UG-SP | K20: 0 | L20: 13 | M20: 0 | O20: =IF(AND($D20="Lamp", OR($F20=O$9, O$9="All")),IF('Input - Inventory'!G17="N",INDIRECT("PriceBulkTask1" & "FY18"),INDIRECT("PriceBulkTask1LED" & "FY18")),0) -> 0 | P20: =IF(AND($D20="Lamp",CycleBulkTask1<>0, OR($F20=O$9,O$9="All")),IF('Input - Inventory'!G17="N",1/CycleBulkTask1,1/CycleBulkTask1LED),0) -> 0 | Q20: =IF(AND($D20="Lamp", OR($F20=Q$9, Q$9="All")),IF('Input - Inventory'!G17="N",INDIRECT("PriceBulkTask2" & "FY18"),INDIRECT("PriceBulkTask2LED" & "FY18")),0) -> 0 | R20: =IF(AND($D20="Lamp",CycleBulkTask2<>0, OR($F20=Q$9,Q$9="All")),IF('Input - Inventory'!G17="N",1/CycleBulkTask2,1/CycleBulkTask2LED),0) -> 0 | S20: 0 | T20: 0 | U20: 0 | V20: 0 | W20: 0 | X20: 0 | Y20: 0 | Z20: 0 | AA20: 0 | AB20: 0 | AC20: 0 | AD20: 0 | AE20: 0 | AG20: 0 | AH20: 0 | AI20: 0 | AJ20: 0 | AK20: 0 | AL20: 0 | AM20: 0 | AN20: 0 | AO20: 0 | AQ20: 0 | AR20: 0 | AS20: 0 | AT20: 0 | AU20: 0 | AV20: 0 | AW20: 0 | AX20: 0 | AY20: 0 | AZ20: 0 | BB20: 0 | BC20: 0 | BD20: 0 | BE20: 0 | BF20: 0 | BG20: 0 | BH20: 0 | BJ20: 0 | BK20: 0 | BL20: 0 | BN20: =IF($D20="Connection",VLOOKUP(C20,'Input - General'!$F$51:$N$59,3,FALSE),0) -> 0 | BP20: 0.2227618911 | BQ20: 0 | BR20: 0 | BT20: 0.109307573 | BU20: 0 | BV20: 0
B21: ='Input - Inventory'!B18 -> 10 | C21: ='Input - Inventory'!C18 -> LED TRIAL | D21: ='Input - Inventory'!D18 -> Lamp | E21: ='Input - Inventory'!E18 -> NonTraffic | F21: ='Input - Inventory'!F18 -> Minor | G21: ='Input - Inventory'!H18 -> 1 | I21: Lamp - LED TRIAL | K21: 22.30590748 | L21: 67 | M21: 1494.495801 | O21: =IF(AND($D21="Lamp", OR($F21=O$9, O$9="All")),IF('Input - Inventory'!G18="N",INDIRECT("PriceBulkTask1" & "FY18"),INDIRECT("PriceBulkTask1LED" & "FY18")),0) -> 24.6719008 | P21: =IF(AND($D21="Lamp",CycleBulkTask1<>0, OR($F21=O$9,O$9="All")),IF('Input - Inventory'!G18="N",1/CycleBulkTask1,1/CycleBulkTask1LED),0) -> 0.1666666667 | Q21: =IF(AND($D21="Lamp", OR($F21=Q$9, Q$9="All")),IF('Input - Inventory'!G18="N",INDIRECT("PriceBulkTask2" & "FY18"),INDIRECT("PriceBulkTask2LED" & "FY18")),0) -> 0 | R21: =IF(AND($D21="Lamp",CycleBulkTask2<>0, OR($F21=Q$9,Q$9="All")),IF('Input - Inventory'!G18="N",1/CycleBulkTask2,1/CycleBulkTask2LED),0) -> 0 | S21: 11.48500442 | T21: 0.007123137293 | U21: 5.574180491 | V21: 0 | W21: 24.13954103 | X21: 0.005931168948 | Y21: 14.46149856 | Z21: 0.02002998353 | AA21: 40.19950453 | AB21: 0.01503682404 | AC21: 8290.488177 | AD21: 6.144166728e-05 | AE21: 5.740486297 | AG21: 0 | AH21: 0.1666666667 | AI21: 49.71973843 | AJ21: 0.007123137293 | AK21: 11.04255977 | AL21: 0 | AM21: 15 | AN21: 0.02096799299 | AO21: 0.6686804178 | AQ21: 85.56283983 | AR21: 0 | AS21: 1.513333333 | AT21: 85.56283983 | AU21: 0.0198285774 | AV21: =IF($D21="Lamp",(NumberOfCrew+INDIRECT($E21)*TrafficController)*(TimeForPECellReplace),0) -> 1.513333333 | AW21: 85.56283983 | AX21: 0.03256191236 | AY21: 1.513333333 | AZ21: 6.78378768 | BB21: 0 | BC21: 0 | BD21: 11.04255977 | BE21: 0.0198285774 | BF21: 15 | BG21: 0.03256191236 | BH21: 0.7073869364 | BJ21: 32.09162584 | BK21: 0.0792842745 | BL21: 2.544361272 | BN21: =IF($D21="Connection",VLOOKUP(C21,'Input - General'!$F$51:$N$59,3,FALSE),0) -> 0 | BP21: 0.2227618911 | BQ21: 16.4447026 | BR21: 3.663253051 | BT21: 0.109307573 | BU21: 20.10795565 | BV21: 2.19795183
B22: ='Input - Inventory'!B19 -> 11 | C22: ='Input - Inventory'!C19 -> LED1x100 | D22: ='Input - Inventory'!D19 -> Lamp | E22: ='Input - Inventory'!E19 -> Traffic | F22: ='Input - Inventory'!F19 -> Major | G22: ='Input - Inventory'!H19 -> 1 | I22: Lamp - LED1x100 | K22: 29.55175777 | L22: 6 | M22: 177.3105466 | O22: =IF(AND($D22="Lamp", OR($F22=O$9, O$9="All")),IF('Input - Inventory'!G19="N",INDIRECT("PriceBulkTask1" & "FY18"),INDIRECT("PriceBulkTask1LED" & "FY18")),0) -> 0 | P22: =IF(AND($D22="Lamp",CycleBulkTask1<>0, OR($F22=O$9,O$9="All")),IF('Input - Inventory'!G19="N",1/CycleBulkTask1,1/CycleBulkTask1LED),0) -> 0 | Q22: =IF(AND($D22="Lamp", OR($F22=Q$9, Q$9="All")),IF('Input - Inventory'!G19="N",INDIRECT("PriceBulkTask2" & "FY18"),INDIRECT("PriceBulkTask2LED" & "FY18")),0) -> 28.738834 | R22: =IF(AND($D22="Lamp",CycleBulkTask2<>0, OR($F22=Q$9,Q$9="All")),IF('Input - Inventory'!G19="N",1/CycleBulkTask2,1/CycleBulkTask2LED),0) -> 0.1666666667 | S22: 11.48500442 | T22: 0.007123137293 | U22: 5.574180491 | V22: 0 | W22: 24.13954103 | X22: 0.005931168948 | Y22: 14.46149856 | Z22: 0.02002998353 | AA22: 40.19950453 | AB22: 0.01503682404 | AC22: 8290.488177 | AD22: 6.144166728e-05 | AE22: 6.418308497 | AG22: 0 | AH22: 0.1666666667 | AI22: 49.71973843 | AJ22: 0.007123137293 | AK22: 11.04255977 | AL22: 0 | AM22: 15 | AN22: 0.02096799299 | AO22: 0.6686804178 | AQ22: 85.56283983 | AR22: 0 | AS22: 2.27 | AT22: 85.56283983 | AU22: 0.0198285774 | AV22: 2.27 | AW22: 85.56283983 | AX22: 0.03256191236 | AY22: 2.27 | AZ22: 10.17568152 | BB22: 0 | BC22: 0 | BD22: 11.04255977 | BE22: 0.0198285774 | BF22: 15 | BG22: 0.03256191236 | BH22: 0.7073869364 | BJ22: 32.09162584 | BK22: 0.1189264117 | BL22: 3.816541908 | BN22: =IF($D22="Connection",VLOOKUP(C22,'Input - General'!$F$51:$N$59,3,FALSE),0) -> 0 | BP22: 0.2227618911 | BQ22: 21.78659928 | BR22: 4.853224056 | BT22: 0.109307573 | BU22: 26.63982334 | BV22: 2.911934434
B23: ='Input - Inventory'!B20 -> 12 | C23: ='Input - Inventory'!C20 -> LED1x17 | D23: ='Input - Inventory'!D20 -> Lamp | E23: ='Input - Inventory'!E20 -> NonTraffic | F23: ='Input - Inventory'!F20 -> Minor | G23: ='Input - Inventory'!H20 -> 1 | I23: Lamp - LED1x17 | K23: 22.30590748 | L23: 2793 | M23: 62300.3996 | O23: =IF(AND($D23="Lamp", OR($F23=O$9, O$9="All")),IF('Input - Inventory'!G20="N",INDIRECT("PriceBulkTask1" & "FY18"),INDIRECT("PriceBulkTask1LED" & "FY18")),0) -> 24.6719008 | P23: =IF(AND($D23="Lamp",CycleBulkTask1<>0, OR($F23=O$9,O$9="All")),IF('Input - Inventory'!G20="N",1/CycleBulkTask1,1/CycleBulkTask1LED),0) -> 0.1666666667 | Q23: =IF(AND($D23="Lamp", OR($F23=Q$9, Q$9="All")),IF('Input - Inventory'!G20="N",INDIRECT("PriceBulkTask2" & "FY18"),INDIRECT("PriceBulkTask2LED" & "FY18")),0) -> 0 | R23: =IF(AND($D23="Lamp",CycleBulkTask2<>0, OR($F23=Q$9,Q$9="All")),IF('Input - Inventory'!G20="N",1/CycleBulkTask2,1/CycleBulkTask2LED),0) -> 0 | S23: 11.48500442 | T23: 0.007123137293 | U23: 5.574180491 | V23: 0 | W23: 24.13954103 | X23: 0.005931168948 | Y23: 14.46149856 | Z23: 0.02002998353 | AA23: 40.19950453 | AB23: 0.01503682404 | AC23: 8290.488177 | AD23: 6.144166728e-05 | AE23: 5.740486297 | AG23: 0 | AH23: 0.1666666667 | AI23: 49.71973843 | AJ23: 0.007123137293 | AK23: 11.04255977 | AL23: 0 | AM23: 15 | AN23: 0.02096799299 | AO23: 0.6686804178 | AQ23: 85.56283983 | AR23: 0 | AS23: 1.513333333 | AT23: 85.56283983 | AU23: 0.0198285774 | AV23: 1.513333333 | AW23: 85.56283983 | AX23: 0.03256191236 | AY23: 1.513333333 | AZ23: 6.78378768 | BB23: 0 | BC23: 0 | BD23: 11.04255977 | BE23: 0.0198285774 | BF23: 15 | BG23: 0.03256191236 | BH23: 0.7073869364 | BJ23: 32.09162584 | BK23: 0.0792842745 | BL23: 2.544361272 | BN23: =IF($D23="Connection",VLOOKUP(C23,'Input - General'!$F$51:$N$59,3,FALSE),0) -> 0 | BP23: 0.2227618911 | BQ23: 16.4447026 | BR23: 3.663253051 | BT23: 0.109307573 | BU23: 20.10795565 | BV23: 2.19795183
B24: ='Input - Inventory'!B21 -> 13 | C24: ='Input - Inventory'!C21 -> LED1x18 | D24: ='Input - Inventory'!D21 -> Lamp | E24: ='Input - Inventory'!E21 -> NonTraffic | F24: ='Input - Inventory'!F21 -> Minor | G24: ='Input - Inventory'!H21 -> 1 | I24: Lamp - LED1x18 | K24: 22.30590748 | L24: 0 | M24: 0 | O24: =IF(AND($D24="Lamp", OR($F24=O$9, O$9="All")),IF('Input - Inventory'!G21="N",INDIRECT("PriceBulkTask1" & "FY18"),INDIRECT("PriceBulkTask1LED" & "FY18")),0) -> 24.6719008 | P24: =IF(AND($D24="Lamp",CycleBulkTask1<>0, OR($F24=O$9,O$9="All")),IF('Input - Inventory'!G21="N",1/CycleBulkTask1,1/CycleBulkTask1LED),0) -> 0.1666666667 | Q24: =IF(AND($D24="Lamp", OR($F24=Q$9, Q$9="All")),IF('Input - Inventory'!G21="N",INDIRECT("PriceBulkTask2" & "FY18"),INDIRECT("PriceBulkTask2LED" & "FY18")),0) -> 0 | R24: =IF(AND($D24="Lamp",CycleBulkTask2<>0, OR($F24=Q$9,Q$9="All")),IF('Input - Inventory'!G21="N",1/CycleBulkTask2,1/CycleBulkTask2LED),0) -> 0 | S24: 11.48500442 | T24: 0.007123137293 | U24: 5.574180491 | V24: 0 | W24: 24.13954103 | X24: 0.005931168948 | Y24: 14.46149856 | Z24: 0.02002998353 | AA24: 40.19950453 | AB24: 0.01503682404 | AC24: 8290.488177 | AD24: 6.144166728e-05 | AE24: 5.740486297 | AG24: 0 | AH24: 0.1666666667 | AI24: 49.71973843 | AJ24: 0.007123137293 | AK24: 11.04255977 | AL24: 0 | AM24: 15 | AN24: 0.02096799299 | AO24: 0.6686804178 | AQ24: 85.56283983 | AR24: 0 | AS24: 1.513333333 | AT24: 85.56283983 | AU24: 0.0198285774 | AV24: 1.513333333 | AW24: 85.56283983 | AX24: 0.03256191236 | AY24: 1.513333333 | AZ24: 6.78378768 | BB24: 0 | BC24: 0 | BD24: 11.04255977 | BE24: 0.0198285774 | BF24: 15 | BG24: 0.03256191236 | BH24: 0.7073869364 | BJ24: 32.09162584 | BK24: 0.0792842745 | BL24: 2.544361272 | BN24: =IF($D24="Connection",VLOOKUP(C24,'Input - General'!$F$51:$N$59,3,FALSE),0) -> 0 | BP24: 0.2227618911 | BQ24: 16.4447026 | BR24: 3.663253051 | BT24: 0.109307573 | BU24: 20.10795565 | BV24: 2.19795183
B25: ='Input - Inventory'!B22 -> 14 | C25: ='Input - Inventory'!C22 -> LED1x20 | D25: ='Input - Inventory'!D22 -> Lamp | E25: ='Input - Inventory'!E22 -> NonTraffic | F25: ='Input - Inventory'!F22 -> Minor | G25: ='Input - Inventory'!H22 -> 1 | I25: Lamp - LED1x20 | K25: 22.30590748 | L25: 0 | M25: 0 | O25: =IF(AND($D25="Lamp", OR($F25=O$9, O$9="All")),IF('Input - Inventory'!G22="N",INDIRECT("PriceBulkTask1" & "FY18"),INDIRECT("PriceBulkTask1LED" & "FY18")),0) -> 24.6719008 | P25: =IF(AND($D25="Lamp",CycleBulkTask1<>0, OR($F25=O$9,O$9="All")),IF('Input - Inventory'!G22="N",1/CycleBulkTask1,1/CycleBulkTask1LED),0) -> 0.1666666667 | Q25: =IF(AND($D25="Lamp", OR($F25=Q$9, Q$9="All")),IF('Input - Inventory'!G22="N",INDIRECT("PriceBulkTask2" & "FY18"),INDIRECT("PriceBulkTask2LED" & "FY18")),0) -> 0 | R25: =IF(AND($D25="Lamp",CycleBulkTask2<>0, OR($F25=Q$9,Q$9="All")),IF('Input - Inventory'!G22="N",1/CycleBulkTask2,1/CycleBulkTask2LED),0) -> 0 | S25: 11.48500442 | T25: 0.007123137293 | U25: 5.574180491 | V25: 0 | W25: 24.13954103 | X25: 0.005931168948 | Y25: 14.46149856 | Z25: 0.02002998353 | AA25: 40.19950453 | AB25: 0.01503682404 | AC25: 8290.488177 | AD25: 6.144166728e-05 | AE25: 5.740486297 | AG25: 0 | AH25: 0.1666666667 | AI25: 49.71973843 | AJ25: 0.007123137293 | AK25: 11.04255977 | AL25: 0 | AM25: 15 | AN25: 0.02096799299 | AO25: 0.6686804178 | AQ25: 85.56283983 | AR25: 0 | AS25: 1.513333333 | AT25: 85.56283983 | AU25: 0.0198285774 | AV25: 1.513333333 | AW25: 85.56283983 | AX25: 0.03256191236 | AY25: 1.513333333 | AZ25: 6.78378768 | BB25: 0 | BC25: 0 | BD25: 11.04255977 | BE25: 0.0198285774 | BF25: 15 | BG25: 0.03256191236 | BH25: 0.7073869364 | BJ25: 32.09162584 | BK25: 0.0792842745 | BL25: 2.544361272 | BN25: =IF($D25="Connection",VLOOKUP(C25,'Input - General'!$F$51:$N$59,3,FALSE),0) -> 0 | BP25: 0.2227618911 | BQ25: 16.4447026 | BR25: 3.663253051 | BT25: 0.109307573 | BU25: 20.10795565 | BV25: 2.19795183
B26: ='Input - Inventory'!B23 -> 15 | C26: ='Input - Inventory'!C23 -> LED1x200 | D26: ='Input - Inventory'!D23 -> Lamp | E26: ='Input - Inventory'!E23 -> Traffic | F26: ='Input - Inventory'!F23 -> Major | G26: ='Input - Inventory'!H23 -> 1 | I26: Lamp - LED1x200 | K26: 29.55175777 | L26: 14 | M26: 413.7246088 | O26: =IF(AND($D26="Lamp", OR($F26=O$9, O$9="All")),IF('Input - Inventory'!G23="N",INDIRECT("PriceBulkTask1" & "FY18"),INDIRECT("PriceBulkTask1LED" & "FY18")),0) -> 0 | P26: =IF(AND($D26="Lamp",CycleBulkTask1<>0, OR($F26=O$9,O$9="All")),IF('Input - Inventory'!G23="N",1/CycleBulkTask1,1/CycleBulkTask1LED),0) -> 0 | Q26: =IF(AND($D26="Lamp", OR($F26=Q$9, Q$9="All")),IF('Input - Inventory'!G23="N",INDIRECT("PriceBulkTask2" & "FY18"),INDIRECT("PriceBulkTask2LED" & "FY18")),0) -> 28.738834 | R26: =IF(AND($D26="Lamp",CycleBulkTask2<>0, OR($F26=Q$9,Q$9="All")),IF('Input - Inventory'!G23="N",1/CycleBulkTask2,1/CycleBulkTask2LED),0) -> 0.1666666667 | S26: 11.48500442 | T26: 0.007123137293 | U26: 5.574180491 | V26: 0 | W26: 24.13954103 | X26: 0.005931168948 | Y26: 14.46149856 | Z26: 0.02002998353 | AA26: 40.19950453 | AB26: 0.01503682404 | AC26: 8290.488177 | AD26: 6.144166728e-05 | AE26: 6.418308497 | AG26: 0 | AH26: 0.1666666667 | AI26: 49.71973843 | AJ26: 0.007123137293 | AK26: 11.04255977 | AL26: 0 | AM26: 15 | AN26: 0.02096799299 | AO26: 0.6686804178 | AQ26: 85.56283983 | AR26: 0 | AS26: 2.27 | AT26: 85.56283983 | AU26: 0.0198285774 | AV26: 2.27 | AW26: 85.56283983 | AX26: 0.03256191236 | AY26: 2.27 | AZ26: 10.17568152 | BB26: 0 | BC26: 0 | BD26: 11.04255977 | BE26: 0.0198285774 | BF26: 15 | BG26: 0.03256191236 | BH26: 0.7073869364 | BJ26: 32.09162584 | BK26: 0.1189264117 | BL26: 3.816541908 | BN26: =IF($D26="Connection",VLOOKUP(C26,'Input - General'!$F$51:$N$59,3,FALSE),0) -> 0 | BP26: 0.2227618911 | BQ26: 21.78659928 | BR26: 4.853224056 | BT26: 0.109307573 | BU26: 26.63982334 | BV26: 2.911934434
B27: ='Input - Inventory'!B24 -> 16 | C27: ='Input - Inventory'!C24 -> LED1x22 | D27: ='Input - Inventory'!D24 -> Lamp | E27: ='Input - Inventory'!E24 -> NonTraffic | F27: ='Input - Inventory'!F24 -> Minor | G27: ='Input - Inventory'!H24 -> 1 | I27: Lamp - LED1x22 | K27: 22.30590748 | L27: 14394 | M27: 321071.2323 | O27: =IF(AND($D27="Lamp", OR($F27=O$9, O$9="All")),IF('Input - Inventory'!G24="N",INDIRECT("PriceBulkTask1" & "FY18"),INDIRECT("PriceBulkTask1LED" & "FY18")),0) -> 24.6719008 | P27: =IF(AND($D27="Lamp",CycleBulkTask1<>0, OR($F27=O$9,O$9="All")),IF('Input - Inventory'!G24="N",1/CycleBulkTask1,1/CycleBulkTask1LED),0) -> 0.1666666667 | Q27: =IF(AND($D27="Lamp", OR($F27=Q$9, Q$9="All")),IF('Input - Inventory'!G24="N",INDIRECT("PriceBulkTask2" & "FY18"),INDIRECT("PriceBulkTask2LED" & "FY18")),0) -> 0 | R27: =IF(AND($D27="Lamp",CycleBulkTask2<>0, OR($F27=Q$9,Q$9="All")),IF('Input - Inventory'!G24="N",1/CycleBulkTask2,1/CycleBulkTask2LED),0) -> 0 | S27: 11.48500442 | T27: 0.007123137293 | U27: 5.574180491 | V27: 0 | W27: 24.13954103 | X27: 0.005931168948 | Y27: 14.46149856 | Z27: 0.02002998353 | AA27: 40.19950453 | AB27: 0.01503682404 | AC27: 8290.488177 | AD27: 6.144166728e-05 | AE27: 5.740486297 | AG27: 0 | AH27: 0.1666666667 | AI27: 49.71973843 | AJ27: 0.007123137293 | AK27: 11.04255977 | AL27: 0 | AM27: 15 | AN27: 0.02096799299 | AO27: 0.6686804178 | AQ27: 85.56283983 | AR27: 0 | AS27: 1.513333333 | AT27: 85.56283983 | AU27: 0.0198285774 | AV27: 1.513333333 | AW27: 85.56283983 | AX27: 0.03256191236 | AY27: 1.513333333 | AZ27: 6.78378768 | BB27: 0 | BC27: 0 | BD27: 11.04255977 | BE27: 0.0198285774 | BF27: 15 | BG27: 0.03256191236 | BH27: 0.7073869364 | BJ27: 32.09162584 | BK27: 0.0792842745 | BL27: 2.544361272 | BN27: =IF($D27="Connection",VLOOKUP(C27,'Input - General'!$F$51:$N$59,3,FALSE),0) -> 0 | BP27: 0.2227618911 | BQ27: 16.4447026 | BR27: 3.663253051 | BT27: 0.109307573 | BU27: 20.10795565 | BV27: 2.19795183
B28: ='Input - Inventory'!B25 -> 17 | C28: ='Input - Inventory'!C25 -> LED1x25 GE | D28: ='Input - Inventory'!D25 -> Lamp | E28: ='Input - Inventory'!E25 -> NonTraffic | F28: ='Input - Inventory'!F25 -> Minor | G28: ='Input - Inventory'!H25 -> 1 | I28: Lamp - LED1x25 GE | K28: 22.30590748 | L28: 3665 | M28: 81751.15093 | O28: =IF(AND($D28="Lamp", OR($F28=O$9, O$9="All")),IF('Input - Inventory'!G25="N",INDIRECT("PriceBulkTask1" & "FY18"),INDIRECT("PriceBulkTask1LED" & "FY18")),0) -> 24.6719008 | P28: =IF(AND($D28="Lamp",CycleBulkTask1<>0, OR($F28=O$9,O$9="All")),IF('Input - Inventory'!G25="N",1/CycleBulkTask1,1/CycleBulkTask1LED),0) -> 0.1666666667 | Q28: =IF(AND($D28="Lamp", OR($F28=Q$9, Q$9="All")),IF('Input - Inventory'!G25="N",INDIRECT("PriceBulkTask2" & "FY18"),INDIRECT("PriceBulkTask2LED" & "FY18")),0) -> 0 | R28: =IF(AND($D28="Lamp",CycleBulkTask2<>0, OR($F28=Q$9,Q$9="All")),IF('Input - Inventory'!G25="N",1/CycleBulkTask2,1/CycleBulkTask2LED),0) -> 0 | S28: 11.48500442 | T28: 0.007123137293 | U28: 5.574180491 | V28: 0 | W28: 24.13954103 | X28: 0.005931168948 | Y28: 14.46149856 | Z28: 0.02002998353 | AA28: 40.19950453 | AB28: 0.01503682404 | AC28: 8290.488177 | AD28: 6.144166728e-05 | AE28: 5.740486297 | AG28: 0 | AH28: 0.1666666667 | AI28: 49.71973843 | AJ28: 0.007123137293 | AK28: 11.04255977 | AL28: 0 | AM28: 15 | AN28: 0.02096799299 | AO28: 0.6686804178 | AQ28: 85.56283983 | AR28: 0 | AS28: 1.513333333 | AT28: 85.56283983 | AU28: 0.0198285774 | AV28: 1.513333333 | AW28: 85.56283983 | AX28: 0.03256191236 | AY28: 1.513333333 | AZ28: 6.78378768 | BB28: 0 | BC28: 0 | BD28: 11.04255977 | BE28: 0.0198285774 | BF28: 15 | BG28: 0.03256191236 | BH28: 0.7073869364 | BJ28: 32.09162584 | BK28: 0.0792842745 | BL28: 2.544361272 | BN28: =IF($D28="Connection",VLOOKUP(C28,'Input - General'!$F$51:$N$59,3,FALSE),0) -> 0 | BP28: 0.2227618911 | BQ28: 16.4447026 | BR28: 3.663253051 | BT28: 0.109307573 | BU28: 20.10795565 | BV28: 2.19795183
B29: ='Input - Inventory'!B26 -> 18 | C29: ='Input - Inventory'!C26 -> LED1x28 | D29: ='Input - Inventory'!D26 -> Lamp | E29: ='Input - Inventory'!E26 -> NonTraffic | F29: ='Input - Inventory'!F26 -> Minor | G29: ='Input - Inventory'!H26 -> 1 | I29: Lamp - LED1x28 | K29: 22.30590748 | L29: 0 | M29: 0 | O29: =IF(AND($D29="Lamp", OR($F29=O$9, O$9="All")),IF('Input - Inventory'!G26="N",INDIRECT("PriceBulkTask1" & "FY18"),INDIRECT("PriceBulkTask1LED" & "FY18")),0) -> 24.6719008 | P29: =IF(AND($D29="Lamp",CycleBulkTask1<>0, OR($F29=O$9,O$9="All")),IF('Input - Inventory'!G26="N",1/CycleBulkTask1,1/CycleBulkTask1LED),0) -> 0.1666666667 | Q29: =IF(AND($D29="Lamp", OR($F29=Q$9, Q$9="All")),IF('Input - Inventory'!G26="N",INDIRECT("PriceBulkTask2" & "FY18"),INDIRECT("PriceBulkTask2LED" & "FY18")),0) -> 0 | R29: =IF(AND($D29="Lamp",CycleBulkTask2<>0, OR($F29=Q$9,Q$9="All")),IF('Input - Inventory'!G26="N",1/CycleBulkTask2,1/CycleBulkTask2LED),0) -> 0 | S29: 11.48500442 | T29: 0.007123137293 | U29: 5.574180491 | V29: 0 | W29: 24.13954103 | X29: 0.005931168948 | Y29: 14.46149856 | Z29: 0.02002998353 | AA29: 40.19950453 | AB29: 0.01503682404 | AC29: 8290.488177 | AD29: 6.144166728e-05 | AE29: 5.740486297 | AG29: 0 | AH29: 0.1666666667 | AI29: 49.71973843 | AJ29: 0.007123137293 | AK29: 11.04255977 | AL29: 0 | AM29: 15 | AN29: 0.02096799299 | AO29: 0.6686804178 | AQ29: 85.56283983 | AR29: 0 | AS29: 1.513333333 | AT29: 85.56283983 | AU29: 0.0198285774 | AV29: 1.513333333 | AW29: 85.56283983 | AX29: 0.03256191236 | AY29: 1.513333333 | AZ29: 6.78378768 | BB29: 0 | BC29: 0 | BD29: 11.04255977 | BE29: 0.0198285774 | BF29: 15 | BG29: 0.03256191236 | BH29: 0.7073869364 | BJ29: 32.09162584 | BK29: 0.0792842745 | BL29: 2.544361272 | BN29: =IF($D29="Connection",VLOOKUP(C29,'Input - General'!$F$51:$N$59,3,FALSE),0) -> 0 | BP29: 0.2227618911 | BQ29: 16.4447026 | BR29: 3.663253051 | BT29: 0.109307573 | BU29: 20.10795565 | BV29: 2.19795183
B30: ='Input - Inventory'!B27 -> 19 | C30: ='Input - Inventory'!C27 -> LED1x29 | D30: ='Input - Inventory'!D27 -> Lamp | E30: ='Input - Inventory'!E27 -> NonTraffic | F30: ='Input - Inventory'!F27 -> Minor | G30: ='Input - Inventory'!H27 -> 1 | I30: Lamp - LED1x29 | K30: 22.30590748 | L30: 15545 | M30: 346745.3318 | O30: =IF(AND($D30="Lamp", OR($F30=O$9, O$9="All")),IF('Input - Inventory'!G27="N",INDIRECT("PriceBulkTask1" & "FY18"),INDIRECT("PriceBulkTask1LED" & "FY18")),0) -> 24.6719008 | P30: =IF(AND($D30="Lamp",CycleBulkTask1<>0, OR($F30=O$9,O$9="All")),IF('Input - Inventory'!G27="N",1/CycleBulkTask1,1/CycleBulkTask1LED),0) -> 0.1666666667 | Q30: =IF(AND($D30="Lamp", OR($F30=Q$9, Q$9="All")),IF('Input - Inventory'!G27="N",INDIRECT("PriceBulkTask2" & "FY18"),INDIRECT("PriceBulkTask2LED" & "FY18")),0) -> 0 | R30: =IF(AND($D30="Lamp",CycleBulkTask2<>0, OR($F30=Q$9,Q$9="All")),IF('Input - Inventory'!G27="N",1/CycleBulkTask2,1/CycleBulkTask2LED),0) -> 0 | S30: 11.48500442 | T30: 0.007123137293 | U30: 5.574180491 | V30: 0 | W30: 24.13954103 | X30: 0.005931168948 | Y30: 14.46149856 | Z30: 0.02002998353 | AA30: 40.19950453 | AB30: 0.01503682404 | AC30: 8290.488177 | AD30: 6.144166728e-05 | AE30: 5.740486297 | AG30: 0 | AH30: 0.1666666667 | AI30: 49.71973843 | AJ30: 0.007123137293 | AK30: 11.04255977 | AL30: 0 | AM30: 15 | AN30: 0.02096799299 | AO30: 0.6686804178 | AQ30: 85.56283983 | AR30: 0 | AS30: 1.513333333 | AT30: 85.56283983 | AU30: 0.0198285774 | AV30: 1.513333333 | AW30: 85.56283983 | AX30: 0.03256191236 | AY30: 1.513333333 | AZ30: 6.78378768 | BB30: 0 | BC30: 0 | BD30: 11.04255977 | BE30: 0.0198285774 | BF30: 15 | BG30: 0.03256191236 | BH30: 0.7073869364 | BJ30: 32.09162584 | BK30: 0.0792842745 | BL30: 2.544361272 | BN30: =IF($D30="Connection",VLOOKUP(C30,'Input - General'!$F$51:$N$59,3,FALSE),0) -> 0 | BP30: 0.2227618911 | BQ30: 16.4447026 | BR30: 3.663253051 | BT30: 0.109307573 | BU30: 20.10795565 | BV30: 2.19795183
B31: ='Input - Inventory'!B28 -> 20 | C31: ='Input - Inventory'!C28 -> LED1x298 | D31: ='Input - Inventory'!D28 -> Lamp | E31: ='Input - Inventory'!E28 -> Traffic | F31: ='Input - Inventory'!F28 -> Major | G31: ='Input - Inventory'!H28 -> 1 | I31: Lamp - LED1x298 | K31: 29.55175777 | L31: 0 | M31: =L31*K31 -> 0 | O31: =IF(AND($D31="Lamp", OR($F31=O$9, O$9="All")),IF('Input - Inventory'!G28="N",INDIRECT("PriceBulkTask1" & "FY18"),INDIRECT("PriceBulkTask1LED" & "FY18")),0) -> 0 | P31: =IF(AND($D31="Lamp",CycleBulkTask1<>0, OR($F31=O$9,O$9="All")),IF('Input - Inventory'!G28="N",1/CycleBulkTask1,1/CycleBulkTask1LED),0) -> 0 | Q31: =IF(AND($D31="Lamp", OR($F31=Q$9, Q$9="All")),IF('Input - Inventory'!G28="N",INDIRECT("PriceBulkTask2" & "FY18"),INDIRECT("PriceBulkTask2LED" & "FY18")),0) -> 28.738834 | R31: =IF(AND($D31="Lamp",CycleBulkTask2<>0, OR($F31=Q$9,Q$9="All")),IF('Input - Inventory'!G28="N",1/CycleBulkTask2,1/CycleBulkTask2LED),0) -> 0.1666666667 | S31: 11.48500442 | T31: =IF(AND($D31="Lamp",CycleBulkTask3<>0, OR($F31=S$9,S$9="All")),1/CycleBulkTask3,0) -> 0.007123137293 | U31: 5.574180491 | V31: =IF(AND($D31="Lamp",CycleBulkTask4<>0, OR($F31=U$9,U$9="All")),1/CycleBulkTask4,0) -> 0 | W31: 24.13954103 | X31: =IF(AND($D31="Lamp",CycleBulkTask5<>0, OR($F31=W$9,W$9="All")),1/CycleBulkTask5,0) -> 0.005931168948 | Y31: 14.46149856 | Z31: =IF(AND($D31="Lamp",CycleBulkTask6<>0, OR($F31=Y$9,Y$9="All")),1/CycleBulkTask6,0) -> 0.02002998353 | AA31: 40.19950453 | AB31: =IF(AND($D31="Lamp",CycleBulkTask7<>0, OR($F31=AA$9,AA$9="All")),1/CycleBulkTask7,0) -> 0.01503682404 | AC31: 8290.488177 | AD31: =IF(AND($D31="Lamp",CycleBulkTask8<>0, OR($F31=AC$9,AC$9="All")),1/CycleBulkTask8,0) -> 6.144166728e-05 | AE31: 6.418308497 | AG31: 0 | AH31: 0.1666666667 | AI31: 49.71973843 | AJ31: 0.007123137293 | AK31: 11.04255977 | AL31: 0 | AM31: 15 | AN31: 0.02096799299 | AO31: =AG31*AH31+AI31*AJ31+AK31*AL31+AM31*AN31 -> 0.6686804178 | AQ31: 85.56283983 | AR31: =BC31 -> 0 | AS31: =IF($D31="Lamp",(NumberOfCrew+INDIRECT($E31)*TrafficController)*(TimeToReplaceLamp),0) -> 2.27 | AT31: 85.56283983 | AU31: =BE31 -> 0.0198285774 | AV31: =IF($D31="Lamp",(NumberOfCrew+INDIRECT($E31)*TrafficController)*(TimeForPECellReplace),0) -> 2.27 | AW31: 85.56283983 | AX31: =BG31 -> 0.03256191236 | AY31: =IF($D31="Lamp",(NumberOfCrew+INDIRECT($E31)*TrafficController)*(TimeForOtherSpot),0) -> 2.27 | AZ31: =AQ31*AR31*AS31+AT31*AU31*AV31+AW31*AX31*AY31 -> 10.17568152 | BB31: 0 | BC31: =IF($D31="Lamp",INDIRECT(BC$10 & $B31),0) -> 0 | BD31: 11.04255977 | BE31: =IF($D31="Lamp",INDIRECT("FailurePECell" & "Annual"),0) -> 0.0198285774 | BF31: 15 | BG31: =IF($D31="Lamp",INDIRECT("FailureMisc" & "Annual"),0) -> 0.03256191236 | BH31: =BB31*BC31+BD31*BE31+BF31*BG31 -> 0.7073869364 | BJ31: 32.09162584 | BK31: =AR31*AS31+AU31*AV31+AX31*AY31 -> 0.1189264117 | BL31: =BJ31*BK31 -> 3.816541908 | BN31: =IF($D31="Connection",VLOOKUP(C31,'Input - General'!$F$51:$N$59,3,FALSE),0) -> 0 | BP31: =RateOverhead -> 0.2227618911 | BQ31: =BL31+AZ31+BH31+AO31+AE31+BN31 -> 21.78659928 | BR31: =BQ31*BP31 -> 4.853224056 | BT31: =CorporateOverheads -> 0.109307573 | BU31: 26.63982334 | BV31: =BU31*BT31 -> 2.911934434
B32: ='Input - Inventory'!B29 -> 21 | C32: ='Input - Inventory'!C29 -> LED1x33 | D32: ='Input - Inventory'!D29 -> Lamp | E32: ='Input - Inventory'!E29 -> NonTraffic | F32: ='Input - Inventory'!F29 -> Minor | G32: ='Input - Inventory'!H29 -> 1 | I32: =CONCATENATE(D32," - ",C32) -> Lamp - LED1x33 | K32: =AE32+AO32+AZ32+BH32+BL32+BN32+BR32+BV32 -> 22.30590748 | L32: 0 | M32: 0 | O32: =IF(AND($D32="Lamp", OR($F32=O$9, O$9="All")),IF('Input - Inventory'!G29="N",INDIRECT("PriceBulkTask1" & "FY18"),INDIRECT("PriceBulkTask1LED" & "FY18")),0) -> 24.6719008 | P32: =IF(AND($D32="Lamp",CycleBulkTask1<>0, OR($F32=O$9,O$9="All")),IF('Input - Inventory'!G29="N",1/CycleBulkTask1,1/CycleBulkTask1LED),0) -> 0.1666666667 | Q32: =IF(AND($D32="Lamp", OR($F32=Q$9, Q$9="All")),IF('Input - Inventory'!G29="N",INDIRECT("PriceBulkTask2" & "FY18"),INDIRECT("PriceBulkTask2LED" & "FY18")),0) -> 0 | R32: =IF(AND($D32="Lamp",CycleBulkTask2<>0, OR($F32=Q$9,Q$9="All")),IF('Input - Inventory'!G29="N",1/CycleBulkTask2,1/CycleBulkTask2LED),0) -> 0 | S32: 11.48500442 | T32: 0.007123137293 | U32: 5.574180491 | V32: 0 | W32: 24.13954103 | X32: 0.005931168948 | Y32: 14.46149856 | Z32: 0.02002998353 | AA32: 40.19950453 | AB32: 0.01503682404 | AC32: 8290.488177 | AD32: 6.144166728e-05 | AE32: 5.740486297 | AG32: 0 | AH32: 0.1666666667 | AI32: 49.71973843 | AJ32: 0.007123137293 | AK32: 11.04255977 | AL32: 0 | AM32: 15 | AN32: 0.02096799299 | AO32: 0.6686804178 | AQ32: 85.56283983 | AR32: 0 | AS32: 1.513333333 | AT32: 85.56283983 | AU32: 0.0198285774 | AV32: 1.513333333 | AW32: 85.56283983 | AX32: 0.03256191236 | AY32: 1.513333333 | AZ32: 6.78378768 | BB32: 0 | BC32: 0 | BD32: 11.04255977 | BE32: 0.0198285774 | BF32: 15 | BG32: 0.03256191236 | BH32: 0.7073869364 | BJ32: 32.09162584 | BK32: 0.0792842745 | BL32: 2.544361272 | BN32: =IF($D32="Connection",VLOOKUP(C32,'Input - General'!$F$51:$N$59,3,FALSE),0) -> 0 | BP32: 0.2227618911 | BQ32: 16.4447026 | BR32: 3.663253051 | BT32: 0.109307573 | BU32: =AE32+AO32+AZ32+BH32+BL32+BN32+BR32 -> 20.10795565 | BV32: 2.19795183
B33: ='Input - Inventory'!B30 -> 22 | C33: ='Input - Inventory'!C30 -> LED1x42 | D33: ='Input - Inventory'!D30 -> Lamp | E33: ='Input - Inventory'!E30 -> NonTraffic | F33: ='Input - Inventory'!F30 -> Minor | G33: ='Input - Inventory'!H30 -> 1 | I33: Lamp - LED1x42 | K33: 22.30590748 | L33: 17 | M33: 379.2004272 | O33: =IF(AND($D33="Lamp", OR($F33=O$9, O$9="All")),IF('Input - Inventory'!G30="N",INDIRECT("PriceBulkTask1" & "FY18"),INDIRECT("PriceBulkTask1LED" & "FY18")),0) -> 24.6719008 | P33: =IF(AND($D33="Lamp",CycleBulkTask1<>0, OR($F33=O$9,O$9="All")),IF('Input - Inventory'!G30="N",1/CycleBulkTask1,1/CycleBulkTask1LED),0) -> 0.1666666667 | Q33: =IF(AND($D33="Lamp", OR($F33=Q$9, Q$9="All")),IF('Input - Inventory'!G30="N",INDIRECT("PriceBulkTask2" & "FY18"),INDIRECT("PriceBulkTask2LED" & "FY18")),0) -> 0 | R33: =IF(AND($D33="Lamp",CycleBulkTask2<>0, OR($F33=Q$9,Q$9="All")),IF('Input - Inventory'!G30="N",1/CycleBulkTask2,1/CycleBulkTask2LED),0) -> 0 | S33: 11.48500442 | T33: 0.007123137293 | U33: 5.574180491 | V33: 0 | W33: 24.13954103 | X33: 0.005931168948 | Y33: 14.46149856 | Z33: 0.02002998353 | AA33: 40.19950453 | AB33: 0.01503682404 | AC33: 8290.488177 | AD33: 6.144166728e-05 | AE33: 5.740486297 | AG33: 0 | AH33: 0.1666666667 | AI33: 49.71973843 | AJ33: 0.007123137293 | AK33: 11.04255977 | AL33: 0 | AM33: 15 | AN33: 0.02096799299 | AO33: 0.6686804178 | AQ33: 85.56283983 | AR33: 0 | AS33: 1.513333333 | AT33: 85.56283983 | AU33: 0.0198285774 | AV33: 1.513333333 | AW33: 85.56283983 | AX33: 0.03256191236 | AY33: 1.513333333 | AZ33: 6.78378768 | BB33: 0 | BC33: 0 | BD33: 11.04255977 | BE33: 0.0198285774 | BF33: 15 | BG33: 0.03256191236 | BH33: 0.7073869364 | BJ33: 32.09162584 | BK33: 0.0792842745 | BL33: 2.544361272 | BN33: =IF($D33="Connection",VLOOKUP(C33,'Input - General'!$F$51:$N$59,3,FALSE),0) -> 0 | BP33: 0.2227618911 | BQ33: 16.4447026 | BR33: 3.663253051 | BT33: 0.109307573 | BU33: 20.10795565 | BV33: 2.19795183
B34: ='Input - Inventory'!B31 -> 23 | C34: ='Input - Inventory'!C31 -> MBF1x1000 | D34: ='Input - Inventory'!D31 -> Lamp | E34: ='Input - Inventory'!E31 -> Traffic | F34: ='Input - Inventory'!F31 -> Major | G34: ='Input - Inventory'!H31 -> 1 | I34: Lamp - MBF1x1000 | K34: 134.9721832 | L34: 6 | M34: 809.8330991 | O34: =IF(AND($D34="Lamp", OR($F34=O$9, O$9="All")),IF('Input - Inventory'!G31="N",INDIRECT("PriceBulkTask1" & "FY18"),INDIRECT("PriceBulkTask1LED" & "FY18")),0) -> 0 | P34: =IF(AND($D34="Lamp",CycleBulkTask1<>0, OR($F34=O$9,O$9="All")),IF('Input - Inventory'!G31="N",1/CycleBulkTask1,1/CycleBulkTask1LED),0) -> 0 | Q34: =IF(AND($D34="Lamp", OR($F34=Q$9, Q$9="All")),IF('Input - Inventory'!G31="N",INDIRECT("PriceBulkTask2" & "FY18"),INDIRECT("PriceBulkTask2LED" & "FY18")),0) -> 28.738834 | R34: =IF(AND($D34="Lamp",CycleBulkTask2<>0, OR($F34=Q$9,Q$9="All")),IF('Input - Inventory'!G31="N",1/CycleBulkTask2,1/CycleBulkTask2LED),0) -> 0.25 | S34: 11.48500442 | T34: 0.007123137293 | U34: 5.574180491 | V34: 0 | W34: 24.13954103 | X34: 0.005931168948 | Y34: 14.46149856 | Z34: 0.02002998353 | AA34: 40.19950453 | AB34: 0.01503682404 | AC34: 8290.488177 | AD34: 6.144166728e-05 | AE34: 8.81321133 | AG34: 27.8 | AH34: 0.25 | AI34: 49.71973843 | AJ34: 0.007123137293 | AK34: 11.04255977 | AL34: 0 | AM34: 15 | AN34: 0.02096799299 | AO34: 7.618680418 | AQ34: 85.56283983 | AR34: 0.2318765897 | AS34: 2.27 | AT34: 85.56283983 | AU34: 0.0198285774 | AV34: 2.27 | AW34: 85.56283983 | AX34: 0.03256191236 | AY34: 2.27 | AZ34: 55.21252579 | BB34: 27.8 | BC34: 0.2318765897 | BD34: 11.04255977 | BE34: 0.0198285774 | BF34: 15 | BG34: 0.03256191236 | BH34: 7.153556129 | BJ34: 32.09162584 | BK34: 0.6452862703 | BL34: 20.70828554 | BN34: =IF($D34="Connection",VLOOKUP(C34,'Input - General'!$F$51:$N$59,3,FALSE),0) -> 0 | BP34: 0.2227618911 | BQ34: 99.50625921 | BR34: 22.16620248 | BT34: 0.109307573 | BU34: 121.6724617 | BV34: 13.29972149
B35: ='Input - Inventory'!B32 -> 24 | C35: ='Input - Inventory'!C32 -> MBF1x125 | D35: ='Input - Inventory'!D32 -> Lamp | E35: ='Input - Inventory'!E32 -> NonTraffic | F35: ='Input - Inventory'!F32 -> Minor | G35: ='Input - Inventory'!H32 -> 1 | I35: Lamp - MBF1x125 | K35: 46.6351741 | L35: 4462 | M35: 208086.1468 | O35: =IF(AND($D35="Lamp", OR($F35=O$9, O$9="All")),IF('Input - Inventory'!G32="N",INDIRECT("PriceBulkTask1" & "FY18"),INDIRECT("PriceBulkTask1LED" & "FY18")),0) -> 24.6719008 | P35: =IF(AND($D35="Lamp",CycleBulkTask1<>0, OR($F35=O$9,O$9="All")),IF('Input - Inventory'!G32="N",1/CycleBulkTask1,1/CycleBulkTask1LED),0) -> 0.25 | Q35: =IF(AND($D35="Lamp", OR($F35=Q$9, Q$9="All")),IF('Input - Inventory'!G32="N",INDIRECT("PriceBulkTask2" & "FY18"),INDIRECT("PriceBulkTask2LED" & "FY18")),0) -> 0 | R35: =IF(AND($D35="Lamp",CycleBulkTask2<>0, OR($F35=Q$9,Q$9="All")),IF('Input - Inventory'!G32="N",1/CycleBulkTask2,1/CycleBulkTask2LED),0) -> 0 | S35: 11.48500442 | T35: 0.007123137293 | U35: 5.574180491 | V35: 0 | W35: 24.13954103 | X35: 0.005931168948 | Y35: 14.46149856 | Z35: 0.02002998353 | AA35: 40.19950453 | AB35: 0.01503682404 | AC35: 8290.488177 | AD35: 6.144166728e-05 | AE35: 7.79647803 | AG35: 5.1 | AH35: 0.25 | AI35: 49.71973843 | AJ35: 0.007123137293 | AK35: 11.04255977 | AL35: 0 | AM35: 15 | AN35: 0.02096799299 | AO35: 1.943680418 | AQ35: 85.56283983 | AR35: 0.07974539338 | AS35: 1.513333333 | AT35: 85.56283983 | AU35: 0.0198285774 | AV35: 1.513333333 | AW35: 85.56283983 | AX35: 0.03256191236 | AY35: 1.513333333 | AZ35: 17.10962773 | BB35: 5.1 | BC35: 0.07974539338 | BD35: 11.04255977 | BE35: 0.0198285774 | BF35: 15 | BG35: 0.03256191236 | BH35: 1.114088443 | BJ35: 32.09162584 | BK35: 0.1999656365 | BL35: 6.417222386 | BN35: =IF($D35="Connection",VLOOKUP(C35,'Input - General'!$F$51:$N$59,3,FALSE),0) -> 0 | BP35: 0.2227618911 | BQ35: 34.381097 | BR35: 7.658798187 | BT35: 0.109307573 | BU35: 42.03989519 | BV35: 4.595278912
B36: ='Input - Inventory'!B33 -> 25 | C36: ='Input - Inventory'!C33 -> MBF1x250 | D36: ='Input - Inventory'!D33 -> Lamp | E36: ='Input - Inventory'!E33 -> Traffic | F36: ='Input - Inventory'!F33 -> Major | G36: ='Input - Inventory'!H33 -> 1 | I36: Lamp - MBF1x250 | K36: 120.3963106 | L36: 15031 | M36: 1809676.944 | O36: =IF(AND($D36="Lamp", OR($F36=O$9, O$9="All")),IF('Input - Inventory'!G33="N",INDIRECT("PriceBulkTask1" & "FY18"),INDIRECT("PriceBulkTask1LED" & "FY18")),0) -> 0 | P36: =IF(AND($D36="Lamp",CycleBulkTask1<>0, OR($F36=O$9,O$9="All")),IF('Input - Inventory'!G33="N",1/CycleBulkTask1,1/CycleBulkTask1LED),0) -> 0 | Q36: =IF(AND($D36="Lamp", OR($F36=Q$9, Q$9="All")),IF('Input - Inventory'!G33="N",INDIRECT("PriceBulkTask2" & "FY18"),INDIRECT("PriceBulkTask2LED" & "FY18")),0) -> 28.738834 | R36: =IF(AND($D36="Lamp",CycleBulkTask2<>0, OR($F36=Q$9,Q$9="All")),IF('Input - Inventory'!G33="N",1/CycleBulkTask2,1/CycleBulkTask2LED),0) -> 0.25 | S36: 11.48500442 | T36: 0.007123137293 | U36: 5.574180491 | V36: 0 | W36: 24.13954103 | X36: 0.005931168948 | Y36: 14.46149856 | Z36: 0.02002998353 | AA36: 40.19950453 | AB36: 0.01503682404 | AC36: 8290.488177 | AD36: 6.144166728e-05 | AE36: 8.81321133 | AG36: 5.5 | AH36: 0.25 | AI36: 49.71973843 | AJ36: 0.007123137293 | AK36: 11.04255977 | AL36: 0 | AM36: 15 | AN36: 0.02096799299 | AO36: 2.043680418 | AQ36: 85.56283983 | AR36: 0.2318765897 | AS36: 2.27 | AT36: 85.56283983 | AU36: 0.0198285774 | AV36: 2.27 | AW36: 85.56283983 | AX36: 0.03256191236 | AY36: 2.27 | AZ36: 55.21252579 | BB36: 5.5 | BC36: 0.2318765897 | BD36: 11.04255977 | BE36: 0.0198285774 | BF36: 15 | BG36: 0.03256191236 | BH36: 1.982708179 | BJ36: 32.09162584 | BK36: 0.6452862703 | BL36: 20.70828554 | BN36: =IF($D36="Connection",VLOOKUP(C36,'Input - General'!$F$51:$N$59,3,FALSE),0) -> 0 | BP36: 0.2227618911 | BQ36: 88.76041126 | BR36: 19.77243707 | BT36: 0.109307573 | BU36: 108.5328483 | BV36: 11.86346224
B37: ='Input - Inventory'!B34 -> 26 | C37: ='Input - Inventory'!C34 -> MBF1x400 | D37: ='Input - Inventory'!D34 -> Lamp | E37: ='Input - Inventory'!E34 -> Traffic | F37: ='Input - Inventory'!F34 -> Major | G37: ='Input - Inventory'!H34 -> 1 | I37: Lamp - MBF1x400 | K37: 120.3963106 | L37: 5491 | M37: 661096.1413 | O37: =IF(AND($D37="Lamp", OR($F37=O$9, O$9="All")),IF('Input - Inventory'!G34="N",INDIRECT("PriceBulkTask1" & "FY18"),INDIRECT("PriceBulkTask1LED" & "FY18")),0) -> 0 | P37: =IF(AND($D37="Lamp",CycleBulkTask1<>0, OR($F37=O$9,O$9="All")),IF('Input - Inventory'!G34="N",1/CycleBulkTask1,1/CycleBulkTask1LED),0) -> 0 | Q37: =IF(AND($D37="Lamp", OR($F37=Q$9, Q$9="All")),IF('Input - Inventory'!G34="N",INDIRECT("PriceBulkTask2" & "FY18"),INDIRECT("PriceBulkTask2LED" & "FY18")),0) -> 28.738834 | R37: =IF(AND($D37="Lamp",CycleBulkTask2<>0, OR($F37=Q$9,Q$9="All")),IF('Input - Inventory'!G34="N",1/CycleBulkTask2,1/CycleBulkTask2LED),0) -> 0.25 | S37: 11.48500442 | T37: 0.007123137293 | U37: 5.574180491 | V37: 0 | W37: 24.13954103 | X37: 0.005931168948 | Y37: 14.46149856 | Z37: 0.02002998353 | AA37: 40.19950453 | AB37: 0.01503682404 | AC37: 8290.488177 | AD37: 6.144166728e-05 | AE37: 8.81321133 | AG37: 5.5 | AH37: 0.25 | AI37: 49.71973843 | AJ37: 0.007123137293 | AK37: 11.04255977 | AL37: 0 | AM37: 15 | AN37: 0.02096799299 | AO37: 2.043680418 | AQ37: 85.56283983 | AR37: 0.2318765897 | AS37: 2.27 | AT37: 85.56283983 | AU37: 0.0198285774 | AV37: 2.27 | AW37: 85.56283983 | AX37: 0.03256191236 | AY37: 2.27 | AZ37: 55.21252579 | BB37: 5.5 | BC37: 0.2318765897 | BD37: 11.04255977 | BE37: 0.0198285774 | BF37: 15 | BG37: 0.03256191236 | BH37: 1.982708179 | BJ37: 32.09162584 | BK37: 0.6452862703 | BL37: 20.70828554 | BN37: =IF($D37="Connection",VLOOKUP(C37,'Input - General'!$F$51:$N$59,3,FALSE),0) -> 0 | BP37: 0.2227618911 | BQ37: 88.76041126 | BR37: 19.77243707 | BT37: 0.109307573 | BU37: 108.5328483 | BV37: 11.86346224
B38: ='Input - Inventory'!B35 -> 27 | C38: ='Input - Inventory'!C35 -> MBF1x42 | D38: ='Input - Inventory'!D35 -> Lamp | E38: ='Input - Inventory'!E35 -> NonTraffic | F38: ='Input - Inventory'!F35 -> Minor | G38: ='Input - Inventory'!H35 -> 1 | I38: Lamp - MBF1x42 | K38: 48.28491956 | L38: 42152 | M38: 2035305.929 | O38: =IF(AND($D38="Lamp", OR($F38=O$9, O$9="All")),IF('Input - Inventory'!G35="N",INDIRECT("PriceBulkTask1" & "FY18"),INDIRECT("PriceBulkTask1LED" & "FY18")),0) -> 24.6719008 | P38: =IF(AND($D38="Lamp",CycleBulkTask1<>0, OR($F38=O$9,O$9="All")),IF('Input - Inventory'!G35="N",1/CycleBulkTask1,1/CycleBulkTask1LED),0) -> 0.25 | Q38: =IF(AND($D38="Lamp", OR($F38=Q$9, Q$9="All")),IF('Input - Inventory'!G35="N",INDIRECT("PriceBulkTask2" & "FY18"),INDIRECT("PriceBulkTask2LED" & "FY18")),0) -> 0 | R38: =IF(AND($D38="Lamp",CycleBulkTask2<>0, OR($F38=Q$9,Q$9="All")),IF('Input - Inventory'!G35="N",1/CycleBulkTask2,1/CycleBulkTask2LED),0) -> 0 | S38: 11.48500442 | T38: 0.007123137293 | U38: 5.574180491 | V38: 0 | W38: 24.13954103 | X38: 0.005931168948 | Y38: 14.46149856 | Z38: 0.02002998353 | AA38: 40.19950453 | AB38: 0.01503682404 | AC38: 8290.488177 | AD38: 6.144166728e-05 | AE38: 7.79647803 | AG38: 3.1 | AH38: 0.25 | AI38: 49.71973843 | AJ38: 0.007123137293 | AK38: 11.04255977 | AL38: 0 | AM38: 15 | AN38: 0.02096799299 | AO38: 1.443680418 | AQ38: 85.56283983 | AR38: 0.0901 | AS38: 1.513333333 | AT38: 85.56283983 | AU38: 0.0198285774 | AV38: 1.513333333 | AW38: 85.56283983 | AX38: 0.03256191236 | AY38: 1.513333333 | AZ38: 18.45039498 | BB38: 3.1 | BC38: 0.0901 | BD38: 11.04255977 | BE38: 0.0198285774 | BF38: 15 | BG38: 0.03256191236 | BH38: 0.9866969364 | BJ38: 32.09162584 | BK38: 0.2156356078 | BL38: 6.920097243 | BN38: =IF($D38="Connection",VLOOKUP(C38,'Input - General'!$F$51:$N$59,3,FALSE),0) -> 0 | BP38: 0.2227618911 | BQ38: 35.5973476 | BR38: 7.929732471 | BT38: 0.109307573 | BU38: 43.52708007 | BV38: 4.757839482
B39: ='Input - Inventory'!B36 -> 28 | C39: ='Input - Inventory'!C36 -> MBF1x50 | D39: ='Input - Inventory'!D36 -> Lamp | E39: ='Input - Inventory'!E36 -> NonTraffic | F39: ='Input - Inventory'!F36 -> Minor | G39: ='Input - Inventory'!H36 -> 1 | I39: Lamp - MBF1x50 | K39: 46.79171963 | L39: 9467 | M39: 442977.2097 | O39: =IF(AND($D39="Lamp", OR($F39=O$9, O$9="All")),IF('Input - Inventory'!G36="N",INDIRECT("PriceBulkTask1" & "FY18"),INDIRECT("PriceBulkTask1LED" & "FY18")),0) -> 24.6719008 | P39: =IF(AND($D39="Lamp",CycleBulkTask1<>0, OR($F39=O$9,O$9="All")),IF('Input - Inventory'!G36="N",1/CycleBulkTask1,1/CycleBulkTask1LED),0) -> 0.25 | Q39: =IF(AND($D39="Lamp", OR($F39=Q$9, Q$9="All")),IF('Input - Inventory'!G36="N",INDIRECT("PriceBulkTask2" & "FY18"),INDIRECT("PriceBulkTask2LED" & "FY18")),0) -> 0 | R39: =IF(AND($D39="Lamp",CycleBulkTask2<>0, OR($F39=Q$9,Q$9="All")),IF('Input - Inventory'!G36="N",1/CycleBulkTask2,1/CycleBulkTask2LED),0) -> 0 | S39: 11.48500442 | T39: 0.007123137293 | U39: 5.574180491 | V39: 0 | W39: 24.13954103 | X39: 0.005931168948 | Y39: 14.46149856 | Z39: 0.02002998353 | AA39: 40.19950453 | AB39: 0.01503682404 | AC39: 8290.488177 | AD39: 6.144166728e-05 | AE39: 7.79647803 | AG39: 5.45 | AH39: 0.25 | AI39: 49.71973843 | AJ39: 0.007123137293 | AK39: 11.04255977 | AL39: 0 | AM39: 15 | AN39: 0.02096799299 | AO39: 2.031180418 | AQ39: 85.56283983 | AR39: 0.07974539338 | AS39: 1.513333333 | AT39: 85.56283983 | AU39: 0.0198285774 | AV39: 1.513333333 | AW39: 85.56283983 | AX39: 0.03256191236 | AY39: 1.513333333 | AZ39: 17.10962773 | BB39: 5.45 | BC39: 0.07974539338 | BD39: 11.04255977 | BE39: 0.0198285774 | BF39: 15 | BG39: 0.03256191236 | BH39: 1.14199933 | BJ39: 32.09162584 | BK39: 0.1999656365 | BL39: 6.417222386 | BN39: =IF($D39="Connection",VLOOKUP(C39,'Input - General'!$F$51:$N$59,3,FALSE),0) -> 0 | BP39: 0.2227618911 | BQ39: 34.49650789 | BR39: 7.684507334 | BT39: 0.109307573 | BU39: 42.18101522 | BV39: 4.610704401
B40: ='Input - Inventory'!B37 -> 29 | C40: ='Input - Inventory'!C37 -> MBF1x80 | D40: ='Input - Inventory'!D37 -> Lamp | E40: ='Input - Inventory'!E37 -> NonTraffic | F40: ='Input - Inventory'!F37 -> Minor | G40: ='Input - Inventory'!H37 -> 1 | I40: Lamp - MBF1x80 | K40: 45.96426471 | L40: 70228 | M40: 3227978.382 | O40: =IF(AND($D40="Lamp", OR($F40=O$9, O$9="All")),IF('Input - Inventory'!G37="N",INDIRECT("PriceBulkTask1" & "FY18"),INDIRECT("PriceBulkTask1LED" & "FY18")),0) -> 24.6719008 | P40: =IF(AND($D40="Lamp",CycleBulkTask1<>0, OR($F40=O$9,O$9="All")),IF('Input - Inventory'!G37="N",1/CycleBulkTask1,1/CycleBulkTask1LED),0) -> 0.25 | Q40: =IF(AND($D40="Lamp", OR($F40=Q$9, Q$9="All")),IF('Input - Inventory'!G37="N",INDIRECT("PriceBulkTask2" & "FY18"),INDIRECT("PriceBulkTask2LED" & "FY18")),0) -> 0 | R40: =IF(AND($D40="Lamp",CycleBulkTask2<>0, OR($F40=Q$9,Q$9="All")),IF('Input - Inventory'!G37="N",1/CycleBulkTask2,1/CycleBulkTask2LED),0) -> 0 | S40: 11.48500442 | T40: 0.007123137293 | U40: 5.574180491 | V40: 0 | W40: 24.13954103 | X40: 0.005931168948 | Y40: 14.46149856 | Z40: 0.02002998353 | AA40: 40.19950453 | AB40: 0.01503682404 | AC40: 8290.488177 | AD40: 6.144166728e-05 | AE40: 7.79647803 | AG40: 3.6 | AH40: 0.25 | AI40: 49.71973843 | AJ40: 0.007123137293 | AK40: 11.04255977 | AL40: 0 | AM40: 15 | AN40: 0.02096799299 | AO40: 1.568680418 | AQ40: 85.56283983 | AR40: 0.07974539338 | AS40: 1.513333333 | AT40: 85.56283983 | AU40: 0.0198285774 | AV40: 1.513333333 | AW40: 85.56283983 | AX40: 0.03256191236 | AY40: 1.513333333 | AZ40: 17.10962773 | BB40: 3.6 | BC40: 0.07974539338 | BD40: 11.04255977 | BE40: 0.0198285774 | BF40: 15 | BG40: 0.03256191236 | BH40: 0.9944703525 | BJ40: 32.09162584 | BK40: 0.1999656365 | BL40: 6.417222386 | BN40: =IF($D40="Connection",VLOOKUP(C40,'Input - General'!$F$51:$N$59,3,FALSE),0) -> 0 | BP40: 0.2227618911 | BQ40: 33.88647891 | BR40: 7.548616126 | BT40: 0.109307573 | BU40: 41.43509504 | BV40: 4.529169675
B41: ='Input - Inventory'!B38 -> 30 | C41: ='Input - Inventory'!C38 -> MBF2x80 | D41: ='Input - Inventory'!D38 -> Lamp | E41: ='Input - Inventory'!E38 -> NonTraffic | F41: ='Input - Inventory'!F38 -> Minor | G41: ='Input - Inventory'!H38 -> 2 | I41: Lamp - MBF2x80 | K41: 65.26693485 | L41: 16 | M41: 1044.270958 | O41: =IF(AND($D41="Lamp", OR($F41=O$9, O$9="All")),IF('Input - Inventory'!G38="N",INDIRECT("PriceBulkTask1" & "FY18"),INDIRECT("PriceBulkTask1LED" & "FY18")),0) -> 24.6719008 | P41: =IF(AND($D41="Lamp",CycleBulkTask1<>0, OR($F41=O$9,O$9="All")),IF('Input - Inventory'!G38="N",1/CycleBulkTask1,1/CycleBulkTask1LED),0) -> 0.25 | Q41: =IF(AND($D41="Lamp", OR($F41=Q$9, Q$9="All")),IF('Input - Inventory'!G38="N",INDIRECT("PriceBulkTask2" & "FY18"),INDIRECT("PriceBulkTask2LED" & "FY18")),0) -> 0 | R41: =IF(AND($D41="Lamp",CycleBulkTask2<>0, OR($F41=Q$9,Q$9="All")),IF('Input - Inventory'!G38="N",1/CycleBulkTask2,1/CycleBulkTask2LED),0) -> 0 | S41: 11.48500442 | T41: 0.007123137293 | U41: 5.574180491 | V41: 0 | W41: 24.13954103 | X41: 0.005931168948 | Y41: 14.46149856 | Z41: 0.02002998353 | AA41: 40.19950453 | AB41: 0.01503682404 | AC41: 8290.488177 | AD41: 6.144166728e-05 | AE41: 7.79647803 | AG41: 7.2 | AH41: 0.25 | AI41: 49.71973843 | AJ41: 0.007123137293 | AK41: 11.04255977 | AL41: 0 | AM41: 15 | AN41: 0.02096799299 | AO41: 2.468680418 | AQ41: 85.56283983 | AR41: 0.153131459 | AS41: 1.513333333 | AT41: 85.56283983 | AU41: 0.0198285774 | AV41: 1.513333333 | AW41: 85.56283983 | AX41: 0.03256191236 | AY41: 1.513333333 | AZ41: 26.6120296 | BB41: 3.6 | BC41: 0.153131459 | BD41: 11.04255977 | BE41: 0.0198285774 | BF41: 15 | BG41: 0.03256191236 | BH41: 1.258660189 | BJ41: 32.09162584 | BK41: 0.3110232158 | BL41: 9.981240667 | BN41: =IF($D41="Connection",VLOOKUP(C41,'Input - General'!$F$51:$N$59,3,FALSE),0) -> 0 | BP41: 0.2227618911 | BQ41: 48.1170889 | BR41: 10.71865372 | BT41: 0.109307573 | BU41: 58.83574262 | BV41: 6.431192231
B42: ='Input - Inventory'!B39 -> 31 | C42: ='Input - Inventory'!C39 -> MBI1x100 | D42: ='Input - Inventory'!D39 -> Lamp | E42: ='Input - Inventory'!E39 -> Traffic | F42: ='Input - Inventory'!F39 -> Major | G42: ='Input - Inventory'!H39 -> 1 | I42: Lamp - MBI1x100 | K42: 126.2005145 | L42: 30 | M42: 3786.015436 | O42: =IF(AND($D42="Lamp", OR($F42=O$9, O$9="All")),IF('Input - Inventory'!G39="N",INDIRECT("PriceBulkTask1" & "FY18"),INDIRECT("PriceBulkTask1LED" & "FY18")),0) -> 0 | P42: =IF(AND($D42="Lamp",CycleBulkTask1<>0, OR($F42=O$9,O$9="All")),IF('Input - Inventory'!G39="N",1/CycleBulkTask1,1/CycleBulkTask1LED),0) -> 0 | Q42: =IF(AND($D42="Lamp", OR($F42=Q$9, Q$9="All")),IF('Input - Inventory'!G39="N",INDIRECT("PriceBulkTask2" & "FY18"),INDIRECT("PriceBulkTask2LED" & "FY18")),0) -> 28.738834 | R42: =IF(AND($D42="Lamp",CycleBulkTask2<>0, OR($F42=Q$9,Q$9="All")),IF('Input - Inventory'!G39="N",1/CycleBulkTask2,1/CycleBulkTask2LED),0) -> 0.25 | S42: 11.48500442 | T42: 0.007123137293 | U42: 5.574180491 | V42: 0 | W42: 24.13954103 | X42: 0.005931168948 | Y42: 14.46149856 | Z42: 0.02002998353 | AA42: 40.19950453 | AB42: 0.01503682404 | AC42: 8290.488177 | AD42: 6.144166728e-05 | AE42: 8.81321133 | AG42: 14.38 | AH42: 0.25 | AI42: 49.71973843 | AJ42: 0.007123137293 | AK42: 11.04255977 | AL42: 0 | AM42: 15 | AN42: 0.02096799299 | AO42: 4.263680418 | AQ42: 85.56283983 | AR42: 0.2318765897 | AS42: 2.27 | AT42: 85.56283983 | AU42: 0.0198285774 | AV42: 2.27 | AW42: 85.56283983 | AX42: 0.03256191236 | AY42: 2.27 | AZ42: 55.21252579 | BB42: 14.38 | BC42: 0.2318765897 | BD42: 11.04255977 | BE42: 0.0198285774 | BF42: 15 | BG42: 0.03256191236 | BH42: 4.041772296 | BJ42: 32.09162584 | BK42: 0.6452862703 | BL42: 20.70828554 | BN42: =IF($D42="Connection",VLOOKUP(C42,'Input - General'!$F$51:$N$59,3,FALSE),0) -> 0 | BP42: 0.2227618911 | BQ42: 93.03947538 | BR42: 20.72564948 | BT42: 0.109307573 | BU42: 113.7651249 | BV42: 12.43538969
B43: ='Input - Inventory'!B40 -> 32 | C43: ='Input - Inventory'!C40 -> MBI1x1000 | D43: ='Input - Inventory'!D40 -> Lamp | E43: ='Input - Inventory'!E40 -> Traffic | F43: ='Input - Inventory'!F40 -> Major | G43: ='Input - Inventory'!H40 -> 1 | I43: Lamp - MBI1x1000 | K43: 148.5022533 | L43: 13 | M43: 1930.529292 | O43: =IF(AND($D43="Lamp", OR($F43=O$9, O$9="All")),IF('Input - Inventory'!G40="N",INDIRECT("PriceBulkTask1" & "FY18"),INDIRECT("PriceBulkTask1LED" & "FY18")),0) -> 0 | P43: =IF(AND($D43="Lamp",CycleBulkTask1<>0, OR($F43=O$9,O$9="All")),IF('Input - Inventory'!G40="N",1/CycleBulkTask1,1/CycleBulkTask1LED),0) -> 0 | Q43: =IF(AND($D43="Lamp", OR($F43=Q$9, Q$9="All")),IF('Input - Inventory'!G40="N",INDIRECT("PriceBulkTask2" & "FY18"),INDIRECT("PriceBulkTask2LED" & "FY18")),0) -> 28.738834 | R43: =IF(AND($D43="Lamp",CycleBulkTask2<>0, OR($F43=Q$9,Q$9="All")),IF('Input - Inventory'!G40="N",1/CycleBulkTask2,1/CycleBulkTask2LED),0) -> 0.25 | S43: 11.48500442 | T43: 0.007123137293 | U43: 5.574180491 | V43: 0 | W43: 24.13954103 | X43: 0.005931168948 | Y43: 14.46149856 | Z43: 0.02002998353 | AA43: 40.19950453 | AB43: 0.01503682404 | AC43: 8290.488177 | AD43: 6.144166728e-05 | AE43: 8.81321133 | AG43: 48.5 | AH43: 0.25 | AI43: 49.71973843 | AJ43: 0.007123137293 | AK43: 11.04255977 | AL43: 0 | AM43: 15 | AN43: 0.02096799299 | AO43: 12.79368042 | AQ43: 85.56283983 | AR43: 0.2318765897 | AS43: 2.27 | AT43: 85.56283983 | AU43: 0.0198285774 | AV43: 2.27 | AW43: 85.56283983 | AX43: 0.03256191236 | AY43: 2.27 | AZ43: 55.21252579 | BB43: 48.5 | BC43: 0.2318765897 | BD43: 11.04255977 | BE43: 0.0198285774 | BF43: 15 | BG43: 0.03256191236 | BH43: 11.95340153 | BJ43: 32.09162584 | BK43: 0.6452862703 | BL43: 20.70828554 | BN43: =IF($D43="Connection",VLOOKUP(C43,'Input - General'!$F$51:$N$59,3,FALSE),0) -> 0 | BP43: 0.2227618911 | BQ43: 109.4811046 | BR43: 24.38821791 | BT43: 0.109307573 | BU43: 133.8693225 | BV43: 14.63293074
B44: ='Input - Inventory'!B41 -> 33 | C44: ='Input - Inventory'!C41 -> MBI1x150 | D44: ='Input - Inventory'!D41 -> Lamp | E44: ='Input - Inventory'!E41 -> Traffic | F44: ='Input - Inventory'!F41 -> Major | G44: ='Input - Inventory'!H41 -> 1 | I44: Lamp - MBI1x150 | K44: 126.2005145 | L44: 4 | M44: 504.8020582 | O44: =IF(AND($D44="Lamp", OR($F44=O$9, O$9="All")),IF('Input - Inventory'!G41="N",INDIRECT("PriceBulkTask1" & "FY18"),INDIRECT("PriceBulkTask1LED" & "FY18")),0) -> 0 | P44: =IF(AND($D44="Lamp",CycleBulkTask1<>0, OR($F44=O$9,O$9="All")),IF('Input - Inventory'!G41="N",1/CycleBulkTask1,1/CycleBulkTask1LED),0) -> 0 | Q44: =IF(AND($D44="Lamp", OR($F44=Q$9, Q$9="All")),IF('Input - Inventory'!G41="N",INDIRECT("PriceBulkTask2" & "FY18"),INDIRECT("PriceBulkTask2LED" & "FY18")),0) -> 28.738834 | R44: =IF(AND($D44="Lamp",CycleBulkTask2<>0, OR($F44=Q$9,Q$9="All")),IF('Input - Inventory'!G41="N",1/CycleBulkTask2,1/CycleBulkTask2LED),0) -> 0.25 | S44: =IF(AND($D44="Lamp", OR($F44=S$9, S$9="All")),INDIRECT("PriceBulkTask3" & "FY18"),0) -> 11.48500442 | T44: 0.007123137293 | U44: =IF(AND($D44="Lamp", OR($F44=U$9, U$9="All")),INDIRECT("PriceBulkTask4" & "FY18"),0) -> 5.574180491 | V44: 0 | W44: =IF(AND($D44="Lamp", OR($F44=W$9, W$9="All")),INDIRECT("PriceBulkTask5" & "FY18"),0) -> 24.13954103 | X44: 0.005931168948 | Y44: =IF(AND($D44="Lamp", OR($F44=Y$9, Y$9="All")),INDIRECT("PriceBulkTask6" & "FY18"),0) -> 14.46149856 | Z44: 0.02002998353 | AA44: =IF(AND($D44="Lamp", OR($F44=AA$9, AA$9="All")),INDIRECT("PriceBulkTask7" & "FY18"),0) -> 40.19950453 | AB44: 0.01503682404 | AC44: =IF(AND($D44="Lamp", OR($F44=AC$9, AC$9="All")),INDIRECT("PriceBulkTask8" & "FY18"),0) -> 8290.488177 | AD44: 6.144166728e-05 | AE44: 8.81321133 | AG44: =IF($D44="Lamp",$G44*INDIRECT("Price" & $B44 & "FY18"),0) -> 14.38 | AH44: =MAX(P44,R44) -> 0.25 | AI44: =IF($D44="Lamp",INDIRECT("PriceVisor" & "FY18"),0) -> 49.71973843 | AJ44: 0.007123137293 | AK44: =IF($D44="Lamp",INDIRECT("PricePECell" & "FY18"),0) -> 11.04255977 | AL44: 0 | AM44: =IF($D44="Lamp",INDIRECT("PriceMisc" & "FY18"),0) -> 15 | AN44: 0.02096799299 | AO44: 4.263680418 | AQ44: =IF($D44=$AG$9,(INDIRECT("PriceLabour" & "FY18")*ProportionStandardHours + INDIRECT("PriceLabourOvertime" & "FY18")*ProportionOvertimeHours)*(1+RateOnCostAnnual),0) -> 85.56283983 | AR44: 0.2318765897 | AS44: 2.27 | AT44: =IF($D44=$AG$9,(INDIRECT("PriceLabour" & "FY18")*ProportionStandardHours + INDIRECT("PriceLabourOvertime" & "FY18")*ProportionOvertimeHours)*(1+RateOnCostAnnual),0) -> 85.56283983 | AU44: 0.0198285774 | AV44: 2.27 | AW44: =IF($D44=$AG$9,(INDIRECT("PriceLabour" & "FY18")*ProportionStandardHours + INDIRECT("PriceLabourOvertime" & "FY18")*ProportionOvertimeHours)*(1+RateOnCostAnnual),0) -> 85.56283983 | AX44: 0.03256191236 | AY44: 2.27 | AZ44: 55.21252579 | BB44: =IF($D44="Lamp",INDIRECT("Price" & $B44 & "FY18"),0) -> 14.38 | BC44: 0.2318765897 | BD44: =IF($D44="Lamp",INDIRECT("pRICEpecELL" & "FY18"),0) -> 11.04255977 | BE44: 0.0198285774 | BF44: =IF($D44="Lamp",INDIRECT("PriceMisc" & "FY18"),0) -> 15 | BG44: 0.03256191236 | BH44: 4.041772296 | BJ44: =IF(AND($D44="Lamp"),INDIRECT("PriceEWP"&"FY18"),0) -> 32.09162584 | BK44: 0.6452862703 | BL44: 20.70828554 | BN44: =IF($D44="Connection",VLOOKUP(C44,'Input - General'!$F$51:$N$59,3,FALSE),0) -> 0 | BP44: 0.2227618911 | BQ44: 93.03947538 | BR44: 20.72564948 | BT44: 0.109307573 | BU44: 113.7651249 | BV44: 12.43538969
B45: ='Input - Inventory'!B42 -> 34 | C45: ='Input - Inventory'!C42 -> MBI1x250 | D45: ='Input - Inventory'!D42 -> Lamp | E45: ='Input - Inventory'!E42 -> Traffic | F45: ='Input - Inventory'!F42 -> Major | G45: ='Input - Inventory'!H42 -> 1 | I45: Lamp - MBI1x250 | K45: 122.1611023 | L45: 57 | M45: 6963.182832 | O45: =IF(AND($D45="Lamp", OR($F45=O$9, O$9="All")),IF('Input - Inventory'!G42="N",INDIRECT("PriceBulkTask1" & "FY18"),INDIRECT("PriceBulkTask1LED" & "FY18")),0) -> 0 | P45: =IF(AND($D45="Lamp",CycleBulkTask1<>0, OR($F45=O$9,O$9="All")),IF('Input - Inventory'!G42="N",1/CycleBulkTask1,1/CycleBulkTask1LED),0) -> 0 | Q45: =IF(AND($D45="Lamp", OR($F45=Q$9, Q$9="All")),IF('Input - Inventory'!G42="N",INDIRECT("PriceBulkTask2" & "FY18"),INDIRECT("PriceBulkTask2LED" & "FY18")),0) -> 28.738834 | R45: =IF(AND($D45="Lamp",CycleBulkTask2<>0, OR($F45=Q$9,Q$9="All")),IF('Input - Inventory'!G42="N",1/CycleBulkTask2,1/CycleBulkTask2LED),0) -> 0.25 | S45: 11.48500442 | T45: 0.007123137293 | U45: 5.574180491 | V45: 0 | W45: 24.13954103 | X45: 0.005931168948 | Y45: 14.46149856 | Z45: 0.02002998353 | AA45: 40.19950453 | AB45: 0.01503682404 | AC45: 8290.488177 | AD45: 6.144166728e-05 | AE45: 8.81321133 | AG45: 8.2 | AH45: 0.25 | AI45: 49.71973843 | AJ45: 0.007123137293 | AK45: 11.04255977 | AL45: 0 | AM45: 15 | AN45: 0.02096799299 | AO45: 2.718680418 | AQ45: 85.56283983 | AR45: 0.2318765897 | AS45: 2.27 | AT45: 85.56283983 | AU45: 0.0198285774 | AV45: 2.27 | AW45: 85.56283983 | AX45: 0.03256191236 | AY45: 2.27 | AZ45: 55.21252579 | BB45: 8.2 | BC45: 0.2318765897 | BD45: 11.04255977 | BE45: 0.0198285774 | BF45: 15 | BG45: 0.03256191236 | BH45: 2.608774972 | BJ45: 32.09162584 | BK45: 0.6452862703 | BL45: 20.70828554 | BN45: =IF($D45="Connection",VLOOKUP(C45,'Input - General'!$F$51:$N$59,3,FALSE),0) -> 0 | BP45: 0.2227618911 | BQ45: 90.06147805 | BR45: 20.06226517 | BT45: 0.109307573 | BU45: 110.1237432 | BV45: 12.0373591
B46: ='Input - Inventory'!B43 -> 35 | C46: ='Input - Inventory'!C43 -> MBI1x400 | D46: ='Input - Inventory'!D43 -> Lamp | E46: ='Input - Inventory'!E43 -> Traffic | F46: ='Input - Inventory'!F43 -> Major | G46: ='Input - Inventory'!H43 -> 1 | I46: Lamp - MBI1x400 | K46: 122.030377 | L46: 128 | M46: 15619.88826 | O46: =IF(AND($D46="Lamp", OR($F46=O$9, O$9="All")),IF('Input - Inventory'!G43="N",INDIRECT("PriceBulkTask1" & "FY18"),INDIRECT("PriceBulkTask1LED" & "FY18")),0) -> 0 | P46: =IF(AND($D46="Lamp",CycleBulkTask1<>0, OR($F46=O$9,O$9="All")),IF('Input - Inventory'!G43="N",1/CycleBulkTask1,1/CycleBulkTask1LED),0) -> 0 | Q46: =IF(AND($D46="Lamp", OR($F46=Q$9, Q$9="All")),IF('Input - Inventory'!G43="N",INDIRECT("PriceBulkTask2" & "FY18"),INDIRECT("PriceBulkTask2LED" & "FY18")),0) -> 28.738834 | R46: =IF(AND($D46="Lamp",CycleBulkTask2<>0, OR($F46=Q$9,Q$9="All")),IF('Input - Inventory'!G43="N",1/CycleBulkTask2,1/CycleBulkTask2LED),0) -> 0.25 | S46: 11.48500442 | T46: 0.007123137293 | U46: 5.574180491 | V46: 0 | W46: 24.13954103 | X46: 0.005931168948 | Y46: 14.46149856 | Z46: 0.02002998353 | AA46: 40.19950453 | AB46: 0.01503682404 | AC46: 8290.488177 | AD46: 6.144166728e-05 | AE46: 8.81321133 | AG46: 8 | AH46: 0.25 | AI46: 49.71973843 | AJ46: 0.007123137293 | AK46: 11.04255977 | AL46: 0 | AM46: 15 | AN46: 0.02096799299 | AO46: 2.668680418 | AQ46: 85.56283983 | AR46: 0.2318765897 | AS46: 2.27 | AT46: 85.56283983 | AU46: 0.0198285774 | AV46: 2.27 | AW46: 85.56283983 | AX46: 0.03256191236 | AY46: 2.27 | AZ46: 55.21252579 | BB46: 8 | BC46: 0.2318765897 | BD46: 11.04255977 | BE46: 0.0198285774 | BF46: 15 | BG46: 0.03256191236 | BH46: 2.562399654 | BJ46: 32.09162584 | BK46: 0.6452862703 | BL46: 20.70828554 | BN46: =IF($D46="Connection",VLOOKUP(C46,'Input - General'!$F$51:$N$59,3,FALSE),0) -> 0 | BP46: 0.2227618911 | BQ46: 89.96510273 | BR46: 20.04079642 | BT46: 0.109307573 | BU46: 110.0058992 | BV46: 12.02447785
B47: ='Input - Inventory'!B44 -> 36 | C47: ='Input - Inventory'!C44 -> MBI1x70 | D47: ='Input - Inventory'!D44 -> Lamp | E47: ='Input - Inventory'!E44 -> NonTraffic | F47: ='Input - Inventory'!F44 -> Minor | G47: ='Input - Inventory'!H44 -> 1 | I47: Lamp - MBI1x70 | K47: 90.57302236 | L47: 291 | M47: 26356.74951 | O47: =IF(AND($D47="Lamp", OR($F47=O$9, O$9="All")),IF('Input - Inventory'!G44="N",INDIRECT("PriceBulkTask1" & "FY18"),INDIRECT("PriceBulkTask1LED" & "FY18")),0) -> 24.6719008 | P47: =IF(AND($D47="Lamp",CycleBulkTask1<>0, OR($F47=O$9,O$9="All")),IF('Input - Inventory'!G44="N",1/CycleBulkTask1,1/CycleBulkTask1LED),0) -> 0.25 | Q47: =IF(AND($D47="Lamp", OR($F47=Q$9, Q$9="All")),IF('Input - Inventory'!G44="N",INDIRECT("PriceBulkTask2" & "FY18"),INDIRECT("PriceBulkTask2LED" & "FY18")),0) -> 0 | R47: =IF(AND($D47="Lamp",CycleBulkTask2<>0, OR($F47=Q$9,Q$9="All")),IF('Input - Inventory'!G44="N",1/CycleBulkTask2,1/CycleBulkTask2LED),0) -> 0 | S47: 11.48500442 | T47: 0.007123137293 | U47: 5.574180491 | V47: 0 | W47: 24.13954103 | X47: 0.005931168948 | Y47: 14.46149856 | Z47: 0.02002998353 | AA47: 40.19950453 | AB47: 0.01503682404 | AC47: 8290.488177 | AD47: 6.144166728e-05 | AE47: 7.79647803 | AG47: 14.5 | AH47: 0.25 | AI47: 49.71973843 | AJ47: 0.007123137293 | AK47: 11.04255977 | AL47: 0 | AM47: 15 | AN47: 0.02096799299 | AO47: 4.293680418 | AQ47: 85.56283983 | AR47: 0.2318765897 | AS47: 1.513333333 | AT47: 85.56283983 | AU47: 0.0198285774 | AV47: 1.513333333 | AW47: 85.56283983 | AX47: 0.03256191236 | AY47: 1.513333333 | AZ47: 36.80835053 | BB47: 14.5 | BC47: 0.2318765897 | BD47: 11.04255977 | BE47: 0.0198285774 | BF47: 15 | BG47: 0.03256191236 | BH47: 4.069597486 | BJ47: 32.09162584 | BK47: 0.4301908468 | BL47: 13.80552369 | BN47: =IF($D47="Connection",VLOOKUP(C47,'Input - General'!$F$51:$N$59,3,FALSE),0) -> 0 | BP47: 0.2227618911 | BQ47: 66.77363016 | BR47: 14.87462013 | BT47: 0.109307573 | BU47: 81.64825029 | BV47: 8.924772078
B48: ='Input - Inventory'!B45 -> 37 | C48: ='Input - Inventory'!C45 -> MBI1x70 II | D48: ='Input - Inventory'!D45 -> Lamp | E48: ='Input - Inventory'!E45 -> NonTraffic | F48: ='Input - Inventory'!F45 -> Minor | G48: ='Input - Inventory'!H45 -> 1 | I48: Lamp - MBI1x70 II | K48: 70.29591185 | L48: 396 | M48: 27837.18109 | O48: =IF(AND($D48="Lamp", OR($F48=O$9, O$9="All")),IF('Input - Inventory'!G45="N",INDIRECT("PriceBulkTask1" & "FY18"),INDIRECT("PriceBulkTask1LED" & "FY18")),0) -> 24.6719008 | P48: =IF(AND($D48="Lamp",CycleBulkTask1<>0, OR($F48=O$9,O$9="All")),IF('Input - Inventory'!G45="N",1/CycleBulkTask1,1/CycleBulkTask1LED),0) -> 0.25 | Q48: =IF(AND($D48="Lamp", OR($F48=Q$9, Q$9="All")),IF('Input - Inventory'!G45="N",INDIRECT("PriceBulkTask2" & "FY18"),INDIRECT("PriceBulkTask2LED" & "FY18")),0) -> 0 | R48: =IF(AND($D48="Lamp",CycleBulkTask2<>0, OR($F48=Q$9,Q$9="All")),IF('Input - Inventory'!G45="N",1/CycleBulkTask2,1/CycleBulkTask2LED),0) -> 0 | S48: 11.48500442 | T48: 0.007123137293 | U48: 5.574180491 | V48: 0 | W48: 24.13954103 | X48: 0.005931168948 | Y48: 14.46149856 | Z48: 0.02002998353 | AA48: 40.19950453 | AB48: 0.01503682404 | AC48: 8290.488177 | AD48: 6.144166728e-05 | AE48: 7.79647803 | AG48: 58 | AH48: 0.25 | AI48: 49.71973843 | AJ48: 0.007123137293 | AK48: 11.04255977 | AL48: 0 | AM48: 15 | AN48: 0.02096799299 | AO48: 15.16868042 | AQ48: 85.56283983 | AR48: 0.07974539338 | AS48: 1.513333333 | AT48: 85.56283983 | AU48: 0.0198285774 | AV48: 1.513333333 | AW48: 85.56283983 | AX48: 0.03256191236 | AY48: 1.513333333 | AZ48: 17.10962773 | BB48: 58 | BC48: 0.07974539338 | BD48: 11.04255977 | BE48: 0.0198285774 | BF48: 15 | BG48: 0.03256191236 | BH48: 5.332619752 | BJ48: 32.09162584 | BK48: 0.1999656365 | BL48: 6.417222386 | BN48: =IF($D48="Connection",VLOOKUP(C48,'Input - General'!$F$51:$N$59,3,FALSE),0) -> 0 | BP48: 0.2227618911 | BQ48: 51.82462831 | BR48: 11.54455221 | BT48: 0.109307573 | BU48: 63.36918052 | BV48: 6.926731325
B49: ='Input - Inventory'!B46 -> 38 | C49: ='Input - Inventory'!C46 -> SON1x100 | D49: ='Input - Inventory'!D46 -> Lamp | E49: ='Input - Inventory'!E46 -> Traffic | F49: ='Input - Inventory'!F46 -> Major | G49: ='Input - Inventory'!H46 -> 1 | I49: Lamp - SON1x100 | K49: 62.07117533 | L49: 1424 | M49: 88389.35367 | O49: =IF(AND($D49="Lamp", OR($F49=O$9, O$9="All")),IF('Input - Inventory'!G46="N",INDIRECT("PriceBulkTask1" & "FY18"),INDIRECT("PriceBulkTask1LED" & "FY18")),0) -> 0 | P49: =IF(AND($D49="Lamp",CycleBulkTask1<>0, OR($F49=O$9,O$9="All")),IF('Input - Inventory'!G46="N",1/CycleBulkTask1,1/CycleBulkTask1LED),0) -> 0 | Q49: =IF(AND($D49="Lamp", OR($F49=Q$9, Q$9="All")),IF('Input - Inventory'!G46="N",INDIRECT("PriceBulkTask2" & "FY18"),INDIRECT("PriceBulkTask2LED" & "FY18")),0) -> 28.738834 | R49: =IF(AND($D49="Lamp",CycleBulkTask2<>0, OR($F49=Q$9,Q$9="All")),IF('Input - Inventory'!G46="N",1/CycleBulkTask2,1/CycleBulkTask2LED),0) -> 0.25 | S49: 11.48500442 | T49: 0.007123137293 | U49: 5.574180491 | V49: 0 | W49: 24.13954103 | X49: 0.005931168948 | Y49: 14.46149856 | Z49: 0.02002998353 | AA49: 40.19950453 | AB49: 0.01503682404 | AC49: 8290.488177 | AD49: 6.144166728e-05 | AE49: 8.81321133 | AG49: 13.23 | AH49: 0.25 | AI49: 49.71973843 | AJ49: 0.007123137293 | AK49: 11.04255977 | AL49: 0 | AM49: 15 | AN49: 0.02096799299 | AO49: 3.976180418 | AQ49: 85.56283983 | AR49: 0.06518620254 | AS49: 2.27 | AT49: 85.56283983 | AU49: 0.0198285774 | AV49: 2.27 | AW49: 85.56283983 | AX49: 0.03256191236 | AY49: 2.27 | AZ49: 22.83664422 | BB49: 13.23 | BC49: 0.06518620254 | BD49: 11.04255977 | BE49: 0.0198285774 | BF49: 15 | BG49: 0.03256191236 | BH49: 1.569800396 | BJ49: 32.09162584 | BK49: 0.2668990915 | BL49: 8.56522578 | BN49: =IF($D49="Connection",VLOOKUP(C49,'Input - General'!$F$51:$N$59,3,FALSE),0) -> 0 | BP49: 0.2227618911 | BQ49: 45.76106214 | BR49: 10.19382074 | BT49: 0.109307573 | BU49: 55.95488289 | BV49: 6.116292445
B50: ='Input - Inventory'!B47 -> 39 | C50: ='Input - Inventory'!C47 -> SON1x1000 | D50: ='Input - Inventory'!D47 -> Lamp | E50: ='Input - Inventory'!E47 -> Traffic | F50: ='Input - Inventory'!F47 -> Major | G50: ='Input - Inventory'!H47 -> 1 | I50: Lamp - SON1x1000 | K50: 68.3002082 | L50: 49 | M50: 3346.710202 | O50: =IF(AND($D50="Lamp", OR($F50=O$9, O$9="All")),IF('Input - Inventory'!G47="N",INDIRECT("PriceBulkTask1" & "FY18"),INDIRECT("PriceBulkTask1LED" & "FY18")),0) -> 0 | P50: =IF(AND($D50="Lamp",CycleBulkTask1<>0, OR($F50=O$9,O$9="All")),IF('Input - Inventory'!G47="N",1/CycleBulkTask1,1/CycleBulkTask1LED),0) -> 0 | Q50: =IF(AND($D50="Lamp", OR($F50=Q$9, Q$9="All")),IF('Input - Inventory'!G47="N",INDIRECT("PriceBulkTask2" & "FY18"),INDIRECT("PriceBulkTask2LED" & "FY18")),0) -> 28.738834 | R50: =IF(AND($D50="Lamp",CycleBulkTask2<>0, OR($F50=Q$9,Q$9="All")),IF('Input - Inventory'!G47="N",1/CycleBulkTask2,1/CycleBulkTask2LED),0) -> 0.25 | S50: 11.48500442 | T50: 0.007123137293 | U50: 5.574180491 | V50: 0 | W50: 24.13954103 | X50: 0.005931168948 | Y50: 14.46149856 | Z50: 0.02002998353 | AA50: 40.19950453 | AB50: 0.01503682404 | AC50: 8290.488177 | AD50: 6.144166728e-05 | AE50: 8.81321133 | AG50: 27.8 | AH50: 0.25 | AI50: 49.71973843 | AJ50: 0.007123137293 | AK50: 11.04255977 | AL50: 0 | AM50: 15 | AN50: 0.02096799299 | AO50: 7.618680418 | AQ50: 85.56283983 | AR50: 0.06518620254 | AS50: 2.27 | AT50: 85.56283983 | AU50: 0.0198285774 | AV50: 2.27 | AW50: 85.56283983 | AX50: 0.03256191236 | AY50: 2.27 | AZ50: 22.83664422 | BB50: 27.8 | BC50: 0.06518620254 | BD50: 11.04255977 | BE50: 0.0198285774 | BF50: 15 | BG50: 0.03256191236 | BH50: 2.519563367 | BJ50: 32.09162584 | BK50: 0.2668990915 | BL50: 8.56522578 | BN50: =IF($D50="Connection",VLOOKUP(C50,'Input - General'!$F$51:$N$59,3,FALSE),0) -> 0 | BP50: 0.2227618911 | BQ50: 50.35332511 | BR50: 11.21680193 | BT50: 0.109307573 | BU50: 61.57012704 | BV50: 6.730081156
B51: ='Input - Inventory'!B48 -> 40 | C51: ='Input - Inventory'!C48 -> SON1x150 | D51: ='Input - Inventory'!D48 -> Lamp | E51: ='Input - Inventory'!E48 -> Traffic | F51: ='Input - Inventory'!F48 -> Major | G51: ='Input - Inventory'!H48 -> 1 | I51: Lamp - SON1x150 | K51: 58.98017275 | L51: 19878 | M51: 1172407.874 | O51: =IF(AND($D51="Lamp", OR($F51=O$9, O$9="All")),IF('Input - Inventory'!G48="N",INDIRECT("PriceBulkTask1" & "FY18"),INDIRECT("PriceBulkTask1LED" & "FY18")),0) -> 0 | P51: =IF(AND($D51="Lamp",CycleBulkTask1<>0, OR($F51=O$9,O$9="All")),IF('Input - Inventory'!G48="N",1/CycleBulkTask1,1/CycleBulkTask1LED),0) -> 0 | Q51: =IF(AND($D51="Lamp", OR($F51=Q$9, Q$9="All")),IF('Input - Inventory'!G48="N",INDIRECT("PriceBulkTask2" & "FY18"),INDIRECT("PriceBulkTask2LED" & "FY18")),0) -> 28.738834 | R51: =IF(AND($D51="Lamp",CycleBulkTask2<>0, OR($F51=Q$9,Q$9="All")),IF('Input - Inventory'!G48="N",1/CycleBulkTask2,1/CycleBulkTask2LED),0) -> 0.25 | S51: 11.48500442 | T51: 0.007123137293 | U51: 5.574180491 | V51: 0 | W51: 24.13954103 | X51: 0.005931168948 | Y51: 14.46149856 | Z51: 0.02002998353 | AA51: 40.19950453 | AB51: 0.01503682404 | AC51: 8290.488177 | AD51: 6.144166728e-05 | AE51: 8.81321133 | AG51: 6 | AH51: 0.25 | AI51: 49.71973843 | AJ51: 0.007123137293 | AK51: 11.04255977 | AL51: 0 | AM51: 15 | AN51: 0.02096799299 | AO51: 2.168680418 | AQ51: 85.56283983 | AR51: 0.06518620254 | AS51: 2.27 | AT51: 85.56283983 | AU51: 0.0198285774 | AV51: 2.27 | AW51: 85.56283983 | AX51: 0.03256191236 | AY51: 2.27 | AZ51: 22.83664422 | BB51: 6 | BC51: 0.06518620254 | BD51: 11.04255977 | BE51: 0.0198285774 | BF51: 15 | BG51: 0.03256191236 | BH51: 1.098504152 | BJ51: 32.09162584 | BK51: 0.2668990915 | BL51: 8.56522578 | BN51: =IF($D51="Connection",VLOOKUP(C51,'Input - General'!$F$51:$N$59,3,FALSE),0) -> 0 | BP51: 0.2227618911 | BQ51: 43.4822659 | BR51: 9.686191782 | BT51: 0.109307573 | BU51: 53.16845768 | BV51: 5.811715069
B52: ='Input - Inventory'!B49 -> 41 | C52: ='Input - Inventory'!C49 -> SON1x150 AR | D52: ='Input - Inventory'!D49 -> Lamp | E52: ='Input - Inventory'!E49 -> Traffic | F52: ='Input - Inventory'!F49 -> Major | G52: ='Input - Inventory'!H49 -> 1 | I52: Lamp - SON1x150 AR | K52: 58.98017275 | L52: 2615 | M52: 154233.1517 | O52: =IF(AND($D52="Lamp", OR($F52=O$9, O$9="All")),IF('Input - Inventory'!G49="N",INDIRECT("PriceBulkTask1" & "FY18"),INDIRECT("PriceBulkTask1LED" & "FY18")),0) -> 0 | P52: =IF(AND($D52="Lamp",CycleBulkTask1<>0, OR($F52=O$9,O$9="All")),IF('Input - Inventory'!G49="N",1/CycleBulkTask1,1/CycleBulkTask1LED),0) -> 0 | Q52: =IF(AND($D52="Lamp", OR($F52=Q$9, Q$9="All")),IF('Input - Inventory'!G49="N",INDIRECT("PriceBulkTask2" & "FY18"),INDIRECT("PriceBulkTask2LED" & "FY18")),0) -> 28.738834 | R52: =IF(AND($D52="Lamp",CycleBulkTask2<>0, OR($F52=Q$9,Q$9="All")),IF('Input - Inventory'!G49="N",1/CycleBulkTask2,1/CycleBulkTask2LED),0) -> 0.25 | S52: 11.48500442 | T52: 0.007123137293 | U52: 5.574180491 | V52: 0 | W52: 24.13954103 | X52: 0.005931168948 | Y52: 14.46149856 | Z52: 0.02002998353 | AA52: 40.19950453 | AB52: 0.01503682404 | AC52: 8290.488177 | AD52: 6.144166728e-05 | AE52: 8.81321133 | AG52: 6 | AH52: 0.25 | AI52: 49.71973843 | AJ52: 0.007123137293 | AK52: 11.04255977 | AL52: 0 | AM52: 15 | AN52: 0.02096799299 | AO52: 2.168680418 | AQ52: 85.56283983 | AR52: 0.06518620254 | AS52: 2.27 | AT52: 85.56283983 | AU52: 0.0198285774 | AV52: 2.27 | AW52: 85.56283983 | AX52: 0.03256191236 | AY52: 2.27 | AZ52: 22.83664422 | BB52: 6 | BC52: 0.06518620254 | BD52: 11.04255977 | BE52: 0.0198285774 | BF52: 15 | BG52: 0.03256191236 | BH52: 1.098504152 | BJ52: 32.09162584 | BK52: 0.2668990915 | BL52: 8.56522578 | BN52: =IF($D52="Connection",VLOOKUP(C52,'Input - General'!$F$51:$N$59,3,FALSE),0) -> 0 | BP52: 0.2227618911 | BQ52: 43.4822659 | BR52: 9.686191782 | BT52: 0.109307573 | BU52: 53.16845768 | BV52: 5.811715069
B53: ='Input - Inventory'!B50 -> 42 | C53: ='Input - Inventory'!C50 -> SON1x250 | D53: ='Input - Inventory'!D50 -> Lamp | E53: ='Input - Inventory'!E50 -> Traffic | F53: ='Input - Inventory'!F50 -> Major | G53: ='Input - Inventory'!H50 -> 1 | I53: Lamp - SON1x250 | K53: 60.43375626 | L53: 24760 | M53: 1496339.805 | O53: =IF(AND($D53="Lamp", OR($F53=O$9, O$9="All")),IF('Input - Inventory'!G50="N",INDIRECT("PriceBulkTask1" & "FY18"),INDIRECT("PriceBulkTask1LED" & "FY18")),0) -> 0 | P53: =IF(AND($D53="Lamp",CycleBulkTask1<>0, OR($F53=O$9,O$9="All")),IF('Input - Inventory'!G50="N",1/CycleBulkTask1,1/CycleBulkTask1LED),0) -> 0 | Q53: =IF(AND($D53="Lamp", OR($F53=Q$9, Q$9="All")),IF('Input - Inventory'!G50="N",INDIRECT("PriceBulkTask2" & "FY18"),INDIRECT("PriceBulkTask2LED" & "FY18")),0) -> 28.738834 | R53: =IF(AND($D53="Lamp",CycleBulkTask2<>0, OR($F53=Q$9,Q$9="All")),IF('Input - Inventory'!G50="N",1/CycleBulkTask2,1/CycleBulkTask2LED),0) -> 0.25 | S53: 11.48500442 | T53: 0.007123137293 | U53: 5.574180491 | V53: 0 | W53: 24.13954103 | X53: 0.005931168948 | Y53: 14.46149856 | Z53: 0.02002998353 | AA53: 40.19950453 | AB53: 0.01503682404 | AC53: 8290.488177 | AD53: 6.144166728e-05 | AE53: 8.81321133 | AG53: 9.4 | AH53: 0.25 | AI53: 49.71973843 | AJ53: 0.007123137293 | AK53: 11.04255977 | AL53: 0 | AM53: 15 | AN53: 0.02096799299 | AO53: 3.018680418 | AQ53: 85.56283983 | AR53: 0.06518620254 | AS53: 2.27 | AT53: 85.56283983 | AU53: 0.0198285774 | AV53: 2.27 | AW53: 85.56283983 | AX53: 0.03256191236 | AY53: 2.27 | AZ53: 22.83664422 | BB53: 9.4 | BC53: 0.06518620254 | BD53: 11.04255977 | BE53: 0.0198285774 | BF53: 15 | BG53: 0.03256191236 | BH53: 1.32013724 | BJ53: 32.09162584 | BK53: 0.2668990915 | BL53: 8.56522578 | BN53: =IF($D53="Connection",VLOOKUP(C53,'Input - General'!$F$51:$N$59,3,FALSE),0) -> 0 | BP53: 0.2227618911 | BQ53: 44.55389899 | BR53: 9.924910795 | BT53: 0.109307573 | BU53: 54.47880978 | BV53: 5.954946477
B54: ='Input - Inventory'!B51 -> 43 | C54: ='Input - Inventory'!C51 -> SON1x250 AR | D54: ='Input - Inventory'!D51 -> Lamp | E54: ='Input - Inventory'!E51 -> Traffic | F54: ='Input - Inventory'!F51 -> Major | G54: ='Input - Inventory'!H51 -> 1 | I54: Lamp - SON1x250 AR | K54: 60.43375626 | L54: 3306 | M54: 199793.9982 | O54: =IF(AND($D54="Lamp", OR($F54=O$9, O$9="All")),IF('Input - Inventory'!G51="N",INDIRECT("PriceBulkTask1" & "FY18"),INDIRECT("PriceBulkTask1LED" & "FY18")),0) -> 0 | P54: =IF(AND($D54="Lamp",CycleBulkTask1<>0, OR($F54=O$9,O$9="All")),IF('Input - Inventory'!G51="N",1/CycleBulkTask1,1/CycleBulkTask1LED),0) -> 0 | Q54: =IF(AND($D54="Lamp", OR($F54=Q$9, Q$9="All")),IF('Input - Inventory'!G51="N",INDIRECT("PriceBulkTask2" & "FY18"),INDIRECT("PriceBulkTask2LED" & "FY18")),0) -> 28.738834 | R54: =IF(AND($D54="Lamp",CycleBulkTask2<>0, OR($F54=Q$9,Q$9="All")),IF('Input - Inventory'!G51="N",1/CycleBulkTask2,1/CycleBulkTask2LED),0) -> 0.25 | S54: 11.48500442 | T54: 0.007123137293 | U54: 5.574180491 | V54: 0 | W54: 24.13954103 | X54: 0.005931168948 | Y54: 14.46149856 | Z54: 0.02002998353 | AA54: 40.19950453 | AB54: 0.01503682404 | AC54: 8290.488177 | AD54: 6.144166728e-05 | AE54: 8.81321133 | AG54: 9.4 | AH54: 0.25 | AI54: 49.71973843 | AJ54: 0.007123137293 | AK54: 11.04255977 | AL54: 0 | AM54: 15 | AN54: 0.02096799299 | AO54: 3.018680418 | AQ54: 85.56283983 | AR54: 0.06518620254 | AS54: 2.27 | AT54: 85.56283983 | AU54: 0.0198285774 | AV54: 2.27 | AW54: 85.56283983 | AX54: 0.03256191236 | AY54: 2.27 | AZ54: 22.83664422 | BB54: 9.4 | BC54: 0.06518620254 | BD54: 11.04255977 | BE54: 0.0198285774 | BF54: 15 | BG54: 0.03256191236 | BH54: 1.32013724 | BJ54: 32.09162584 | BK54: 0.2668990915 | BL54: 8.56522578 | BN54: =IF($D54="Connection",VLOOKUP(C54,'Input - General'!$F$51:$N$59,3,FALSE),0) -> 0 | BP54: 0.2227618911 | BQ54: 44.55389899 | BR54: 9.924910795 | BT54: 0.109307573 | BU54: 54.47880978 | BV54: 5.954946477
B55: ='Input - Inventory'!B52 -> 44 | C55: ='Input - Inventory'!C52 -> SON1x400 | D55: ='Input - Inventory'!D52 -> Lamp | E55: ='Input - Inventory'!E52 -> Traffic | F55: ='Input - Inventory'!F52 -> Major | G55: ='Input - Inventory'!H52 -> 1 | I55: Lamp - SON1x400 | K55: 61.0750431 | L55: 2122 | M55: 129601.2415 | O55: =IF(AND($D55="Lamp", OR($F55=O$9, O$9="All")),IF('Input - Inventory'!G52="N",INDIRECT("PriceBulkTask1" & "FY18"),INDIRECT("PriceBulkTask1LED" & "FY18")),0) -> 0 | P55: =IF(AND($D55="Lamp",CycleBulkTask1<>0, OR($F55=O$9,O$9="All")),IF('Input - Inventory'!G52="N",1/CycleBulkTask1,1/CycleBulkTask1LED),0) -> 0 | Q55: =IF(AND($D55="Lamp", OR($F55=Q$9, Q$9="All")),IF('Input - Inventory'!G52="N",INDIRECT("PriceBulkTask2" & "FY18"),INDIRECT("PriceBulkTask2LED" & "FY18")),0) -> 28.738834 | R55: =IF(AND($D55="Lamp",CycleBulkTask2<>0, OR($F55=Q$9,Q$9="All")),IF('Input - Inventory'!G52="N",1/CycleBulkTask2,1/CycleBulkTask2LED),0) -> 0.25 | S55: 11.48500442 | T55: 0.007123137293 | U55: 5.574180491 | V55: 0 | W55: 24.13954103 | X55: 0.005931168948 | Y55: 14.46149856 | Z55: 0.02002998353 | AA55: 40.19950453 | AB55: 0.01503682404 | AC55: 8290.488177 | AD55: 6.144166728e-05 | AE55: 8.81321133 | AG55: 10.9 | AH55: 0.25 | AI55: 49.71973843 | AJ55: 0.007123137293 | AK55: 11.04255977 | AL55: 0 | AM55: 15 | AN55: 0.02096799299 | AO55: 3.393680418 | AQ55: 85.56283983 | AR55: 0.06518620254 | AS55: 2.27 | AT55: 85.56283983 | AU55: 0.0198285774 | AV55: 2.27 | AW55: 85.56283983 | AX55: 0.03256191236 | AY55: 2.27 | AZ55: 22.83664422 | BB55: 10.9 | BC55: 0.06518620254 | BD55: 11.04255977 | BE55: 0.0198285774 | BF55: 15 | BG55: 0.03256191236 | BH55: 1.417916544 | BJ55: 32.09162584 | BK55: 0.2668990915 | BL55: 8.56522578 | BN55: =IF($D55="Connection",VLOOKUP(C55,'Input - General'!$F$51:$N$59,3,FALSE),0) -> 0 | BP55: 0.2227618911 | BQ55: 45.02667829 | BR55: 10.03022801 | BT55: 0.109307573 | BU55: 55.0569063 | BV55: 6.018136804
B56: ='Input - Inventory'!B53 -> 45 | C56: ='Input - Inventory'!C53 -> SON1x400 AR | D56: ='Input - Inventory'!D53 -> Lamp | E56: ='Input - Inventory'!E53 -> Traffic | F56: ='Input - Inventory'!F53 -> Major | G56: ='Input - Inventory'!H53 -> 1 | I56: Lamp - SON1x400 AR | K56: 84.38575528 | L56: 332 | M56: 28016.07075 | O56: =IF(AND($D56="Lamp", OR($F56=O$9, O$9="All")),IF('Input - Inventory'!G53="N",INDIRECT("PriceBulkTask1" & "FY18"),INDIRECT("PriceBulkTask1LED" & "FY18")),0) -> 0 | P56: =IF(AND($D56="Lamp",CycleBulkTask1<>0, OR($F56=O$9,O$9="All")),IF('Input - Inventory'!G53="N",1/CycleBulkTask1,1/CycleBulkTask1LED),0) -> 0 | Q56: =IF(AND($D56="Lamp", OR($F56=Q$9, Q$9="All")),IF('Input - Inventory'!G53="N",INDIRECT("PriceBulkTask2" & "FY18"),INDIRECT("PriceBulkTask2LED" & "FY18")),0) -> 28.738834 | R56: =IF(AND($D56="Lamp",CycleBulkTask2<>0, OR($F56=Q$9,Q$9="All")),IF('Input - Inventory'!G53="N",1/CycleBulkTask2,1/CycleBulkTask2LED),0) -> 0.25 | S56: 11.48500442 | T56: 0.007123137293 | U56: 5.574180491 | V56: 0 | W56: 24.13954103 | X56: 0.005931168948 | Y56: 14.46149856 | Z56: 0.02002998353 | AA56: 40.19950453 | AB56: 0.01503682404 | AC56: 8290.488177 | AD56: 6.144166728e-05 | AE56: 8.81321133 | AG56: 10.9 | AH56: 0.25 | AI56: 49.71973843 | AJ56: 0.007123137293 | AK56: 11.04255977 | AL56: 0 | AM56: 140 | AN56: 0.125 | AO56: 20.57916052 | AQ56: 85.56283983 | AR56: 0.06518620254 | AS56: 2.27 | AT56: 85.56283983 | AU56: 0.0198285774 | AV56: 2.27 | AW56: 85.56283983 | AX56: 0.03256191236 | AY56: 2.27 | AZ56: 22.83664422 | BB56: 10.9 | BC56: 0.06518620254 | BD56: 11.04255977 | BE56: 0.0198285774 | BF56: 15 | BG56: 0.03256191236 | BH56: 1.417916544 | BJ56: 32.09162584 | BK56: 0.2668990915 | BL56: 8.56522578 | BN56: =IF($D56="Connection",VLOOKUP(C56,'Input - General'!$F$51:$N$59,3,FALSE),0) -> 0 | BP56: 0.2227618911 | BQ56: 62.2121584 | BR56: 13.85849805 | BT56: 0.109307573 | BU56: 76.07065645 | BV56: 8.315098833
B57: ='Input - Inventory'!B54 -> 46 | C57: ='Input - Inventory'!C54 -> SON1x50 | D57: ='Input - Inventory'!D54 -> Lamp | E57: ='Input - Inventory'!E54 -> NonTraffic | F57: ='Input - Inventory'!F54 -> Minor | G57: ='Input - Inventory'!H54 -> 1 | I57: Lamp - SON1x50 | K57: 45.13877477 | L57: 465 | M57: 20989.53027 | O57: =IF(AND($D57="Lamp", OR($F57=O$9, O$9="All")),IF('Input - Inventory'!G54="N",INDIRECT("PriceBulkTask1" & "FY18"),INDIRECT("PriceBulkTask1LED" & "FY18")),0) -> 24.6719008 | P57: =IF(AND($D57="Lamp",CycleBulkTask1<>0, OR($F57=O$9,O$9="All")),IF('Input - Inventory'!G54="N",1/CycleBulkTask1,1/CycleBulkTask1LED),0) -> 0.25 | Q57: =IF(AND($D57="Lamp", OR($F57=Q$9, Q$9="All")),IF('Input - Inventory'!G54="N",INDIRECT("PriceBulkTask2" & "FY18"),INDIRECT("PriceBulkTask2LED" & "FY18")),0) -> 0 | R57: =IF(AND($D57="Lamp",CycleBulkTask2<>0, OR($F57=Q$9,Q$9="All")),IF('Input - Inventory'!G54="N",1/CycleBulkTask2,1/CycleBulkTask2LED),0) -> 0 | S57: 11.48500442 | T57: 0.007123137293 | U57: 5.574180491 | V57: 0 | W57: 24.13954103 | X57: 0.005931168948 | Y57: 14.46149856 | Z57: 0.02002998353 | AA57: 40.19950453 | AB57: 0.01503682404 | AC57: 8290.488177 | AD57: 6.144166728e-05 | AE57: 7.79647803 | AG57: 10.06 | AH57: 0.25 | AI57: 49.71973843 | AJ57: 0.007123137293 | AK57: 11.04255977 | AL57: 0 | AM57: 15 | AN57: 0.02096799299 | AO57: 3.183680418 | AQ57: 85.56283983 | AR57: 0.06518620254 | AS57: 1.513333333 | AT57: 85.56283983 | AU57: 0.0198285774 | AV57: 1.513333333 | AW57: 85.56283983 | AX57: 0.03256191236 | AY57: 1.513333333 | AZ57: 15.22442948 | BB57: 10.06 | BC57: 0.06518620254 | BD57: 11.04255977 | BE57: 0.0198285774 | BF57: 15 | BG57: 0.03256191236 | BH57: 1.363160134 | BJ57: 32.09162584 | BK57: 0.1779327277 | BL57: 5.71015052 | BN57: =IF($D57="Connection",VLOOKUP(C57,'Input - General'!$F$51:$N$59,3,FALSE),0) -> 0 | BP57: 0.2227618911 | BQ57: 33.27789858 | BR57: 7.41304762 | BT57: 0.109307573 | BU57: 40.6909462 | BV57: 4.447828572
B58: ='Input - Inventory'!B55 -> 47 | C58: ='Input - Inventory'!C55 -> SON1x600 | D58: ='Input - Inventory'!D55 -> Lamp | E58: ='Input - Inventory'!E55 -> Traffic | F58: ='Input - Inventory'!F55 -> Major | G58: ='Input - Inventory'!H55 -> 1 | I58: Lamp - SON1x600 | K58: 68.3002082 | L58: 1 | M58: 68.3002082 | O58: =IF(AND($D58="Lamp", OR($F58=O$9, O$9="All")),IF('Input - Inventory'!G55="N",INDIRECT("PriceBulkTask1" & "FY18"),INDIRECT("PriceBulkTask1LED" & "FY18")),0) -> 0 | P58: =IF(AND($D58="Lamp",CycleBulkTask1<>0, OR($F58=O$9,O$9="All")),IF('Input - Inventory'!G55="N",1/CycleBulkTask1,1/CycleBulkTask1LED),0) -> 0 | Q58: =IF(AND($D58="Lamp", OR($F58=Q$9, Q$9="All")),IF('Input - Inventory'!G55="N",INDIRECT("PriceBulkTask2" & "FY18"),INDIRECT("PriceBulkTask2LED" & "FY18")),0) -> 28.738834 | R58: =IF(AND($D58="Lamp",CycleBulkTask2<>0, OR($F58=Q$9,Q$9="All")),IF('Input - Inventory'!G55="N",1/CycleBulkTask2,1/CycleBulkTask2LED),0) -> 0.25 | S58: 11.48500442 | T58: 0.007123137293 | U58: 5.574180491 | V58: 0 | W58: 24.13954103 | X58: 0.005931168948 | Y58: 14.46149856 | Z58: 0.02002998353 | AA58: 40.19950453 | AB58: 0.01503682404 | AC58: 8290.488177 | AD58: 6.144166728e-05 | AE58: 8.81321133 | AG58: 27.8 | AH58: 0.25 | AI58: 49.71973843 | AJ58: 0.007123137293 | AK58: 11.04255977 | AL58: 0 | AM58: 15 | AN58: 0.02096799299 | AO58: 7.618680418 | AQ58: 85.56283983 | AR58: 0.06518620254 | AS58: 2.27 | AT58: 85.56283983 | AU58: 0.0198285774 | AV58: 2.27 | AW58: 85.56283983 | AX58: 0.03256191236 | AY58: 2.27 | AZ58: 22.83664422 | BB58: 27.8 | BC58: 0.06518620254 | BD58: 11.04255977 | BE58: 0.0198285774 | BF58: 15 | BG58: 0.03256191236 | BH58: 2.519563367 | BJ58: 32.09162584 | BK58: 0.2668990915 | BL58: 8.56522578 | BN58: =IF($D58="Connection",VLOOKUP(C58,'Input - General'!$F$51:$N$59,3,FALSE),0) -> 0 | BP58: 0.2227618911 | BQ58: 50.35332511 | BR58: 11.21680193 | BT58: 0.109307573 | BU58: 61.57012704 | BV58: 6.730081156
B59: ='Input - Inventory'!B56 -> 48 | C59: ='Input - Inventory'!C56 -> SON1x70 | D59: ='Input - Inventory'!D56 -> Lamp | E59: ='Input - Inventory'!E56 -> NonTraffic | F59: ='Input - Inventory'!F56 -> Minor | G59: ='Input - Inventory'!H56 -> 1 | I59: Lamp - SON1x70 | K59: 43.53128242 | L59: 2005 | M59: 87280.22125 | O59: =IF(AND($D59="Lamp", OR($F59=O$9, O$9="All")),IF('Input - Inventory'!G56="N",INDIRECT("PriceBulkTask1" & "FY18"),INDIRECT("PriceBulkTask1LED" & "FY18")),0) -> 24.6719008 | P59: =IF(AND($D59="Lamp",CycleBulkTask1<>0, OR($F59=O$9,O$9="All")),IF('Input - Inventory'!G56="N",1/CycleBulkTask1,1/CycleBulkTask1LED),0) -> 0.25 | Q59: =IF(AND($D59="Lamp", OR($F59=Q$9, Q$9="All")),IF('Input - Inventory'!G56="N",INDIRECT("PriceBulkTask2" & "FY18"),INDIRECT("PriceBulkTask2LED" & "FY18")),0) -> 0 | R59: =IF(AND($D59="Lamp",CycleBulkTask2<>0, OR($F59=Q$9,Q$9="All")),IF('Input - Inventory'!G56="N",1/CycleBulkTask2,1/CycleBulkTask2LED),0) -> 0 | S59: 11.48500442 | T59: 0.007123137293 | U59: 5.574180491 | V59: 0 | W59: 24.13954103 | X59: 0.005931168948 | Y59: 14.46149856 | Z59: 0.02002998353 | AA59: 40.19950453 | AB59: 0.01503682404 | AC59: 8290.488177 | AD59: 6.144166728e-05 | AE59: 7.79647803 | AG59: 6.3 | AH59: 0.25 | AI59: 49.71973843 | AJ59: 0.007123137293 | AK59: 11.04255977 | AL59: 0 | AM59: 15 | AN59: 0.02096799299 | AO59: 2.243680418 | AQ59: 85.56283983 | AR59: 0.06518620254 | AS59: 1.513333333 | AT59: 85.56283983 | AU59: 0.0198285774 | AV59: 1.513333333 | AW59: 85.56283983 | AX59: 0.03256191236 | AY59: 1.513333333 | AZ59: 15.22442948 | BB59: 6.3 | BC59: 0.06518620254 | BD59: 11.04255977 | BE59: 0.0198285774 | BF59: 15 | BG59: 0.03256191236 | BH59: 1.118060012 | BJ59: 32.09162584 | BK59: 0.1779327277 | BL59: 5.71015052 | BN59: =IF($D59="Connection",VLOOKUP(C59,'Input - General'!$F$51:$N$59,3,FALSE),0) -> 0 | BP59: 0.2227618911 | BQ59: 32.09279846 | BR59: 7.149052476 | BT59: 0.109307573 | BU59: 39.24185094 | BV59: 4.289431486
B60: ='Input - Inventory'!B57 -> 49 | C60: ='Input - Inventory'!C57 -> SON2x250 | D60: ='Input - Inventory'!D57 -> Lamp | E60: ='Input - Inventory'!E57 -> Traffic | F60: ='Input - Inventory'!F57 -> Major | G60: ='Input - Inventory'!H57 -> 2 | I60: Lamp - SON2x250 | K60: 86.47372616 | L60: 30 | M60: 2594.211785 | O60: =IF(AND($D60="Lamp", OR($F60=O$9, O$9="All")),IF('Input - Inventory'!G57="N",INDIRECT("PriceBulkTask1" & "FY18"),INDIRECT("PriceBulkTask1LED" & "FY18")),0) -> 0 | P60: =IF(AND($D60="Lamp",CycleBulkTask1<>0, OR($F60=O$9,O$9="All")),IF('Input - Inventory'!G57="N",1/CycleBulkTask1,1/CycleBulkTask1LED),0) -> 0 | Q60: =IF(AND($D60="Lamp", OR($F60=Q$9, Q$9="All")),IF('Input - Inventory'!G57="N",INDIRECT("PriceBulkTask2" & "FY18"),INDIRECT("PriceBulkTask2LED" & "FY18")),0) -> 28.738834 | R60: =IF(AND($D60="Lamp",CycleBulkTask2<>0, OR($F60=Q$9,Q$9="All")),IF('Input - Inventory'!G57="N",1/CycleBulkTask2,1/CycleBulkTask2LED),0) -> 0.25 | S60: 11.48500442 | T60: 0.007123137293 | U60: 5.574180491 | V60: 0 | W60: 24.13954103 | X60: 0.005931168948 | Y60: 14.46149856 | Z60: 0.02002998353 | AA60: 40.19950453 | AB60: 0.01503682404 | AC60: 8290.488177 | AD60: 6.144166728e-05 | AE60: 8.81321133 | AG60: 18.8 | AH60: 0.25 | AI60: 49.71973843 | AJ60: 0.007123137293 | AK60: 11.04255977 | AL60: 0 | AM60: 15 | AN60: 0.02096799299 | AO60: 5.368680418 | AQ60: 85.56283983 | AR60: 0.1261231641 | AS60: 2.27 | AT60: 85.56283983 | AU60: 0.0198285774 | AV60: 2.27 | AW60: 85.56283983 | AX60: 0.03256191236 | AY60: 2.27 | AZ60: 34.67228684 | BB60: 9.4 | BC60: 0.1261231641 | BD60: 11.04255977 | BE60: 0.0198285774 | BF60: 15 | BG60: 0.03256191236 | BH60: 1.892944679 | BJ60: 32.09162584 | BK60: 0.4052259942 | BL60: 13.00436098 | BN60: =IF($D60="Connection",VLOOKUP(C60,'Input - General'!$F$51:$N$59,3,FALSE),0) -> 0 | BP60: 0.2227618911 | BQ60: 63.75148425 | BR60: 14.20140119 | BT60: 0.109307573 | BU60: 77.95288544 | BV60: 8.520840716
B61: ='Input - Inventory'!B58 -> 50 | C61: ='Input - Inventory'!C58 -> SON2x400 | D61: ='Input - Inventory'!D58 -> Lamp | E61: ='Input - Inventory'!E58 -> Traffic | F61: ='Input - Inventory'!F58 -> Major | G61: ='Input - Inventory'!H58 -> 2 | I61: Lamp - SON2x400 | K61: 87.74765422 | L61: 4 | M61: 350.9906169 | O61: =IF(AND($D61="Lamp", OR($F61=O$9, O$9="All")),IF('Input - Inventory'!G58="N",INDIRECT("PriceBulkTask1" & "FY18"),INDIRECT("PriceBulkTask1LED" & "FY18")),0) -> 0 | P61: =IF(AND($D61="Lamp",CycleBulkTask1<>0, OR($F61=O$9,O$9="All")),IF('Input - Inventory'!G58="N",1/CycleBulkTask1,1/CycleBulkTask1LED),0) -> 0 | Q61: =IF(AND($D61="Lamp", OR($F61=Q$9, Q$9="All")),IF('Input - Inventory'!G58="N",INDIRECT("PriceBulkTask2" & "FY18"),INDIRECT("PriceBulkTask2LED" & "FY18")),0) -> 28.738834 | R61: =IF(AND($D61="Lamp",CycleBulkTask2<>0, OR($F61=Q$9,Q$9="All")),IF('Input - Inventory'!G58="N",1/CycleBulkTask2,1/CycleBulkTask2LED),0) -> 0.25 | S61: 11.48500442 | T61: 0.007123137293 | U61: 5.574180491 | V61: 0 | W61: 24.13954103 | X61: 0.005931168948 | Y61: 14.46149856 | Z61: 0.02002998353 | AA61: 40.19950453 | AB61: 0.01503682404 | AC61: 8290.488177 | AD61: 6.144166728e-05 | AE61: 8.81321133 | AG61: 21.8 | AH61: 0.25 | AI61: 49.71973843 | AJ61: 0.007123137293 | AK61: 11.04255977 | AL61: 0 | AM61: 15 | AN61: 0.02096799299 | AO61: 6.118680418 | AQ61: 85.56283983 | AR61: 0.1261231641 | AS61: 2.27 | AT61: 85.56283983 | AU61: 0.0198285774 | AV61: 2.27 | AW61: 85.56283983 | AX61: 0.03256191236 | AY61: 2.27 | AZ61: 34.67228684 | BB61: 10.9 | BC61: 0.1261231641 | BD61: 11.04255977 | BE61: 0.0198285774 | BF61: 15 | BG61: 0.03256191236 | BH61: 2.082129425 | BJ61: 32.09162584 | BK61: 0.4052259942 | BL61: 13.00436098 | BN61: =IF($D61="Connection",VLOOKUP(C61,'Input - General'!$F$51:$N$59,3,FALSE),0) -> 0 | BP61: 0.2227618911 | BQ61: 64.690669 | BR61: 14.41061576 | BT61: 0.109307573 | BU61: 79.10128476 | BV61: 8.646369458
B62: ='Input - Inventory'!B59 -> 51 | C62: ='Input - Inventory'!C59 -> SON4x250 | D62: ='Input - Inventory'!D59 -> Lamp | E62: ='Input - Inventory'!E59 -> Traffic | F62: ='Input - Inventory'!F59 -> Major | G62: ='Input - Inventory'!H59 -> 4 | I62: Lamp - SON4x250 | K62: 134.1817906 | L62: 6 | M62: 805.0907437 | O62: =IF(AND($D62="Lamp", OR($F62=O$9, O$9="All")),IF('Input - Inventory'!G59="N",INDIRECT("PriceBulkTask1" & "FY18"),INDIRECT("PriceBulkTask1LED" & "FY18")),0) -> 0 | P62: =IF(AND($D62="Lamp",CycleBulkTask1<>0, OR($F62=O$9,O$9="All")),IF('Input - Inventory'!G59="N",1/CycleBulkTask1,1/CycleBulkTask1LED),0) -> 0 | Q62: =IF(AND($D62="Lamp", OR($F62=Q$9, Q$9="All")),IF('Input - Inventory'!G59="N",INDIRECT("PriceBulkTask2" & "FY18"),INDIRECT("PriceBulkTask2LED" & "FY18")),0) -> 28.738834 | R62: =IF(AND($D62="Lamp",CycleBulkTask2<>0, OR($F62=Q$9,Q$9="All")),IF('Input - Inventory'!G59="N",1/CycleBulkTask2,1/CycleBulkTask2LED),0) -> 0.25 | S62: 11.48500442 | T62: 0.007123137293 | U62: 5.574180491 | V62: 0 | W62: 24.13954103 | X62: 0.005931168948 | Y62: 14.46149856 | Z62: 0.02002998353 | AA62: 40.19950453 | AB62: 0.01503682404 | AC62: 8290.488177 | AD62: 6.144166728e-05 | AE62: 8.81321133 | AG62: 37.6 | AH62: 0.25 | AI62: 49.71973843 | AJ62: 0.007123137293 | AK62: 11.04255977 | AL62: 0 | AM62: 15 | AN62: 0.02096799299 | AO62: 10.06868042 | AQ62: 85.56283983 | AR62: 0.2363392756 | AS62: 2.27 | AT62: 85.56283983 | AU62: 0.0198285774 | AV62: 2.27 | AW62: 85.56283983 | AX62: 0.03256191236 | AY62: 2.27 | AZ62: 56.07930278 | BB62: 9.4 | BC62: 0.2363392756 | BD62: 11.04255977 | BE62: 0.0198285774 | BF62: 15 | BG62: 0.03256191236 | BH62: 2.928976127 | BJ62: 32.09162584 | BK62: 0.6554165674 | BL62: 21.03338325 | BN62: =IF($D62="Connection",VLOOKUP(C62,'Input - General'!$F$51:$N$59,3,FALSE),0) -> 0 | BP62: 0.2227618911 | BQ62: 98.92355391 | BR62: 22.03639794 | BT62: 0.109307573 | BU62: 120.9599519 | BV62: 13.22183877
B63: ='Input - Inventory'!B60 -> 52 | C63: ='Input - Inventory'!C60 -> SON4x600 | D63: ='Input - Inventory'!D60 -> Lamp | E63: ='Input - Inventory'!E60 -> Traffic | F63: ='Input - Inventory'!F60 -> Major | G63: ='Input - Inventory'!H60 -> 4 | I63: Lamp - SON4x600 | K63: 165.0384823 | L63: 2 | M63: 330.0769647 | O63: =IF(AND($D63="Lamp", OR($F63=O$9, O$9="All")),IF('Input - Inventory'!G60="N",INDIRECT("PriceBulkTask1" & "FY18"),INDIRECT("PriceBulkTask1LED" & "FY18")),0) -> 0 | P63: =IF(AND($D63="Lamp",CycleBulkTask1<>0, OR($F63=O$9,O$9="All")),IF('Input - Inventory'!G60="N",1/CycleBulkTask1,1/CycleBulkTask1LED),0) -> 0 | Q63: =IF(AND($D63="Lamp", OR($F63=Q$9, Q$9="All")),IF('Input - Inventory'!G60="N",INDIRECT("PriceBulkTask2" & "FY18"),INDIRECT("PriceBulkTask2LED" & "FY18")),0) -> 28.738834 | R63: =IF(AND($D63="Lamp",CycleBulkTask2<>0, OR($F63=Q$9,Q$9="All")),IF('Input - Inventory'!G60="N",1/CycleBulkTask2,1/CycleBulkTask2LED),0) -> 0.25 | S63: 11.48500442 | T63: 0.007123137293 | U63: 5.574180491 | V63: 0 | W63: 24.13954103 | X63: 0.005931168948 | Y63: 14.46149856 | Z63: 0.02002998353 | AA63: 40.19950453 | AB63: 0.01503682404 | AC63: 8290.488177 | AD63: 6.144166728e-05 | AE63: 8.81321133 | AG63: 111.2 | AH63: 0.25 | AI63: 49.71973843 | AJ63: 0.007123137293 | AK63: 11.04255977 | AL63: 0 | AM63: 15 | AN63: 0.02096799299 | AO63: 28.46868042 | AQ63: 85.56283983 | AR63: 0.2363392756 | AS63: 2.27 | AT63: 85.56283983 | AU63: 0.0198285774 | AV63: 2.27 | AW63: 85.56283983 | AX63: 0.03256191236 | AY63: 2.27 | AZ63: 56.07930278 | BB63: 27.8 | BC63: 0.2363392756 | BD63: 11.04255977 | BE63: 0.0198285774 | BF63: 15 | BG63: 0.03256191236 | BH63: 7.277618799 | BJ63: 32.09162584 | BK63: 0.6554165674 | BL63: 21.03338325 | BN63: =IF($D63="Connection",VLOOKUP(C63,'Input - General'!$F$51:$N$59,3,FALSE),0) -> 0 | BP63: 0.2227618911 | BQ63: 121.6721966 | BR63: 27.10392861 | BT63: 0.109307573 | BU63: 148.7761252 | BV63: 16.26235716
B64: ='Input - Inventory'!B61 -> 53 | C64: ='Input - Inventory'!C61 -> TF1x20 | D64: ='Input - Inventory'!D61 -> Lamp | E64: ='Input - Inventory'!E61 -> NonTraffic | F64: ='Input - Inventory'!F61 -> Minor | G64: ='Input - Inventory'!H61 -> 1 | I64: Lamp - TF1x20 | K64: 60.50118579 | L64: 4 | M64: 242.0047432 | O64: =IF(AND($D64="Lamp", OR($F64=O$9, O$9="All")),IF('Input - Inventory'!G61="N",INDIRECT("PriceBulkTask1" & "FY18"),INDIRECT("PriceBulkTask1LED" & "FY18")),0) -> 24.6719008 | P64: =IF(AND($D64="Lamp",CycleBulkTask1<>0, OR($F64=O$9,O$9="All")),IF('Input - Inventory'!G61="N",1/CycleBulkTask1,1/CycleBulkTask1LED),0) -> 0.25 | Q64: =IF(AND($D64="Lamp", OR($F64=Q$9, Q$9="All")),IF('Input - Inventory'!G61="N",INDIRECT("PriceBulkTask2" & "FY18"),INDIRECT("PriceBulkTask2LED" & "FY18")),0) -> 0 | R64: =IF(AND($D64="Lamp",CycleBulkTask2<>0, OR($F64=Q$9,Q$9="All")),IF('Input - Inventory'!G61="N",1/CycleBulkTask2,1/CycleBulkTask2LED),0) -> 0 | S64: 11.48500442 | T64: 0.007123137293 | U64: 5.574180491 | V64: 0 | W64: 24.13954103 | X64: 0.005931168948 | Y64: 14.46149856 | Z64: 0.02002998353 | AA64: 40.19950453 | AB64: 0.01503682404 | AC64: 8290.488177 | AD64: 6.144166728e-05 | AE64: 7.79647803 | AG64: 1.3 | AH64: 0.25 | AI64: 49.71973843 | AJ64: 0.007123137293 | AK64: 11.04255977 | AL64: 0 | AM64: 15 | AN64: 0.02096799299 | AO64: 0.9936804178 | AQ64: 85.56283983 | AR64: 0.1437293284 | AS64: 1.513333333 | AT64: 85.56283983 | AU64: 0.0198285774 | AV64: 1.513333333 | AW64: 85.56283983 | AX64: 0.03256191236 | AY64: 1.513333333 | AZ64: 25.39459379 | BB64: 1.3 | BC64: 0.1437293284 | BD64: 11.04255977 | BE64: 0.0198285774 | BF64: 15 | BG64: 0.03256191236 | BH64: 0.8942350632 | BJ64: 32.09162584 | BK64: 0.2967946581 | BL64: 9.524623117 | BN64: =IF($D64="Connection",VLOOKUP(C64,'Input - General'!$F$51:$N$59,3,FALSE),0) -> 0 | BP64: 0.2227618911 | BQ64: 44.60361042 | BR64: 9.935984608 | BT64: 0.109307573 | BU64: 54.53959503 | BV64: 5.961590765
B65: ='Input - Inventory'!B62 -> 54 | C65: ='Input - Inventory'!C62 -> TF1x40 | D65: ='Input - Inventory'!D62 -> Lamp | E65: ='Input - Inventory'!E62 -> NonTraffic | F65: ='Input - Inventory'!F62 -> Minor | G65: ='Input - Inventory'!H62 -> 1 | I65: Lamp - TF1x40 | K65: 60.60799819 | L65: 292 | M65: 17697.53547 | O65: =IF(AND($D65="Lamp", OR($F65=O$9, O$9="All")),IF('Input - Inventory'!G62="N",INDIRECT("PriceBulkTask1" & "FY18"),INDIRECT("PriceBulkTask1LED" & "FY18")),0) -> 24.6719008 | P65: =IF(AND($D65="Lamp",CycleBulkTask1<>0, OR($F65=O$9,O$9="All")),IF('Input - Inventory'!G62="N",1/CycleBulkTask1,1/CycleBulkTask1LED),0) -> 0.25 | Q65: =IF(AND($D65="Lamp", OR($F65=Q$9, Q$9="All")),IF('Input - Inventory'!G62="N",INDIRECT("PriceBulkTask2" & "FY18"),INDIRECT("PriceBulkTask2LED" & "FY18")),0) -> 0 | R65: =IF(AND($D65="Lamp",CycleBulkTask2<>0, OR($F65=Q$9,Q$9="All")),IF('Input - Inventory'!G62="N",1/CycleBulkTask2,1/CycleBulkTask2LED),0) -> 0 | S65: 11.48500442 | T65: 0.007123137293 | U65: 5.574180491 | V65: 0 | W65: 24.13954103 | X65: 0.005931168948 | Y65: 14.46149856 | Z65: 0.02002998353 | AA65: 40.19950453 | AB65: 0.01503682404 | AC65: 8290.488177 | AD65: 6.144166728e-05 | AE65: 7.79647803 | AG65: 1.5 | AH65: 0.25 | AI65: 49.71973843 | AJ65: 0.007123137293 | AK65: 11.04255977 | AL65: 0 | AM65: 15 | AN65: 0.02096799299 | AO65: 1.043680418 | AQ65: 85.56283983 | AR65: 0.1437293284 | AS65: 1.513333333 | AT65: 85.56283983 | AU65: 0.0198285774 | AV65: 1.513333333 | AW65: 85.56283983 | AX65: 0.03256191236 | AY65: 1.513333333 | AZ65: 25.39459379 | BB65: 1.5 | BC65: 0.1437293284 | BD65: 11.04255977 | BE65: 0.0198285774 | BF65: 15 | BG65: 0.03256191236 | BH65: 0.9229809289 | BJ65: 32.09162584 | BK65: 0.2967946581 | BL65: 9.524623117 | BN65: =IF($D65="Connection",VLOOKUP(C65,'Input - General'!$F$51:$N$59,3,FALSE),0) -> 0 | BP65: 0.2227618911 | BQ65: 44.68235629 | BR65: 9.953526186 | BT65: 0.109307573 | BU65: 54.63588247 | BV65: 5.972115712
B66: ='Input - Inventory'!B63 -> 55 | C66: ='Input - Inventory'!C63 -> TF1x80 | D66: ='Input - Inventory'!D63 -> Lamp | E66: ='Input - Inventory'!E63 -> NonTraffic | F66: ='Input - Inventory'!F63 -> Minor | G66: ='Input - Inventory'!H63 -> 1 | I66: Lamp - TF1x80 | K66: 60.60799819 | L66: 97 | M66: 5878.975824 | O66: =IF(AND($D66="Lamp", OR($F66=O$9, O$9="All")),IF('Input - Inventory'!G63="N",INDIRECT("PriceBulkTask1" & "FY18"),INDIRECT("PriceBulkTask1LED" & "FY18")),0) -> 24.6719008 | P66: =IF(AND($D66="Lamp",CycleBulkTask1<>0, OR($F66=O$9,O$9="All")),IF('Input - Inventory'!G63="N",1/CycleBulkTask1,1/CycleBulkTask1LED),0) -> 0.25 | Q66: =IF(AND($D66="Lamp", OR($F66=Q$9, Q$9="All")),IF('Input - Inventory'!G63="N",INDIRECT("PriceBulkTask2" & "FY18"),INDIRECT("PriceBulkTask2LED" & "FY18")),0) -> 0 | R66: =IF(AND($D66="Lamp",CycleBulkTask2<>0, OR($F66=Q$9,Q$9="All")),IF('Input - Inventory'!G63="N",1/CycleBulkTask2,1/CycleBulkTask2LED),0) -> 0 | S66: 11.48500442 | T66: 0.007123137293 | U66: 5.574180491 | V66: 0 | W66: 24.13954103 | X66: 0.005931168948 | Y66: 14.46149856 | Z66: 0.02002998353 | AA66: 40.19950453 | AB66: 0.01503682404 | AC66: 8290.488177 | AD66: 6.144166728e-05 | AE66: 7.79647803 | AG66: 1.5 | AH66: 0.25 | AI66: 49.71973843 | AJ66: 0.007123137293 | AK66: 11.04255977 | AL66: 0 | AM66: 15 | AN66: 0.02096799299 | AO66: 1.043680418 | AQ66: 85.56283983 | AR66: 0.1437293284 | AS66: 1.513333333 | AT66: 85.56283983 | AU66: 0.0198285774 | AV66: 1.513333333 | AW66: 85.56283983 | AX66: 0.03256191236 | AY66: 1.513333333 | AZ66: 25.39459379 | BB66: 1.5 | BC66: 0.1437293284 | BD66: 11.04255977 | BE66: 0.0198285774 | BF66: 15 | BG66: 0.03256191236 | BH66: 0.9229809289 | BJ66: 32.09162584 | BK66: 0.2967946581 | BL66: 9.524623117 | BN66: =IF($D66="Connection",VLOOKUP(C66,'Input - General'!$F$51:$N$59,3,FALSE),0) -> 0 | BP66: 0.2227618911 | BQ66: 44.68235629 | BR66: 9.953526186 | BT66: 0.109307573 | BU66: 54.63588247 | BV66: 5.972115712
B67: ='Input - Inventory'!B64 -> 56 | C67: ='Input - Inventory'!C64 -> TF2x14 T5 | D67: ='Input - Inventory'!D64 -> Lamp | E67: ='Input - Inventory'!E64 -> NonTraffic | F67: ='Input - Inventory'!F64 -> Minor | G67: ='Input - Inventory'!H64 -> 2 | I67: Lamp - TF2x14 T5 | K67: 48.05546771 | L67: 222 | M67: 10668.31383 | O67: =IF(AND($D67="Lamp", OR($F67=O$9, O$9="All")),IF('Input - Inventory'!G64="N",INDIRECT("PriceBulkTask1" & "FY18"),INDIRECT("PriceBulkTask1LED" & "FY18")),0) -> 24.6719008 | P67: =IF(AND($D67="Lamp",CycleBulkTask1<>0, OR($F67=O$9,O$9="All")),IF('Input - Inventory'!G64="N",1/CycleBulkTask1,1/CycleBulkTask1LED),0) -> 0.25 | Q67: =IF(AND($D67="Lamp", OR($F67=Q$9, Q$9="All")),IF('Input - Inventory'!G64="N",INDIRECT("PriceBulkTask2" & "FY18"),INDIRECT("PriceBulkTask2LED" & "FY18")),0) -> 0 | R67: =IF(AND($D67="Lamp",CycleBulkTask2<>0, OR($F67=Q$9,Q$9="All")),IF('Input - Inventory'!G64="N",1/CycleBulkTask2,1/CycleBulkTask2LED),0) -> 0 | S67: 11.48500442 | T67: 0.007123137293 | U67: 5.574180491 | V67: 0 | W67: 24.13954103 | X67: 0.005931168948 | Y67: 14.46149856 | Z67: 0.02002998353 | AA67: 40.19950453 | AB67: 0.01503682404 | AC67: 8290.488177 | AD67: 6.144166728e-05 | AE67: 7.79647803 | AG67: 3 | AH67: 0.25 | AI67: 49.71973843 | AJ67: 0.007123137293 | AK67: 11.04255977 | AL67: 0 | AM67: 15 | AN67: 0.02096799299 | AO67: 1.418680418 | AQ67: 85.56283983 | AR67: 0.0901 | AS67: 1.513333333 | AT67: 85.56283983 | AU67: 0.0198285774 | AV67: 1.513333333 | AW67: 85.56283983 | AX67: 0.03256191236 | AY67: 1.513333333 | AZ67: 18.45039498 | BB67: 1.5 | BC67: 0.0901 | BD67: 11.04255977 | BE67: 0.0198285774 | BF67: 15 | BG67: 0.03256191236 | BH67: 0.8425369364 | BJ67: 32.09162584 | BK67: 0.2156356078 | BL67: 6.920097243 | BN67: =IF($D67="Connection",VLOOKUP(C67,'Input - General'!$F$51:$N$59,3,FALSE),0) -> 0 | BP67: 0.2227618911 | BQ67: 35.4281876 | BR67: 7.892050069 | BT67: 0.109307573 | BU67: 43.32023767 | BV67: 4.735230042
B68: ='Input - Inventory'!B65 -> 57 | C68: ='Input - Inventory'!C65 -> TF2x20 | D68: ='Input - Inventory'!D65 -> Lamp | E68: ='Input - Inventory'!E65 -> NonTraffic | F68: ='Input - Inventory'!F65 -> Minor | G68: ='Input - Inventory'!H65 -> 2 | I68: Lamp - TF2x20 | K68: 90.88208757 | L68: 9952 | M68: 904458.5355 | O68: =IF(AND($D68="Lamp", OR($F68=O$9, O$9="All")),IF('Input - Inventory'!G65="N",INDIRECT("PriceBulkTask1" & "FY18"),INDIRECT("PriceBulkTask1LED" & "FY18")),0) -> 24.6719008 | P68: =IF(AND($D68="Lamp",CycleBulkTask1<>0, OR($F68=O$9,O$9="All")),IF('Input - Inventory'!G65="N",1/CycleBulkTask1,1/CycleBulkTask1LED),0) -> 0.25 | Q68: =IF(AND($D68="Lamp", OR($F68=Q$9, Q$9="All")),IF('Input - Inventory'!G65="N",INDIRECT("PriceBulkTask2" & "FY18"),INDIRECT("PriceBulkTask2LED" & "FY18")),0) -> 0 | R68: =IF(AND($D68="Lamp",CycleBulkTask2<>0, OR($F68=Q$9,Q$9="All")),IF('Input - Inventory'!G65="N",1/CycleBulkTask2,1/CycleBulkTask2LED),0) -> 0 | S68: 11.48500442 | T68: 0.007123137293 | U68: 5.574180491 | V68: 0 | W68: 24.13954103 | X68: 0.005931168948 | Y68: 14.46149856 | Z68: 0.02002998353 | AA68: 40.19950453 | AB68: 0.01503682404 | AC68: 8290.488177 | AD68: 6.144166728e-05 | AE68: 7.79647803 | AG68: 2.6 | AH68: 0.25 | AI68: 49.71973843 | AJ68: 0.007123137293 | AK68: 11.04255977 | AL68: 0 | AM68: 15 | AN68: 0.02096799299 | AO68: 1.318680418 | AQ68: 85.56283983 | AR68: 0.2668005369 | AS68: 1.513333333 | AT68: 85.56283983 | AU68: 0.0198285774 | AV68: 1.513333333 | AW68: 85.56283983 | AX68: 0.03256191236 | AY68: 1.513333333 | AZ68: 41.33048124 | BB68: 1.3 | BC68: 0.2668005369 | BD68: 11.04255977 | BE68: 0.0198285774 | BF68: 15 | BG68: 0.03256191236 | BH68: 1.054227634 | BJ68: 32.09162584 | BK68: 0.4830424203 | BL68: 15.50161662 | BN68: =IF($D68="Connection",VLOOKUP(C68,'Input - General'!$F$51:$N$59,3,FALSE),0) -> 0 | BP68: 0.2227618911 | BQ68: 67.00148394 | BR68: 14.92537727 | BT68: 0.109307573 | BU68: 81.92686121 | BV68: 8.955226362
B69: ='Input - Inventory'!B66 -> 58 | C69: ='Input - Inventory'!C66 -> TF2x26 | D69: ='Input - Inventory'!D66 -> Lamp | E69: ='Input - Inventory'!E66 -> NonTraffic | F69: ='Input - Inventory'!F66 -> Minor | G69: ='Input - Inventory'!H66 -> 2 | I69: Lamp - TF2x26 | K69: 91.09010814 | L69: 14 | M69: 1275.261514 | O69: =IF(AND($D69="Lamp", OR($F69=O$9, O$9="All")),IF('Input - Inventory'!G66="N",INDIRECT("PriceBulkTask1" & "FY18"),INDIRECT("PriceBulkTask1LED" & "FY18")),0) -> 24.6719008 | P69: =IF(AND($D69="Lamp",CycleBulkTask1<>0, OR($F69=O$9,O$9="All")),IF('Input - Inventory'!G66="N",1/CycleBulkTask1,1/CycleBulkTask1LED),0) -> 0.25 | Q69: =IF(AND($D69="Lamp", OR($F69=Q$9, Q$9="All")),IF('Input - Inventory'!G66="N",INDIRECT("PriceBulkTask2" & "FY18"),INDIRECT("PriceBulkTask2LED" & "FY18")),0) -> 0 | R69: =IF(AND($D69="Lamp",CycleBulkTask2<>0, OR($F69=Q$9,Q$9="All")),IF('Input - Inventory'!G66="N",1/CycleBulkTask2,1/CycleBulkTask2LED),0) -> 0 | S69: 11.48500442 | T69: 0.007123137293 | U69: 5.574180491 | V69: 0 | W69: 24.13954103 | X69: 0.005931168948 | Y69: 14.46149856 | Z69: 0.02002998353 | AA69: 40.19950453 | AB69: 0.01503682404 | AC69: 8290.488177 | AD69: 6.144166728e-05 | AE69: 7.79647803 | AG69: 3 | AH69: 0.25 | AI69: 49.71973843 | AJ69: 0.007123137293 | AK69: 11.04255977 | AL69: 0 | AM69: 15 | AN69: 0.02096799299 | AO69: 1.418680418 | AQ69: 85.56283983 | AR69: 0.2668005369 | AS69: 1.513333333 | AT69: 85.56283983 | AU69: 0.0198285774 | AV69: 1.513333333 | AW69: 85.56283983 | AX69: 0.03256191236 | AY69: 1.513333333 | AZ69: 41.33048124 | BB69: 1.5 | BC69: 0.2668005369 | BD69: 11.04255977 | BE69: 0.0198285774 | BF69: 15 | BG69: 0.03256191236 | BH69: 1.107587742 | BJ69: 32.09162584 | BK69: 0.4830424203 | BL69: 15.50161662 | BN69: =IF($D69="Connection",VLOOKUP(C69,'Input - General'!$F$51:$N$59,3,FALSE),0) -> 0 | BP69: 0.2227618911 | BQ69: 67.15484405 | BR69: 14.95954006 | BT69: 0.109307573 | BU69: 82.11438411 | BV69: 8.975724035
B70: ='Input - Inventory'!B67 -> 59 | C70: ='Input - Inventory'!C67 -> TF2x40 | D70: ='Input - Inventory'!D67 -> Lamp | E70: ='Input - Inventory'!E67 -> NonTraffic | F70: ='Input - Inventory'!F67 -> Minor | G70: ='Input - Inventory'!H67 -> 2 | I70: Lamp - TF2x40 | K70: 91.09010814 | L70: 14 | M70: 1275.261514 | O70: =IF(AND($D70="Lamp", OR($F70=O$9, O$9="All")),IF('Input - Inventory'!G67="N",INDIRECT("PriceBulkTask1" & "FY18"),INDIRECT("PriceBulkTask1LED" & "FY18")),0) -> 24.6719008 | P70: =IF(AND($D70="Lamp",CycleBulkTask1<>0, OR($F70=O$9,O$9="All")),IF('Input - Inventory'!G67="N",1/CycleBulkTask1,1/CycleBulkTask1LED),0) -> 0.25 | Q70: =IF(AND($D70="Lamp", OR($F70=Q$9, Q$9="All")),IF('Input - Inventory'!G67="N",INDIRECT("PriceBulkTask2" & "FY18"),INDIRECT("PriceBulkTask2LED" & "FY18")),0) -> 0 | R70: =IF(AND($D70="Lamp",CycleBulkTask2<>0, OR($F70=Q$9,Q$9="All")),IF('Input - Inventory'!G67="N",1/CycleBulkTask2,1/CycleBulkTask2LED),0) -> 0 | S70: 11.48500442 | T70: 0.007123137293 | U70: 5.574180491 | V70: 0 | W70: 24.13954103 | X70: 0.005931168948 | Y70: 14.46149856 | Z70: 0.02002998353 | AA70: 40.19950453 | AB70: 0.01503682404 | AC70: 8290.488177 | AD70: 6.144166728e-05 | AE70: 7.79647803 | AG70: 3 | AH70: 0.25 | AI70: 49.71973843 | AJ70: 0.007123137293 | AK70: 11.04255977 | AL70: 0 | AM70: 15 | AN70: 0.02096799299 | AO70: 1.418680418 | AQ70: 85.56283983 | AR70: 0.2668005369 | AS70: 1.513333333 | AT70: 85.56283983 | AU70: 0.0198285774 | AV70: 1.513333333 | AW70: 85.56283983 | AX70: 0.03256191236 | AY70: 1.513333333 | AZ70: 41.33048124 | BB70: 1.5 | BC70: 0.2668005369 | BD70: 11.04255977 | BE70: 0.0198285774 | BF70: 15 | BG70: 0.03256191236 | BH70: 1.107587742 | BJ70: 32.09162584 | BK70: 0.4830424203 | BL70: 15.50161662 | BN70: =IF($D70="Connection",VLOOKUP(C70,'Input - General'!$F$51:$N$59,3,FALSE),0) -> 0 | BP70: 0.2227618911 | BQ70: 67.15484405 | BR70: 14.95954006 | BT70: 0.109307573 | BU70: 82.11438411 | BV70: 8.975724035
B71: ='Input - Inventory'!B68 -> 60 | C71: ='Input - Inventory'!C68 -> TF4x20 | D71: ='Input - Inventory'!D68 -> Lamp | E71: ='Input - Inventory'!E68 -> NonTraffic | F71: ='Input - Inventory'!F68 -> Minor | G71: ='Input - Inventory'!H68 -> 2 | I71: Lamp - TF4x20 | K71: 138.4709277 | L71: 12 | M71: 1661.651132 | O71: =IF(AND($D71="Lamp", OR($F71=O$9, O$9="All")),IF('Input - Inventory'!G68="N",INDIRECT("PriceBulkTask1" & "FY18"),INDIRECT("PriceBulkTask1LED" & "FY18")),0) -> 24.6719008 | P71: =IF(AND($D71="Lamp",CycleBulkTask1<>0, OR($F71=O$9,O$9="All")),IF('Input - Inventory'!G68="N",1/CycleBulkTask1,1/CycleBulkTask1LED),0) -> 0.25 | Q71: =IF(AND($D71="Lamp", OR($F71=Q$9, Q$9="All")),IF('Input - Inventory'!G68="N",INDIRECT("PriceBulkTask2" & "FY18"),INDIRECT("PriceBulkTask2LED" & "FY18")),0) -> 0 | R71: =IF(AND($D71="Lamp",CycleBulkTask2<>0, OR($F71=Q$9,Q$9="All")),IF('Input - Inventory'!G68="N",1/CycleBulkTask2,1/CycleBulkTask2LED),0) -> 0 | S71: 11.48500442 | T71: 0.007123137293 | U71: 5.574180491 | V71: 0 | W71: 24.13954103 | X71: 0.005931168948 | Y71: 14.46149856 | Z71: 0.02002998353 | AA71: 40.19950453 | AB71: 0.01503682404 | AC71: 8290.488177 | AD71: 6.144166728e-05 | AE71: 7.79647803 | AG71: 2.6 | AH71: 0.25 | AI71: 49.71973843 | AJ71: 0.007123137293 | AK71: 11.04255977 | AL71: 0 | AM71: 15 | AN71: 0.02096799299 | AO71: 1.318680418 | AQ71: 85.56283983 | AR71: 0.4624185473 | AS71: 1.513333333 | AT71: 85.56283983 | AU71: 0.0198285774 | AV71: 1.513333333 | AW71: 85.56283983 | AX71: 0.03256191236 | AY71: 1.513333333 | AZ71: 66.66009842 | BB71: 1.3 | BC71: 0.4624185473 | BD71: 11.04255977 | BE71: 0.0198285774 | BF71: 15 | BG71: 0.03256191236 | BH71: 1.308531048 | BJ71: 32.09162584 | BK71: 0.7790776761 | BL71: 25.00186928 | BN71: =IF($D71="Connection",VLOOKUP(C71,'Input - General'!$F$51:$N$59,3,FALSE),0) -> 0 | BP71: 0.2227618911 | BQ71: 102.0856572 | BR71: 22.74079405 | BT71: 0.109307573 | BU71: 124.8264512 | BV71: 13.64447643
B72: ='Input - Inventory'!B69 -> 61 | C72: ='Input - Inventory'!C69 -> TF4x40 | D72: ='Input - Inventory'!D69 -> Lamp | E72: ='Input - Inventory'!E69 -> NonTraffic | F72: ='Input - Inventory'!F69 -> Minor | G72: ='Input - Inventory'!H69 -> 4 | I72: Lamp - TF4x40 | K72: 139.7493305 | L72: 2 | M72: 279.498661 | O72: =IF(AND($D72="Lamp", OR($F72=O$9, O$9="All")),IF('Input - Inventory'!G69="N",INDIRECT("PriceBulkTask1" & "FY18"),INDIRECT("PriceBulkTask1LED" & "FY18")),0) -> 24.6719008 | P72: =IF(AND($D72="Lamp",CycleBulkTask1<>0, OR($F72=O$9,O$9="All")),IF('Input - Inventory'!G69="N",1/CycleBulkTask1,1/CycleBulkTask1LED),0) -> 0.25 | Q72: =IF(AND($D72="Lamp", OR($F72=Q$9, Q$9="All")),IF('Input - Inventory'!G69="N",INDIRECT("PriceBulkTask2" & "FY18"),INDIRECT("PriceBulkTask2LED" & "FY18")),0) -> 0 | R72: =IF(AND($D72="Lamp",CycleBulkTask2<>0, OR($F72=Q$9,Q$9="All")),IF('Input - Inventory'!G69="N",1/CycleBulkTask2,1/CycleBulkTask2LED),0) -> 0 | S72: 11.48500442 | T72: 0.007123137293 | U72: 5.574180491 | V72: 0 | W72: 24.13954103 | X72: 0.005931168948 | Y72: 14.46149856 | Z72: 0.02002998353 | AA72: 40.19950453 | AB72: 0.01503682404 | AC72: 8290.488177 | AD72: 6.144166728e-05 | AE72: 7.79647803 | AG72: 6 | AH72: 0.25 | AI72: 49.71973843 | AJ72: 0.007123137293 | AK72: 11.04255977 | AL72: 0 | AM72: 15 | AN72: 0.02096799299 | AO72: 2.168680418 | AQ72: 85.56283983 | AR72: 0.4624185473 | AS72: 1.513333333 | AT72: 85.56283983 | AU72: 0.0198285774 | AV72: 1.513333333 | AW72: 85.56283983 | AX72: 0.03256191236 | AY72: 1.513333333 | AZ72: 66.66009842 | BB72: 1.5 | BC72: 0.4624185473 | BD72: 11.04255977 | BE72: 0.0198285774 | BF72: 15 | BG72: 0.03256191236 | BH72: 1.401014757 | BJ72: 32.09162584 | BK72: 0.7790776761 | BL72: 25.00186928 | BN72: =IF($D72="Connection",VLOOKUP(C72,'Input - General'!$F$51:$N$59,3,FALSE),0) -> 0 | BP72: 0.2227618911 | BQ72: 103.0281409 | BR72: 22.9507435 | BT72: 0.109307573 | BU72: 125.9788844 | BV72: 13.7704461
B73: ='Input - Inventory'!B70 -> 62 | C73: ='Input - Inventory'!C70 -> TH1x1500 | D73: ='Input - Inventory'!D70 -> Lamp | E73: ='Input - Inventory'!E70 -> Traffic | F73: ='Input - Inventory'!F70 -> Major | G73: ='Input - Inventory'!H70 -> 1 | I73: Lamp - TH1x1500 | K73: 123.9258941 | L73: 10 | M73: 1239.258941 | O73: =IF(AND($D73="Lamp", OR($F73=O$9, O$9="All")),IF('Input - Inventory'!G70="N",INDIRECT("PriceBulkTask1" & "FY18"),INDIRECT("PriceBulkTask1LED" & "FY18")),0) -> 0 | P73: =IF(AND($D73="Lamp",CycleBulkTask1<>0, OR($F73=O$9,O$9="All")),IF('Input - Inventory'!G70="N",1/CycleBulkTask1,1/CycleBulkTask1LED),0) -> 0 | Q73: =IF(AND($D73="Lamp", OR($F73=Q$9, Q$9="All")),IF('Input - Inventory'!G70="N",INDIRECT("PriceBulkTask2" & "FY18"),INDIRECT("PriceBulkTask2LED" & "FY18")),0) -> 28.738834 | R73: =IF(AND($D73="Lamp",CycleBulkTask2<>0, OR($F73=Q$9,Q$9="All")),IF('Input - Inventory'!G70="N",1/CycleBulkTask2,1/CycleBulkTask2LED),0) -> 0.25 | S73: 11.48500442 | T73: 0.007123137293 | U73: 5.574180491 | V73: 0 | W73: 24.13954103 | X73: 0.005931168948 | Y73: 14.46149856 | Z73: 0.02002998353 | AA73: 40.19950453 | AB73: 0.01503682404 | AC73: 8290.488177 | AD73: 6.144166728e-05 | AE73: 8.81321133 | AG73: 10.9 | AH73: 0.25 | AI73: 49.71973843 | AJ73: 0.007123137293 | AK73: 11.04255977 | AL73: 0 | AM73: 15 | AN73: 0.02096799299 | AO73: 3.393680418 | AQ73: 85.56283983 | AR73: 0.2318765897 | AS73: 2.27 | AT73: 85.56283983 | AU73: 0.0198285774 | AV73: 2.27 | AW73: 85.56283983 | AX73: 0.03256191236 | AY73: 2.27 | AZ73: 55.21252579 | BB73: 10.9 | BC73: 0.2318765897 | BD73: 11.04255977 | BE73: 0.0198285774 | BF73: 15 | BG73: 0.03256191236 | BH73: 3.234841764 | BJ73: 32.09162584 | BK73: 0.6452862703 | BL73: 20.70828554 | BN73: =IF($D73="Connection",VLOOKUP(C73,'Input - General'!$F$51:$N$59,3,FALSE),0) -> 0 | BP73: 0.2227618911 | BQ73: 91.36254484 | BR73: 20.35209327 | BT73: 0.109307573 | BU73: 111.7146381 | BV73: 12.21125596
B74: ='Input - Inventory'!B71 -> 63 | C74: ='Input - Inventory'!C71 -> TH1x500 | D74: ='Input - Inventory'!D71 -> Lamp | E74: ='Input - Inventory'!E71 -> Traffic | F74: ='Input - Inventory'!F71 -> Major | G74: ='Input - Inventory'!H71 -> 1 | I74: Lamp - TH1x500 | K74: 123.9258941 | L74: 9 | M74: 1115.333047 | O74: =IF(AND($D74="Lamp", OR($F74=O$9, O$9="All")),IF('Input - Inventory'!G71="N",INDIRECT("PriceBulkTask1" & "FY18"),INDIRECT("PriceBulkTask1LED" & "FY18")),0) -> 0 | P74: =IF(AND($D74="Lamp",CycleBulkTask1<>0, OR($F74=O$9,O$9="All")),IF('Input - Inventory'!G71="N",1/CycleBulkTask1,1/CycleBulkTask1LED),0) -> 0 | Q74: =IF(AND($D74="Lamp", OR($F74=Q$9, Q$9="All")),IF('Input - Inventory'!G71="N",INDIRECT("PriceBulkTask2" & "FY18"),INDIRECT("PriceBulkTask2LED" & "FY18")),0) -> 28.738834 | R74: =IF(AND($D74="Lamp",CycleBulkTask2<>0, OR($F74=Q$9,Q$9="All")),IF('Input - Inventory'!G71="N",1/CycleBulkTask2,1/CycleBulkTask2LED),0) -> 0.25 | S74: 11.48500442 | T74: 0.007123137293 | U74: 5.574180491 | V74: 0 | W74: 24.13954103 | X74: 0.005931168948 | Y74: 14.46149856 | Z74: 0.02002998353 | AA74: 40.19950453 | AB74: 0.01503682404 | AC74: 8290.488177 | AD74: 6.144166728e-05 | AE74: 8.81321133 | AG74: 10.9 | AH74: 0.25 | AI74: 49.71973843 | AJ74: 0.007123137293 | AK74: 11.04255977 | AL74: 0 | AM74: 15 | AN74: 0.02096799299 | AO74: 3.393680418 | AQ74: 85.56283983 | AR74: 0.2318765897 | AS74: 2.27 | AT74: 85.56283983 | AU74: 0.0198285774 | AV74: 2.27 | AW74: 85.56283983 | AX74: 0.03256191236 | AY74: 2.27 | AZ74: 55.21252579 | BB74: 10.9 | BC74: 0.2318765897 | BD74: 11.04255977 | BE74: 0.0198285774 | BF74: 15 | BG74: 0.03256191236 | BH74: 3.234841764 | BJ74: 32.09162584 | BK74: 0.6452862703 | BL74: 20.70828554 | BN74: =IF($D74="Connection",VLOOKUP(C74,'Input - General'!$F$51:$N$59,3,FALSE),0) -> 0 | BP74: 0.2227618911 | BQ74: 91.36254484 | BR74: 20.35209327 | BT74: 0.109307573 | BU74: 111.7146381 | BV74: 12.21125596
B75: ='Input - Inventory'!B72 -> 64 | C75: ='Input - Inventory'!C72 -> TH1x750 | D75: ='Input - Inventory'!D72 -> Lamp | E75: ='Input - Inventory'!E72 -> Traffic | F75: ='Input - Inventory'!F72 -> Major | G75: ='Input - Inventory'!H72 -> 1 | I75: Lamp - TH1x750 | K75: 123.9258941 | L75: 8 | M75: 991.4071526 | O75: =IF(AND($D75="Lamp", OR($F75=O$9, O$9="All")),IF('Input - Inventory'!G72="N",INDIRECT("PriceBulkTask1" & "FY18"),INDIRECT("PriceBulkTask1LED" & "FY18")),0) -> 0 | P75: =IF(AND($D75="Lamp",CycleBulkTask1<>0, OR($F75=O$9,O$9="All")),IF('Input - Inventory'!G72="N",1/CycleBulkTask1,1/CycleBulkTask1LED),0) -> 0 | Q75: =IF(AND($D75="Lamp", OR($F75=Q$9, Q$9="All")),IF('Input - Inventory'!G72="N",INDIRECT("PriceBulkTask2" & "FY18"),INDIRECT("PriceBulkTask2LED" & "FY18")),0) -> 28.738834 | R75: =IF(AND($D75="Lamp",CycleBulkTask2<>0, OR($F75=Q$9,Q$9="All")),IF('Input - Inventory'!G72="N",1/CycleBulkTask2,1/CycleBulkTask2LED),0) -> 0.25 | S75: 11.48500442 | T75: 0.007123137293 | U75: 5.574180491 | V75: 0 | W75: 24.13954103 | X75: 0.005931168948 | Y75: 14.46149856 | Z75: 0.02002998353 | AA75: 40.19950453 | AB75: 0.01503682404 | AC75: 8290.488177 | AD75: 6.144166728e-05 | AE75: 8.81321133 | AG75: 10.9 | AH75: 0.25 | AI75: 49.71973843 | AJ75: 0.007123137293 | AK75: 11.04255977 | AL75: 0 | AM75: 15 | AN75: 0.02096799299 | AO75: 3.393680418 | AQ75: 85.56283983 | AR75: 0.2318765897 | AS75: 2.27 | AT75: 85.56283983 | AU75: 0.0198285774 | AV75: 2.27 | AW75: 85.56283983 | AX75: 0.03256191236 | AY75: 2.27 | AZ75: 55.21252579 | BB75: 10.9 | BC75: 0.2318765897 | BD75: 11.04255977 | BE75: 0.0198285774 | BF75: 15 | BG75: 0.03256191236 | BH75: 3.234841764 | BJ75: 32.09162584 | BK75: 0.6452862703 | BL75: 20.70828554 | BN75: =IF($D75="Connection",VLOOKUP(C75,'Input - General'!$F$51:$N$59,3,FALSE),0) -> 0 | BP75: 0.2227618911 | BQ75: 91.36254484 | BR75: 20.35209327 | BT75: 0.109307573 | BU75: 111.7146381 | BV75: 12.21125596

Sheet Calc - Opex FY19
B2: =CONCATENATE("This sheet contains no inputs and all values are calculated for " & "FY19" ) -> This sheet contains no inputs and all values are calculated for FY19 | AE2: Bulk contract | AO2: Bulk materials | AZ2: Spot labour | BH2: Spot materials | BL2: EWP costs | BN2: Connections | BR2: Overheads | BV2: CAM | BY2: RIN DATA - Other failure expense
L4: Totals ---> | M4: =SUM(M12:M75) -> 17775197.13 | O4: =SUMPRODUCT(O12:O75,P12:P75,$L$12:$L$75) -> 1036822.594 | Q4: =SUMPRODUCT(Q12:Q75,R12:R75,$L$12:$L$75) -> 553353.2671 | S4: =SUMPRODUCT(S12:S75,T12:T75,$L$12:$L$75) -> 21070.44189 | U4: =SUMPRODUCT(U12:U75,V12:V75,$L$12:$L$75) -> 0 | W4: =SUMPRODUCT(W12:W75,X12:X75,$L$12:$L$75) -> 36875.71632 | Y4: =SUMPRODUCT(Y12:Y75,Z12:Z75,$L$12:$L$75) -> 74604.50495 | AA4: =SUMPRODUCT(AA12:AA75,AB12:AB75,$L$12:$L$75) -> 155685.4334 | AC4: =SUMPRODUCT(AC12:AC75,AD12:AD75,$L$12:$L$75) -> 131194.086 | AE4: =SUMPRODUCT(AE12:AE75,$L$12:$L$75) -> 2009606.044 | AG4: =SUMPRODUCT(AG12:AG75,AH12:AH75,$L$12:$L$75) -> 279251.2363 | AI4: =SUMPRODUCT(AI12:AI75,AJ12:AJ75,$L$12:$L$75) -> 91216.06061 | AK4: =SUMPRODUCT(AK12:AK75,AL12:AL75,$L$12:$L$75) -> 0 | AM4: =SUMPRODUCT(AM12:AM75,AN12:AN75,$L$12:$L$75) -> 86709.62926 | AO4: =SUMPRODUCT(AO12:AO75,$L$12:$L$75) -> 457176.9262 | AQ4: =SUMPRODUCT(AQ12:AQ75,AR12:AR75,AS12:AS75,$L$12:$L$75) -> 3485914.704 | AT4: =SUMPRODUCT(AT12:AT75,AU12:AU75,AV12:AV75,$L$12:$L$75) -> 767350.578 | AW4: =SUMPRODUCT(AW12:AW75,AX12:AX75,AY12:AY75,$L$12:$L$75) -> 1260120.772 | AZ4: =SUMPRODUCT(AZ12:AZ75,$L$12:$L$75) -> 5513386.054 | BB4: =SUMPRODUCT(BB12:BB75,BC12:BC75,$L$12:$L$75) -> 103679.9385 | BD4: =SUMPRODUCT(BD12:BD75,BE12:BE75,$L$12:$L$75) -> 56393.94511 | BF4: =SUMPRODUCT(BF12:BF75,BG12:BG75,$L$12:$L$75) -> 125797.5908 | BH4: =SUMPRODUCT(BH12:BH75,$L$12:$L$75) -> 285871.4744 | BL4: =SUMPRODUCT(BL12:BL75,$L$12:$L$75) -> 2048491.757 | BN4: =SUMPRODUCT(BN12:BN75,$L$12:$L$75) -> 2789970.697 | BR4: =SUMPRODUCT(BR12:BR75,$L$12:$L$75) -> 2919183.86 | BV4: =SUMPRODUCT(BV12:BV75,$L$12:$L$75) -> 1751510.316 | BY4: =(AT4+AW4+BD4+BF4)+((AT4+AW4+BD4+BF4)/AZ4)*BL4*(1+RateOverhead)*(1+CorporateOverheads) -> 3323279.525
L6: Percent ---> | AE6: =AE4/$M4 -> 0.1130567515 | AO6: =AO4/$M4 -> 0.02571993565 | AZ6: =AZ4/$M4 -> 0.3101729907 | BH6: =BH4/$M4 -> 0.01608260501 | BL6: =BL4/$M4 -> 0.1152443904 | BN6: =BN4/$M4 -> 0.1569586361 | BR6: =BR4/$M4 -> 0.1642279317 | BV6: =BV4/$M4 -> 0.09853675902
M8: Sub-total annual cost | O8: Task 1 | Q8: Task 2 | S8: Task 3 | U8: Task 4 | W8: Task 5 | Y8: Task 6 | AA8: Task 7 | AC8: Task 8 | AE8: Sub-total annual cost per asset | AO8: Sub-total annual cost per asset | AZ8: Sub-total annual cost per asset | BH8: Sub-total annual cost per asset | BL8: Sub-total annual cost per asset | BN8: Sub-total annual cost per asset | BR8: Sub-total annual cost per asset | BV8: Sub-total annual cost per asset
O9: Minor | Q9: Major | S9: All | U9: All | W9: All | Y9: All | AA9: All | AC9: All | AG9: Lamp | AI9: Visors | AK9: PE Cell | AM9: Misc | AQ9: Lamp change | AT9: PE Cell change | AW9: Misc | BB9: Lamp | BD9: PE Cell | BF9: Misc | BJ9: Price | BK9: Hours (weighted by failure)
B10: # | C10: Description | D10: Type | E10: Route | F10: Category | G10: Lamps (#) | K10: Price | L10: Count | O10: Price | P10: Cycle | Q10: Price | R10: Cycle | S10: Price | T10: Cycle | U10: Price | V10: Cycle | W10: Price | X10: Cycle | Y10: Price | Z10: Cycle | AA10: Price | AB10: Cycle | AC10: Price | AD10: Cycle | AG10: Price | AH10: Cycle | AI10: Price | AJ10: Cycle | AK10: Price | AL10: Cycle | AM10: Price | AN10: Cycle | AQ10: Price | AR10: Failure | AS10: Hours | AT10: Price | AU10: Failure | AV10: Hours | AW10: Price | AX10: Failure | AY10: Hours | BB10: Price | BC10: Failure | BD10: Price | BE10: Failure | BF10: Price | BG10: Failure | BP10: Rate | BQ10: Cost | BT10: Rate | BU10: Cost
B12: ='Input - Inventory'!B9 -> 1 | C12: ='Input - Inventory'!C9 -> O/U | D12: ='Input - Inventory'!D9 -> Connection | E12: ='Input - Inventory'!E9 -> NonTraffic | F12: ='Input - Inventory'!F9 -> n/a | G12: ='Input - Inventory'!H9 -> 0 | I12: =CONCATENATE(D12," - ",C12) -> Connection - O/U | K12: =AE12+AO12+AZ12+BH12+BL12+BN12+BR12+BV12 -> 103.1278753 | L12: =INDIRECT(L$10&$B12&"FY19") -> 576 | M12: =L12*K12 -> 59401.65618 | O12: =IF(AND($D12="Lamp", OR($F12=O$9, O$9="All")),IF('Input - Inventory'!G9="N",INDIRECT("PriceBulkTask1" & "FY19"),INDIRECT("PriceBulkTask1LED" & "FY19")),0) -> 0 | P12: =IF(AND($D12="Lamp",CycleBulkTask1<>0, OR($F12=O$9,O$9="All")),IF('Input - Inventory'!G9="N",1/CycleBulkTask1,1/CycleBulkTask1LED),0) -> 0 | Q12: =IF(AND($D12="Lamp", OR($F12=Q$9, Q$9="All")),IF('Input - Inventory'!G9="N",INDIRECT("PriceBulkTask2" & "FY19"),INDIRECT("PriceBulkTask2LED" & "FY19")),0) -> 0 | R12: =IF(AND($D12="Lamp",CycleBulkTask2<>0, OR($F12=Q$9,Q$9="All")),IF('Input - Inventory'!G9="N",1/CycleBulkTask2,1/CycleBulkTask2LED),0) -> 0 | S12: =IF(AND($D12="Lamp", OR($F12=S$9, S$9="All")),INDIRECT("PriceBulkTask3" & "FY19"),0) -> 0 | T12: =IF(AND($D12="Lamp",CycleBulkTask3<>0, OR($F12=S$9,S$9="All")),1/CycleBulkTask3,0) -> 0 | U12: =IF(AND($D12="Lamp", OR($F12=U$9, U$9="All")),INDIRECT("PriceBulkTask4" & "FY19"),0) -> 0 | V12: =IF(AND($D12="Lamp",CycleBulkTask4<>0, OR($F12=U$9,U$9="All")),1/CycleBulkTask4,0) -> 0 | W12: =IF(AND($D12="Lamp", OR($F12=W$9, W$9="All")),INDIRECT("PriceBulkTask5" & "FY19"),0) -> 0 | X12: =IF(AND($D12="Lamp",CycleBulkTask5<>0, OR($F12=W$9,W$9="All")),1/CycleBulkTask5,0) -> 0 | Y12: =IF(AND($D12="Lamp", OR($F12=Y$9, Y$9="All")),INDIRECT("PriceBulkTask6" & "FY19"),0) -> 0 | Z12: =IF(AND($D12="Lamp",CycleBulkTask6<>0, OR($F12=Y$9,Y$9="All")),1/CycleBulkTask6,0) -> 0 | AA12: =IF(AND($D12="Lamp", OR($F12=AA$9, AA$9="All")),INDIRECT("PriceBulkTask7" & "FY19"),0) -> 0 | AB12: =IF(AND($D12="Lamp",CycleBulkTask7<>0, OR($F12=AA$9,AA$9="All")),1/CycleBulkTask7,0) -> 0 | AC12: =IF(AND($D12="Lamp", OR($F12=AC$9, AC$9="All")),INDIRECT("PriceBulkTask8" & "FY19"),0) -> 0 | AD12: =IF(AND($D12="Lamp",CycleBulkTask8<>0, OR($F12=AC$9,AC$9="All")),1/CycleBulkTask8,0) -> 0 | AE12: =O12*P12+Q12*R12+S12*T12+U12*V12+W12*X12+Y12*Z12+AA12*AB12+AC12*AD12 -> 0 | AG12: =IF($D12="Lamp",$G12*INDIRECT("Price" & $B12 & "FY19"),0) -> 0 | AH12: =MAX(P12,R12) -> 0 | AI12: =IF($D12="Lamp",INDIRECT("PriceVisor" & "FY19"),0) -> 0 | AJ12: =T12 -> 0 | AK12: =IF($D12="Lamp",INDIRECT("PricePECell" & "FY19"),0) -> 0 | AL12: =V12 -> 0 | AM12: =IF($D12="Lamp",INDIRECT("PriceMisc" & "FY19"),0) -> 0 | AN12: =X12+AB12 -> 0 | AO12: =AG12*AH12+AI12*AJ12+AK12*AL12+AM12*AN12 -> 0 | AQ12: =IF($D12=$AG$9,(INDIRECT("PriceLabour" & "FY19")*ProportionStandardHours + INDIRECT("PriceLabourOvertime" & "FY19")*ProportionOvertimeHours)*(1+RateOnCostAnnual),0) -> 0 | AR12: =BC12 -> 0 | AS12: =IF($D12="Lamp",(NumberOfCrew+INDIRECT($E12)*TrafficController)*(TimeToReplaceLamp),0) -> 0 | AT12: =IF($D12=$AG$9,(INDIRECT("PriceLabour" & "FY19")*ProportionStandardHours + INDIRECT("PriceLabourOvertime" & "FY19")*ProportionOvertimeHours)*(1+RateOnCostAnnual),0) -> 0 | AU12: =BE12 -> 0 | AV12: =IF($D12="Lamp",(NumberOfCrew+INDIRECT($E12)*TrafficController)*(TimeForPECellReplace),0) -> 0 | AW12: =IF($D12=$AG$9,(INDIRECT("PriceLabour" & "FY19")*ProportionStandardHours + INDIRECT("PriceLabourOvertime" & "FY19")*ProportionOvertimeHours)*(1+RateOnCostAnnual),0) -> 0 | AX12: =BG12 -> 0 | AY12: =IF($D12="Lamp",(NumberOfCrew+INDIRECT($E12)*TrafficController)*(TimeForOtherSpot),0) -> 0 | AZ12: =AQ12*AR12*AS12+AT12*AU12*AV12+AW12*AX12*AY12 -> 0 | BB12: =IF($D12="Lamp",INDIRECT("Price" & $B12 & "FY19"),0) -> 0 | BC12: =IF($D12="Lamp",INDIRECT(BC$10 & $B12),0) -> 0 | BD12: =IF($D12="Lamp",INDIRECT("pRICEpecELL" & "FY19"),0) -> 0 | BE12: =IF($D12="Lamp",INDIRECT("FailurePECell" & "Annual"),0) -> 0 | BF12: =IF($D12="Lamp",INDIRECT("PriceMisc" & "FY19"),0) -> 0 | BG12: =IF($D12="Lamp",INDIRECT("FailureMisc" & "Annual"),0) -> 0 | BH12: =BB12*BC12+BD12*BE12+BF12*BG12 -> 0 | BJ12: =IF(AND($D12="Lamp"),INDIRECT("PriceEWP"&"FY19"),0) -> 0 | BK12: =AR12*AS12+AU12*AV12+AX12*AY12 -> 0 | BL12: =BJ12*BK12 -> 0 | BN12: =IF($D12="Connection",VLOOKUP(C12,'Input - General'!$F$51:$N$59,4,FALSE),0) -> 76.02951105 | BP12: =RateOverhead -> 0.2227618911 | BQ12: =BL12+AZ12+BH12+AO12+AE12+BN12 -> 76.02951105 | BR12: =BQ12*BP12 -> 16.93647766 | BT12: =CorporateOverheads -> 0.109307573 | BU12: =AE12+AO12+AZ12+BH12+BL12+BN12+BR12 -> 92.96598872 | BV12: =BU12*BT12 -> 10.1618866
B13: ='Input - Inventory'!B10 -> 2 | C13: ='Input - Inventory'!C10 -> OH | D13: ='Input - Inventory'!D10 -> Connection | E13: ='Input - Inventory'!E10 -> NonTraffic | F13: ='Input - Inventory'!F10 -> n/a | G13: ='Input - Inventory'!H10 -> 0 | I13: Connection - OH | K13: 0 | L13: 196623 | M13: 0 | O13: =IF(AND($D13="Lamp", OR($F13=O$9, O$9="All")),IF('Input - Inventory'!G10="N",INDIRECT("PriceBulkTask1" & "FY19"),INDIRECT("PriceBulkTask1LED" & "FY19")),0) -> 0 | P13: =IF(AND($D13="Lamp",CycleBulkTask1<>0, OR($F13=O$9,O$9="All")),IF('Input - Inventory'!G10="N",1/CycleBulkTask1,1/CycleBulkTask1LED),0) -> 0 | Q13: =IF(AND($D13="Lamp", OR($F13=Q$9, Q$9="All")),IF('Input - Inventory'!G10="N",INDIRECT("PriceBulkTask2" & "FY19"),INDIRECT("PriceBulkTask2LED" & "FY19")),0) -> 0 | R13: =IF(AND($D13="Lamp",CycleBulkTask2<>0, OR($F13=Q$9,Q$9="All")),IF('Input - Inventory'!G10="N",1/CycleBulkTask2,1/CycleBulkTask2LED),0) -> 0 | S13: 0 | T13: 0 | U13: 0 | V13: 0 | W13: 0 | X13: 0 | Y13: 0 | Z13: 0 | AA13: 0 | AB13: 0 | AC13: 0 | AD13: 0 | AE13: =O13*P13+Q13*R13+S13*T13+U13*V13+W13*X13+Y13*Z13+AA13*AB13+AC13*AD13 -> 0 | AG13: 0 | AH13: 0 | AI13: 0 | AJ13: =T13 -> 0 | AK13: 0 | AL13: =V13 -> 0 | AM13: 0 | AN13: =X13+AB13 -> 0 | AO13: 0 | AQ13: 0 | AR13: 0 | AS13: 0 | AT13: 0 | AU13: 0 | AV13: 0 | AW13: 0 | AX13: 0 | AY13: 0 | AZ13: 0 | BB13: 0 | BC13: 0 | BD13: 0 | BE13: 0 | BF13: 0 | BG13: 0 | BH13: 0 | BJ13: 0 | BK13: 0 | BL13: 0 | BN13: =IF($D13="Connection",VLOOKUP(C13,'Input - General'!$F$51:$N$59,4,FALSE),0) -> 0 | BP13: 0.2227618911 | BQ13: 0 | BR13: 0 | BT13: 0.109307573 | BU13: 0 | BV13: 0
B14: ='Input - Inventory'!B11 -> 3 | C14: ='Input - Inventory'!C11 -> OH2 | D14: ='Input - Inventory'!D11 -> Connection | E14: ='Input - Inventory'!E11 -> NonTraffic | F14: ='Input - Inventory'!F11 -> n/a | G14: ='Input - Inventory'!H11 -> 0 | I14: Connection - OH2 | K14: 0 | L14: 718 | M14: 0 | O14: =IF(AND($D14="Lamp", OR($F14=O$9, O$9="All")),IF('Input - Inventory'!G11="N",INDIRECT("PriceBulkTask1" & "FY19"),INDIRECT("PriceBulkTask1LED" & "FY19")),0) -> 0 | P14: =IF(AND($D14="Lamp",CycleBulkTask1<>0, OR($F14=O$9,O$9="All")),IF('Input - Inventory'!G11="N",1/CycleBulkTask1,1/CycleBulkTask1LED),0) -> 0 | Q14: =IF(AND($D14="Lamp", OR($F14=Q$9, Q$9="All")),IF('Input - Inventory'!G11="N",INDIRECT("PriceBulkTask2" & "FY19"),INDIRECT("PriceBulkTask2LED" & "FY19")),0) -> 0 | R14: =IF(AND($D14="Lamp",CycleBulkTask2<>0, OR($F14=Q$9,Q$9="All")),IF('Input - Inventory'!G11="N",1/CycleBulkTask2,1/CycleBulkTask2LED),0) -> 0 | S14: 0 | T14: 0 | U14: 0 | V14: 0 | W14: 0 | X14: 0 | Y14: 0 | Z14: 0 | AA14: 0 | AB14: 0 | AC14: 0 | AD14: 0 | AE14: 0 | AG14: 0 | AH14: 0 | AI14: 0 | AJ14: 0 | AK14: 0 | AL14: 0 | AM14: 0 | AN14: 0 | AO14: 0 | AQ14: 0 | AR14: 0 | AS14: 0 | AT14: 0 | AU14: 0 | AV14: 0 | AW14: 0 | AX14: 0 | AY14: 0 | AZ14: 0 | BB14: 0 | BC14: 0 | BD14: 0 | BE14: 0 | BF14: 0 | BG14: 0 | BH14: 0 | BJ14: 0 | BK14: 0 | BL14: 0 | BN14: =IF($D14="Connection",VLOOKUP(C14,'Input - General'!$F$51:$N$59,4,FALSE),0) -> 0 | BP14: 0.2227618911 | BQ14: 0 | BR14: 0 | BT14: 0.109307573 | BU14: 0 | BV14: 0
B15: ='Input - Inventory'!B12 -> 4 | C15: ='Input - Inventory'!C12 -> OHS | D15: ='Input - Inventory'!D12 -> Connection | E15: ='Input - Inventory'!E12 -> NonTraffic | F15: ='Input - Inventory'!F12 -> n/a | G15: ='Input - Inventory'!H12 -> 0 | I15: Connection - OHS | K15: 0 | L15: 9 | M15: 0 | O15: =IF(AND($D15="Lamp", OR($F15=O$9, O$9="All")),IF('Input - Inventory'!G12="N",INDIRECT("PriceBulkTask1" & "FY19"),INDIRECT("PriceBulkTask1LED" & "FY19")),0) -> 0 | P15: =IF(AND($D15="Lamp",CycleBulkTask1<>0, OR($F15=O$9,O$9="All")),IF('Input - Inventory'!G12="N",1/CycleBulkTask1,1/CycleBulkTask1LED),0) -> 0 | Q15: =IF(AND($D15="Lamp", OR($F15=Q$9, Q$9="All")),IF('Input - Inventory'!G12="N",INDIRECT("PriceBulkTask2" & "FY19"),INDIRECT("PriceBulkTask2LED" & "FY19")),0) -> 0 | R15: =IF(AND($D15="Lamp",CycleBulkTask2<>0, OR($F15=Q$9,Q$9="All")),IF('Input - Inventory'!G12="N",1/CycleBulkTask2,1/CycleBulkTask2LED),0) -> 0 | S15: 0 | T15: 0 | U15: 0 | V15: 0 | W15: 0 | X15: 0 | Y15: 0 | Z15: 0 | AA15: 0 | AB15: 0 | AC15: 0 | AD15: 0 | AE15: 0 | AG15: 0 | AH15: 0 | AI15: 0 | AJ15: 0 | AK15: 0 | AL15: 0 | AM15: 0 | AN15: 0 | AO15: 0 | AQ15: 0 | AR15: 0 | AS15: 0 | AT15: 0 | AU15: 0 | AV15: 0 | AW15: 0 | AX15: 0 | AY15: 0 | AZ15: 0 | BB15: 0 | BC15: 0 | BD15: 0 | BE15: 0 | BF15: 0 | BG15: 0 | BH15: 0 | BJ15: 0 | BK15: 0 | BL15: 0 | BN15: =IF($D15="Connection",VLOOKUP(C15,'Input - General'!$F$51:$N$59,4,FALSE),0) -> 0 | BP15: 0.2227618911 | BQ15: 0 | BR15: 0 | BT15: 0.109307573 | BU15: 0 | BV15: 0
B16: ='Input - Inventory'!B13 -> 5 | C16: ='Input - Inventory'!C13 -> UG2 | D16: ='Input - Inventory'!D13 -> Connection | E16: ='Input - Inventory'!E13 -> NonTraffic | F16: ='Input - Inventory'!F13 -> n/a | G16: ='Input - Inventory'!H13 -> 0 | I16: Connection - UG2 | K16: 0 | L16: 1134 | M16: 0 | O16: =IF(AND($D16="Lamp", OR($F16=O$9, O$9="All")),IF('Input - Inventory'!G13="N",INDIRECT("PriceBulkTask1" & "FY19"),INDIRECT("PriceBulkTask1LED" & "FY19")),0) -> 0 | P16: =IF(AND($D16="Lamp",CycleBulkTask1<>0, OR($F16=O$9,O$9="All")),IF('Input - Inventory'!G13="N",1/CycleBulkTask1,1/CycleBulkTask1LED),0) -> 0 | Q16: =IF(AND($D16="Lamp", OR($F16=Q$9, Q$9="All")),IF('Input - Inventory'!G13="N",INDIRECT("PriceBulkTask2" & "FY19"),INDIRECT("PriceBulkTask2LED" & "FY19")),0) -> 0 | R16: =IF(AND($D16="Lamp",CycleBulkTask2<>0, OR($F16=Q$9,Q$9="All")),IF('Input - Inventory'!G13="N",1/CycleBulkTask2,1/CycleBulkTask2LED),0) -> 0 | S16: 0 | T16: 0 | U16: 0 | V16: 0 | W16: 0 | X16: 0 | Y16: 0 | Z16: 0 | AA16: 0 | AB16: 0 | AC16: 0 | AD16: 0 | AE16: 0 | AG16: 0 | AH16: 0 | AI16: 0 | AJ16: 0 | AK16: 0 | AL16: 0 | AM16: 0 | AN16: 0 | AO16: 0 | AQ16: 0 | AR16: 0 | AS16: 0 | AT16: 0 | AU16: 0 | AV16: 0 | AW16: 0 | AX16: 0 | AY16: 0 | AZ16: 0 | BB16: 0 | BC16: 0 | BD16: 0 | BE16: 0 | BF16: 0 | BG16: 0 | BH16: 0 | BJ16: 0 | BK16: 0 | BL16: 0 | BN16: =IF($D16="Connection",VLOOKUP(C16,'Input - General'!$F$51:$N$59,4,FALSE),0) -> 0 | BP16: 0.2227618911 | BQ16: 0 | BR16: 0 | BT16: 0.109307573 | BU16: 0 | BV16: 0
B17: ='Input - Inventory'!B14 -> 6 | C17: ='Input - Inventory'!C14 -> UGR1 | D17: ='Input - Inventory'!D14 -> Connection | E17: ='Input - Inventory'!E14 -> NonTraffic | F17: ='Input - Inventory'!F14 -> n/a | G17: ='Input - Inventory'!H14 -> 0 | I17: Connection - UGR1 | K17: 94.5314959 | L17: 31792 | M17: 3005345.317 | O17: =IF(AND($D17="Lamp", OR($F17=O$9, O$9="All")),IF('Input - Inventory'!G14="N",INDIRECT("PriceBulkTask1" & "FY19"),INDIRECT("PriceBulkTask1LED" & "FY19")),0) -> 0 | P17: =IF(AND($D17="Lamp",CycleBulkTask1<>0, OR($F17=O$9,O$9="All")),IF('Input - Inventory'!G14="N",1/CycleBulkTask1,1/CycleBulkTask1LED),0) -> 0 | Q17: =IF(AND($D17="Lamp", OR($F17=Q$9, Q$9="All")),IF('Input - Inventory'!G14="N",INDIRECT("PriceBulkTask2" & "FY19"),INDIRECT("PriceBulkTask2LED" & "FY19")),0) -> 0 | R17: =IF(AND($D17="Lamp",CycleBulkTask2<>0, OR($F17=Q$9,Q$9="All")),IF('Input - Inventory'!G14="N",1/CycleBulkTask2,1/CycleBulkTask2LED),0) -> 0 | S17: 0 | T17: 0 | U17: 0 | V17: 0 | W17: 0 | X17: 0 | Y17: 0 | Z17: 0 | AA17: 0 | AB17: 0 | AC17: 0 | AD17: 0 | AE17: 0 | AG17: 0 | AH17: 0 | AI17: 0 | AJ17: 0 | AK17: 0 | AL17: 0 | AM17: 0 | AN17: 0 | AO17: 0 | AQ17: 0 | AR17: 0 | AS17: 0 | AT17: 0 | AU17: 0 | AV17: 0 | AW17: 0 | AX17: 0 | AY17: 0 | AZ17: 0 | BB17: 0 | BC17: 0 | BD17: 0 | BE17: 0 | BF17: 0 | BG17: 0 | BH17: 0 | BJ17: 0 | BK17: 0 | BL17: 0 | BN17: =IF($D17="Connection",VLOOKUP(C17,'Input - General'!$F$51:$N$59,4,FALSE),0) -> 69.69195661 | BP17: 0.2227618911 | BQ17: 69.69195661 | BR17: 15.52471205 | BT17: 0.109307573 | BU17: 85.21666866 | BV17: 9.31482723
B18: ='Input - Inventory'!B15 -> 7 | C18: ='Input - Inventory'!C15 -> UGR2 | D18: ='Input - Inventory'!D15 -> Connection | E18: ='Input - Inventory'!E15 -> NonTraffic | F18: ='Input - Inventory'!F15 -> n/a | G18: ='Input - Inventory'!H15 -> 0 | I18: Connection - UGR2 | K18: 34.37084401 | L18: 20937 | M18: 719622.3609 | O18: =IF(AND($D18="Lamp", OR($F18=O$9, O$9="All")),IF('Input - Inventory'!G15="N",INDIRECT("PriceBulkTask1" & "FY19"),INDIRECT("PriceBulkTask1LED" & "FY19")),0) -> 0 | P18: =IF(AND($D18="Lamp",CycleBulkTask1<>0, OR($F18=O$9,O$9="All")),IF('Input - Inventory'!G15="N",1/CycleBulkTask1,1/CycleBulkTask1LED),0) -> 0 | Q18: =IF(AND($D18="Lamp", OR($F18=Q$9, Q$9="All")),IF('Input - Inventory'!G15="N",INDIRECT("PriceBulkTask2" & "FY19"),INDIRECT("PriceBulkTask2LED" & "FY19")),0) -> 0 | R18: =IF(AND($D18="Lamp",CycleBulkTask2<>0, OR($F18=Q$9,Q$9="All")),IF('Input - Inventory'!G15="N",1/CycleBulkTask2,1/CycleBulkTask2LED),0) -> 0 | S18: 0 | T18: 0 | U18: 0 | V18: 0 | W18: 0 | X18: 0 | Y18: 0 | Z18: 0 | AA18: 0 | AB18: 0 | AC18: 0 | AD18: 0 | AE18: 0 | AG18: 0 | AH18: 0 | AI18: 0 | AJ18: 0 | AK18: 0 | AL18: 0 | AM18: 0 | AN18: 0 | AO18: 0 | AQ18: 0 | AR18: 0 | AS18: 0 | AT18: 0 | AU18: 0 | AV18: 0 | AW18: 0 | AX18: 0 | AY18: 0 | AZ18: 0 | BB18: 0 | BC18: 0 | BD18: 0 | BE18: 0 | BF18: 0 | BG18: 0 | BH18: 0 | BJ18: 0 | BK18: 0 | BL18: 0 | BN18: =IF($D18="Connection",VLOOKUP(C18,'Input - General'!$F$51:$N$59,4,FALSE),0) -> 25.33939981 | BP18: 0.2227618911 | BQ18: 25.33939981 | BR18: 5.644652622 | BT18: 0.109307573 | BU18: 30.98405243 | BV18: 3.386791573
B19: ='Input - Inventory'!B16 -> 8 | C19: ='Input - Inventory'!C16 -> UGS | D19: ='Input - Inventory'!D16 -> Connection | E19: ='Input - Inventory'!E16 -> NonTraffic | F19: ='Input - Inventory'!F16 -> n/a | G19: ='Input - Inventory'!H16 -> 0 | I19: Connection - UGS | K19: 0 | L19: 108 | M19: 0 | O19: =IF(AND($D19="Lamp", OR($F19=O$9, O$9="All")),IF('Input - Inventory'!G16="N",INDIRECT("PriceBulkTask1" & "FY19"),INDIRECT("PriceBulkTask1LED" & "FY19")),0) -> 0 | P19: =IF(AND($D19="Lamp",CycleBulkTask1<>0, OR($F19=O$9,O$9="All")),IF('Input - Inventory'!G16="N",1/CycleBulkTask1,1/CycleBulkTask1LED),0) -> 0 | Q19: =IF(AND($D19="Lamp", OR($F19=Q$9, Q$9="All")),IF('Input - Inventory'!G16="N",INDIRECT("PriceBulkTask2" & "FY19"),INDIRECT("PriceBulkTask2LED" & "FY19")),0) -> 0 | R19: =IF(AND($D19="Lamp",CycleBulkTask2<>0, OR($F19=Q$9,Q$9="All")),IF('Input - Inventory'!G16="N",1/CycleBulkTask2,1/CycleBulkTask2LED),0) -> 0 | S19: 0 | T19: 0 | U19: 0 | V19: 0 | W19: 0 | X19: 0 | Y19: 0 | Z19: 0 | AA19: 0 | AB19: 0 | AC19: 0 | AD19: 0 | AE19: 0 | AG19: 0 | AH19: 0 | AI19: 0 | AJ19: 0 | AK19: 0 | AL19: 0 | AM19: 0 | AN19: 0 | AO19: 0 | AQ19: 0 | AR19: 0 | AS19: 0 | AT19: 0 | AU19: 0 | AV19: 0 | AW19: 0 | AX19: 0 | AY19: 0 | AZ19: 0 | BB19: 0 | BC19: 0 | BD19: 0 | BE19: 0 | BF19: 0 | BG19: 0 | BH19: 0 | BJ19: 0 | BK19: 0 | BL19: 0 | BN19: =IF($D19="Connection",VLOOKUP(C19,'Input - General'!$F$51:$N$59,4,FALSE),0) -> 0 | BP19: 0.2227618911 | BQ19: 0 | BR19: 0 | BT19: 0.109307573 | BU19: 0 | BV19: 0
B20: ='Input - Inventory'!B17 -> 9 | C20: ='Input - Inventory'!C17 -> UG-SP | D20: ='Input - Inventory'!D17 -> Connection | E20: ='Input - Inventory'!E17 -> NonTraffic | F20: ='Input - Inventory'!F17 -> n/a | G20: ='Input - Inventory'!H17 -> 0 | I20: Connection - UG-SP | K20: 0 | L20: 13 | M20: 0 | O20: =IF(AND($D20="Lamp", OR($F20=O$9, O$9="All")),IF('Input - Inventory'!G17="N",INDIRECT("PriceBulkTask1" & "FY19"),INDIRECT("PriceBulkTask1LED" & "FY19")),0) -> 0 | P20: =IF(AND($D20="Lamp",CycleBulkTask1<>0, OR($F20=O$9,O$9="All")),IF('Input - Inventory'!G17="N",1/CycleBulkTask1,1/CycleBulkTask1LED),0) -> 0 | Q20: =IF(AND($D20="Lamp", OR($F20=Q$9, Q$9="All")),IF('Input - Inventory'!G17="N",INDIRECT("PriceBulkTask2" & "FY19"),INDIRECT("PriceBulkTask2LED" & "FY19")),0) -> 0 | R20: =IF(AND($D20="Lamp",CycleBulkTask2<>0, OR($F20=Q$9,Q$9="All")),IF('Input - Inventory'!G17="N",1/CycleBulkTask2,1/CycleBulkTask2LED),0) -> 0 | S20: 0 | T20: 0 | U20: 0 | V20: 0 | W20: 0 | X20: 0 | Y20: 0 | Z20: 0 | AA20: 0 | AB20: 0 | AC20: 0 | AD20: 0 | AE20: 0 | AG20: 0 | AH20: 0 | AI20: 0 | AJ20: 0 | AK20: 0 | AL20: 0 | AM20: 0 | AN20: 0 | AO20: 0 | AQ20: 0 | AR20: 0 | AS20: 0 | AT20: 0 | AU20: 0 | AV20: 0 | AW20: 0 | AX20: 0 | AY20: 0 | AZ20: 0 | BB20: 0 | BC20: 0 | BD20: 0 | BE20: 0 | BF20: 0 | BG20: 0 | BH20: 0 | BJ20: 0 | BK20: 0 | BL20: 0 | BN20: =IF($D20="Connection",VLOOKUP(C20,'Input - General'!$F$51:$N$59,4,FALSE),0) -> 0 | BP20: 0.2227618911 | BQ20: 0 | BR20: 0 | BT20: 0.109307573 | BU20: 0 | BV20: 0
B21: ='Input - Inventory'!B18 -> 10 | C21: ='Input - Inventory'!C18 -> LED TRIAL | D21: ='Input - Inventory'!D18 -> Lamp | E21: ='Input - Inventory'!E18 -> NonTraffic | F21: ='Input - Inventory'!F18 -> Minor | G21: ='Input - Inventory'!H18 -> 1 | I21: Lamp - LED TRIAL | K21: 22.89503309 | L21: 67 | M21: 1533.967217 | O21: =IF(AND($D21="Lamp", OR($F21=O$9, O$9="All")),IF('Input - Inventory'!G18="N",INDIRECT("PriceBulkTask1" & "FY19"),INDIRECT("PriceBulkTask1LED" & "FY19")),0) -> 25.22503701 | P21: =IF(AND($D21="Lamp",CycleBulkTask1<>0, OR($F21=O$9,O$9="All")),IF('Input - Inventory'!G18="N",1/CycleBulkTask1,1/CycleBulkTask1LED),0) -> 0.1666666667 | Q21: =IF(AND($D21="Lamp", OR($F21=Q$9, Q$9="All")),IF('Input - Inventory'!G18="N",INDIRECT("PriceBulkTask2" & "FY19"),INDIRECT("PriceBulkTask2LED" & "FY19")),0) -> 0 | R21: =IF(AND($D21="Lamp",CycleBulkTask2<>0, OR($F21=Q$9,Q$9="All")),IF('Input - Inventory'!G18="N",1/CycleBulkTask2,1/CycleBulkTask2LED),0) -> 0 | S21: 11.74249459 | T21: 0.007123137293 | U21: 5.699151855 | V21: 0 | W21: 24.68074191 | X21: 0.005931168948 | Y21: 14.78572079 | Z21: 0.02002998353 | AA21: 41.10076471 | AB21: 0.01503682404 | AC21: 8476.3583 | AD21: 6.144166728e-05 | AE21: 5.869186184 | AG21: 0 | AH21: 0.1666666667 | AI21: 50.83443924 | AJ21: 0.007123137293 | AK21: 11.29013046 | AL21: 0 | AM21: 15.33629526 | AN21: 0.02096799299 | AO21: 0.6836720213 | AQ21: 88.30902802 | AR21: 0 | AS21: 1.513333333 | AT21: 88.30902802 | AU21: 0.0198285774 | AV21: =IF($D21="Lamp",(NumberOfCrew+INDIRECT($E21)*TrafficController)*(TimeForPECellReplace),0) -> 1.513333333 | AW21: 88.30902802 | AX21: 0.03256191236 | AY21: 1.513333333 | AZ21: 7.001517219 | BB21: 0 | BC21: 0 | BD21: 11.29013046 | BE21: 0.0198285774 | BF21: 15.33629526 | BG21: 0.03256191236 | BH21: 0.7232463278 | BJ21: 32.81110994 | BK21: 0.0792842745 | BL21: 2.601405047 | BN21: =IF($D21="Connection",VLOOKUP(C21,'Input - General'!$F$51:$N$59,4,FALSE),0) -> 0 | BP21: 0.2227618911 | BQ21: 16.8790268 | BR21: 3.76000393 | BT21: 0.109307573 | BU21: 20.63903073 | BV21: 2.256002358
B22: ='Input - Inventory'!B19 -> 11 | C22: ='Input - Inventory'!C19 -> LED1x100 | D22: ='Input - Inventory'!D19 -> Lamp | E22: ='Input - Inventory'!E19 -> Traffic | F22: ='Input - Inventory'!F19 -> Major | G22: ='Input - Inventory'!H19 -> 1 | I22: Lamp - LED1x100 | K22: 30.34785015 | L22: 6 | M22: 182.0871009 | O22: =IF(AND($D22="Lamp", OR($F22=O$9, O$9="All")),IF('Input - Inventory'!G19="N",INDIRECT("PriceBulkTask1" & "FY19"),INDIRECT("PriceBulkTask1LED" & "FY19")),0) -> 0 | P22: =IF(AND($D22="Lamp",CycleBulkTask1<>0, OR($F22=O$9,O$9="All")),IF('Input - Inventory'!G19="N",1/CycleBulkTask1,1/CycleBulkTask1LED),0) -> 0 | Q22: =IF(AND($D22="Lamp", OR($F22=Q$9, Q$9="All")),IF('Input - Inventory'!G19="N",INDIRECT("PriceBulkTask2" & "FY19"),INDIRECT("PriceBulkTask2LED" & "FY19")),0) -> 29.38314957 | R22: =IF(AND($D22="Lamp",CycleBulkTask2<>0, OR($F22=Q$9,Q$9="All")),IF('Input - Inventory'!G19="N",1/CycleBulkTask2,1/CycleBulkTask2LED),0) -> 0.1666666667 | S22: 11.74249459 | T22: 0.007123137293 | U22: 5.699151855 | V22: 0 | W22: 24.68074191 | X22: 0.005931168948 | Y22: 14.78572079 | Z22: 0.02002998353 | AA22: 41.10076471 | AB22: 0.01503682404 | AC22: 8476.3583 | AD22: 6.144166728e-05 | AE22: 6.562204943 | AG22: 0 | AH22: 0.1666666667 | AI22: 50.83443924 | AJ22: 0.007123137293 | AK22: 11.29013046 | AL22: 0 | AM22: 15.33629526 | AN22: 0.02096799299 | AO22: 0.6836720213 | AQ22: 88.30902802 | AR22: 0 | AS22: 2.27 | AT22: 88.30902802 | AU22: 0.0198285774 | AV22: 2.27 | AW22: 88.30902802 | AX22: 0.03256191236 | AY22: 2.27 | AZ22: 10.50227583 | BB22: 0 | BC22: 0 | BD22: 11.29013046 | BE22: 0.0198285774 | BF22: 15.33629526 | BG22: 0.03256191236 | BH22: 0.7232463278 | BJ22: 32.81110994 | BK22: 0.1189264117 | BL22: 3.90210757 | BN22: =IF($D22="Connection",VLOOKUP(C22,'Input - General'!$F$51:$N$59,4,FALSE),0) -> 0 | BP22: 0.2227618911 | BQ22: 22.37350669 | BR22: 4.983964661 | BT22: 0.109307573 | BU22: 27.35747135 | BV22: 2.990378797
B23: ='Input - Inventory'!B20 -> 12 | C23: ='Input - Inventory'!C20 -> LED1x17 | D23: ='Input - Inventory'!D20 -> Lamp | E23: ='Input - Inventory'!E20 -> NonTraffic | F23: ='Input - Inventory'!F20 -> Minor | G23: ='Input - Inventory'!H20 -> 1 | I23: Lamp - LED1x17 | K23: 22.89503309 | L23: 2793 | M23: 63945.82741 | O23: =IF(AND($D23="Lamp", OR($F23=O$9, O$9="All")),IF('Input - Inventory'!G20="N",INDIRECT("PriceBulkTask1" & "FY19"),INDIRECT("PriceBulkTask1LED" & "FY19")),0) -> 25.22503701 | P23: =IF(AND($D23="Lamp",CycleBulkTask1<>0, OR($F23=O$9,O$9="All")),IF('Input - Inventory'!G20="N",1/CycleBulkTask1,1/CycleBulkTask1LED),0) -> 0.1666666667 | Q23: =IF(AND($D23="Lamp", OR($F23=Q$9, Q$9="All")),IF('Input - Inventory'!G20="N",INDIRECT("PriceBulkTask2" & "FY19"),INDIRECT("PriceBulkTask2LED" & "FY19")),0) -> 0 | R23: =IF(AND($D23="Lamp",CycleBulkTask2<>0, OR($F23=Q$9,Q$9="All")),IF('Input - Inventory'!G20="N",1/CycleBulkTask2,1/CycleBulkTask2LED),0) -> 0 | S23: 11.74249459 | T23: 0.007123137293 | U23: 5.699151855 | V23: 0 | W23: 24.68074191 | X23: 0.005931168948 | Y23: 14.78572079 | Z23: 0.02002998353 | AA23: 41.10076471 | AB23: 0.01503682404 | AC23: 8476.3583 | AD23: 6.144166728e-05 | AE23: 5.869186184 | AG23: 0 | AH23: 0.1666666667 | AI23: 50.83443924 | AJ23: 0.007123137293 | AK23: 11.29013046 | AL23: 0 | AM23: 15.33629526 | AN23: 0.02096799299 | AO23: 0.6836720213 | AQ23: 88.30902802 | AR23: 0 | AS23: 1.513333333 | AT23: 88.30902802 | AU23: 0.0198285774 | AV23: 1.513333333 | AW23: 88.30902802 | AX23: 0.03256191236 | AY23: 1.513333333 | AZ23: 7.001517219 | BB23: 0 | BC23: 0 | BD23: 11.29013046 | BE23: 0.0198285774 | BF23: 15.33629526 | BG23: 0.03256191236 | BH23: 0.7232463278 | BJ23: 32.81110994 | BK23: 0.0792842745 | BL23: 2.601405047 | BN23: =IF($D23="Connection",VLOOKUP(C23,'Input - General'!$F$51:$N$59,4,FALSE),0) -> 0 | BP23: 0.2227618911 | BQ23: 16.8790268 | BR23: 3.76000393 | BT23: 0.109307573 | BU23: 20.63903073 | BV23: 2.256002358
B24: ='Input - Inventory'!B21 -> 13 | C24: ='Input - Inventory'!C21 -> LED1x18 | D24: ='Input - Inventory'!D21 -> Lamp | E24: ='Input - Inventory'!E21 -> NonTraffic | F24: ='Input - Inventory'!F21 -> Minor | G24: ='Input - Inventory'!H21 -> 1 | I24: Lamp - LED1x18 | K24: 22.89503309 | L24: 0 | M24: 0 | O24: =IF(AND($D24="Lamp", OR($F24=O$9, O$9="All")),IF('Input - Inventory'!G21="N",INDIRECT("PriceBulkTask1" & "FY19"),INDIRECT("PriceBulkTask1LED" & "FY19")),0) -> 25.22503701 | P24: =IF(AND($D24="Lamp",CycleBulkTask1<>0, OR($F24=O$9,O$9="All")),IF('Input - Inventory'!G21="N",1/CycleBulkTask1,1/CycleBulkTask1LED),0) -> 0.1666666667 | Q24: =IF(AND($D24="Lamp", OR($F24=Q$9, Q$9="All")),IF('Input - Inventory'!G21="N",INDIRECT("PriceBulkTask2" & "FY19"),INDIRECT("PriceBulkTask2LED" & "FY19")),0) -> 0 | R24: =IF(AND($D24="Lamp",CycleBulkTask2<>0, OR($F24=Q$9,Q$9="All")),IF('Input - Inventory'!G21="N",1/CycleBulkTask2,1/CycleBulkTask2LED),0) -> 0 | S24: 11.74249459 | T24: 0.007123137293 | U24: 5.699151855 | V24: 0 | W24: 24.68074191 | X24: 0.005931168948 | Y24: 14.78572079 | Z24: 0.02002998353 | AA24: 41.10076471 | AB24: 0.01503682404 | AC24: 8476.3583 | AD24: 6.144166728e-05 | AE24: 5.869186184 | AG24: 0 | AH24: 0.1666666667 | AI24: 50.83443924 | AJ24: 0.007123137293 | AK24: 11.29013046 | AL24: 0 | AM24: 15.33629526 | AN24: 0.02096799299 | AO24: 0.6836720213 | AQ24: 88.30902802 | AR24: 0 | AS24: 1.513333333 | AT24: 88.30902802 | AU24: 0.0198285774 | AV24: 1.513333333 | AW24: 88.30902802 | AX24: 0.03256191236 | AY24: 1.513333333 | AZ24: 7.001517219 | BB24: 0 | BC24: 0 | BD24: 11.29013046 | BE24: 0.0198285774 | BF24: 15.33629526 | BG24: 0.03256191236 | BH24: 0.7232463278 | BJ24: 32.81110994 | BK24: 0.0792842745 | BL24: 2.601405047 | BN24: =IF($D24="Connection",VLOOKUP(C24,'Input - General'!$F$51:$N$59,4,FALSE),0) -> 0 | BP24: 0.2227618911 | BQ24: 16.8790268 | BR24: 3.76000393 | BT24: 0.109307573 | BU24: 20.63903073 | BV24: 2.256002358
B25: ='Input - Inventory'!B22 -> 14 | C25: ='Input - Inventory'!C22 -> LED1x20 | D25: ='Input - Inventory'!D22 -> Lamp | E25: ='Input - Inventory'!E22 -> NonTraffic | F25: ='Input - Inventory'!F22 -> Minor | G25: ='Input - Inventory'!H22 -> 1 | I25: Lamp - LED1x20 | K25: 22.89503309 | L25: 0 | M25: 0 | O25: =IF(AND($D25="Lamp", OR($F25=O$9, O$9="All")),IF('Input - Inventory'!G22="N",INDIRECT("PriceBulkTask1" & "FY19"),INDIRECT("PriceBulkTask1LED" & "FY19")),0) -> 25.22503701 | P25: =IF(AND($D25="Lamp",CycleBulkTask1<>0, OR($F25=O$9,O$9="All")),IF('Input - Inventory'!G22="N",1/CycleBulkTask1,1/CycleBulkTask1LED),0) -> 0.1666666667 | Q25: =IF(AND($D25="Lamp", OR($F25=Q$9, Q$9="All")),IF('Input - Inventory'!G22="N",INDIRECT("PriceBulkTask2" & "FY19"),INDIRECT("PriceBulkTask2LED" & "FY19")),0) -> 0 | R25: =IF(AND($D25="Lamp",CycleBulkTask2<>0, OR($F25=Q$9,Q$9="All")),IF('Input - Inventory'!G22="N",1/CycleBulkTask2,1/CycleBulkTask2LED),0) -> 0 | S25: 11.74249459 | T25: 0.007123137293 | U25: 5.699151855 | V25: 0 | W25: 24.68074191 | X25: 0.005931168948 | Y25: 14.78572079 | Z25: 0.02002998353 | AA25: 41.10076471 | AB25: 0.01503682404 | AC25: 8476.3583 | AD25: 6.144166728e-05 | AE25: 5.869186184 | AG25: 0 | AH25: 0.1666666667 | AI25: 50.83443924 | AJ25: 0.007123137293 | AK25: 11.29013046 | AL25: 0 | AM25: 15.33629526 | AN25: 0.02096799299 | AO25: 0.6836720213 | AQ25: 88.30902802 | AR25: 0 | AS25: 1.513333333 | AT25: 88.30902802 | AU25: 0.0198285774 | AV25: 1.513333333 | AW25: 88.30902802 | AX25: 0.03256191236 | AY25: 1.513333333 | AZ25: 7.001517219 | BB25: 0 | BC25: 0 | BD25: 11.29013046 | BE25: 0.0198285774 | BF25: 15.33629526 | BG25: 0.03256191236 | BH25: 0.7232463278 | BJ25: 32.81110994 | BK25: 0.0792842745 | BL25: 2.601405047 | BN25: =IF($D25="Connection",VLOOKUP(C25,'Input - General'!$F$51:$N$59,4,FALSE),0) -> 0 | BP25: 0.2227618911 | BQ25: 16.8790268 | BR25: 3.76000393 | BT25: 0.109307573 | BU25: 20.63903073 | BV25: 2.256002358
B26: ='Input - Inventory'!B23 -> 15 | C26: ='Input - Inventory'!C23 -> LED1x200 | D26: ='Input - Inventory'!D23 -> Lamp | E26: ='Input - Inventory'!E23 -> Traffic | F26: ='Input - Inventory'!F23 -> Major | G26: ='Input - Inventory'!H23 -> 1 | I26: Lamp - LED1x200 | K26: 30.34785015 | L26: 14 | M26: 424.8699021 | O26: =IF(AND($D26="Lamp", OR($F26=O$9, O$9="All")),IF('Input - Inventory'!G23="N",INDIRECT("PriceBulkTask1" & "FY19"),INDIRECT("PriceBulkTask1LED" & "FY19")),0) -> 0 | P26: =IF(AND($D26="Lamp",CycleBulkTask1<>0, OR($F26=O$9,O$9="All")),IF('Input - Inventory'!G23="N",1/CycleBulkTask1,1/CycleBulkTask1LED),0) -> 0 | Q26: =IF(AND($D26="Lamp", OR($F26=Q$9, Q$9="All")),IF('Input - Inventory'!G23="N",INDIRECT("PriceBulkTask2" & "FY19"),INDIRECT("PriceBulkTask2LED" & "FY19")),0) -> 29.38314957 | R26: =IF(AND($D26="Lamp",CycleBulkTask2<>0, OR($F26=Q$9,Q$9="All")),IF('Input - Inventory'!G23="N",1/CycleBulkTask2,1/CycleBulkTask2LED),0) -> 0.1666666667 | S26: 11.74249459 | T26: 0.007123137293 | U26: 5.699151855 | V26: 0 | W26: 24.68074191 | X26: 0.005931168948 | Y26: 14.78572079 | Z26: 0.02002998353 | AA26: 41.10076471 | AB26: 0.01503682404 | AC26: 8476.3583 | AD26: 6.144166728e-05 | AE26: 6.562204943 | AG26: 0 | AH26: 0.1666666667 | AI26: 50.83443924 | AJ26: 0.007123137293 | AK26: 11.29013046 | AL26: 0 | AM26: 15.33629526 | AN26: 0.02096799299 | AO26: 0.6836720213 | AQ26: 88.30902802 | AR26: 0 | AS26: 2.27 | AT26: 88.30902802 | AU26: 0.0198285774 | AV26: 2.27 | AW26: 88.30902802 | AX26: 0.03256191236 | AY26: 2.27 | AZ26: 10.50227583 | BB26: 0 | BC26: 0 | BD26: 11.29013046 | BE26: 0.0198285774 | BF26: 15.33629526 | BG26: 0.03256191236 | BH26: 0.7232463278 | BJ26: 32.81110994 | BK26: 0.1189264117 | BL26: 3.90210757 | BN26: =IF($D26="Connection",VLOOKUP(C26,'Input - General'!$F$51:$N$59,4,FALSE),0) -> 0 | BP26: 0.2227618911 | BQ26: 22.37350669 | BR26: 4.983964661 | BT26: 0.109307573 | BU26: 27.35747135 | BV26: 2.990378797
B27: ='Input - Inventory'!B24 -> 16 | C27: ='Input - Inventory'!C24 -> LED1x22 | D27: ='Input - Inventory'!D24 -> Lamp | E27: ='Input - Inventory'!E24 -> NonTraffic | F27: ='Input - Inventory'!F24 -> Minor | G27: ='Input - Inventory'!H24 -> 1 | I27: Lamp - LED1x22 | K27: 22.89503309 | L27: 14394 | M27: 329551.1062 | O27: =IF(AND($D27="Lamp", OR($F27=O$9, O$9="All")),IF('Input - Inventory'!G24="N",INDIRECT("PriceBulkTask1" & "FY19"),INDIRECT("PriceBulkTask1LED" & "FY19")),0) -> 25.22503701 | P27: =IF(AND($D27="Lamp",CycleBulkTask1<>0, OR($F27=O$9,O$9="All")),IF('Input - Inventory'!G24="N",1/CycleBulkTask1,1/CycleBulkTask1LED),0) -> 0.1666666667 | Q27: =IF(AND($D27="Lamp", OR($F27=Q$9, Q$9="All")),IF('Input - Inventory'!G24="N",INDIRECT("PriceBulkTask2" & "FY19"),INDIRECT("PriceBulkTask2LED" & "FY19")),0) -> 0 | R27: =IF(AND($D27="Lamp",CycleBulkTask2<>0, OR($F27=Q$9,Q$9="All")),IF('Input - Inventory'!G24="N",1/CycleBulkTask2,1/CycleBulkTask2LED),0) -> 0 | S27: 11.74249459 | T27: 0.007123137293 | U27: 5.699151855 | V27: 0 | W27: 24.68074191 | X27: 0.005931168948 | Y27: 14.78572079 | Z27: 0.02002998353 | AA27: 41.10076471 | AB27: 0.01503682404 | AC27: 8476.3583 | AD27: 6.144166728e-05 | AE27: 5.869186184 | AG27: 0 | AH27: 0.1666666667 | AI27: 50.83443924 | AJ27: 0.007123137293 | AK27: 11.29013046 | AL27: 0 | AM27: 15.33629526 | AN27: 0.02096799299 | AO27: 0.6836720213 | AQ27: 88.30902802 | AR27: 0 | AS27: 1.513333333 | AT27: 88.30902802 | AU27: 0.0198285774 | AV27: 1.513333333 | AW27: 88.30902802 | AX27: 0.03256191236 | AY27: 1.513333333 | AZ27: 7.001517219 | BB27: 0 | BC27: 0 | BD27: 11.29013046 | BE27: 0.0198285774 | BF27: 15.33629526 | BG27: 0.03256191236 | BH27: 0.7232463278 | BJ27: 32.81110994 | BK27: 0.0792842745 | BL27: 2.601405047 | BN27: =IF($D27="Connection",VLOOKUP(C27,'Input - General'!$F$51:$N$59,4,FALSE),0) -> 0 | BP27: 0.2227618911 | BQ27: 16.8790268 | BR27: 3.76000393 | BT27: 0.109307573 | BU27: 20.63903073 | BV27: 2.256002358
B28: ='Input - Inventory'!B25 -> 17 | C28: ='Input - Inventory'!C25 -> LED1x25 GE | D28: ='Input - Inventory'!D25 -> Lamp | E28: ='Input - Inventory'!E25 -> NonTraffic | F28: ='Input - Inventory'!F25 -> Minor | G28: ='Input - Inventory'!H25 -> 1 | I28: Lamp - LED1x25 GE | K28: 22.89503309 | L28: 3665 | M28: 83910.29626 | O28: =IF(AND($D28="Lamp", OR($F28=O$9, O$9="All")),IF('Input - Inventory'!G25="N",INDIRECT("PriceBulkTask1" & "FY19"),INDIRECT("PriceBulkTask1LED" & "FY19")),0) -> 25.22503701 | P28: =IF(AND($D28="Lamp",CycleBulkTask1<>0, OR($F28=O$9,O$9="All")),IF('Input - Inventory'!G25="N",1/CycleBulkTask1,1/CycleBulkTask1LED),0) -> 0.1666666667 | Q28: =IF(AND($D28="Lamp", OR($F28=Q$9, Q$9="All")),IF('Input - Inventory'!G25="N",INDIRECT("PriceBulkTask2" & "FY19"),INDIRECT("PriceBulkTask2LED" & "FY19")),0) -> 0 | R28: =IF(AND($D28="Lamp",CycleBulkTask2<>0, OR($F28=Q$9,Q$9="All")),IF('Input - Inventory'!G25="N",1/CycleBulkTask2,1/CycleBulkTask2LED),0) -> 0 | S28: 11.74249459 | T28: 0.007123137293 | U28: 5.699151855 | V28: 0 | W28: 24.68074191 | X28: 0.005931168948 | Y28: 14.78572079 | Z28: 0.02002998353 | AA28: 41.10076471 | AB28: 0.01503682404 | AC28: 8476.3583 | AD28: 6.144166728e-05 | AE28: 5.869186184 | AG28: 0 | AH28: 0.1666666667 | AI28: 50.83443924 | AJ28: 0.007123137293 | AK28: 11.29013046 | AL28: 0 | AM28: 15.33629526 | AN28: 0.02096799299 | AO28: 0.6836720213 | AQ28: 88.30902802 | AR28: 0 | AS28: 1.513333333 | AT28: 88.30902802 | AU28: 0.0198285774 | AV28: 1.513333333 | AW28: 88.30902802 | AX28: 0.03256191236 | AY28: 1.513333333 | AZ28: 7.001517219 | BB28: 0 | BC28: 0 | BD28: 11.29013046 | BE28: 0.0198285774 | BF28: 15.33629526 | BG28: 0.03256191236 | BH28: 0.7232463278 | BJ28: 32.81110994 | BK28: 0.0792842745 | BL28: 2.601405047 | BN28: =IF($D28="Connection",VLOOKUP(C28,'Input - General'!$F$51:$N$59,4,FALSE),0) -> 0 | BP28: 0.2227618911 | BQ28: 16.8790268 | BR28: 3.76000393 | BT28: 0.109307573 | BU28: 20.63903073 | BV28: 2.256002358
B29: ='Input - Inventory'!B26 -> 18 | C29: ='Input - Inventory'!C26 -> LED1x28 | D29: ='Input - Inventory'!D26 -> Lamp | E29: ='Input - Inventory'!E26 -> NonTraffic | F29: ='Input - Inventory'!F26 -> Minor | G29: ='Input - Inventory'!H26 -> 1 | I29: Lamp - LED1x28 | K29: 22.89503309 | L29: 0 | M29: 0 | O29: =IF(AND($D29="Lamp", OR($F29=O$9, O$9="All")),IF('Input - Inventory'!G26="N",INDIRECT("PriceBulkTask1" & "FY19"),INDIRECT("PriceBulkTask1LED" & "FY19")),0) -> 25.22503701 | P29: =IF(AND($D29="Lamp",CycleBulkTask1<>0, OR($F29=O$9,O$9="All")),IF('Input - Inventory'!G26="N",1/CycleBulkTask1,1/CycleBulkTask1LED),0) -> 0.1666666667 | Q29: =IF(AND($D29="Lamp", OR($F29=Q$9, Q$9="All")),IF('Input - Inventory'!G26="N",INDIRECT("PriceBulkTask2" & "FY19"),INDIRECT("PriceBulkTask2LED" & "FY19")),0) -> 0 | R29: =IF(AND($D29="Lamp",CycleBulkTask2<>0, OR($F29=Q$9,Q$9="All")),IF('Input - Inventory'!G26="N",1/CycleBulkTask2,1/CycleBulkTask2LED),0) -> 0 | S29: 11.74249459 | T29: 0.007123137293 | U29: 5.699151855 | V29: 0 | W29: 24.68074191 | X29: 0.005931168948 | Y29: 14.78572079 | Z29: 0.02002998353 | AA29: 41.10076471 | AB29: 0.01503682404 | AC29: 8476.3583 | AD29: 6.144166728e-05 | AE29: 5.869186184 | AG29: 0 | AH29: 0.1666666667 | AI29: 50.83443924 | AJ29: 0.007123137293 | AK29: 11.29013046 | AL29: 0 | AM29: 15.33629526 | AN29: 0.02096799299 | AO29: 0.6836720213 | AQ29: 88.30902802 | AR29: 0 | AS29: 1.513333333 | AT29: 88.30902802 | AU29: 0.0198285774 | AV29: 1.513333333 | AW29: 88.30902802 | AX29: 0.03256191236 | AY29: 1.513333333 | AZ29: 7.001517219 | BB29: 0 | BC29: 0 | BD29: 11.29013046 | BE29: 0.0198285774 | BF29: 15.33629526 | BG29: 0.03256191236 | BH29: 0.7232463278 | BJ29: 32.81110994 | BK29: 0.0792842745 | BL29: 2.601405047 | BN29: =IF($D29="Connection",VLOOKUP(C29,'Input - General'!$F$51:$N$59,4,FALSE),0) -> 0 | BP29: 0.2227618911 | BQ29: 16.8790268 | BR29: 3.76000393 | BT29: 0.109307573 | BU29: 20.63903073 | BV29: 2.256002358
B30: ='Input - Inventory'!B27 -> 19 | C30: ='Input - Inventory'!C27 -> LED1x29 | D30: ='Input - Inventory'!D27 -> Lamp | E30: ='Input - Inventory'!E27 -> NonTraffic | F30: ='Input - Inventory'!F27 -> Minor | G30: ='Input - Inventory'!H27 -> 1 | I30: Lamp - LED1x29 | K30: 22.89503309 | L30: 15545 | M30: 355903.2893 | O30: =IF(AND($D30="Lamp", OR($F30=O$9, O$9="All")),IF('Input - Inventory'!G27="N",INDIRECT("PriceBulkTask1" & "FY19"),INDIRECT("PriceBulkTask1LED" & "FY19")),0) -> 25.22503701 | P30: =IF(AND($D30="Lamp",CycleBulkTask1<>0, OR($F30=O$9,O$9="All")),IF('Input - Inventory'!G27="N",1/CycleBulkTask1,1/CycleBulkTask1LED),0) -> 0.1666666667 | Q30: =IF(AND($D30="Lamp", OR($F30=Q$9, Q$9="All")),IF('Input - Inventory'!G27="N",INDIRECT("PriceBulkTask2" & "FY19"),INDIRECT("PriceBulkTask2LED" & "FY19")),0) -> 0 | R30: =IF(AND($D30="Lamp",CycleBulkTask2<>0, OR($F30=Q$9,Q$9="All")),IF('Input - Inventory'!G27="N",1/CycleBulkTask2,1/CycleBulkTask2LED),0) -> 0 | S30: 11.74249459 | T30: 0.007123137293 | U30: 5.699151855 | V30: 0 | W30: 24.68074191 | X30: 0.005931168948 | Y30: 14.78572079 | Z30: 0.02002998353 | AA30: 41.10076471 | AB30: 0.01503682404 | AC30: 8476.3583 | AD30: 6.144166728e-05 | AE30: 5.869186184 | AG30: 0 | AH30: 0.1666666667 | AI30: 50.83443924 | AJ30: 0.007123137293 | AK30: 11.29013046 | AL30: 0 | AM30: 15.33629526 | AN30: 0.02096799299 | AO30: 0.6836720213 | AQ30: 88.30902802 | AR30: 0 | AS30: 1.513333333 | AT30: 88.30902802 | AU30: 0.0198285774 | AV30: 1.513333333 | AW30: 88.30902802 | AX30: 0.03256191236 | AY30: 1.513333333 | AZ30: 7.001517219 | BB30: 0 | BC30: 0 | BD30: 11.29013046 | BE30: 0.0198285774 | BF30: 15.33629526 | BG30: 0.03256191236 | BH30: 0.7232463278 | BJ30: 32.81110994 | BK30: 0.0792842745 | BL30: 2.601405047 | BN30: =IF($D30="Connection",VLOOKUP(C30,'Input - General'!$F$51:$N$59,4,FALSE),0) -> 0 | BP30: 0.2227618911 | BQ30: 16.8790268 | BR30: 3.76000393 | BT30: 0.109307573 | BU30: 20.63903073 | BV30: 2.256002358
B31: ='Input - Inventory'!B28 -> 20 | C31: ='Input - Inventory'!C28 -> LED1x298 | D31: ='Input - Inventory'!D28 -> Lamp | E31: ='Input - Inventory'!E28 -> Traffic | F31: ='Input - Inventory'!F28 -> Major | G31: ='Input - Inventory'!H28 -> 1 | I31: Lamp - LED1x298 | K31: 30.34785015 | L31: 0 | M31: 0 | O31: =IF(AND($D31="Lamp", OR($F31=O$9, O$9="All")),IF('Input - Inventory'!G28="N",INDIRECT("PriceBulkTask1" & "FY19"),INDIRECT("PriceBulkTask1LED" & "FY19")),0) -> 0 | P31: =IF(AND($D31="Lamp",CycleBulkTask1<>0, OR($F31=O$9,O$9="All")),IF('Input - Inventory'!G28="N",1/CycleBulkTask1,1/CycleBulkTask1LED),0) -> 0 | Q31: =IF(AND($D31="Lamp", OR($F31=Q$9, Q$9="All")),IF('Input - Inventory'!G28="N",INDIRECT("PriceBulkTask2" & "FY19"),INDIRECT("PriceBulkTask2LED" & "FY19")),0) -> 29.38314957 | R31: =IF(AND($D31="Lamp",CycleBulkTask2<>0, OR($F31=Q$9,Q$9="All")),IF('Input - Inventory'!G28="N",1/CycleBulkTask2,1/CycleBulkTask2LED),0) -> 0.1666666667 | S31: 11.74249459 | T31: 0.007123137293 | U31: 5.699151855 | V31: 0 | W31: 24.68074191 | X31: 0.005931168948 | Y31: 14.78572079 | Z31: 0.02002998353 | AA31: 41.10076471 | AB31: 0.01503682404 | AC31: 8476.3583 | AD31: 6.144166728e-05 | AE31: 6.562204943 | AG31: 0 | AH31: 0.1666666667 | AI31: 50.83443924 | AJ31: 0.007123137293 | AK31: 11.29013046 | AL31: 0 | AM31: 15.33629526 | AN31: 0.02096799299 | AO31: 0.6836720213 | AQ31: 88.30902802 | AR31: 0 | AS31: 2.27 | AT31: 88.30902802 | AU31: 0.0198285774 | AV31: 2.27 | AW31: 88.30902802 | AX31: 0.03256191236 | AY31: 2.27 | AZ31: 10.50227583 | BB31: 0 | BC31: 0 | BD31: 11.29013046 | BE31: 0.0198285774 | BF31: 15.33629526 | BG31: 0.03256191236 | BH31: 0.7232463278 | BJ31: 32.81110994 | BK31: 0.1189264117 | BL31: 3.90210757 | BN31: =IF($D31="Connection",VLOOKUP(C31,'Input - General'!$F$51:$N$59,4,FALSE),0) -> 0 | BP31: 0.2227618911 | BQ31: 22.37350669 | BR31: 4.983964661 | BT31: 0.109307573 | BU31: 27.35747135 | BV31: 2.990378797
B32: ='Input - Inventory'!B29 -> 21 | C32: ='Input - Inventory'!C29 -> LED1x33 | D32: ='Input - Inventory'!D29 -> Lamp | E32: ='Input - Inventory'!E29 -> NonTraffic | F32: ='Input - Inventory'!F29 -> Minor | G32: ='Input - Inventory'!H29 -> 1 | I32: Lamp - LED1x33 | K32: 22.89503309 | L32: 0 | M32: 0 | O32: =IF(AND($D32="Lamp", OR($F32=O$9, O$9="All")),IF('Input - Inventory'!G29="N",INDIRECT("PriceBulkTask1" & "FY19"),INDIRECT("PriceBulkTask1LED" & "FY19")),0) -> 25.22503701 | P32: =IF(AND($D32="Lamp",CycleBulkTask1<>0, OR($F32=O$9,O$9="All")),IF('Input - Inventory'!G29="N",1/CycleBulkTask1,1/CycleBulkTask1LED),0) -> 0.1666666667 | Q32: =IF(AND($D32="Lamp", OR($F32=Q$9, Q$9="All")),IF('Input - Inventory'!G29="N",INDIRECT("PriceBulkTask2" & "FY19"),INDIRECT("PriceBulkTask2LED" & "FY19")),0) -> 0 | R32: =IF(AND($D32="Lamp",CycleBulkTask2<>0, OR($F32=Q$9,Q$9="All")),IF('Input - Inventory'!G29="N",1/CycleBulkTask2,1/CycleBulkTask2LED),0) -> 0 | S32: 11.74249459 | T32: 0.007123137293 | U32: 5.699151855 | V32: 0 | W32: 24.68074191 | X32: 0.005931168948 | Y32: 14.78572079 | Z32: 0.02002998353 | AA32: 41.10076471 | AB32: 0.01503682404 | AC32: 8476.3583 | AD32: 6.144166728e-05 | AE32: 5.869186184 | AG32: 0 | AH32: 0.1666666667 | AI32: 50.83443924 | AJ32: 0.007123137293 | AK32: 11.29013046 | AL32: 0 | AM32: 15.33629526 | AN32: 0.02096799299 | AO32: 0.6836720213 | AQ32: 88.30902802 | AR32: 0 | AS32: 1.513333333 | AT32: 88.30902802 | AU32: 0.0198285774 | AV32: 1.513333333 | AW32: 88.30902802 | AX32: 0.03256191236 | AY32: 1.513333333 | AZ32: 7.001517219 | BB32: 0 | BC32: 0 | BD32: 11.29013046 | BE32: 0.0198285774 | BF32: 15.33629526 | BG32: 0.03256191236 | BH32: 0.7232463278 | BJ32: 32.81110994 | BK32: 0.0792842745 | BL32: 2.601405047 | BN32: =IF($D32="Connection",VLOOKUP(C32,'Input - General'!$F$51:$N$59,4,FALSE),0) -> 0 | BP32: 0.2227618911 | BQ32: 16.8790268 | BR32: 3.76000393 | BT32: 0.109307573 | BU32: 20.63903073 | BV32: 2.256002358
B33: ='Input - Inventory'!B30 -> 22 | C33: ='Input - Inventory'!C30 -> LED1x42 | D33: ='Input - Inventory'!D30 -> Lamp | E33: ='Input - Inventory'!E30 -> NonTraffic | F33: ='Input - Inventory'!F30 -> Minor | G33: ='Input - Inventory'!H30 -> 1 | I33: Lamp - LED1x42 | K33: 22.89503309 | L33: 17 | M33: 389.2155625 | O33: =IF(AND($D33="Lamp", OR($F33=O$9, O$9="All")),IF('Input - Inventory'!G30="N",INDIRECT("PriceBulkTask1" & "FY19"),INDIRECT("PriceBulkTask1LED" & "FY19")),0) -> 25.22503701 | P33: =IF(AND($D33="Lamp",CycleBulkTask1<>0, OR($F33=O$9,O$9="All")),IF('Input - Inventory'!G30="N",1/CycleBulkTask1,1/CycleBulkTask1LED),0) -> 0.1666666667 | Q33: =IF(AND($D33="Lamp", OR($F33=Q$9, Q$9="All")),IF('Input - Inventory'!G30="N",INDIRECT("PriceBulkTask2" & "FY19"),INDIRECT("PriceBulkTask2LED" & "FY19")),0) -> 0 | R33: =IF(AND($D33="Lamp",CycleBulkTask2<>0, OR($F33=Q$9,Q$9="All")),IF('Input - Inventory'!G30="N",1/CycleBulkTask2,1/CycleBulkTask2LED),0) -> 0 | S33: 11.74249459 | T33: 0.007123137293 | U33: 5.699151855 | V33: 0 | W33: 24.68074191 | X33: 0.005931168948 | Y33: 14.78572079 | Z33: 0.02002998353 | AA33: 41.10076471 | AB33: 0.01503682404 | AC33: 8476.3583 | AD33: 6.144166728e-05 | AE33: 5.869186184 | AG33: 0 | AH33: 0.1666666667 | AI33: 50.83443924 | AJ33: 0.007123137293 | AK33: 11.29013046 | AL33: 0 | AM33: 15.33629526 | AN33: 0.02096799299 | AO33: 0.6836720213 | AQ33: 88.30902802 | AR33: 0 | AS33: 1.513333333 | AT33: 88.30902802 | AU33: 0.0198285774 | AV33: 1.513333333 | AW33: 88.30902802 | AX33: 0.03256191236 | AY33: 1.513333333 | AZ33: 7.001517219 | BB33: 0 | BC33: 0 | BD33: 11.29013046 | BE33: 0.0198285774 | BF33: 15.33629526 | BG33: 0.03256191236 | BH33: 0.7232463278 | BJ33: 32.81110994 | BK33: 0.0792842745 | BL33: 2.601405047 | BN33: =IF($D33="Connection",VLOOKUP(C33,'Input - General'!$F$51:$N$59,4,FALSE),0) -> 0 | BP33: 0.2227618911 | BQ33: 16.8790268 | BR33: 3.76000393 | BT33: 0.109307573 | BU33: 20.63903073 | BV33: 2.256002358
B34: ='Input - Inventory'!B31 -> 23 | C34: ='Input - Inventory'!C31 -> MBF1x1000 | D34: ='Input - Inventory'!D31 -> Lamp | E34: ='Input - Inventory'!E31 -> Traffic | F34: ='Input - Inventory'!F31 -> Major | G34: ='Input - Inventory'!H31 -> 1 | I34: Lamp - MBF1x1000 | K34: 138.7228568 | L34: 6 | M34: 832.3371408 | O34: =IF(AND($D34="Lamp", OR($F34=O$9, O$9="All")),IF('Input - Inventory'!G31="N",INDIRECT("PriceBulkTask1" & "FY19"),INDIRECT("PriceBulkTask1LED" & "FY19")),0) -> 0 | P34: =IF(AND($D34="Lamp",CycleBulkTask1<>0, OR($F34=O$9,O$9="All")),IF('Input - Inventory'!G31="N",1/CycleBulkTask1,1/CycleBulkTask1LED),0) -> 0 | Q34: =IF(AND($D34="Lamp", OR($F34=Q$9, Q$9="All")),IF('Input - Inventory'!G31="N",INDIRECT("PriceBulkTask2" & "FY19"),INDIRECT("PriceBulkTask2LED" & "FY19")),0) -> 29.38314957 | R34: =IF(AND($D34="Lamp",CycleBulkTask2<>0, OR($F34=Q$9,Q$9="All")),IF('Input - Inventory'!G31="N",1/CycleBulkTask2,1/CycleBulkTask2LED),0) -> 0.25 | S34: 11.74249459 | T34: 0.007123137293 | U34: 5.699151855 | V34: 0 | W34: 24.68074191 | X34: 0.005931168948 | Y34: 14.78572079 | Z34: 0.02002998353 | AA34: 41.10076471 | AB34: 0.01503682404 | AC34: 8476.3583 | AD34: 6.144166728e-05 | AE34: 9.010800741 | AG34: 28.42326721 | AH34: 0.25 | AI34: 50.83443924 | AJ34: 0.007123137293 | AK34: 11.29013046 | AL34: 0 | AM34: 15.33629526 | AN34: 0.02096799299 | AO34: 7.789488823 | AQ34: 88.30902802 | AR34: 0.2318765897 | AS34: 2.27 | AT34: 88.30902802 | AU34: 0.0198285774 | AV34: 2.27 | AW34: 88.30902802 | AX34: 0.03256191236 | AY34: 2.27 | AZ34: 56.98460333 | BB34: 28.42326721 | BC34: 0.2318765897 | BD34: 11.29013046 | BE34: 0.0198285774 | BF34: 15.33629526 | BG34: 0.03256191236 | BH34: 7.313936595 | BJ34: 32.81110994 | BK34: 0.6452862703 | BL34: 21.17255876 | BN34: =IF($D34="Connection",VLOOKUP(C34,'Input - General'!$F$51:$N$59,4,FALSE),0) -> 0 | BP34: 0.2227618911 | BQ34: 102.2713882 | BR34: 22.78216785 | BT34: 0.109307573 | BU34: 125.0535561 | BV34: 13.66930071
B35: ='Input - Inventory'!B32 -> 24 | C35: ='Input - Inventory'!C32 -> MBF1x125 | D35: ='Input - Inventory'!D32 -> Lamp | E35: ='Input - Inventory'!E32 -> NonTraffic | F35: ='Input - Inventory'!F32 -> Minor | G35: ='Input - Inventory'!H32 -> 1 | I35: Lamp - MBF1x125 | K35: 47.90527625 | L35: 4462 | M35: 213753.3426 | O35: =IF(AND($D35="Lamp", OR($F35=O$9, O$9="All")),IF('Input - Inventory'!G32="N",INDIRECT("PriceBulkTask1" & "FY19"),INDIRECT("PriceBulkTask1LED" & "FY19")),0) -> 25.22503701 | P35: =IF(AND($D35="Lamp",CycleBulkTask1<>0, OR($F35=O$9,O$9="All")),IF('Input - Inventory'!G32="N",1/CycleBulkTask1,1/CycleBulkTask1LED),0) -> 0.25 | Q35: =IF(AND($D35="Lamp", OR($F35=Q$9, Q$9="All")),IF('Input - Inventory'!G32="N",INDIRECT("PriceBulkTask2" & "FY19"),INDIRECT("PriceBulkTask2LED" & "FY19")),0) -> 0 | R35: =IF(AND($D35="Lamp",CycleBulkTask2<>0, OR($F35=Q$9,Q$9="All")),IF('Input - Inventory'!G32="N",1/CycleBulkTask2,1/CycleBulkTask2LED),0) -> 0 | S35: 11.74249459 | T35: 0.007123137293 | U35: 5.699151855 | V35: 0 | W35: 24.68074191 | X35: 0.005931168948 | Y35: 14.78572079 | Z35: 0.02002998353 | AA35: 41.10076471 | AB35: 0.01503682404 | AC35: 8476.3583 | AD35: 6.144166728e-05 | AE35: 7.971272602 | AG35: 5.214340387 | AH35: 0.25 | AI35: 50.83443924 | AJ35: 0.007123137293 | AK35: 11.29013046 | AL35: 0 | AM35: 15.33629526 | AN35: 0.02096799299 | AO35: 1.987257118 | AQ35: 88.30902802 | AR35: 0.07974539338 | AS35: 1.513333333 | AT35: 88.30902802 | AU35: 0.0198285774 | AV35: 1.513333333 | AW35: 88.30902802 | AX35: 0.03256191236 | AY35: 1.513333333 | AZ35: 17.658771 | BB35: 5.214340387 | BC35: 0.07974539338 | BD35: 11.29013046 | BE35: 0.0198285774 | BF35: 15.33629526 | BG35: 0.03256191236 | BH35: 1.139065953 | BJ35: 32.81110994 | BK35: 0.1999656365 | BL35: 6.561094482 | BN35: =IF($D35="Connection",VLOOKUP(C35,'Input - General'!$F$51:$N$59,4,FALSE),0) -> 0 | BP35: 0.2227618911 | BQ35: 35.31746115 | BR35: 7.867384435 | BT35: 0.109307573 | BU35: 43.18484559 | BV35: 4.720430661
B36: ='Input - Inventory'!B33 -> 25 | C36: ='Input - Inventory'!C33 -> MBF1x250 | D36: ='Input - Inventory'!D33 -> Lamp | E36: ='Input - Inventory'!E33 -> Traffic | F36: ='Input - Inventory'!F33 -> Major | G36: ='Input - Inventory'!H33 -> 1 | I36: Lamp - MBF1x250 | K36: 123.8201977 | L36: 15031 | M36: 1861141.392 | O36: =IF(AND($D36="Lamp", OR($F36=O$9, O$9="All")),IF('Input - Inventory'!G33="N",INDIRECT("PriceBulkTask1" & "FY19"),INDIRECT("PriceBulkTask1LED" & "FY19")),0) -> 0 | P36: =IF(AND($D36="Lamp",CycleBulkTask1<>0, OR($F36=O$9,O$9="All")),IF('Input - Inventory'!G33="N",1/CycleBulkTask1,1/CycleBulkTask1LED),0) -> 0 | Q36: =IF(AND($D36="Lamp", OR($F36=Q$9, Q$9="All")),IF('Input - Inventory'!G33="N",INDIRECT("PriceBulkTask2" & "FY19"),INDIRECT("PriceBulkTask2LED" & "FY19")),0) -> 29.38314957 | R36: =IF(AND($D36="Lamp",CycleBulkTask2<>0, OR($F36=Q$9,Q$9="All")),IF('Input - Inventory'!G33="N",1/CycleBulkTask2,1/CycleBulkTask2LED),0) -> 0.25 | S36: 11.74249459 | T36: 0.007123137293 | U36: 5.699151855 | V36: 0 | W36: 24.68074191 | X36: 0.005931168948 | Y36: 14.78572079 | Z36: 0.02002998353 | AA36: 41.10076471 | AB36: 0.01503682404 | AC36: 8476.3583 | AD36: 6.144166728e-05 | AE36: 9.010800741 | AG36: 5.623308261 | AH36: 0.25 | AI36: 50.83443924 | AJ36: 0.007123137293 | AK36: 11.29013046 | AL36: 0 | AM36: 15.33629526 | AN36: 0.02096799299 | AO36: 2.089499087 | AQ36: 88.30902802 | AR36: 0.2318765897 | AS36: 2.27 | AT36: 88.30902802 | AU36: 0.0198285774 | AV36: 2.27 | AW36: 88.30902802 | AX36: 0.03256191236 | AY36: 2.27 | AZ36: 56.98460333 | BB36: 5.623308261 | BC36: 0.2318765897 | BD36: 11.29013046 | BE36: 0.0198285774 | BF36: 15.33629526 | BG36: 0.03256191236 | BH36: 2.02715987 | BJ36: 32.81110994 | BK36: 0.6452862703 | BL36: 21.17255876 | BN36: =IF($D36="Connection",VLOOKUP(C36,'Input - General'!$F$51:$N$59,4,FALSE),0) -> 0 | BP36: 0.2227618911 | BQ36: 91.28462178 | BR36: 20.33473498 | BT36: 0.109307573 | BU36: 111.6193568 | BV36: 12.20084099
B37: ='Input - Inventory'!B34 -> 26 | C37: ='Input - Inventory'!C34 -> MBF1x400 | D37: ='Input - Inventory'!D34 -> Lamp | E37: ='Input - Inventory'!E34 -> Traffic | F37: ='Input - Inventory'!F34 -> Major | G37: ='Input - Inventory'!H34 -> 1 | I37: Lamp - MBF1x400 | K37: 123.8201977 | L37: 5491 | M37: 679896.7058 | O37: =IF(AND($D37="Lamp", OR($F37=O$9, O$9="All")),IF('Input - Inventory'!G34="N",INDIRECT("PriceBulkTask1" & "FY19"),INDIRECT("PriceBulkTask1LED" & "FY19")),0) -> 0 | P37: =IF(AND($D37="Lamp",CycleBulkTask1<>0, OR($F37=O$9,O$9="All")),IF('Input - Inventory'!G34="N",1/CycleBulkTask1,1/CycleBulkTask1LED),0) -> 0 | Q37: =IF(AND($D37="Lamp", OR($F37=Q$9, Q$9="All")),IF('Input - Inventory'!G34="N",INDIRECT("PriceBulkTask2" & "FY19"),INDIRECT("PriceBulkTask2LED" & "FY19")),0) -> 29.38314957 | R37: =IF(AND($D37="Lamp",CycleBulkTask2<>0, OR($F37=Q$9,Q$9="All")),IF('Input - Inventory'!G34="N",1/CycleBulkTask2,1/CycleBulkTask2LED),0) -> 0.25 | S37: 11.74249459 | T37: 0.007123137293 | U37: 5.699151855 | V37: 0 | W37: 24.68074191 | X37: 0.005931168948 | Y37: 14.78572079 | Z37: 0.02002998353 | AA37: 41.10076471 | AB37: 0.01503682404 | AC37: 8476.3583 | AD37: 6.144166728e-05 | AE37: 9.010800741 | AG37: 5.623308261 | AH37: 0.25 | AI37: 50.83443924 | AJ37: 0.007123137293 | AK37: 11.29013046 | AL37: 0 | AM37: 15.33629526 | AN37: 0.02096799299 | AO37: 2.089499087 | AQ37: 88.30902802 | AR37: 0.2318765897 | AS37: 2.27 | AT37: 88.30902802 | AU37: 0.0198285774 | AV37: 2.27 | AW37: 88.30902802 | AX37: 0.03256191236 | AY37: 2.27 | AZ37: 56.98460333 | BB37: 5.623308261 | BC37: 0.2318765897 | BD37: 11.29013046 | BE37: 0.0198285774 | BF37: 15.33629526 | BG37: 0.03256191236 | BH37: 2.02715987 | BJ37: 32.81110994 | BK37: 0.6452862703 | BL37: 21.17255876 | BN37: =IF($D37="Connection",VLOOKUP(C37,'Input - General'!$F$51:$N$59,4,FALSE),0) -> 0 | BP37: 0.2227618911 | BQ37: 91.28462178 | BR37: 20.33473498 | BT37: 0.109307573 | BU37: 111.6193568 | BV37: 12.20084099
B38: ='Input - Inventory'!B35 -> 27 | C38: ='Input - Inventory'!C35 -> MBF1x42 | D38: ='Input - Inventory'!D35 -> Lamp | E38: ='Input - Inventory'!E35 -> NonTraffic | F38: ='Input - Inventory'!F35 -> Minor | G38: ='Input - Inventory'!H35 -> 1 | I38: Lamp - MBF1x42 | K38: 49.60960545 | L38: 42152 | M38: 2091144.089 | O38: =IF(AND($D38="Lamp", OR($F38=O$9, O$9="All")),IF('Input - Inventory'!G35="N",INDIRECT("PriceBulkTask1" & "FY19"),INDIRECT("PriceBulkTask1LED" & "FY19")),0) -> 25.22503701 | P38: =IF(AND($D38="Lamp",CycleBulkTask1<>0, OR($F38=O$9,O$9="All")),IF('Input - Inventory'!G35="N",1/CycleBulkTask1,1/CycleBulkTask1LED),0) -> 0.25 | Q38: =IF(AND($D38="Lamp", OR($F38=Q$9, Q$9="All")),IF('Input - Inventory'!G35="N",INDIRECT("PriceBulkTask2" & "FY19"),INDIRECT("PriceBulkTask2LED" & "FY19")),0) -> 0 | R38: =IF(AND($D38="Lamp",CycleBulkTask2<>0, OR($F38=Q$9,Q$9="All")),IF('Input - Inventory'!G35="N",1/CycleBulkTask2,1/CycleBulkTask2LED),0) -> 0 | S38: 11.74249459 | T38: 0.007123137293 | U38: 5.699151855 | V38: 0 | W38: 24.68074191 | X38: 0.005931168948 | Y38: 14.78572079 | Z38: 0.02002998353 | AA38: 41.10076471 | AB38: 0.01503682404 | AC38: 8476.3583 | AD38: 6.144166728e-05 | AE38: 7.971272602 | AG38: 3.16950102 | AH38: 0.25 | AI38: 50.83443924 | AJ38: 0.007123137293 | AK38: 11.29013046 | AL38: 0 | AM38: 15.33629526 | AN38: 0.02096799299 | AO38: 1.476047276 | AQ38: 88.30902802 | AR38: 0.0901 | AS38: 1.513333333 | AT38: 88.30902802 | AU38: 0.0198285774 | AV38: 1.513333333 | AW38: 88.30902802 | AX38: 0.03256191236 | AY38: 1.513333333 | AZ38: 19.04257094 | BB38: 3.16950102 | BC38: 0.0901 | BD38: 11.29013046 | BE38: 0.0198285774 | BF38: 15.33629526 | BG38: 0.03256191236 | BH38: 1.00881837 | BJ38: 32.81110994 | BK38: 0.2156356078 | BL38: 7.075243635 | BN38: =IF($D38="Connection",VLOOKUP(C38,'Input - General'!$F$51:$N$59,4,FALSE),0) -> 0 | BP38: 0.2227618911 | BQ38: 36.57395282 | BR38: 8.147282895 | BT38: 0.109307573 | BU38: 44.72123571 | BV38: 4.888369737
B39: ='Input - Inventory'!B36 -> 28 | C39: ='Input - Inventory'!C36 -> MBF1x50 | D39: ='Input - Inventory'!D36 -> Lamp | E39: ='Input - Inventory'!E36 -> NonTraffic | F39: ='Input - Inventory'!F36 -> Minor | G39: ='Input - Inventory'!H36 -> 1 | I39: Lamp - MBF1x50 | K39: 48.06533147 | L39: 9467 | M39: 455034.493 | O39: =IF(AND($D39="Lamp", OR($F39=O$9, O$9="All")),IF('Input - Inventory'!G36="N",INDIRECT("PriceBulkTask1" & "FY19"),INDIRECT("PriceBulkTask1LED" & "FY19")),0) -> 25.22503701 | P39: =IF(AND($D39="Lamp",CycleBulkTask1<>0, OR($F39=O$9,O$9="All")),IF('Input - Inventory'!G36="N",1/CycleBulkTask1,1/CycleBulkTask1LED),0) -> 0.25 | Q39: =IF(AND($D39="Lamp", OR($F39=Q$9, Q$9="All")),IF('Input - Inventory'!G36="N",INDIRECT("PriceBulkTask2" & "FY19"),INDIRECT("PriceBulkTask2LED" & "FY19")),0) -> 0 | R39: =IF(AND($D39="Lamp",CycleBulkTask2<>0, OR($F39=Q$9,Q$9="All")),IF('Input - Inventory'!G36="N",1/CycleBulkTask2,1/CycleBulkTask2LED),0) -> 0 | S39: 11.74249459 | T39: 0.007123137293 | U39: 5.699151855 | V39: 0 | W39: 24.68074191 | X39: 0.005931168948 | Y39: 14.78572079 | Z39: 0.02002998353 | AA39: 41.10076471 | AB39: 0.01503682404 | AC39: 8476.3583 | AD39: 6.144166728e-05 | AE39: 7.971272602 | AG39: 5.572187276 | AH39: 0.25 | AI39: 50.83443924 | AJ39: 0.007123137293 | AK39: 11.29013046 | AL39: 0 | AM39: 15.33629526 | AN39: 0.02096799299 | AO39: 2.07671884 | AQ39: 88.30902802 | AR39: 0.07974539338 | AS39: 1.513333333 | AT39: 88.30902802 | AU39: 0.0198285774 | AV39: 1.513333333 | AW39: 88.30902802 | AX39: 0.03256191236 | AY39: 1.513333333 | AZ39: 17.658771 | BB39: 5.572187276 | BC39: 0.07974539338 | BD39: 11.29013046 | BE39: 0.0198285774 | BF39: 15.33629526 | BG39: 0.03256191236 | BH39: 1.167602594 | BJ39: 32.81110994 | BK39: 0.1999656365 | BL39: 6.561094482 | BN39: =IF($D39="Connection",VLOOKUP(C39,'Input - General'!$F$51:$N$59,4,FALSE),0) -> 0 | BP39: 0.2227618911 | BQ39: 35.43545951 | BR39: 7.893669974 | BT39: 0.109307573 | BU39: 43.32912949 | BV39: 4.736201984
B40: ='Input - Inventory'!B37 -> 29 | C40: ='Input - Inventory'!C37 -> MBF1x80 | D40: ='Input - Inventory'!D37 -> Lamp | E40: ='Input - Inventory'!E37 -> NonTraffic | F40: ='Input - Inventory'!F37 -> Minor | G40: ='Input - Inventory'!H37 -> 1 | I40: Lamp - MBF1x80 | K40: 47.21932528 | L40: 70228 | M40: 3316118.776 | O40: =IF(AND($D40="Lamp", OR($F40=O$9, O$9="All")),IF('Input - Inventory'!G37="N",INDIRECT("PriceBulkTask1" & "FY19"),INDIRECT("PriceBulkTask1LED" & "FY19")),0) -> 25.22503701 | P40: =IF(AND($D40="Lamp",CycleBulkTask1<>0, OR($F40=O$9,O$9="All")),IF('Input - Inventory'!G37="N",1/CycleBulkTask1,1/CycleBulkTask1LED),0) -> 0.25 | Q40: =IF(AND($D40="Lamp", OR($F40=Q$9, Q$9="All")),IF('Input - Inventory'!G37="N",INDIRECT("PriceBulkTask2" & "FY19"),INDIRECT("PriceBulkTask2LED" & "FY19")),0) -> 0 | R40: =IF(AND($D40="Lamp",CycleBulkTask2<>0, OR($F40=Q$9,Q$9="All")),IF('Input - Inventory'!G37="N",1/CycleBulkTask2,1/CycleBulkTask2LED),0) -> 0 | S40: 11.74249459 | T40: 0.007123137293 | U40: 5.699151855 | V40: 0 | W40: 24.68074191 | X40: 0.005931168948 | Y40: 14.78572079 | Z40: 0.02002998353 | AA40: 41.10076471 | AB40: 0.01503682404 | AC40: 8476.3583 | AD40: 6.144166728e-05 | AE40: 7.971272602 | AG40: 3.680710862 | AH40: 0.25 | AI40: 50.83443924 | AJ40: 0.007123137293 | AK40: 11.29013046 | AL40: 0 | AM40: 15.33629526 | AN40: 0.02096799299 | AO40: 1.603849737 | AQ40: 88.30902802 | AR40: 0.07974539338 | AS40: 1.513333333 | AT40: 88.30902802 | AU40: 0.0198285774 | AV40: 1.513333333 | AW40: 88.30902802 | AX40: 0.03256191236 | AY40: 1.513333333 | AZ40: 17.658771 | BB40: 3.680710862 | BC40: 0.07974539338 | BD40: 11.29013046 | BE40: 0.0198285774 | BF40: 15.33629526 | BG40: 0.03256191236 | BH40: 1.016766063 | BJ40: 32.81110994 | BK40: 0.1999656365 | BL40: 6.561094482 | BN40: =IF($D40="Connection",VLOOKUP(C40,'Input - General'!$F$51:$N$59,4,FALSE),0) -> 0 | BP40: 0.2227618911 | BQ40: 34.81175388 | BR40: 7.754732127 | BT40: 0.109307573 | BU40: 42.56648601 | BV40: 4.652839276
B41: ='Input - Inventory'!B38 -> 30 | C41: ='Input - Inventory'!C38 -> MBF2x80 | D41: ='Input - Inventory'!D38 -> Lamp | E41: ='Input - Inventory'!E38 -> NonTraffic | F41: ='Input - Inventory'!F38 -> Minor | G41: ='Input - Inventory'!H38 -> 2 | I41: Lamp - MBF2x80 | K41: 67.07947 | L41: 16 | M41: 1073.27152 | O41: =IF(AND($D41="Lamp", OR($F41=O$9, O$9="All")),IF('Input - Inventory'!G38="N",INDIRECT("PriceBulkTask1" & "FY19"),INDIRECT("PriceBulkTask1LED" & "FY19")),0) -> 25.22503701 | P41: =IF(AND($D41="Lamp",CycleBulkTask1<>0, OR($F41=O$9,O$9="All")),IF('Input - Inventory'!G38="N",1/CycleBulkTask1,1/CycleBulkTask1LED),0) -> 0.25 | Q41: =IF(AND($D41="Lamp", OR($F41=Q$9, Q$9="All")),IF('Input - Inventory'!G38="N",INDIRECT("PriceBulkTask2" & "FY19"),INDIRECT("PriceBulkTask2LED" & "FY19")),0) -> 0 | R41: =IF(AND($D41="Lamp",CycleBulkTask2<>0, OR($F41=Q$9,Q$9="All")),IF('Input - Inventory'!G38="N",1/CycleBulkTask2,1/CycleBulkTask2LED),0) -> 0 | S41: 11.74249459 | T41: 0.007123137293 | U41: 5.699151855 | V41: 0 | W41: 24.68074191 | X41: 0.005931168948 | Y41: 14.78572079 | Z41: 0.02002998353 | AA41: 41.10076471 | AB41: 0.01503682404 | AC41: 8476.3583 | AD41: 6.144166728e-05 | AE41: 7.971272602 | AG41: 7.361421723 | AH41: 0.25 | AI41: 50.83443924 | AJ41: 0.007123137293 | AK41: 11.29013046 | AL41: 0 | AM41: 15.33629526 | AN41: 0.02096799299 | AO41: 2.524027452 | AQ41: 88.30902802 | AR41: 0.153131459 | AS41: 1.513333333 | AT41: 88.30902802 | AU41: 0.0198285774 | AV41: 1.513333333 | AW41: 88.30902802 | AX41: 0.03256191236 | AY41: 1.513333333 | AZ41: 27.46615788 | BB41: 3.680710862 | BC41: 0.153131459 | BD41: 11.29013046 | BE41: 0.0198285774 | BF41: 15.33629526 | BG41: 0.03256191236 | BH41: 1.286878952 | BJ41: 32.81110994 | BK41: 0.3110232158 | BL41: 10.20501693 | BN41: =IF($D41="Connection",VLOOKUP(C41,'Input - General'!$F$51:$N$59,4,FALSE),0) -> 0 | BP41: 0.2227618911 | BQ41: 49.45335381 | BR41: 11.01632262 | BT41: 0.109307573 | BU41: 60.46967643 | BV41: 6.60979357
B42: ='Input - Inventory'!B39 -> 31 | C42: ='Input - Inventory'!C39 -> MBI1x100 | D42: ='Input - Inventory'!D39 -> Lamp | E42: ='Input - Inventory'!E39 -> Traffic | F42: ='Input - Inventory'!F39 -> Major | G42: ='Input - Inventory'!H39 -> 1 | I42: Lamp - MBI1x100 | K42: 129.7545301 | L42: 30 | M42: 3892.635904 | O42: =IF(AND($D42="Lamp", OR($F42=O$9, O$9="All")),IF('Input - Inventory'!G39="N",INDIRECT("PriceBulkTask1" & "FY19"),INDIRECT("PriceBulkTask1LED" & "FY19")),0) -> 0 | P42: =IF(AND($D42="Lamp",CycleBulkTask1<>0, OR($F42=O$9,O$9="All")),IF('Input - Inventory'!G39="N",1/CycleBulkTask1,1/CycleBulkTask1LED),0) -> 0 | Q42: =IF(AND($D42="Lamp", OR($F42=Q$9, Q$9="All")),IF('Input - Inventory'!G39="N",INDIRECT("PriceBulkTask2" & "FY19"),INDIRECT("PriceBulkTask2LED" & "FY19")),0) -> 29.38314957 | R42: =IF(AND($D42="Lamp",CycleBulkTask2<>0, OR($F42=Q$9,Q$9="All")),IF('Input - Inventory'!G39="N",1/CycleBulkTask2,1/CycleBulkTask2LED),0) -> 0.25 | S42: 11.74249459 | T42: 0.007123137293 | U42: 5.699151855 | V42: 0 | W42: 24.68074191 | X42: 0.005931168948 | Y42: 14.78572079 | Z42: 0.02002998353 | AA42: 41.10076471 | AB42: 0.01503682404 | AC42: 8476.3583 | AD42: 6.144166728e-05 | AE42: 9.010800741 | AG42: 14.70239505 | AH42: 0.25 | AI42: 50.83443924 | AJ42: 0.007123137293 | AK42: 11.29013046 | AL42: 0 | AM42: 15.33629526 | AN42: 0.02096799299 | AO42: 4.359270784 | AQ42: 88.30902802 | AR42: 0.2318765897 | AS42: 2.27 | AT42: 88.30902802 | AU42: 0.0198285774 | AV42: 2.27 | AW42: 88.30902802 | AX42: 0.03256191236 | AY42: 2.27 | AZ42: 56.98460333 | BB42: 14.70239505 | BC42: 0.2318765897 | BD42: 11.29013046 | BE42: 0.0198285774 | BF42: 15.33629526 | BG42: 0.03256191236 | BH42: 4.132387552 | BJ42: 32.81110994 | BK42: 0.6452862703 | BL42: 21.17255876 | BN42: =IF($D42="Connection",VLOOKUP(C42,'Input - General'!$F$51:$N$59,4,FALSE),0) -> 0 | BP42: 0.2227618911 | BQ42: 95.65962116 | BR42: 21.30931811 | BT42: 0.109307573 | BU42: 116.9689393 | BV42: 12.78559087
B43: ='Input - Inventory'!B40 -> 32 | C43: ='Input - Inventory'!C40 -> MBI1x1000 | D43: ='Input - Inventory'!D40 -> Lamp | E43: ='Input - Inventory'!E40 -> Traffic | F43: ='Input - Inventory'!F40 -> Major | G43: ='Input - Inventory'!H40 -> 1 | I43: Lamp - MBI1x1000 | K43: 152.5562668 | L43: 13 | M43: 1983.231468 | O43: =IF(AND($D43="Lamp", OR($F43=O$9, O$9="All")),IF('Input - Inventory'!G40="N",INDIRECT("PriceBulkTask1" & "FY19"),INDIRECT("PriceBulkTask1LED" & "FY19")),0) -> 0 | P43: =IF(AND($D43="Lamp",CycleBulkTask1<>0, OR($F43=O$9,O$9="All")),IF('Input - Inventory'!G40="N",1/CycleBulkTask1,1/CycleBulkTask1LED),0) -> 0 | Q43: =IF(AND($D43="Lamp", OR($F43=Q$9, Q$9="All")),IF('Input - Inventory'!G40="N",INDIRECT("PriceBulkTask2" & "FY19"),INDIRECT("PriceBulkTask2LED" & "FY19")),0) -> 29.38314957 | R43: =IF(AND($D43="Lamp",CycleBulkTask2<>0, OR($F43=Q$9,Q$9="All")),IF('Input - Inventory'!G40="N",1/CycleBulkTask2,1/CycleBulkTask2LED),0) -> 0.25 | S43: 11.74249459 | T43: 0.007123137293 | U43: 5.699151855 | V43: 0 | W43: 24.68074191 | X43: 0.005931168948 | Y43: 14.78572079 | Z43: 0.02002998353 | AA43: 41.10076471 | AB43: 0.01503682404 | AC43: 8476.3583 | AD43: 6.144166728e-05 | AE43: 9.010800741 | AG43: 49.58735466 | AH43: 0.25 | AI43: 50.83443924 | AJ43: 0.007123137293 | AK43: 11.29013046 | AL43: 0 | AM43: 15.33629526 | AN43: 0.02096799299 | AO43: 13.08051069 | AQ43: 88.30902802 | AR43: 0.2318765897 | AS43: 2.27 | AT43: 88.30902802 | AU43: 0.0198285774 | AV43: 2.27 | AW43: 88.30902802 | AX43: 0.03256191236 | AY43: 2.27 | AZ43: 56.98460333 | BB43: 49.58735466 | BC43: 0.2318765897 | BD43: 11.29013046 | BE43: 0.0198285774 | BF43: 15.33629526 | BG43: 0.03256191236 | BH43: 12.22139302 | BJ43: 32.81110994 | BK43: 0.6452862703 | BL43: 21.17255876 | BN43: =IF($D43="Connection",VLOOKUP(C43,'Input - General'!$F$51:$N$59,4,FALSE),0) -> 0 | BP43: 0.2227618911 | BQ43: 112.4698665 | BR43: 25.05400016 | BT43: 0.109307573 | BU43: 137.5238667 | BV43: 15.0324001
B44: ='Input - Inventory'!B41 -> 33 | C44: ='Input - Inventory'!C41 -> MBI1x150 | D44: ='Input - Inventory'!D41 -> Lamp | E44: ='Input - Inventory'!E41 -> Traffic | F44: ='Input - Inventory'!F41 -> Major | G44: ='Input - Inventory'!H41 -> 1 | I44: Lamp - MBI1x150 | K44: 129.7545301 | L44: =INDIRECT(L$10&$B44&"FY19") -> 4 | M44: 519.0181206 | O44: =IF(AND($D44="Lamp", OR($F44=O$9, O$9="All")),IF('Input - Inventory'!G41="N",INDIRECT("PriceBulkTask1" & "FY19"),INDIRECT("PriceBulkTask1LED" & "FY19")),0) -> 0 | P44: =IF(AND($D44="Lamp",CycleBulkTask1<>0, OR($F44=O$9,O$9="All")),IF('Input - Inventory'!G41="N",1/CycleBulkTask1,1/CycleBulkTask1LED),0) -> 0 | Q44: =IF(AND($D44="Lamp", OR($F44=Q$9, Q$9="All")),IF('Input - Inventory'!G41="N",INDIRECT("PriceBulkTask2" & "FY19"),INDIRECT("PriceBulkTask2LED" & "FY19")),0) -> 29.38314957 | R44: =IF(AND($D44="Lamp",CycleBulkTask2<>0, OR($F44=Q$9,Q$9="All")),IF('Input - Inventory'!G41="N",1/CycleBulkTask2,1/CycleBulkTask2LED),0) -> 0.25 | S44: =IF(AND($D44="Lamp", OR($F44=S$9, S$9="All")),INDIRECT("PriceBulkTask3" & "FY19"),0) -> 11.74249459 | T44: 0.007123137293 | U44: =IF(AND($D44="Lamp", OR($F44=U$9, U$9="All")),INDIRECT("PriceBulkTask4" & "FY19"),0) -> 5.699151855 | V44: 0 | W44: =IF(AND($D44="Lamp", OR($F44=W$9, W$9="All")),INDIRECT("PriceBulkTask5" & "FY19"),0) -> 24.68074191 | X44: 0.005931168948 | Y44: =IF(AND($D44="Lamp", OR($F44=Y$9, Y$9="All")),INDIRECT("PriceBulkTask6" & "FY19"),0) -> 14.78572079 | Z44: 0.02002998353 | AA44: =IF(AND($D44="Lamp", OR($F44=AA$9, AA$9="All")),INDIRECT("PriceBulkTask7" & "FY19"),0) -> 41.10076471 | AB44: 0.01503682404 | AC44: =IF(AND($D44="Lamp", OR($F44=AC$9, AC$9="All")),INDIRECT("PriceBulkTask8" & "FY19"),0) -> 8476.3583 | AD44: 6.144166728e-05 | AE44: 9.010800741 | AG44: =IF($D44="Lamp",$G44*INDIRECT("Price" & $B44 & "FY19"),0) -> 14.70239505 | AH44: 0.25 | AI44: =IF($D44="Lamp",INDIRECT("PriceVisor" & "FY19"),0) -> 50.83443924 | AJ44: 0.007123137293 | AK44: =IF($D44="Lamp",INDIRECT("PricePECell" & "FY19"),0) -> 11.29013046 | AL44: 0 | AM44: 15.33629526 | AN44: 0.02096799299 | AO44: 4.359270784 | AQ44: =IF($D44=$AG$9,(INDIRECT("PriceLabour" & "FY19")*ProportionStandardHours + INDIRECT("PriceLabourOvertime" & "FY19")*ProportionOvertimeHours)*(1+RateOnCostAnnual),0) -> 88.30902802 | AR44: 0.2318765897 | AS44: 2.27 | AT44: =IF($D44=$AG$9,(INDIRECT("PriceLabour" & "FY19")*ProportionStandardHours + INDIRECT("PriceLabourOvertime" & "FY19")*ProportionOvertimeHours)*(1+RateOnCostAnnual),0) -> 88.30902802 | AU44: 0.0198285774 | AV44: 2.27 | AW44: =IF($D44=$AG$9,(INDIRECT("PriceLabour" & "FY19")*ProportionStandardHours + INDIRECT("PriceLabourOvertime" & "FY19")*ProportionOvertimeHours)*(1+RateOnCostAnnual),0) -> 88.30902802 | AX44: 0.03256191236 | AY44: 2.27 | AZ44: 56.98460333 | BB44: =IF($D44="Lamp",INDIRECT("Price" & $B44 & "FY19"),0) -> 14.70239505 | BC44: 0.2318765897 | BD44: =IF($D44="Lamp",INDIRECT("pRICEpecELL" & "FY19"),0) -> 11.29013046 | BE44: 0.0198285774 | BF44: =IF($D44="Lamp",INDIRECT("PriceMisc" & "FY19"),0) -> 15.33629526 | BG44: 0.03256191236 | BH44: 4.132387552 | BJ44: =IF(AND($D44="Lamp"),INDIRECT("PriceEWP"&"FY19"),0) -> 32.81110994 | BK44: 0.6452862703 | BL44: 21.17255876 | BN44: =IF($D44="Connection",VLOOKUP(C44,'Input - General'!$F$51:$N$59,4,FALSE),0) -> 0 | BP44: 0.2227618911 | BQ44: 95.65962116 | BR44: 21.30931811 | BT44: 0.109307573 | BU44: 116.9689393 | BV44: 12.78559087
B45: ='Input - Inventory'!B42 -> 34 | C45: ='Input - Inventory'!C42 -> MBI1x250 | D45: ='Input - Inventory'!D42 -> Lamp | E45: ='Input - Inventory'!E42 -> Traffic | F45: ='Input - Inventory'!F42 -> Major | G45: ='Input - Inventory'!H42 -> 1 | I45: Lamp - MBI1x250 | K45: 125.6245556 | L45: 57 | M45: 7160.599667 | O45: =IF(AND($D45="Lamp", OR($F45=O$9, O$9="All")),IF('Input - Inventory'!G42="N",INDIRECT("PriceBulkTask1" & "FY19"),INDIRECT("PriceBulkTask1LED" & "FY19")),0) -> 0 | P45: =IF(AND($D45="Lamp",CycleBulkTask1<>0, OR($F45=O$9,O$9="All")),IF('Input - Inventory'!G42="N",1/CycleBulkTask1,1/CycleBulkTask1LED),0) -> 0 | Q45: =IF(AND($D45="Lamp", OR($F45=Q$9, Q$9="All")),IF('Input - Inventory'!G42="N",INDIRECT("PriceBulkTask2" & "FY19"),INDIRECT("PriceBulkTask2LED" & "FY19")),0) -> 29.38314957 | R45: =IF(AND($D45="Lamp",CycleBulkTask2<>0, OR($F45=Q$9,Q$9="All")),IF('Input - Inventory'!G42="N",1/CycleBulkTask2,1/CycleBulkTask2LED),0) -> 0.25 | S45: 11.74249459 | T45: 0.007123137293 | U45: 5.699151855 | V45: 0 | W45: 24.68074191 | X45: 0.005931168948 | Y45: 14.78572079 | Z45: 0.02002998353 | AA45: 41.10076471 | AB45: 0.01503682404 | AC45: 8476.3583 | AD45: 6.144166728e-05 | AE45: 9.010800741 | AG45: 8.383841407 | AH45: 0.25 | AI45: 50.83443924 | AJ45: 0.007123137293 | AK45: 11.29013046 | AL45: 0 | AM45: 15.33629526 | AN45: 0.02096799299 | AO45: 2.779632373 | AQ45: 88.30902802 | AR45: 0.2318765897 | AS45: 2.27 | AT45: 88.30902802 | AU45: 0.0198285774 | AV45: 2.27 | AW45: 88.30902802 | AX45: 0.03256191236 | AY45: 2.27 | AZ45: 56.98460333 | BB45: 8.383841407 | BC45: 0.2318765897 | BD45: 11.29013046 | BE45: 0.0198285774 | BF45: 15.33629526 | BG45: 0.03256191236 | BH45: 2.667262881 | BJ45: 32.81110994 | BK45: 0.6452862703 | BL45: 21.17255876 | BN45: =IF($D45="Connection",VLOOKUP(C45,'Input - General'!$F$51:$N$59,4,FALSE),0) -> 0 | BP45: 0.2227618911 | BQ45: 92.61485808 | BR45: 20.63106093 | BT45: 0.109307573 | BU45: 113.245919 | BV45: 12.37863656
B46: ='Input - Inventory'!B43 -> 35 | C46: ='Input - Inventory'!C43 -> MBI1x400 | D46: ='Input - Inventory'!D43 -> Lamp | E46: ='Input - Inventory'!E43 -> Traffic | F46: ='Input - Inventory'!F43 -> Major | G46: ='Input - Inventory'!H43 -> 1 | I46: Lamp - MBI1x400 | K46: 125.4908994 | L46: 128 | M46: 16062.83513 | O46: =IF(AND($D46="Lamp", OR($F46=O$9, O$9="All")),IF('Input - Inventory'!G43="N",INDIRECT("PriceBulkTask1" & "FY19"),INDIRECT("PriceBulkTask1LED" & "FY19")),0) -> 0 | P46: =IF(AND($D46="Lamp",CycleBulkTask1<>0, OR($F46=O$9,O$9="All")),IF('Input - Inventory'!G43="N",1/CycleBulkTask1,1/CycleBulkTask1LED),0) -> 0 | Q46: =IF(AND($D46="Lamp", OR($F46=Q$9, Q$9="All")),IF('Input - Inventory'!G43="N",INDIRECT("PriceBulkTask2" & "FY19"),INDIRECT("PriceBulkTask2LED" & "FY19")),0) -> 29.38314957 | R46: =IF(AND($D46="Lamp",CycleBulkTask2<>0, OR($F46=Q$9,Q$9="All")),IF('Input - Inventory'!G43="N",1/CycleBulkTask2,1/CycleBulkTask2LED),0) -> 0.25 | S46: 11.74249459 | T46: 0.007123137293 | U46: 5.699151855 | V46: 0 | W46: 24.68074191 | X46: 0.005931168948 | Y46: 14.78572079 | Z46: 0.02002998353 | AA46: 41.10076471 | AB46: 0.01503682404 | AC46: 8476.3583 | AD46: 6.144166728e-05 | AE46: 9.010800741 | AG46: 8.17935747 | AH46: 0.25 | AI46: 50.83443924 | AJ46: 0.007123137293 | AK46: 11.29013046 | AL46: 0 | AM46: 15.33629526 | AN46: 0.02096799299 | AO46: 2.728511389 | AQ46: 88.30902802 | AR46: 0.2318765897 | AS46: 2.27 | AT46: 88.30902802 | AU46: 0.0198285774 | AV46: 2.27 | AW46: 88.30902802 | AX46: 0.03256191236 | AY46: 2.27 | AZ46: 56.98460333 | BB46: 8.17935747 | BC46: 0.2318765897 | BD46: 11.29013046 | BE46: 0.0198285774 | BF46: 15.33629526 | BG46: 0.03256191236 | BH46: 2.619847844 | BJ46: 32.81110994 | BK46: 0.6452862703 | BL46: 21.17255876 | BN46: =IF($D46="Connection",VLOOKUP(C46,'Input - General'!$F$51:$N$59,4,FALSE),0) -> 0 | BP46: 0.2227618911 | BQ46: 92.51632205 | BR46: 20.60911086 | BT46: 0.109307573 | BU46: 113.1254329 | BV46: 12.36546652
B47: ='Input - Inventory'!B44 -> 36 | C47: ='Input - Inventory'!C44 -> MBI1x70 | D47: ='Input - Inventory'!D44 -> Lamp | E47: ='Input - Inventory'!E44 -> NonTraffic | F47: ='Input - Inventory'!F44 -> Minor | G47: ='Input - Inventory'!H44 -> 1 | I47: Lamp - MBI1x70 | K47: 93.08673419 | L47: 291 | M47: 27088.23965 | O47: =IF(AND($D47="Lamp", OR($F47=O$9, O$9="All")),IF('Input - Inventory'!G44="N",INDIRECT("PriceBulkTask1" & "FY19"),INDIRECT("PriceBulkTask1LED" & "FY19")),0) -> 25.22503701 | P47: =IF(AND($D47="Lamp",CycleBulkTask1<>0, OR($F47=O$9,O$9="All")),IF('Input - Inventory'!G44="N",1/CycleBulkTask1,1/CycleBulkTask1LED),0) -> 0.25 | Q47: =IF(AND($D47="Lamp", OR($F47=Q$9, Q$9="All")),IF('Input - Inventory'!G44="N",INDIRECT("PriceBulkTask2" & "FY19"),INDIRECT("PriceBulkTask2LED" & "FY19")),0) -> 0 | R47: =IF(AND($D47="Lamp",CycleBulkTask2<>0, OR($F47=Q$9,Q$9="All")),IF('Input - Inventory'!G44="N",1/CycleBulkTask2,1/CycleBulkTask2LED),0) -> 0 | S47: 11.74249459 | T47: 0.007123137293 | U47: 5.699151855 | V47: 0 | W47: 24.68074191 | X47: 0.005931168948 | Y47: 14.78572079 | Z47: 0.02002998353 | AA47: 41.10076471 | AB47: 0.01503682404 | AC47: 8476.3583 | AD47: 6.144166728e-05 | AE47: 7.971272602 | AG47: 14.82508541 | AH47: 0.25 | AI47: 50.83443924 | AJ47: 0.007123137293 | AK47: 11.29013046 | AL47: 0 | AM47: 15.33629526 | AN47: 0.02096799299 | AO47: 4.389943375 | AQ47: 88.30902802 | AR47: 0.2318765897 | AS47: 1.513333333 | AT47: 88.30902802 | AU47: 0.0198285774 | AV47: 1.513333333 | AW47: 88.30902802 | AX47: 0.03256191236 | AY47: 1.513333333 | AZ47: 37.98973555 | BB47: 14.82508541 | BC47: 0.2318765897 | BD47: 11.29013046 | BE47: 0.0198285774 | BF47: 15.33629526 | BG47: 0.03256191236 | BH47: 4.160836575 | BJ47: 32.81110994 | BK47: 0.4301908468 | BL47: 14.11503917 | BN47: =IF($D47="Connection",VLOOKUP(C47,'Input - General'!$F$51:$N$59,4,FALSE),0) -> 0 | BP47: 0.2227618911 | BQ47: 68.62682727 | BR47: 15.28744182 | BT47: 0.109307573 | BU47: 83.9142691 | BV47: 9.172465095
B48: ='Input - Inventory'!B45 -> 37 | C48: ='Input - Inventory'!C45 -> MBI1x70 II | D48: ='Input - Inventory'!D45 -> Lamp | E48: ='Input - Inventory'!E45 -> NonTraffic | F48: ='Input - Inventory'!F45 -> Minor | G48: ='Input - Inventory'!H45 -> 1 | I48: Lamp - MBI1x70 II | K48: 72.09648025 | L48: 396 | M48: 28550.20618 | O48: =IF(AND($D48="Lamp", OR($F48=O$9, O$9="All")),IF('Input - Inventory'!G45="N",INDIRECT("PriceBulkTask1" & "FY19"),INDIRECT("PriceBulkTask1LED" & "FY19")),0) -> 25.22503701 | P48: =IF(AND($D48="Lamp",CycleBulkTask1<>0, OR($F48=O$9,O$9="All")),IF('Input - Inventory'!G45="N",1/CycleBulkTask1,1/CycleBulkTask1LED),0) -> 0.25 | Q48: =IF(AND($D48="Lamp", OR($F48=Q$9, Q$9="All")),IF('Input - Inventory'!G45="N",INDIRECT("PriceBulkTask2" & "FY19"),INDIRECT("PriceBulkTask2LED" & "FY19")),0) -> 0 | R48: =IF(AND($D48="Lamp",CycleBulkTask2<>0, OR($F48=Q$9,Q$9="All")),IF('Input - Inventory'!G45="N",1/CycleBulkTask2,1/CycleBulkTask2LED),0) -> 0 | S48: 11.74249459 | T48: 0.007123137293 | U48: 5.699151855 | V48: 0 | W48: 24.68074191 | X48: 0.005931168948 | Y48: 14.78572079 | Z48: 0.02002998353 | AA48: 41.10076471 | AB48: 0.01503682404 | AC48: 8476.3583 | AD48: 6.144166728e-05 | AE48: 7.971272602 | AG48: 59.30034166 | AH48: 0.25 | AI48: 50.83443924 | AJ48: 0.007123137293 | AK48: 11.29013046 | AL48: 0 | AM48: 15.33629526 | AN48: 0.02096799299 | AO48: 15.50875744 | AQ48: 88.30902802 | AR48: 0.07974539338 | AS48: 1.513333333 | AT48: 88.30902802 | AU48: 0.0198285774 | AV48: 1.513333333 | AW48: 88.30902802 | AX48: 0.03256191236 | AY48: 1.513333333 | AZ48: 17.658771 | BB48: 59.30034166 | BC48: 0.07974539338 | BD48: 11.29013046 | BE48: 0.0198285774 | BF48: 15.33629526 | BG48: 0.03256191236 | BH48: 5.452175401 | BJ48: 32.81110994 | BK48: 0.1999656365 | BL48: 6.561094482 | BN48: =IF($D48="Connection",VLOOKUP(C48,'Input - General'!$F$51:$N$59,4,FALSE),0) -> 0 | BP48: 0.2227618911 | BQ48: 53.15207092 | BR48: 11.84025583 | BT48: 0.109307573 | BU48: 64.99232675 | BV48: 7.1041535
B49: ='Input - Inventory'!B46 -> 38 | C49: ='Input - Inventory'!C46 -> SON1x100 | D49: ='Input - Inventory'!D46 -> Lamp | E49: ='Input - Inventory'!E46 -> Traffic | F49: ='Input - Inventory'!F46 -> Major | G49: ='Input - Inventory'!H46 -> 1 | I49: Lamp - SON1x100 | K49: 63.7625123 | L49: 1424 | M49: 90797.81751 | O49: =IF(AND($D49="Lamp", OR($F49=O$9, O$9="All")),IF('Input - Inventory'!G46="N",INDIRECT("PriceBulkTask1" & "FY19"),INDIRECT("PriceBulkTask1LED" & "FY19")),0) -> 0 | P49: =IF(AND($D49="Lamp",CycleBulkTask1<>0, OR($F49=O$9,O$9="All")),IF('Input - Inventory'!G46="N",1/CycleBulkTask1,1/CycleBulkTask1LED),0) -> 0 | Q49: =IF(AND($D49="Lamp", OR($F49=Q$9, Q$9="All")),IF('Input - Inventory'!G46="N",INDIRECT("PriceBulkTask2" & "FY19"),INDIRECT("PriceBulkTask2LED" & "FY19")),0) -> 29.38314957 | R49: =IF(AND($D49="Lamp",CycleBulkTask2<>0, OR($F49=Q$9,Q$9="All")),IF('Input - Inventory'!G46="N",1/CycleBulkTask2,1/CycleBulkTask2LED),0) -> 0.25 | S49: 11.74249459 | T49: 0.007123137293 | U49: 5.699151855 | V49: 0 | W49: 24.68074191 | X49: 0.005931168948 | Y49: 14.78572079 | Z49: 0.02002998353 | AA49: 41.10076471 | AB49: 0.01503682404 | AC49: 8476.3583 | AD49: 6.144166728e-05 | AE49: 9.010800741 | AG49: 13.52661242 | AH49: 0.25 | AI49: 50.83443924 | AJ49: 0.007123137293 | AK49: 11.29013046 | AL49: 0 | AM49: 15.33629526 | AN49: 0.02096799299 | AO49: 4.065325125 | AQ49: 88.30902802 | AR49: 0.06518620254 | AS49: 2.27 | AT49: 88.30902802 | AU49: 0.0198285774 | AV49: 2.27 | AW49: 88.30902802 | AX49: 0.03256191236 | AY49: 2.27 | AZ49: 23.56959935 | BB49: 13.52661242 | BC49: 0.06518620254 | BD49: 11.29013046 | BE49: 0.0198285774 | BF49: 15.33629526 | BG49: 0.03256191236 | BH49: 1.604994824 | BJ49: 32.81110994 | BK49: 0.2668990915 | BL49: 8.757255434 | BN49: =IF($D49="Connection",VLOOKUP(C49,'Input - General'!$F$51:$N$59,4,FALSE),0) -> 0 | BP49: 0.2227618911 | BQ49: 47.00797548 | BR49: 10.47158551 | BT49: 0.109307573 | BU49: 57.47956099 | BV49: 6.282951309
B50: ='Input - Inventory'!B47 -> 39 | C50: ='Input - Inventory'!C47 -> SON1x1000 | D50: ='Input - Inventory'!D47 -> Lamp | E50: ='Input - Inventory'!E47 -> Traffic | F50: ='Input - Inventory'!F47 -> Major | G50: ='Input - Inventory'!H47 -> 1 | I50: Lamp - SON1x1000 | K50: 70.13119811 | L50: 49 | M50: 3436.428707 | O50: =IF(AND($D50="Lamp", OR($F50=O$9, O$9="All")),IF('Input - Inventory'!G47="N",INDIRECT("PriceBulkTask1" & "FY19"),INDIRECT("PriceBulkTask1LED" & "FY19")),0) -> 0 | P50: =IF(AND($D50="Lamp",CycleBulkTask1<>0, OR($F50=O$9,O$9="All")),IF('Input - Inventory'!G47="N",1/CycleBulkTask1,1/CycleBulkTask1LED),0) -> 0 | Q50: =IF(AND($D50="Lamp", OR($F50=Q$9, Q$9="All")),IF('Input - Inventory'!G47="N",INDIRECT("PriceBulkTask2" & "FY19"),INDIRECT("PriceBulkTask2LED" & "FY19")),0) -> 29.38314957 | R50: =IF(AND($D50="Lamp",CycleBulkTask2<>0, OR($F50=Q$9,Q$9="All")),IF('Input - Inventory'!G47="N",1/CycleBulkTask2,1/CycleBulkTask2LED),0) -> 0.25 | S50: 11.74249459 | T50: 0.007123137293 | U50: 5.699151855 | V50: 0 | W50: 24.68074191 | X50: 0.005931168948 | Y50: 14.78572079 | Z50: 0.02002998353 | AA50: 41.10076471 | AB50: 0.01503682404 | AC50: 8476.3583 | AD50: 6.144166728e-05 | AE50: 9.010800741 | AG50: 28.42326721 | AH50: 0.25 | AI50: 50.83443924 | AJ50: 0.007123137293 | AK50: 11.29013046 | AL50: 0 | AM50: 15.33629526 | AN50: 0.02096799299 | AO50: 7.789488823 | AQ50: 88.30902802 | AR50: 0.06518620254 | AS50: 2.27 | AT50: 88.30902802 | AU50: 0.0198285774 | AV50: 2.27 | AW50: 88.30902802 | AX50: 0.03256191236 | AY50: 2.27 | AZ50: 23.56959935 | BB50: 28.42326721 | BC50: 0.06518620254 | BD50: 11.29013046 | BE50: 0.0198285774 | BF50: 15.33629526 | BG50: 0.03256191236 | BH50: 2.576051181 | BJ50: 32.81110994 | BK50: 0.2668990915 | BL50: 8.757255434 | BN50: =IF($D50="Connection",VLOOKUP(C50,'Input - General'!$F$51:$N$59,4,FALSE),0) -> 0 | BP50: 0.2227618911 | BQ50: 51.70319553 | BR50: 11.51750161 | BT50: 0.109307573 | BU50: 63.22069714 | BV50: 6.910500968
B51: ='Input - Inventory'!B48 -> 40 | C51: ='Input - Inventory'!C48 -> SON1x150 | D51: ='Input - Inventory'!D48 -> Lamp | E51: ='Input - Inventory'!E48 -> Traffic | F51: ='Input - Inventory'!F48 -> Major | G51: ='Input - Inventory'!H48 -> 1 | I51: Lamp - SON1x150 | K51: 60.60221042 | L51: 19878 | M51: 1204650.739 | O51: =IF(AND($D51="Lamp", OR($F51=O$9, O$9="All")),IF('Input - Inventory'!G48="N",INDIRECT("PriceBulkTask1" & "FY19"),INDIRECT("PriceBulkTask1LED" & "FY19")),0) -> 0 | P51: =IF(AND($D51="Lamp",CycleBulkTask1<>0, OR($F51=O$9,O$9="All")),IF('Input - Inventory'!G48="N",1/CycleBulkTask1,1/CycleBulkTask1LED),0) -> 0 | Q51: =IF(AND($D51="Lamp", OR($F51=Q$9, Q$9="All")),IF('Input - Inventory'!G48="N",INDIRECT("PriceBulkTask2" & "FY19"),INDIRECT("PriceBulkTask2LED" & "FY19")),0) -> 29.38314957 | R51: =IF(AND($D51="Lamp",CycleBulkTask2<>0, OR($F51=Q$9,Q$9="All")),IF('Input - Inventory'!G48="N",1/CycleBulkTask2,1/CycleBulkTask2LED),0) -> 0.25 | S51: 11.74249459 | T51: 0.007123137293 | U51: 5.699151855 | V51: 0 | W51: 24.68074191 | X51: 0.005931168948 | Y51: 14.78572079 | Z51: 0.02002998353 | AA51: 41.10076471 | AB51: 0.01503682404 | AC51: 8476.3583 | AD51: 6.144166728e-05 | AE51: 9.010800741 | AG51: 6.134518103 | AH51: 0.25 | AI51: 50.83443924 | AJ51: 0.007123137293 | AK51: 11.29013046 | AL51: 0 | AM51: 15.33629526 | AN51: 0.02096799299 | AO51: 2.217301547 | AQ51: 88.30902802 | AR51: 0.06518620254 | AS51: 2.27 | AT51: 88.30902802 | AU51: 0.0198285774 | AV51: 2.27 | AW51: 88.30902802 | AX51: 0.03256191236 | AY51: 2.27 | AZ51: 23.56959935 | BB51: 6.134518103 | BC51: 0.06518620254 | BD51: 11.29013046 | BE51: 0.0198285774 | BF51: 15.33629526 | BG51: 0.03256191236 | BH51: 1.123132267 | BJ51: 32.81110994 | BK51: 0.2668990915 | BL51: 8.757255434 | BN51: =IF($D51="Connection",VLOOKUP(C51,'Input - General'!$F$51:$N$59,4,FALSE),0) -> 0 | BP51: 0.2227618911 | BQ51: 44.67808934 | BR51: 9.952575673 | BT51: 0.109307573 | BU51: 54.63066501 | BV51: 5.971545404
B52: ='Input - Inventory'!B49 -> 41 | C52: ='Input - Inventory'!C49 -> SON1x150 AR | D52: ='Input - Inventory'!D49 -> Lamp | E52: ='Input - Inventory'!E49 -> Traffic | F52: ='Input - Inventory'!F49 -> Major | G52: ='Input - Inventory'!H49 -> 1 | I52: Lamp - SON1x150 AR | K52: 60.60221042 | L52: 2615 | M52: 158474.7802 | O52: =IF(AND($D52="Lamp", OR($F52=O$9, O$9="All")),IF('Input - Inventory'!G49="N",INDIRECT("PriceBulkTask1" & "FY19"),INDIRECT("PriceBulkTask1LED" & "FY19")),0) -> 0 | P52: =IF(AND($D52="Lamp",CycleBulkTask1<>0, OR($F52=O$9,O$9="All")),IF('Input - Inventory'!G49="N",1/CycleBulkTask1,1/CycleBulkTask1LED),0) -> 0 | Q52: =IF(AND($D52="Lamp", OR($F52=Q$9, Q$9="All")),IF('Input - Inventory'!G49="N",INDIRECT("PriceBulkTask2" & "FY19"),INDIRECT("PriceBulkTask2LED" & "FY19")),0) -> 29.38314957 | R52: =IF(AND($D52="Lamp",CycleBulkTask2<>0, OR($F52=Q$9,Q$9="All")),IF('Input - Inventory'!G49="N",1/CycleBulkTask2,1/CycleBulkTask2LED),0) -> 0.25 | S52: 11.74249459 | T52: 0.007123137293 | U52: 5.699151855 | V52: 0 | W52: 24.68074191 | X52: 0.005931168948 | Y52: 14.78572079 | Z52: 0.02002998353 | AA52: 41.10076471 | AB52: 0.01503682404 | AC52: 8476.3583 | AD52: 6.144166728e-05 | AE52: 9.010800741 | AG52: 6.134518103 | AH52: 0.25 | AI52: 50.83443924 | AJ52: 0.007123137293 | AK52: 11.29013046 | AL52: 0 | AM52: 15.33629526 | AN52: 0.02096799299 | AO52: 2.217301547 | AQ52: 88.30902802 | AR52: 0.06518620254 | AS52: 2.27 | AT52: 88.30902802 | AU52: 0.0198285774 | AV52: 2.27 | AW52: 88.30902802 | AX52: 0.03256191236 | AY52: 2.27 | AZ52: 23.56959935 | BB52: 6.134518103 | BC52: 0.06518620254 | BD52: 11.29013046 | BE52: 0.0198285774 | BF52: 15.33629526 | BG52: 0.03256191236 | BH52: 1.123132267 | BJ52: 32.81110994 | BK52: 0.2668990915 | BL52: 8.757255434 | BN52: =IF($D52="Connection",VLOOKUP(C52,'Input - General'!$F$51:$N$59,4,FALSE),0) -> 0 | BP52: 0.2227618911 | BQ52: 44.67808934 | BR52: 9.952575673 | BT52: 0.109307573 | BU52: 54.63066501 | BV52: 5.971545404
B53: ='Input - Inventory'!B50 -> 42 | C53: ='Input - Inventory'!C50 -> SON1x250 | D53: ='Input - Inventory'!D50 -> Lamp | E53: ='Input - Inventory'!E50 -> Traffic | F53: ='Input - Inventory'!F50 -> Major | G53: ='Input - Inventory'!H50 -> 1 | I53: Lamp - SON1x250 | K53: 62.08838281 | L53: 24760 | M53: 1537308.358 | O53: =IF(AND($D53="Lamp", OR($F53=O$9, O$9="All")),IF('Input - Inventory'!G50="N",INDIRECT("PriceBulkTask1" & "FY19"),INDIRECT("PriceBulkTask1LED" & "FY19")),0) -> 0 | P53: =IF(AND($D53="Lamp",CycleBulkTask1<>0, OR($F53=O$9,O$9="All")),IF('Input - Inventory'!G50="N",1/CycleBulkTask1,1/CycleBulkTask1LED),0) -> 0 | Q53: =IF(AND($D53="Lamp", OR($F53=Q$9, Q$9="All")),IF('Input - Inventory'!G50="N",INDIRECT("PriceBulkTask2" & "FY19"),INDIRECT("PriceBulkTask2LED" & "FY19")),0) -> 29.38314957 | R53: =IF(AND($D53="Lamp",CycleBulkTask2<>0, OR($F53=Q$9,Q$9="All")),IF('Input - Inventory'!G50="N",1/CycleBulkTask2,1/CycleBulkTask2LED),0) -> 0.25 | S53: 11.74249459 | T53: 0.007123137293 | U53: 5.699151855 | V53: 0 | W53: 24.68074191 | X53: 0.005931168948 | Y53: 14.78572079 | Z53: 0.02002998353 | AA53: 41.10076471 | AB53: 0.01503682404 | AC53: 8476.3583 | AD53: 6.144166728e-05 | AE53: 9.010800741 | AG53: 9.610745027 | AH53: 0.25 | AI53: 50.83443924 | AJ53: 0.007123137293 | AK53: 11.29013046 | AL53: 0 | AM53: 15.33629526 | AN53: 0.02096799299 | AO53: 3.086358278 | AQ53: 88.30902802 | AR53: 0.06518620254 | AS53: 2.27 | AT53: 88.30902802 | AU53: 0.0198285774 | AV53: 2.27 | AW53: 88.30902802 | AX53: 0.03256191236 | AY53: 2.27 | AZ53: 23.56959935 | BB53: 9.610745027 | BC53: 0.06518620254 | BD53: 11.29013046 | BE53: 0.0198285774 | BF53: 15.33629526 | BG53: 0.03256191236 | BH53: 1.3497343 | BJ53: 32.81110994 | BK53: 0.2668990915 | BL53: 8.757255434 | BN53: =IF($D53="Connection",VLOOKUP(C53,'Input - General'!$F$51:$N$59,4,FALSE),0) -> 0 | BP53: 0.2227618911 | BQ53: 45.7737481 | BR53: 10.19664669 | BT53: 0.109307573 | BU53: 55.9703948 | BV53: 6.117988015
B54: ='Input - Inventory'!B51 -> 43 | C54: ='Input - Inventory'!C51 -> SON1x250 AR | D54: ='Input - Inventory'!D51 -> Lamp | E54: ='Input - Inventory'!E51 -> Traffic | F54: ='Input - Inventory'!F51 -> Major | G54: ='Input - Inventory'!H51 -> 1 | I54: Lamp - SON1x250 AR | K54: 62.08838281 | L54: 3306 | M54: 205264.1936 | O54: =IF(AND($D54="Lamp", OR($F54=O$9, O$9="All")),IF('Input - Inventory'!G51="N",INDIRECT("PriceBulkTask1" & "FY19"),INDIRECT("PriceBulkTask1LED" & "FY19")),0) -> 0 | P54: =IF(AND($D54="Lamp",CycleBulkTask1<>0, OR($F54=O$9,O$9="All")),IF('Input - Inventory'!G51="N",1/CycleBulkTask1,1/CycleBulkTask1LED),0) -> 0 | Q54: =IF(AND($D54="Lamp", OR($F54=Q$9, Q$9="All")),IF('Input - Inventory'!G51="N",INDIRECT("PriceBulkTask2" & "FY19"),INDIRECT("PriceBulkTask2LED" & "FY19")),0) -> 29.38314957 | R54: =IF(AND($D54="Lamp",CycleBulkTask2<>0, OR($F54=Q$9,Q$9="All")),IF('Input - Inventory'!G51="N",1/CycleBulkTask2,1/CycleBulkTask2LED),0) -> 0.25 | S54: 11.74249459 | T54: 0.007123137293 | U54: 5.699151855 | V54: 0 | W54: 24.68074191 | X54: 0.005931168948 | Y54: 14.78572079 | Z54: 0.02002998353 | AA54: 41.10076471 | AB54: 0.01503682404 | AC54: 8476.3583 | AD54: 6.144166728e-05 | AE54: 9.010800741 | AG54: 9.610745027 | AH54: 0.25 | AI54: 50.83443924 | AJ54: 0.007123137293 | AK54: 11.29013046 | AL54: 0 | AM54: 15.33629526 | AN54: 0.02096799299 | AO54: 3.086358278 | AQ54: 88.30902802 | AR54: 0.06518620254 | AS54: 2.27 | AT54: 88.30902802 | AU54: 0.0198285774 | AV54: 2.27 | AW54: 88.30902802 | AX54: 0.03256191236 | AY54: 2.27 | AZ54: 23.56959935 | BB54: 9.610745027 | BC54: 0.06518620254 | BD54: 11.29013046 | BE54: 0.0198285774 | BF54: 15.33629526 | BG54: 0.03256191236 | BH54: 1.3497343 | BJ54: 32.81110994 | BK54: 0.2668990915 | BL54: 8.757255434 | BN54: =IF($D54="Connection",VLOOKUP(C54,'Input - General'!$F$51:$N$59,4,FALSE),0) -> 0 | BP54: 0.2227618911 | BQ54: 45.7737481 | BR54: 10.19664669 | BT54: 0.109307573 | BU54: 55.9703948 | BV54: 6.117988015
B55: ='Input - Inventory'!B52 -> 44 | C55: ='Input - Inventory'!C52 -> SON1x400 | D55: ='Input - Inventory'!D52 -> Lamp | E55: ='Input - Inventory'!E52 -> Traffic | F55: ='Input - Inventory'!F52 -> Major | G55: ='Input - Inventory'!H52 -> 1 | I55: Lamp - SON1x400 | K55: 62.7440471 | L55: 2122 | M55: 133142.8679 | O55: =IF(AND($D55="Lamp", OR($F55=O$9, O$9="All")),IF('Input - Inventory'!G52="N",INDIRECT("PriceBulkTask1" & "FY19"),INDIRECT("PriceBulkTask1LED" & "FY19")),0) -> 0 | P55: =IF(AND($D55="Lamp",CycleBulkTask1<>0, OR($F55=O$9,O$9="All")),IF('Input - Inventory'!G52="N",1/CycleBulkTask1,1/CycleBulkTask1LED),0) -> 0 | Q55: =IF(AND($D55="Lamp", OR($F55=Q$9, Q$9="All")),IF('Input - Inventory'!G52="N",INDIRECT("PriceBulkTask2" & "FY19"),INDIRECT("PriceBulkTask2LED" & "FY19")),0) -> 29.38314957 | R55: =IF(AND($D55="Lamp",CycleBulkTask2<>0, OR($F55=Q$9,Q$9="All")),IF('Input - Inventory'!G52="N",1/CycleBulkTask2,1/CycleBulkTask2LED),0) -> 0.25 | S55: 11.74249459 | T55: 0.007123137293 | U55: 5.699151855 | V55: 0 | W55: 24.68074191 | X55: 0.005931168948 | Y55: 14.78572079 | Z55: 0.02002998353 | AA55: 41.10076471 | AB55: 0.01503682404 | AC55: 8476.3583 | AD55: 6.144166728e-05 | AE55: 9.010800741 | AG55: 11.14437455 | AH55: 0.25 | AI55: 50.83443924 | AJ55: 0.007123137293 | AK55: 11.29013046 | AL55: 0 | AM55: 15.33629526 | AN55: 0.02096799299 | AO55: 3.46976566 | AQ55: 88.30902802 | AR55: 0.06518620254 | AS55: 2.27 | AT55: 88.30902802 | AU55: 0.0198285774 | AV55: 2.27 | AW55: 88.30902802 | AX55: 0.03256191236 | AY55: 2.27 | AZ55: 23.56959935 | BB55: 11.14437455 | BC55: 0.06518620254 | BD55: 11.29013046 | BE55: 0.0198285774 | BF55: 15.33629526 | BG55: 0.03256191236 | BH55: 1.449705785 | BJ55: 32.81110994 | BK55: 0.2668990915 | BL55: 8.757255434 | BN55: =IF($D55="Connection",VLOOKUP(C55,'Input - General'!$F$51:$N$59,4,FALSE),0) -> 0 | BP55: 0.2227618911 | BQ55: 46.25712697 | BR55: 10.30432508 | BT55: 0.109307573 | BU55: 56.56145205 | BV55: 6.182595049
B56: ='Input - Inventory'!B53 -> 45 | C56: ='Input - Inventory'!C53 -> SON1x400 AR | D56: ='Input - Inventory'!D53 -> Lamp | E56: ='Input - Inventory'!E53 -> Traffic | F56: ='Input - Inventory'!F53 -> Major | G56: ='Input - Inventory'!H53 -> 1 | I56: Lamp - SON1x400 AR | K56: 86.04519458 | L56: 332 | M56: 28567.0046 | O56: =IF(AND($D56="Lamp", OR($F56=O$9, O$9="All")),IF('Input - Inventory'!G53="N",INDIRECT("PriceBulkTask1" & "FY19"),INDIRECT("PriceBulkTask1LED" & "FY19")),0) -> 0 | P56: =IF(AND($D56="Lamp",CycleBulkTask1<>0, OR($F56=O$9,O$9="All")),IF('Input - Inventory'!G53="N",1/CycleBulkTask1,1/CycleBulkTask1LED),0) -> 0 | Q56: =IF(AND($D56="Lamp", OR($F56=Q$9, Q$9="All")),IF('Input - Inventory'!G53="N",INDIRECT("PriceBulkTask2" & "FY19"),INDIRECT("PriceBulkTask2LED" & "FY19")),0) -> 29.38314957 | R56: =IF(AND($D56="Lamp",CycleBulkTask2<>0, OR($F56=Q$9,Q$9="All")),IF('Input - Inventory'!G53="N",1/CycleBulkTask2,1/CycleBulkTask2LED),0) -> 0.25 | S56: 11.74249459 | T56: 0.007123137293 | U56: 5.699151855 | V56: 0 | W56: 24.68074191 | X56: 0.005931168948 | Y56: 14.78572079 | Z56: 0.02002998353 | AA56: 41.10076471 | AB56: 0.01503682404 | AC56: 8476.3583 | AD56: 6.144166728e-05 | AE56: 9.010800741 | AG56: 11.14437455 | AH56: 0.25 | AI56: 50.83443924 | AJ56: 0.007123137293 | AK56: 11.29013046 | AL56: 0 | AM56: 140 | AN56: 0.125 | AO56: 20.64819433 | AQ56: 88.30902802 | AR56: 0.06518620254 | AS56: 2.27 | AT56: 88.30902802 | AU56: 0.0198285774 | AV56: 2.27 | AW56: 88.30902802 | AX56: 0.03256191236 | AY56: 2.27 | AZ56: 23.56959935 | BB56: 11.14437455 | BC56: 0.06518620254 | BD56: 11.29013046 | BE56: 0.0198285774 | BF56: 15.33629526 | BG56: 0.03256191236 | BH56: 1.449705785 | BJ56: 32.81110994 | BK56: 0.2668990915 | BL56: 8.757255434 | BN56: =IF($D56="Connection",VLOOKUP(C56,'Input - General'!$F$51:$N$59,4,FALSE),0) -> 0 | BP56: 0.2227618911 | BQ56: 63.43555564 | BR56: 14.13102434 | BT56: 0.109307573 | BU56: 77.56657998 | BV56: 8.478614603
B57: ='Input - Inventory'!B54 -> 46 | C57: ='Input - Inventory'!C54 -> SON1x50 | D57: ='Input - Inventory'!D54 -> Lamp | E57: ='Input - Inventory'!E54 -> NonTraffic | F57: ='Input - Inventory'!F54 -> Minor | G57: ='Input - Inventory'!H54 -> 1 | I57: Lamp - SON1x50 | K57: 46.35058573 | L57: 465 | M57: 21553.02236 | O57: =IF(AND($D57="Lamp", OR($F57=O$9, O$9="All")),IF('Input - Inventory'!G54="N",INDIRECT("PriceBulkTask1" & "FY19"),INDIRECT("PriceBulkTask1LED" & "FY19")),0) -> 25.22503701 | P57: =IF(AND($D57="Lamp",CycleBulkTask1<>0, OR($F57=O$9,O$9="All")),IF('Input - Inventory'!G54="N",1/CycleBulkTask1,1/CycleBulkTask1LED),0) -> 0.25 | Q57: =IF(AND($D57="Lamp", OR($F57=Q$9, Q$9="All")),IF('Input - Inventory'!G54="N",INDIRECT("PriceBulkTask2" & "FY19"),INDIRECT("PriceBulkTask2LED" & "FY19")),0) -> 0 | R57: =IF(AND($D57="Lamp",CycleBulkTask2<>0, OR($F57=Q$9,Q$9="All")),IF('Input - Inventory'!G54="N",1/CycleBulkTask2,1/CycleBulkTask2LED),0) -> 0 | S57: 11.74249459 | T57: 0.007123137293 | U57: 5.699151855 | V57: 0 | W57: 24.68074191 | X57: 0.005931168948 | Y57: 14.78572079 | Z57: 0.02002998353 | AA57: 41.10076471 | AB57: 0.01503682404 | AC57: 8476.3583 | AD57: 6.144166728e-05 | AE57: 7.971272602 | AG57: 10.28554202 | AH57: 0.25 | AI57: 50.83443924 | AJ57: 0.007123137293 | AK57: 11.29013046 | AL57: 0 | AM57: =IF($D57="Lamp",INDIRECT("PriceMisc" & "FY19"),0) -> 15.33629526 | AN57: 0.02096799299 | AO57: 3.255057526 | AQ57: 88.30902802 | AR57: 0.06518620254 | AS57: 1.513333333 | AT57: 88.30902802 | AU57: 0.0198285774 | AV57: 1.513333333 | AW57: 88.30902802 | AX57: 0.03256191236 | AY57: 1.513333333 | AZ57: 15.71306623 | BB57: 10.28554202 | BC57: 0.06518620254 | BD57: 11.29013046 | BE57: 0.0198285774 | BF57: 15.33629526 | BG57: 0.03256191236 | BH57: 1.393721753 | BJ57: 32.81110994 | BK57: 0.1779327277 | BL57: 5.838170289 | BN57: =IF($D57="Connection",VLOOKUP(C57,'Input - General'!$F$51:$N$59,4,FALSE),0) -> 0 | BP57: 0.2227618911 | BQ57: 34.1712884 | BR57: 7.612060827 | BT57: 0.109307573 | BU57: 41.78334923 | BV57: 4.567236496
B58: ='Input - Inventory'!B55 -> 47 | C58: ='Input - Inventory'!C55 -> SON1x600 | D58: ='Input - Inventory'!D55 -> Lamp | E58: ='Input - Inventory'!E55 -> Traffic | F58: ='Input - Inventory'!F55 -> Major | G58: ='Input - Inventory'!H55 -> 1 | I58: Lamp - SON1x600 | K58: 70.13119811 | L58: 1 | M58: 70.13119811 | O58: =IF(AND($D58="Lamp", OR($F58=O$9, O$9="All")),IF('Input - Inventory'!G55="N",INDIRECT("PriceBulkTask1" & "FY19"),INDIRECT("PriceBulkTask1LED" & "FY19")),0) -> 0 | P58: =IF(AND($D58="Lamp",CycleBulkTask1<>0, OR($F58=O$9,O$9="All")),IF('Input - Inventory'!G55="N",1/CycleBulkTask1,1/CycleBulkTask1LED),0) -> 0 | Q58: =IF(AND($D58="Lamp", OR($F58=Q$9, Q$9="All")),IF('Input - Inventory'!G55="N",INDIRECT("PriceBulkTask2" & "FY19"),INDIRECT("PriceBulkTask2LED" & "FY19")),0) -> 29.38314957 | R58: =IF(AND($D58="Lamp",CycleBulkTask2<>0, OR($F58=Q$9,Q$9="All")),IF('Input - Inventory'!G55="N",1/CycleBulkTask2,1/CycleBulkTask2LED),0) -> 0.25 | S58: 11.74249459 | T58: 0.007123137293 | U58: 5.699151855 | V58: 0 | W58: 24.68074191 | X58: 0.005931168948 | Y58: 14.78572079 | Z58: 0.02002998353 | AA58: 41.10076471 | AB58: 0.01503682404 | AC58: 8476.3583 | AD58: 6.144166728e-05 | AE58: 9.010800741 | AG58: 28.42326721 | AH58: 0.25 | AI58: 50.83443924 | AJ58: 0.007123137293 | AK58: 11.29013046 | AL58: 0 | AM58: 15.33629526 | AN58: 0.02096799299 | AO58: 7.789488823 | AQ58: 88.30902802 | AR58: 0.06518620254 | AS58: 2.27 | AT58: 88.30902802 | AU58: 0.0198285774 | AV58: 2.27 | AW58: 88.30902802 | AX58: 0.03256191236 | AY58: 2.27 | AZ58: 23.56959935 | BB58: 28.42326721 | BC58: 0.06518620254 | BD58: 11.29013046 | BE58: 0.0198285774 | BF58: 15.33629526 | BG58: 0.03256191236 | BH58: 2.576051181 | BJ58: 32.81110994 | BK58: 0.2668990915 | BL58: 8.757255434 | BN58: =IF($D58="Connection",VLOOKUP(C58,'Input - General'!$F$51:$N$59,4,FALSE),0) -> 0 | BP58: 0.2227618911 | BQ58: 51.70319553 | BR58: 11.51750161 | BT58: 0.109307573 | BU58: 63.22069714 | BV58: 6.910500968
B59: ='Input - Inventory'!B56 -> 48 | C59: ='Input - Inventory'!C56 -> SON1x70 | D59: ='Input - Inventory'!D56 -> Lamp | E59: ='Input - Inventory'!E56 -> NonTraffic | F59: ='Input - Inventory'!F56 -> Minor | G59: ='Input - Inventory'!H56 -> 1 | I59: Lamp - SON1x70 | K59: 44.7070539 | L59: 2005 | M59: 89637.64308 | O59: =IF(AND($D59="Lamp", OR($F59=O$9, O$9="All")),IF('Input - Inventory'!G56="N",INDIRECT("PriceBulkTask1" & "FY19"),INDIRECT("PriceBulkTask1LED" & "FY19")),0) -> 25.22503701 | P59: =IF(AND($D59="Lamp",CycleBulkTask1<>0, OR($F59=O$9,O$9="All")),IF('Input - Inventory'!G56="N",1/CycleBulkTask1,1/CycleBulkTask1LED),0) -> 0.25 | Q59: =IF(AND($D59="Lamp", OR($F59=Q$9, Q$9="All")),IF('Input - Inventory'!G56="N",INDIRECT("PriceBulkTask2" & "FY19"),INDIRECT("PriceBulkTask2LED" & "FY19")),0) -> 0 | R59: =IF(AND($D59="Lamp",CycleBulkTask2<>0, OR($F59=Q$9,Q$9="All")),IF('Input - Inventory'!G56="N",1/CycleBulkTask2,1/CycleBulkTask2LED),0) -> 0 | S59: 11.74249459 | T59: 0.007123137293 | U59: 5.699151855 | V59: 0 | W59: 24.68074191 | X59: 0.005931168948 | Y59: 14.78572079 | Z59: 0.02002998353 | AA59: 41.10076471 | AB59: 0.01503682404 | AC59: 8476.3583 | AD59: 6.144166728e-05 | AE59: 7.971272602 | AG59: 6.441244008 | AH59: 0.25 | AI59: 50.83443924 | AJ59: 0.007123137293 | AK59: 11.29013046 | AL59: 0 | AM59: 15.33629526 | AN59: 0.02096799299 | AO59: 2.293983023 | AQ59: 88.30902802 | AR59: 0.06518620254 | AS59: 1.513333333 | AT59: 88.30902802 | AU59: 0.0198285774 | AV59: 1.513333333 | AW59: 88.30902802 | AX59: 0.03256191236 | AY59: 1.513333333 | AZ59: 15.71306623 | BB59: 6.441244008 | BC59: 0.06518620254 | BD59: 11.29013046 | BE59: 0.0198285774 | BF59: 15.33629526 | BG59: 0.03256191236 | BH59: 1.143126564 | BJ59: 32.81110994 | BK59: 0.1779327277 | BL59: 5.838170289 | BN59: =IF($D59="Connection",VLOOKUP(C59,'Input - General'!$F$51:$N$59,4,FALSE),0) -> 0 | BP59: 0.2227618911 | BQ59: 32.95961871 | BR59: 7.342146995 | BT59: 0.109307573 | BU59: 40.30176571 | BV59: 4.405288197
B60: ='Input - Inventory'!B57 -> 49 | C60: ='Input - Inventory'!C57 -> SON2x250 | D60: ='Input - Inventory'!D57 -> Lamp | E60: ='Input - Inventory'!E57 -> Traffic | F60: ='Input - Inventory'!F57 -> Major | G60: ='Input - Inventory'!H57 -> 2 | I60: Lamp - SON2x250 | K60: 88.86749817 | L60: 30 | M60: 2666.024945 | O60: =IF(AND($D60="Lamp", OR($F60=O$9, O$9="All")),IF('Input - Inventory'!G57="N",INDIRECT("PriceBulkTask1" & "FY19"),INDIRECT("PriceBulkTask1LED" & "FY19")),0) -> 0 | P60: =IF(AND($D60="Lamp",CycleBulkTask1<>0, OR($F60=O$9,O$9="All")),IF('Input - Inventory'!G57="N",1/CycleBulkTask1,1/CycleBulkTask1LED),0) -> 0 | Q60: =IF(AND($D60="Lamp", OR($F60=Q$9, Q$9="All")),IF('Input - Inventory'!G57="N",INDIRECT("PriceBulkTask2" & "FY19"),INDIRECT("PriceBulkTask2LED" & "FY19")),0) -> 29.38314957 | R60: =IF(AND($D60="Lamp",CycleBulkTask2<>0, OR($F60=Q$9,Q$9="All")),IF('Input - Inventory'!G57="N",1/CycleBulkTask2,1/CycleBulkTask2LED),0) -> 0.25 | S60: 11.74249459 | T60: 0.007123137293 | U60: 5.699151855 | V60: 0 | W60: 24.68074191 | X60: 0.005931168948 | Y60: 14.78572079 | Z60: 0.02002998353 | AA60: 41.10076471 | AB60: 0.01503682404 | AC60: 8476.3583 | AD60: 6.144166728e-05 | AE60: 9.010800741 | AG60: 19.22149005 | AH60: 0.25 | AI60: 50.83443924 | AJ60: 0.007123137293 | AK60: 11.29013046 | AL60: 0 | AM60: 15.33629526 | AN60: 0.02096799299 | AO60: 5.489044535 | AQ60: 88.30902802 | AR60: 0.1261231641 | AS60: 2.27 | AT60: 88.30902802 | AU60: 0.0198285774 | AV60: 2.27 | AW60: 88.30902802 | AX60: 0.03256191236 | AY60: 2.27 | AZ60: 35.78511368 | BB60: 9.610745027 | BC60: 0.1261231641 | BD60: 11.29013046 | BE60: 0.0198285774 | BF60: 15.33629526 | BG60: 0.03256191236 | BH60: 1.9353839 | BJ60: 32.81110994 | BK60: 0.4052259942 | BL60: 13.29591465 | BN60: =IF($D60="Connection",VLOOKUP(C60,'Input - General'!$F$51:$N$59,4,FALSE),0) -> 0 | BP60: 0.2227618911 | BQ60: 65.5162575 | BR60: 14.59452542 | BT60: 0.109307573 | BU60: 80.11078292 | BV60: 8.756715251
B61: ='Input - Inventory'!B58 -> 50 | C61: ='Input - Inventory'!C58 -> SON2x400 | D61: ='Input - Inventory'!D58 -> Lamp | E61: ='Input - Inventory'!E58 -> Traffic | F61: ='Input - Inventory'!F58 -> Major | G61: ='Input - Inventory'!H58 -> 2 | I61: Lamp - SON2x400 | K61: 90.16998729 | L61: 4 | M61: 360.6799492 | O61: =IF(AND($D61="Lamp", OR($F61=O$9, O$9="All")),IF('Input - Inventory'!G58="N",INDIRECT("PriceBulkTask1" & "FY19"),INDIRECT("PriceBulkTask1LED" & "FY19")),0) -> 0 | P61: =IF(AND($D61="Lamp",CycleBulkTask1<>0, OR($F61=O$9,O$9="All")),IF('Input - Inventory'!G58="N",1/CycleBulkTask1,1/CycleBulkTask1LED),0) -> 0 | Q61: =IF(AND($D61="Lamp", OR($F61=Q$9, Q$9="All")),IF('Input - Inventory'!G58="N",INDIRECT("PriceBulkTask2" & "FY19"),INDIRECT("PriceBulkTask2LED" & "FY19")),0) -> 29.38314957 | R61: =IF(AND($D61="Lamp",CycleBulkTask2<>0, OR($F61=Q$9,Q$9="All")),IF('Input - Inventory'!G58="N",1/CycleBulkTask2,1/CycleBulkTask2LED),0) -> 0.25 | S61: 11.74249459 | T61: 0.007123137293 | U61: 5.699151855 | V61: 0 | W61: 24.68074191 | X61: 0.005931168948 | Y61: 14.78572079 | Z61: 0.02002998353 | AA61: 41.10076471 | AB61: 0.01503682404 | AC61: 8476.3583 | AD61: 6.144166728e-05 | AE61: 9.010800741 | AG61: 22.28874911 | AH61: 0.25 | AI61: 50.83443924 | AJ61: 0.007123137293 | AK61: 11.29013046 | AL61: 0 | AM61: 15.33629526 | AN61: 0.02096799299 | AO61: 6.255859298 | AQ61: 88.30902802 | AR61: 0.1261231641 | AS61: 2.27 | AT61: 88.30902802 | AU61: 0.0198285774 | AV61: 2.27 | AW61: 88.30902802 | AX61: 0.03256191236 | AY61: 2.27 | AZ61: 35.78511368 | BB61: 11.14437455 | BC61: 0.1261231641 | BD61: 11.29013046 | BE61: 0.0198285774 | BF61: 15.33629526 | BG61: 0.03256191236 | BH61: 2.128810108 | BJ61: 32.81110994 | BK61: 0.4052259942 | BL61: 13.29591465 | BN61: =IF($D61="Connection",VLOOKUP(C61,'Input - General'!$F$51:$N$59,4,FALSE),0) -> 0 | BP61: 0.2227618911 | BQ61: 66.47649847 | BR61: 14.80843051 | BT61: 0.109307573 | BU61: 81.28492898 | BV61: 8.885058308
B62: ='Input - Inventory'!B59 -> 51 | C62: ='Input - Inventory'!C59 -> SON4x250 | D62: ='Input - Inventory'!D59 -> Lamp | E62: ='Input - Inventory'!E59 -> Traffic | F62: ='Input - Inventory'!F59 -> Major | G62: ='Input - Inventory'!H59 -> 4 | I62: Lamp - SON4x250 | K62: 137.92612 | L62: 6 | M62: 827.5567197 | O62: =IF(AND($D62="Lamp", OR($F62=O$9, O$9="All")),IF('Input - Inventory'!G59="N",INDIRECT("PriceBulkTask1" & "FY19"),INDIRECT("PriceBulkTask1LED" & "FY19")),0) -> 0 | P62: =IF(AND($D62="Lamp",CycleBulkTask1<>0, OR($F62=O$9,O$9="All")),IF('Input - Inventory'!G59="N",1/CycleBulkTask1,1/CycleBulkTask1LED),0) -> 0 | Q62: =IF(AND($D62="Lamp", OR($F62=Q$9, Q$9="All")),IF('Input - Inventory'!G59="N",INDIRECT("PriceBulkTask2" & "FY19"),INDIRECT("PriceBulkTask2LED" & "FY19")),0) -> 29.38314957 | R62: =IF(AND($D62="Lamp",CycleBulkTask2<>0, OR($F62=Q$9,Q$9="All")),IF('Input - Inventory'!G59="N",1/CycleBulkTask2,1/CycleBulkTask2LED),0) -> 0.25 | S62: 11.74249459 | T62: 0.007123137293 | U62: 5.699151855 | V62: 0 | W62: 24.68074191 | X62: 0.005931168948 | Y62: 14.78572079 | Z62: 0.02002998353 | AA62: 41.10076471 | AB62: 0.01503682404 | AC62: 8476.3583 | AD62: 6.144166728e-05 | AE62: 9.010800741 | AG62: 38.44298011 | AH62: 0.25 | AI62: 50.83443924 | AJ62: 0.007123137293 | AK62: 11.29013046 | AL62: 0 | AM62: 15.33629526 | AN62: 0.02096799299 | AO62: 10.29441705 | AQ62: 88.30902802 | AR62: 0.2363392756 | AS62: 2.27 | AT62: 88.30902802 | AU62: 0.0198285774 | AV62: 2.27 | AW62: 88.30902802 | AX62: 0.03256191236 | AY62: 2.27 | AZ62: 57.87920002 | BB62: 9.610745027 | BC62: 0.2363392756 | BD62: 11.29013046 | BE62: 0.0198285774 | BF62: 15.33629526 | BG62: 0.03256191236 | BH62: 2.994642846 | BJ62: 32.81110994 | BK62: 0.6554165674 | BL62: 21.50494505 | BN62: =IF($D62="Connection",VLOOKUP(C62,'Input - General'!$F$51:$N$59,4,FALSE),0) -> 0 | BP62: 0.2227618911 | BQ62: 101.6840057 | BR62: 22.65132141 | BT62: 0.109307573 | BU62: 124.3353271 | BV62: 13.59079284
B63: ='Input - Inventory'!B60 -> 52 | C63: ='Input - Inventory'!C60 -> SON4x600 | D63: ='Input - Inventory'!D60 -> Lamp | E63: ='Input - Inventory'!E60 -> Traffic | F63: ='Input - Inventory'!F60 -> Major | G63: ='Input - Inventory'!H60 -> 4 | I63: Lamp - SON4x600 | K63: 169.474609 | L63: 2 | M63: 338.9492179 | O63: =IF(AND($D63="Lamp", OR($F63=O$9, O$9="All")),IF('Input - Inventory'!G60="N",INDIRECT("PriceBulkTask1" & "FY19"),INDIRECT("PriceBulkTask1LED" & "FY19")),0) -> 0 | P63: =IF(AND($D63="Lamp",CycleBulkTask1<>0, OR($F63=O$9,O$9="All")),IF('Input - Inventory'!G60="N",1/CycleBulkTask1,1/CycleBulkTask1LED),0) -> 0 | Q63: =IF(AND($D63="Lamp", OR($F63=Q$9, Q$9="All")),IF('Input - Inventory'!G60="N",INDIRECT("PriceBulkTask2" & "FY19"),INDIRECT("PriceBulkTask2LED" & "FY19")),0) -> 29.38314957 | R63: =IF(AND($D63="Lamp",CycleBulkTask2<>0, OR($F63=Q$9,Q$9="All")),IF('Input - Inventory'!G60="N",1/CycleBulkTask2,1/CycleBulkTask2LED),0) -> 0.25 | S63: 11.74249459 | T63: 0.007123137293 | U63: 5.699151855 | V63: 0 | W63: 24.68074191 | X63: 0.005931168948 | Y63: 14.78572079 | Z63: 0.02002998353 | AA63: 41.10076471 | AB63: 0.01503682404 | AC63: 8476.3583 | AD63: 6.144166728e-05 | AE63: 9.010800741 | AG63: 113.6930688 | AH63: 0.25 | AI63: 50.83443924 | AJ63: 0.007123137293 | AK63: 11.29013046 | AL63: 0 | AM63: 15.33629526 | AN63: 0.02096799299 | AO63: 29.10693923 | AQ63: 88.30902802 | AR63: 0.2363392756 | AS63: 2.27 | AT63: 88.30902802 | AU63: 0.0198285774 | AV63: 2.27 | AW63: 88.30902802 | AX63: 0.03256191236 | AY63: 2.27 | AZ63: 57.87920002 | BB63: 28.42326721 | BC63: 0.2363392756 | BD63: 11.29013046 | BE63: 0.0198285774 | BF63: 15.33629526 | BG63: 0.03256191236 | BH63: 7.440780711 | BJ63: 32.81110994 | BK63: 0.6554165674 | BL63: 21.50494505 | BN63: =IF($D63="Connection",VLOOKUP(C63,'Input - General'!$F$51:$N$59,4,FALSE),0) -> 0 | BP63: 0.2227618911 | BQ63: 124.9426658 | BR63: 27.8324645 | BT63: 0.109307573 | BU63: 152.7751303 | BV63: 16.6994787
B64: ='Input - Inventory'!B61 -> 53 | C64: ='Input - Inventory'!C61 -> TF1x20 | D64: ='Input - Inventory'!D61 -> Lamp | E64: ='Input - Inventory'!E61 -> NonTraffic | F64: ='Input - Inventory'!F61 -> Minor | G64: ='Input - Inventory'!H61 -> 1 | I64: Lamp - TF1x20 | K64: 62.19089605 | L64: 4 | M64: 248.7635842 | O64: =IF(AND($D64="Lamp", OR($F64=O$9, O$9="All")),IF('Input - Inventory'!G61="N",INDIRECT("PriceBulkTask1" & "FY19"),INDIRECT("PriceBulkTask1LED" & "FY19")),0) -> 25.22503701 | P64: =IF(AND($D64="Lamp",CycleBulkTask1<>0, OR($F64=O$9,O$9="All")),IF('Input - Inventory'!G61="N",1/CycleBulkTask1,1/CycleBulkTask1LED),0) -> 0.25 | Q64: =IF(AND($D64="Lamp", OR($F64=Q$9, Q$9="All")),IF('Input - Inventory'!G61="N",INDIRECT("PriceBulkTask2" & "FY19"),INDIRECT("PriceBulkTask2LED" & "FY19")),0) -> 0 | R64: =IF(AND($D64="Lamp",CycleBulkTask2<>0, OR($F64=Q$9,Q$9="All")),IF('Input - Inventory'!G61="N",1/CycleBulkTask2,1/CycleBulkTask2LED),0) -> 0 | S64: 11.74249459 | T64: 0.007123137293 | U64: 5.699151855 | V64: 0 | W64: 24.68074191 | X64: 0.005931168948 | Y64: 14.78572079 | Z64: 0.02002998353 | AA64: 41.10076471 | AB64: 0.01503682404 | AC64: 8476.3583 | AD64: 6.144166728e-05 | AE64: 7.971272602 | AG64: 1.329145589 | AH64: 0.25 | AI64: 50.83443924 | AJ64: 0.007123137293 | AK64: 11.29013046 | AL64: 0 | AM64: 15.33629526 | AN64: 0.02096799299 | AO64: 1.015958419 | AQ64: 88.30902802 | AR64: 0.1437293284 | AS64: 1.513333333 | AT64: 88.30902802 | AU64: 0.0198285774 | AV64: 1.513333333 | AW64: 88.30902802 | AX64: 0.03256191236 | AY64: 1.513333333 | AZ64: 26.20964778 | BB64: 1.329145589 | BC64: 0.1437293284 | BD64: 11.29013046 | BE64: 0.0198285774 | BF64: 15.33629526 | BG64: 0.03256191236 | BH64: 0.9142835306 | BJ64: 32.81110994 | BK64: 0.2967946581 | BL64: 9.738162155 | BN64: =IF($D64="Connection",VLOOKUP(C64,'Input - General'!$F$51:$N$59,4,FALSE),0) -> 0 | BP64: 0.2227618911 | BQ64: 45.84932448 | BR64: 10.21348223 | BT64: 0.109307573 | BU64: 56.06280671 | BV64: 6.128089337
B65: ='Input - Inventory'!B62 -> 54 | C65: ='Input - Inventory'!C62 -> TF1x40 | D65: ='Input - Inventory'!D62 -> Lamp | E65: ='Input - Inventory'!E62 -> NonTraffic | F65: ='Input - Inventory'!F62 -> Minor | G65: ='Input - Inventory'!H62 -> 1 | I65: Lamp - TF1x40 | K65: 62.30010314 | L65: 292 | M65: 18191.63012 | O65: =IF(AND($D65="Lamp", OR($F65=O$9, O$9="All")),IF('Input - Inventory'!G62="N",INDIRECT("PriceBulkTask1" & "FY19"),INDIRECT("PriceBulkTask1LED" & "FY19")),0) -> 25.22503701 | P65: =IF(AND($D65="Lamp",CycleBulkTask1<>0, OR($F65=O$9,O$9="All")),IF('Input - Inventory'!G62="N",1/CycleBulkTask1,1/CycleBulkTask1LED),0) -> 0.25 | Q65: =IF(AND($D65="Lamp", OR($F65=Q$9, Q$9="All")),IF('Input - Inventory'!G62="N",INDIRECT("PriceBulkTask2" & "FY19"),INDIRECT("PriceBulkTask2LED" & "FY19")),0) -> 0 | R65: =IF(AND($D65="Lamp",CycleBulkTask2<>0, OR($F65=Q$9,Q$9="All")),IF('Input - Inventory'!G62="N",1/CycleBulkTask2,1/CycleBulkTask2LED),0) -> 0 | S65: 11.74249459 | T65: 0.007123137293 | U65: 5.699151855 | V65: 0 | W65: 24.68074191 | X65: 0.005931168948 | Y65: 14.78572079 | Z65: 0.02002998353 | AA65: 41.10076471 | AB65: 0.01503682404 | AC65: 8476.3583 | AD65: 6.144166728e-05 | AE65: 7.971272602 | AG65: 1.533629526 | AH65: 0.25 | AI65: 50.83443924 | AJ65: 0.007123137293 | AK65: 11.29013046 | AL65: 0 | AM65: 15.33629526 | AN65: 0.02096799299 | AO65: 1.067079403 | AQ65: 88.30902802 | AR65: 0.1437293284 | AS65: 1.513333333 | AT65: 88.30902802 | AU65: 0.0198285774 | AV65: 1.513333333 | AW65: 88.30902802 | AX65: 0.03256191236 | AY65: 1.513333333 | AZ65: 26.20964778 | BB65: 1.533629526 | BC65: 0.1437293284 | BD65: 11.29013046 | BE65: 0.0198285774 | BF65: 15.33629526 | BG65: 0.03256191236 | BH65: 0.9436738694 | BJ65: 32.81110994 | BK65: 0.2967946581 | BL65: 9.738162155 | BN65: =IF($D65="Connection",VLOOKUP(C65,'Input - General'!$F$51:$N$59,4,FALSE),0) -> 0 | BP65: 0.2227618911 | BQ65: 45.92983581 | BR65: 10.23141708 | BT65: 0.109307573 | BU65: 56.16125289 | BV65: 6.13885025
B66: ='Input - Inventory'!B63 -> 55 | C66: ='Input - Inventory'!C63 -> TF1x80 | D66: ='Input - Inventory'!D63 -> Lamp | E66: ='Input - Inventory'!E63 -> NonTraffic | F66: ='Input - Inventory'!F63 -> Minor | G66: ='Input - Inventory'!H63 -> 1 | I66: Lamp - TF1x80 | K66: 62.30010314 | L66: 97 | M66: 6043.110005 | O66: =IF(AND($D66="Lamp", OR($F66=O$9, O$9="All")),IF('Input - Inventory'!G63="N",INDIRECT("PriceBulkTask1" & "FY19"),INDIRECT("PriceBulkTask1LED" & "FY19")),0) -> 25.22503701 | P66: =IF(AND($D66="Lamp",CycleBulkTask1<>0, OR($F66=O$9,O$9="All")),IF('Input - Inventory'!G63="N",1/CycleBulkTask1,1/CycleBulkTask1LED),0) -> 0.25 | Q66: =IF(AND($D66="Lamp", OR($F66=Q$9, Q$9="All")),IF('Input - Inventory'!G63="N",INDIRECT("PriceBulkTask2" & "FY19"),INDIRECT("PriceBulkTask2LED" & "FY19")),0) -> 0 | R66: =IF(AND($D66="Lamp",CycleBulkTask2<>0, OR($F66=Q$9,Q$9="All")),IF('Input - Inventory'!G63="N",1/CycleBulkTask2,1/CycleBulkTask2LED),0) -> 0 | S66: 11.74249459 | T66: 0.007123137293 | U66: 5.699151855 | V66: 0 | W66: 24.68074191 | X66: 0.005931168948 | Y66: 14.78572079 | Z66: 0.02002998353 | AA66: 41.10076471 | AB66: 0.01503682404 | AC66: 8476.3583 | AD66: 6.144166728e-05 | AE66: 7.971272602 | AG66: 1.533629526 | AH66: 0.25 | AI66: 50.83443924 | AJ66: 0.007123137293 | AK66: 11.29013046 | AL66: 0 | AM66: 15.33629526 | AN66: 0.02096799299 | AO66: 1.067079403 | AQ66: 88.30902802 | AR66: 0.1437293284 | AS66: 1.513333333 | AT66: 88.30902802 | AU66: 0.0198285774 | AV66: 1.513333333 | AW66: 88.30902802 | AX66: 0.03256191236 | AY66: 1.513333333 | AZ66: 26.20964778 | BB66: 1.533629526 | BC66: 0.1437293284 | BD66: 11.29013046 | BE66: 0.0198285774 | BF66: 15.33629526 | BG66: 0.03256191236 | BH66: 0.9436738694 | BJ66: 32.81110994 | BK66: 0.2967946581 | BL66: 9.738162155 | BN66: =IF($D66="Connection",VLOOKUP(C66,'Input - General'!$F$51:$N$59,4,FALSE),0) -> 0 | BP66: 0.2227618911 | BQ66: 45.92983581 | BR66: 10.23141708 | BT66: 0.109307573 | BU66: 56.16125289 | BV66: 6.13885025
B67: ='Input - Inventory'!B64 -> 56 | C67: ='Input - Inventory'!C64 -> TF2x14 T5 | D67: ='Input - Inventory'!D64 -> Lamp | E67: ='Input - Inventory'!E64 -> NonTraffic | F67: ='Input - Inventory'!F64 -> Minor | G67: ='Input - Inventory'!H64 -> 2 | I67: Lamp - TF2x14 T5 | K67: 49.37500937 | L67: 222 | M67: 10961.25208 | O67: =IF(AND($D67="Lamp", OR($F67=O$9, O$9="All")),IF('Input - Inventory'!G64="N",INDIRECT("PriceBulkTask1" & "FY19"),INDIRECT("PriceBulkTask1LED" & "FY19")),0) -> 25.22503701 | P67: =IF(AND($D67="Lamp",CycleBulkTask1<>0, OR($F67=O$9,O$9="All")),IF('Input - Inventory'!G64="N",1/CycleBulkTask1,1/CycleBulkTask1LED),0) -> 0.25 | Q67: =IF(AND($D67="Lamp", OR($F67=Q$9, Q$9="All")),IF('Input - Inventory'!G64="N",INDIRECT("PriceBulkTask2" & "FY19"),INDIRECT("PriceBulkTask2LED" & "FY19")),0) -> 0 | R67: =IF(AND($D67="Lamp",CycleBulkTask2<>0, OR($F67=Q$9,Q$9="All")),IF('Input - Inventory'!G64="N",1/CycleBulkTask2,1/CycleBulkTask2LED),0) -> 0 | S67: 11.74249459 | T67: 0.007123137293 | U67: 5.699151855 | V67: 0 | W67: 24.68074191 | X67: 0.005931168948 | Y67: 14.78572079 | Z67: 0.02002998353 | AA67: 41.10076471 | AB67: 0.01503682404 | AC67: 8476.3583 | AD67: 6.144166728e-05 | AE67: 7.971272602 | AG67: 3.067259051 | AH67: 0.25 | AI67: 50.83443924 | AJ67: 0.007123137293 | AK67: 11.29013046 | AL67: 0 | AM67: 15.33629526 | AN67: 0.02096799299 | AO67: 1.450486784 | AQ67: 88.30902802 | AR67: 0.0901 | AS67: 1.513333333 | AT67: 88.30902802 | AU67: 0.0198285774 | AV67: 1.513333333 | AW67: 88.30902802 | AX67: 0.03256191236 | AY67: 1.513333333 | AZ67: 19.04257094 | BB67: 1.533629526 | BC67: 0.0901 | BD67: 11.29013046 | BE67: 0.0198285774 | BF67: 15.33629526 | BG67: 0.03256191236 | BH67: 0.861426348 | BJ67: 32.81110994 | BK67: 0.2156356078 | BL67: 7.075243635 | BN67: =IF($D67="Connection",VLOOKUP(C67,'Input - General'!$F$51:$N$59,4,FALSE),0) -> 0 | BP67: 0.2227618911 | BQ67: 36.4010003 | BR67: 8.108755666 | BT67: 0.109307573 | BU67: 44.50975597 | BV67: 4.8652534
B68: ='Input - Inventory'!B65 -> 57 | C68: ='Input - Inventory'!C65 -> TF2x20 | D68: ='Input - Inventory'!D65 -> Lamp | E68: ='Input - Inventory'!E65 -> NonTraffic | F68: ='Input - Inventory'!F65 -> Minor | G68: ='Input - Inventory'!H65 -> 2 | I68: Lamp - TF2x20 | K68: 93.46207951 | L68: 9952 | M68: 930134.6153 | O68: =IF(AND($D68="Lamp", OR($F68=O$9, O$9="All")),IF('Input - Inventory'!G65="N",INDIRECT("PriceBulkTask1" & "FY19"),INDIRECT("PriceBulkTask1LED" & "FY19")),0) -> 25.22503701 | P68: =IF(AND($D68="Lamp",CycleBulkTask1<>0, OR($F68=O$9,O$9="All")),IF('Input - Inventory'!G65="N",1/CycleBulkTask1,1/CycleBulkTask1LED),0) -> 0.25 | Q68: =IF(AND($D68="Lamp", OR($F68=Q$9, Q$9="All")),IF('Input - Inventory'!G65="N",INDIRECT("PriceBulkTask2" & "FY19"),INDIRECT("PriceBulkTask2LED" & "FY19")),0) -> 0 | R68: =IF(AND($D68="Lamp",CycleBulkTask2<>0, OR($F68=Q$9,Q$9="All")),IF('Input - Inventory'!G65="N",1/CycleBulkTask2,1/CycleBulkTask2LED),0) -> 0 | S68: 11.74249459 | T68: 0.007123137293 | U68: 5.699151855 | V68: 0 | W68: 24.68074191 | X68: 0.005931168948 | Y68: 14.78572079 | Z68: 0.02002998353 | AA68: 41.10076471 | AB68: 0.01503682404 | AC68: 8476.3583 | AD68: 6.144166728e-05 | AE68: 7.971272602 | AG68: 2.658291178 | AH68: 0.25 | AI68: 50.83443924 | AJ68: 0.007123137293 | AK68: 11.29013046 | AL68: 0 | AM68: 15.33629526 | AN68: 0.02096799299 | AO68: 1.348244816 | AQ68: 88.30902802 | AR68: 0.2668005369 | AS68: 1.513333333 | AT68: 88.30902802 | AU68: 0.0198285774 | AV68: 1.513333333 | AW68: 88.30902802 | AX68: 0.03256191236 | AY68: 1.513333333 | AZ68: 42.65700663 | BB68: 1.329145589 | BC68: 0.2668005369 | BD68: 11.29013046 | BE68: 0.0198285774 | BF68: 15.33629526 | BG68: 0.03256191236 | BH68: 1.077863084 | BJ68: 32.81110994 | BK68: 0.4830424203 | BL68: 15.84915796 | BN68: =IF($D68="Connection",VLOOKUP(C68,'Input - General'!$F$51:$N$59,4,FALSE),0) -> 0 | BP68: 0.2227618911 | BQ68: 68.90354509 | BR68: 15.34908401 | BT68: 0.109307573 | BU68: 84.2526291 | BV68: 9.209450406
B69: ='Input - Inventory'!B66 -> 58 | C69: ='Input - Inventory'!C66 -> TF2x26 | D69: ='Input - Inventory'!D66 -> Lamp | E69: ='Input - Inventory'!E66 -> NonTraffic | F69: ='Input - Inventory'!F66 -> Minor | G69: ='Input - Inventory'!H66 -> 2 | I69: Lamp - TF2x26 | K69: 93.67476383 | L69: 14 | M69: 1311.446694 | O69: =IF(AND($D69="Lamp", OR($F69=O$9, O$9="All")),IF('Input - Inventory'!G66="N",INDIRECT("PriceBulkTask1" & "FY19"),INDIRECT("PriceBulkTask1LED" & "FY19")),0) -> 25.22503701 | P69: =IF(AND($D69="Lamp",CycleBulkTask1<>0, OR($F69=O$9,O$9="All")),IF('Input - Inventory'!G66="N",1/CycleBulkTask1,1/CycleBulkTask1LED),0) -> 0.25 | Q69: =IF(AND($D69="Lamp", OR($F69=Q$9, Q$9="All")),IF('Input - Inventory'!G66="N",INDIRECT("PriceBulkTask2" & "FY19"),INDIRECT("PriceBulkTask2LED" & "FY19")),0) -> 0 | R69: =IF(AND($D69="Lamp",CycleBulkTask2<>0, OR($F69=Q$9,Q$9="All")),IF('Input - Inventory'!G66="N",1/CycleBulkTask2,1/CycleBulkTask2LED),0) -> 0 | S69: 11.74249459 | T69: 0.007123137293 | U69: 5.699151855 | V69: 0 | W69: 24.68074191 | X69: 0.005931168948 | Y69: 14.78572079 | Z69: 0.02002998353 | AA69: 41.10076471 | AB69: 0.01503682404 | AC69: 8476.3583 | AD69: 6.144166728e-05 | AE69: 7.971272602 | AG69: 3.067259051 | AH69: 0.25 | AI69: 50.83443924 | AJ69: 0.007123137293 | AK69: 11.29013046 | AL69: 0 | AM69: 15.33629526 | AN69: 0.02096799299 | AO69: 1.450486784 | AQ69: 88.30902802 | AR69: 0.2668005369 | AS69: 1.513333333 | AT69: 88.30902802 | AU69: 0.0198285774 | AV69: 1.513333333 | AW69: 88.30902802 | AX69: 0.03256191236 | AY69: 1.513333333 | AZ69: 42.65700663 | BB69: 1.533629526 | BC69: 0.2668005369 | BD69: 11.29013046 | BE69: 0.0198285774 | BF69: 15.33629526 | BG69: 0.03256191236 | BH69: 1.132419509 | BJ69: 32.81110994 | BK69: 0.4830424203 | BL69: 15.84915796 | BN69: =IF($D69="Connection",VLOOKUP(C69,'Input - General'!$F$51:$N$59,4,FALSE),0) -> 0 | BP69: 0.2227618911 | BQ69: 69.06034349 | BR69: 15.38401272 | BT69: 0.109307573 | BU69: 84.4443562 | BV69: 9.23040763
B70: ='Input - Inventory'!B67 -> 59 | C70: ='Input - Inventory'!C67 -> TF2x40 | D70: ='Input - Inventory'!D67 -> Lamp | E70: ='Input - Inventory'!E67 -> NonTraffic | F70: ='Input - Inventory'!F67 -> Minor | G70: ='Input - Inventory'!H67 -> 2 | I70: Lamp - TF2x40 | K70: 93.67476383 | L70: 14 | M70: 1311.446694 | O70: =IF(AND($D70="Lamp", OR($F70=O$9, O$9="All")),IF('Input - Inventory'!G67="N",INDIRECT("PriceBulkTask1" & "FY19"),INDIRECT("PriceBulkTask1LED" & "FY19")),0) -> 25.22503701 | P70: =IF(AND($D70="Lamp",CycleBulkTask1<>0, OR($F70=O$9,O$9="All")),IF('Input - Inventory'!G67="N",1/CycleBulkTask1,1/CycleBulkTask1LED),0) -> 0.25 | Q70: =IF(AND($D70="Lamp", OR($F70=Q$9, Q$9="All")),IF('Input - Inventory'!G67="N",INDIRECT("PriceBulkTask2" & "FY19"),INDIRECT("PriceBulkTask2LED" & "FY19")),0) -> 0 | R70: =IF(AND($D70="Lamp",CycleBulkTask2<>0, OR($F70=Q$9,Q$9="All")),IF('Input - Inventory'!G67="N",1/CycleBulkTask2,1/CycleBulkTask2LED),0) -> 0 | S70: 11.74249459 | T70: 0.007123137293 | U70: 5.699151855 | V70: 0 | W70: 24.68074191 | X70: 0.005931168948 | Y70: 14.78572079 | Z70: 0.02002998353 | AA70: 41.10076471 | AB70: 0.01503682404 | AC70: 8476.3583 | AD70: 6.144166728e-05 | AE70: 7.971272602 | AG70: 3.067259051 | AH70: 0.25 | AI70: 50.83443924 | AJ70: 0.007123137293 | AK70: 11.29013046 | AL70: 0 | AM70: 15.33629526 | AN70: 0.02096799299 | AO70: 1.450486784 | AQ70: 88.30902802 | AR70: 0.2668005369 | AS70: 1.513333333 | AT70: 88.30902802 | AU70: 0.0198285774 | AV70: 1.513333333 | AW70: 88.30902802 | AX70: 0.03256191236 | AY70: 1.513333333 | AZ70: 42.65700663 | BB70: 1.533629526 | BC70: 0.2668005369 | BD70: 11.29013046 | BE70: 0.0198285774 | BF70: 15.33629526 | BG70: 0.03256191236 | BH70: 1.132419509 | BJ70: 32.81110994 | BK70: 0.4830424203 | BL70: 15.84915796 | BN70: =IF($D70="Connection",VLOOKUP(C70,'Input - General'!$F$51:$N$59,4,FALSE),0) -> 0 | BP70: 0.2227618911 | BQ70: 69.06034349 | BR70: 15.38401272 | BT70: 0.109307573 | BU70: 84.4443562 | BV70: 9.23040763
